Workbook

Sheet 必ずこのシートから始めてください
D3: 空調年間活動量算定ツール(吸収式冷凍機版) | M3: Ver. 1.1
C5: 吸収式冷凍機の年間燃料使用量および電力使用量の算定
D8: 吸収式冷凍機を設置する都道府県を選択 | K8: 選択
D10: 選択した都道府県庁所在地等 （埼玉県は熊谷市、滋賀県は彦根市よりデータ取得） | K10: 自動表示 | L10: =IF($L$8="","",VLOOKUP($L$8,都道府県庁所在地等一覧表!$C$3:$D$50,2,FALSE)) -> 
D12: 検証場所セルを押下するとシートが開く
H13: 検証場所
D16: 注意事項 | E16: ● 本ツールは、設備更新の効果を簡易的に把握するために開発されたものであり、他の目的に利用することは想定されていません。
E17: ● あらゆる入力に対して正しい計算結果が得られることを保証するものではありません。
E18: 計算結果の取り扱いについては、自己責任でお願いします。

Sheet 検証場所
C2: 吸収式冷凍機の設置場所
C3: =IF(必ずこのシートから始めてください!$L$8="","",必ずこのシートから始めてください!$L$8) ->  | F3: 手順1：空調を行う月、時間を下記の指定の色で塗る(指定の色以外で塗ると計算できません。)
C4: =VLOOKUP($C$3,都道府県庁所在地等一覧表!$C$3:$D$50,2,FALSE) ->  | G4: 冷却 | H4: 青 | I4: 【左から5列目、一番薄い色(アクセント1,白＋基本色80％)】
G5: 加熱 | H5: オレンジ | I5: 【左から6番目、一番薄い色(アクセント2,白＋基本色80％)】
F6: 手順2：各月の運転日数を入力する
F7: 手順3：Ctrl + Alt + F9を同時に押す | R7: ●時刻別平均外気湿球温度表記載の数値は、選択された都道府県の県庁所在地等の月別、時刻別平均外気湿球温度
F8: 手順4：黄色のセルに値を入力する(緑は自動計算) | R8: ●本データは気象庁発表の1992年4月1日から2022年3月31日までの30年の1時間データを整理したもの
C9: 時刻別平均外気湿球温度[℃] | R9: ●2月はうるう日を含みます
D10: 時刻 | AB10: =SUM(AB12:AB23) -> 0 | AC10: =必ずこのシートから始めてください!M3 -> Ver. 1.1
C11: 月 | D11: 0 | E11: 1 | F11: 2 | G11: 3 | H11: 4 | I11: 5 | J11: 6 | K11: 7 | L11: 8 | M11: 9 | N11: 10 | O11: 11 | P11: 12 | Q11: 13 | R11: 14 | S11: 15 | T11: 16 | U11: 17 | V11: 18 | W11: 19 | X11: 20 | Y11: 21 | Z11: 22 | AA11: 23 | AB11: 運転日数 | AC11: 月
C12: 4 | D12: =IFERROR(INDIRECT($C$4&"!B5"),"") ->  | E12: =IFERROR(INDIRECT($C$4&"!C5"),"") ->  | F12: =IFERROR(INDIRECT($C$4&"!D5"),"") ->  | G12: =IFERROR(INDIRECT($C$4&"!E5"),"") ->  | H12: =IFERROR(INDIRECT($C$4&"!F5"),"") ->  | I12: =IFERROR(INDIRECT($C$4&"!G5"),"") ->  | J12: =IFERROR(INDIRECT($C$4&"!H5"),"") ->  | K12: =IFERROR(INDIRECT($C$4&"!I5"),"") ->  | L12: =IFERROR(INDIRECT($C$4&"!J5"),"") ->  | M12: =IFERROR(INDIRECT($C$4&"!K5"),"") ->  | N12: =IFERROR(INDIRECT($C$4&"!L5"),"") ->  | O12: =IFERROR(INDIRECT($C$4&"!M5"),"") ->  | P12: =IFERROR(INDIRECT($C$4&"!N5"),"") ->  | Q12: =IFERROR(INDIRECT($C$4&"!O5"),"") ->  | R12: =IFERROR(INDIRECT($C$4&"!P5"),"") ->  | S12: =IFERROR(INDIRECT($C$4&"!Q5"),"") ->  | T12: =IFERROR(INDIRECT($C$4&"!R5"),"") ->  | U12: =IFERROR(INDIRECT($C$4&"!S5"),"") ->  | V12: =IFERROR(INDIRECT($C$4&"!T5"),"") ->  | W12: =IFERROR(INDIRECT($C$4&"!U5"),"") ->  | X12: =IFERROR(INDIRECT($C$4&"!V5"),"") ->  | Y12: =IFERROR(INDIRECT($C$4&"!W5"),"") ->  | Z12: =IFERROR(INDIRECT($C$4&"!X5"),"") ->  | AA12: =IFERROR(INDIRECT($C$4&"!Y5"),"") ->  | AC12: 4
C13: 5 | D13: =IFERROR(INDIRECT($C$4&"!B6"),"") ->  | E13: =IFERROR(INDIRECT($C$4&"!C6"),"") ->  | F13: =IFERROR(INDIRECT($C$4&"!D6"),"") ->  | G13: =IFERROR(INDIRECT($C$4&"!E6"),"") ->  | H13: =IFERROR(INDIRECT($C$4&"!F6"),"") ->  | I13: =IFERROR(INDIRECT($C$4&"!G6"),"") ->  | J13: =IFERROR(INDIRECT($C$4&"!H6"),"") ->  | K13: =IFERROR(INDIRECT($C$4&"!I6"),"") ->  | L13: =IFERROR(INDIRECT($C$4&"!J6"),"") ->  | M13: =IFERROR(INDIRECT($C$4&"!K6"),"") ->  | N13: =IFERROR(INDIRECT($C$4&"!L6"),"") ->  | O13: =IFERROR(INDIRECT($C$4&"!M6"),"") ->  | P13: =IFERROR(INDIRECT($C$4&"!N6"),"") ->  | Q13: =IFERROR(INDIRECT($C$4&"!O6"),"") ->  | R13: =IFERROR(INDIRECT($C$4&"!P6"),"") ->  | S13: =IFERROR(INDIRECT($C$4&"!Q6"),"") ->  | T13: =IFERROR(INDIRECT($C$4&"!R6"),"") ->  | U13: =IFERROR(INDIRECT($C$4&"!S6"),"") ->  | V13: =IFERROR(INDIRECT($C$4&"!T6"),"") ->  | W13: =IFERROR(INDIRECT($C$4&"!U6"),"") ->  | X13: =IFERROR(INDIRECT($C$4&"!V6"),"") ->  | Y13: =IFERROR(INDIRECT($C$4&"!W6"),"") ->  | Z13: =IFERROR(INDIRECT($C$4&"!X6"),"") ->  | AA13: =IFERROR(INDIRECT($C$4&"!Y6"),"") ->  | AC13: 5
C14: 6 | D14: =IFERROR(INDIRECT($C$4&"!B7"),"") ->  | E14: =IFERROR(INDIRECT($C$4&"!C7"),"") ->  | F14: =IFERROR(INDIRECT($C$4&"!D7"),"") ->  | G14: =IFERROR(INDIRECT($C$4&"!E7"),"") ->  | H14: =IFERROR(INDIRECT($C$4&"!F7"),"") ->  | I14: =IFERROR(INDIRECT($C$4&"!G7"),"") ->  | J14: =IFERROR(INDIRECT($C$4&"!H7"),"") ->  | K14: =IFERROR(INDIRECT($C$4&"!I7"),"") ->  | L14: =IFERROR(INDIRECT($C$4&"!J7"),"") ->  | M14: =IFERROR(INDIRECT($C$4&"!K7"),"") ->  | N14: =IFERROR(INDIRECT($C$4&"!L7"),"") ->  | O14: =IFERROR(INDIRECT($C$4&"!M7"),"") ->  | P14: =IFERROR(INDIRECT($C$4&"!N7"),"") ->  | Q14: =IFERROR(INDIRECT($C$4&"!O7"),"") ->  | R14: =IFERROR(INDIRECT($C$4&"!P7"),"") ->  | S14: =IFERROR(INDIRECT($C$4&"!Q7"),"") ->  | T14: =IFERROR(INDIRECT($C$4&"!R7"),"") ->  | U14: =IFERROR(INDIRECT($C$4&"!S7"),"") ->  | V14: =IFERROR(INDIRECT($C$4&"!T7"),"") ->  | W14: =IFERROR(INDIRECT($C$4&"!U7"),"") ->  | X14: =IFERROR(INDIRECT($C$4&"!V7"),"") ->  | Y14: =IFERROR(INDIRECT($C$4&"!W7"),"") ->  | Z14: =IFERROR(INDIRECT($C$4&"!X7"),"") ->  | AA14: =IFERROR(INDIRECT($C$4&"!Y7"),"") ->  | AC14: 6
C15: 7 | D15: =IFERROR(INDIRECT($C$4&"!B8"),"") ->  | E15: =IFERROR(INDIRECT($C$4&"!C8"),"") ->  | F15: =IFERROR(INDIRECT($C$4&"!D8"),"") ->  | G15: =IFERROR(INDIRECT($C$4&"!E8"),"") ->  | H15: =IFERROR(INDIRECT($C$4&"!F8"),"") ->  | I15: =IFERROR(INDIRECT($C$4&"!G8"),"") ->  | J15: =IFERROR(INDIRECT($C$4&"!H8"),"") ->  | K15: =IFERROR(INDIRECT($C$4&"!I8"),"") ->  | L15: =IFERROR(INDIRECT($C$4&"!J8"),"") ->  | M15: =IFERROR(INDIRECT($C$4&"!K8"),"") ->  | N15: =IFERROR(INDIRECT($C$4&"!L8"),"") ->  | O15: =IFERROR(INDIRECT($C$4&"!M8"),"") ->  | P15: =IFERROR(INDIRECT($C$4&"!N8"),"") ->  | Q15: =IFERROR(INDIRECT($C$4&"!O8"),"") ->  | R15: =IFERROR(INDIRECT($C$4&"!P8"),"") ->  | S15: =IFERROR(INDIRECT($C$4&"!Q8"),"") ->  | T15: =IFERROR(INDIRECT($C$4&"!R8"),"") ->  | U15: =IFERROR(INDIRECT($C$4&"!S8"),"") ->  | V15: =IFERROR(INDIRECT($C$4&"!T8"),"") ->  | W15: =IFERROR(INDIRECT($C$4&"!U8"),"") ->  | X15: =IFERROR(INDIRECT($C$4&"!V8"),"") ->  | Y15: =IFERROR(INDIRECT($C$4&"!W8"),"") ->  | Z15: =IFERROR(INDIRECT($C$4&"!X8"),"") ->  | AA15: =IFERROR(INDIRECT($C$4&"!Y8"),"") ->  | AC15: 7
C16: 8 | D16: =IFERROR(INDIRECT($C$4&"!B9"),"") ->  | E16: =IFERROR(INDIRECT($C$4&"!C9"),"") ->  | F16: =IFERROR(INDIRECT($C$4&"!D9"),"") ->  | G16: =IFERROR(INDIRECT($C$4&"!E9"),"") ->  | H16: =IFERROR(INDIRECT($C$4&"!F9"),"") ->  | I16: =IFERROR(INDIRECT($C$4&"!G9"),"") ->  | J16: =IFERROR(INDIRECT($C$4&"!H9"),"") ->  | K16: =IFERROR(INDIRECT($C$4&"!I9"),"") ->  | L16: =IFERROR(INDIRECT($C$4&"!J9"),"") ->  | M16: =IFERROR(INDIRECT($C$4&"!K9"),"") ->  | N16: =IFERROR(INDIRECT($C$4&"!L9"),"") ->  | O16: =IFERROR(INDIRECT($C$4&"!M9"),"") ->  | P16: =IFERROR(INDIRECT($C$4&"!N9"),"") ->  | Q16: =IFERROR(INDIRECT($C$4&"!O9"),"") ->  | R16: =IFERROR(INDIRECT($C$4&"!P9"),"") ->  | S16: =IFERROR(INDIRECT($C$4&"!Q9"),"") ->  | T16: =IFERROR(INDIRECT($C$4&"!R9"),"") ->  | U16: =IFERROR(INDIRECT($C$4&"!S9"),"") ->  | V16: =IFERROR(INDIRECT($C$4&"!T9"),"") ->  | W16: =IFERROR(INDIRECT($C$4&"!U9"),"") ->  | X16: =IFERROR(INDIRECT($C$4&"!V9"),"") ->  | Y16: =IFERROR(INDIRECT($C$4&"!W9"),"") ->  | Z16: =IFERROR(INDIRECT($C$4&"!X9"),"") ->  | AA16: =IFERROR(INDIRECT($C$4&"!Y9"),"") ->  | AC16: 8
C17: 9 | D17: =IFERROR(INDIRECT($C$4&"!B10"),"") ->  | E17: =IFERROR(INDIRECT($C$4&"!C10"),"") ->  | F17: =IFERROR(INDIRECT($C$4&"!D10"),"") ->  | G17: =IFERROR(INDIRECT($C$4&"!E10"),"") ->  | H17: =IFERROR(INDIRECT($C$4&"!F10"),"") ->  | I17: =IFERROR(INDIRECT($C$4&"!G10"),"") ->  | J17: =IFERROR(INDIRECT($C$4&"!H10"),"") ->  | K17: =IFERROR(INDIRECT($C$4&"!I10"),"") ->  | L17: =IFERROR(INDIRECT($C$4&"!J10"),"") ->  | M17: =IFERROR(INDIRECT($C$4&"!K10"),"") ->  | N17: =IFERROR(INDIRECT($C$4&"!L10"),"") ->  | O17: =IFERROR(INDIRECT($C$4&"!M10"),"") ->  | P17: =IFERROR(INDIRECT($C$4&"!N10"),"") ->  | Q17: =IFERROR(INDIRECT($C$4&"!O10"),"") ->  | R17: =IFERROR(INDIRECT($C$4&"!P10"),"") ->  | S17: =IFERROR(INDIRECT($C$4&"!Q10"),"") ->  | T17: =IFERROR(INDIRECT($C$4&"!R10"),"") ->  | U17: =IFERROR(INDIRECT($C$4&"!S10"),"") ->  | V17: =IFERROR(INDIRECT($C$4&"!T10"),"") ->  | W17: =IFERROR(INDIRECT($C$4&"!U10"),"") ->  | X17: =IFERROR(INDIRECT($C$4&"!V10"),"") ->  | Y17: =IFERROR(INDIRECT($C$4&"!W10"),"") ->  | Z17: =IFERROR(INDIRECT($C$4&"!X10"),"") ->  | AA17: =IFERROR(INDIRECT($C$4&"!Y10"),"") ->  | AC17: 9
C18: 10 | D18: =IFERROR(INDIRECT($C$4&"!B11"),"") ->  | E18: =IFERROR(INDIRECT($C$4&"!C11"),"") ->  | F18: =IFERROR(INDIRECT($C$4&"!D11"),"") ->  | G18: =IFERROR(INDIRECT($C$4&"!E11"),"") ->  | H18: =IFERROR(INDIRECT($C$4&"!F11"),"") ->  | I18: =IFERROR(INDIRECT($C$4&"!G11"),"") ->  | J18: =IFERROR(INDIRECT($C$4&"!H11"),"") ->  | K18: =IFERROR(INDIRECT($C$4&"!I11"),"") ->  | L18: =IFERROR(INDIRECT($C$4&"!J11"),"") ->  | M18: =IFERROR(INDIRECT($C$4&"!K11"),"") ->  | N18: =IFERROR(INDIRECT($C$4&"!L11"),"") ->  | O18: =IFERROR(INDIRECT($C$4&"!M11"),"") ->  | P18: =IFERROR(INDIRECT($C$4&"!N11"),"") ->  | Q18: =IFERROR(INDIRECT($C$4&"!O11"),"") ->  | R18: =IFERROR(INDIRECT($C$4&"!P11"),"") ->  | S18: =IFERROR(INDIRECT($C$4&"!Q11"),"") ->  | T18: =IFERROR(INDIRECT($C$4&"!R11"),"") ->  | U18: =IFERROR(INDIRECT($C$4&"!S11"),"") ->  | V18: =IFERROR(INDIRECT($C$4&"!T11"),"") ->  | W18: =IFERROR(INDIRECT($C$4&"!U11"),"") ->  | X18: =IFERROR(INDIRECT($C$4&"!V11"),"") ->  | Y18: =IFERROR(INDIRECT($C$4&"!W11"),"") ->  | Z18: =IFERROR(INDIRECT($C$4&"!X11"),"") ->  | AA18: =IFERROR(INDIRECT($C$4&"!Y11"),"") ->  | AC18: 10
C19: 11 | D19: =IFERROR(INDIRECT($C$4&"!B12"),"") ->  | E19: =IFERROR(INDIRECT($C$4&"!C12"),"") ->  | F19: =IFERROR(INDIRECT($C$4&"!D12"),"") ->  | G19: =IFERROR(INDIRECT($C$4&"!E12"),"") ->  | H19: =IFERROR(INDIRECT($C$4&"!F12"),"") ->  | I19: =IFERROR(INDIRECT($C$4&"!G12"),"") ->  | J19: =IFERROR(INDIRECT($C$4&"!H12"),"") ->  | K19: =IFERROR(INDIRECT($C$4&"!I12"),"") ->  | L19: =IFERROR(INDIRECT($C$4&"!J12"),"") ->  | M19: =IFERROR(INDIRECT($C$4&"!K12"),"") ->  | N19: =IFERROR(INDIRECT($C$4&"!L12"),"") ->  | O19: =IFERROR(INDIRECT($C$4&"!M12"),"") ->  | P19: =IFERROR(INDIRECT($C$4&"!N12"),"") ->  | Q19: =IFERROR(INDIRECT($C$4&"!O12"),"") ->  | R19: =IFERROR(INDIRECT($C$4&"!P12"),"") ->  | S19: =IFERROR(INDIRECT($C$4&"!Q12"),"") ->  | T19: =IFERROR(INDIRECT($C$4&"!R12"),"") ->  | U19: =IFERROR(INDIRECT($C$4&"!S12"),"") ->  | V19: =IFERROR(INDIRECT($C$4&"!T12"),"") ->  | W19: =IFERROR(INDIRECT($C$4&"!U12"),"") ->  | X19: =IFERROR(INDIRECT($C$4&"!V12"),"") ->  | Y19: =IFERROR(INDIRECT($C$4&"!W12"),"") ->  | Z19: =IFERROR(INDIRECT($C$4&"!X12"),"") ->  | AA19: =IFERROR(INDIRECT($C$4&"!Y12"),"") ->  | AC19: 11
C20: 12 | D20: =IFERROR(INDIRECT($C$4&"!B13"),"") ->  | E20: =IFERROR(INDIRECT($C$4&"!C13"),"") ->  | F20: =IFERROR(INDIRECT($C$4&"!D13"),"") ->  | G20: =IFERROR(INDIRECT($C$4&"!E13"),"") ->  | H20: =IFERROR(INDIRECT($C$4&"!F13"),"") ->  | I20: =IFERROR(INDIRECT($C$4&"!G13"),"") ->  | J20: =IFERROR(INDIRECT($C$4&"!H13"),"") ->  | K20: =IFERROR(INDIRECT($C$4&"!I13"),"") ->  | L20: =IFERROR(INDIRECT($C$4&"!J13"),"") ->  | M20: =IFERROR(INDIRECT($C$4&"!K13"),"") ->  | N20: =IFERROR(INDIRECT($C$4&"!L13"),"") ->  | O20: =IFERROR(INDIRECT($C$4&"!M13"),"") ->  | P20: =IFERROR(INDIRECT($C$4&"!N13"),"") ->  | Q20: =IFERROR(INDIRECT($C$4&"!O13"),"") ->  | R20: =IFERROR(INDIRECT($C$4&"!P13"),"") ->  | S20: =IFERROR(INDIRECT($C$4&"!Q13"),"") ->  | T20: =IFERROR(INDIRECT($C$4&"!R13"),"") ->  | U20: =IFERROR(INDIRECT($C$4&"!S13"),"") ->  | V20: =IFERROR(INDIRECT($C$4&"!T13"),"") ->  | W20: =IFERROR(INDIRECT($C$4&"!U13"),"") ->  | X20: =IFERROR(INDIRECT($C$4&"!V13"),"") ->  | Y20: =IFERROR(INDIRECT($C$4&"!W13"),"") ->  | Z20: =IFERROR(INDIRECT($C$4&"!X13"),"") ->  | AA20: =IFERROR(INDIRECT($C$4&"!Y13"),"") ->  | AC20: 12
C21: 1 | D21: =IFERROR(INDIRECT($C$4&"!B14"),"") ->  | E21: =IFERROR(INDIRECT($C$4&"!C14"),"") ->  | F21: =IFERROR(INDIRECT($C$4&"!D14"),"") ->  | G21: =IFERROR(INDIRECT($C$4&"!E14"),"") ->  | H21: =IFERROR(INDIRECT($C$4&"!F14"),"") ->  | I21: =IFERROR(INDIRECT($C$4&"!G14"),"") ->  | J21: =IFERROR(INDIRECT($C$4&"!H14"),"") ->  | K21: =IFERROR(INDIRECT($C$4&"!I14"),"") ->  | L21: =IFERROR(INDIRECT($C$4&"!J14"),"") ->  | M21: =IFERROR(INDIRECT($C$4&"!K14"),"") ->  | N21: =IFERROR(INDIRECT($C$4&"!L14"),"") ->  | O21: =IFERROR(INDIRECT($C$4&"!M14"),"") ->  | P21: =IFERROR(INDIRECT($C$4&"!N14"),"") ->  | Q21: =IFERROR(INDIRECT($C$4&"!O14"),"") ->  | R21: =IFERROR(INDIRECT($C$4&"!P14"),"") ->  | S21: =IFERROR(INDIRECT($C$4&"!Q14"),"") ->  | T21: =IFERROR(INDIRECT($C$4&"!R14"),"") ->  | U21: =IFERROR(INDIRECT($C$4&"!S14"),"") ->  | V21: =IFERROR(INDIRECT($C$4&"!T14"),"") ->  | W21: =IFERROR(INDIRECT($C$4&"!U14"),"") ->  | X21: =IFERROR(INDIRECT($C$4&"!V14"),"") ->  | Y21: =IFERROR(INDIRECT($C$4&"!W14"),"") ->  | Z21: =IFERROR(INDIRECT($C$4&"!X14"),"") ->  | AA21: =IFERROR(INDIRECT($C$4&"!Y14"),"") ->  | AC21: 1
C22: 2 | D22: =IFERROR(INDIRECT($C$4&"!B15"),"") ->  | E22: =IFERROR(INDIRECT($C$4&"!C15"),"") ->  | F22: =IFERROR(INDIRECT($C$4&"!D15"),"") ->  | G22: =IFERROR(INDIRECT($C$4&"!E15"),"") ->  | H22: =IFERROR(INDIRECT($C$4&"!F15"),"") ->  | I22: =IFERROR(INDIRECT($C$4&"!G15"),"") ->  | J22: =IFERROR(INDIRECT($C$4&"!H15"),"") ->  | K22: =IFERROR(INDIRECT($C$4&"!I15"),"") ->  | L22: =IFERROR(INDIRECT($C$4&"!J15"),"") ->  | M22: =IFERROR(INDIRECT($C$4&"!K15"),"") ->  | N22: =IFERROR(INDIRECT($C$4&"!L15"),"") ->  | O22: =IFERROR(INDIRECT($C$4&"!M15"),"") ->  | P22: =IFERROR(INDIRECT($C$4&"!N15"),"") ->  | Q22: =IFERROR(INDIRECT($C$4&"!O15"),"") ->  | R22: =IFERROR(INDIRECT($C$4&"!P15"),"") ->  | S22: =IFERROR(INDIRECT($C$4&"!Q15"),"") ->  | T22: =IFERROR(INDIRECT($C$4&"!R15"),"") ->  | U22: =IFERROR(INDIRECT($C$4&"!S15"),"") ->  | V22: =IFERROR(INDIRECT($C$4&"!T15"),"") ->  | W22: =IFERROR(INDIRECT($C$4&"!U15"),"") ->  | X22: =IFERROR(INDIRECT($C$4&"!V15"),"") ->  | Y22: =IFERROR(INDIRECT($C$4&"!W15"),"") ->  | Z22: =IFERROR(INDIRECT($C$4&"!X15"),"") ->  | AA22: =IFERROR(INDIRECT($C$4&"!Y15"),"") ->  | AC22: 2
C23: 3 | D23: =IFERROR(INDIRECT($C$4&"!B16"),"") ->  | E23: =IFERROR(INDIRECT($C$4&"!C16"),"") ->  | F23: =IFERROR(INDIRECT($C$4&"!D16"),"") ->  | G23: =IFERROR(INDIRECT($C$4&"!E16"),"") ->  | H23: =IFERROR(INDIRECT($C$4&"!F16"),"") ->  | I23: =IFERROR(INDIRECT($C$4&"!G16"),"") ->  | J23: =IFERROR(INDIRECT($C$4&"!H16"),"") ->  | K23: =IFERROR(INDIRECT($C$4&"!I16"),"") ->  | L23: =IFERROR(INDIRECT($C$4&"!J16"),"") ->  | M23: =IFERROR(INDIRECT($C$4&"!K16"),"") ->  | N23: =IFERROR(INDIRECT($C$4&"!L16"),"") ->  | O23: =IFERROR(INDIRECT($C$4&"!M16"),"") ->  | P23: =IFERROR(INDIRECT($C$4&"!N16"),"") ->  | Q23: =IFERROR(INDIRECT($C$4&"!O16"),"") ->  | R23: =IFERROR(INDIRECT($C$4&"!P16"),"") ->  | S23: =IFERROR(INDIRECT($C$4&"!Q16"),"") ->  | T23: =IFERROR(INDIRECT($C$4&"!R16"),"") ->  | U23: =IFERROR(INDIRECT($C$4&"!S16"),"") ->  | V23: =IFERROR(INDIRECT($C$4&"!T16"),"") ->  | W23: =IFERROR(INDIRECT($C$4&"!U16"),"") ->  | X23: =IFERROR(INDIRECT($C$4&"!V16"),"") ->  | Y23: =IFERROR(INDIRECT($C$4&"!W16"),"") ->  | Z23: =IFERROR(INDIRECT($C$4&"!X16"),"") ->  | AA23: =IFERROR(INDIRECT($C$4&"!Y16"),"") ->  | AC23: 3
D25: 定格条件 【冷却】 | F25: 冷却水 | G25: 入口温度 | H25: 32 | I25: 冷水 | J25: 入口温度 | K25: 12 | M25: 定格条件 【加熱】 | O25: 温水 | P25: 出口温度 | Q25: 55
G26: 出口温度 | H26: 37.5 | J26: 出口温度 | K26: 7
D28: 設備導入前 | Q28: 前1 | R28: 前2 | S28: 前3
E29: 燃料種類 | I29: 吸収式冷凍機の燃料の種類を選択（プルダウン） | T29: =VLOOKUP($Q$29,燃料選択!$B$3:$D$10,3,FALSE) -> 
E30: 定格冷却能力 | I30: 吸収式冷凍機の仕様を入力 | P30: Φco | T30: kW
E31: 定格冷却燃料消費量 | I31: 吸収式冷凍機の仕様を入力（入力単位に気を付けてください） | P31: Pco | T31: =IFERROR(VLOOKUP($Q$29,燃料選択!$B$3:$D$10,2,FALSE),"---") -> --- | U31: ←入力単位
E32: 定格冷却COP | I32: 自動計算 | J32: (ep= | K32: 2.4 | L32: ) | P32: σco | Q32: =IFERROR(Q30/(Q31*$T$29/3.6),"") ->  | R32: =IFERROR(R30/(R31*$T$29/3.6),"") ->  | S32: =IFERROR(S30/(S31*$T$29/3.6),"") ->  | T32: σco＝Φco／Pco
E33: 定格加熱能力 | I33: 吸収式冷凍機の仕様を入力 | P33: Φwo | T33: kW
E34: 定格加熱燃料消費量 | I34: 吸収式冷凍機の仕様を入力（入力単位に気を付けてください） | P34: Pwo | T34: =IFERROR(VLOOKUP($Q$29,燃料選択!$B$3:$D$10,2,FALSE),"---") -> --- | U34: ←入力単位
E35: 定格加熱COP | I35: 自動計算 | P35: σwo | Q35: =IFERROR(Q33/(Q34*$T$29/3.6),"") ->  | R35: =IFERROR(R33/(R34*$T$29/3.6),"") ->  | S35: =IFERROR(S33/(S34*$T$29/3.6),"") ->  | T35: σwo＝Φwo／Pwo
E36: 冷却塔ファンモータ定格出力 | I36: 吸収式冷凍機の仕様を入力 | P36: Pf | T36: kW
E37: 冷却水ポンプモータ定格出力 | I37: 吸収式冷凍機の仕様を入力 | P37: Pp1 | T37: kW
E38: 冷温水ポンプモータ定格出力 | I38: 吸収式冷凍機の仕様を入力 | P38: Pp2 | T38: kW
E39: 最大冷却負荷 | I39: 設計時の値を入力（不明の際は空白のまま） | P39: Qc | T39: kW
Q40: =IF($Q$39="",0.8,IF($Q$39=0,0.8,IF($Q$30<$Q$39,1,$Q$39/$Q$30))) -> 0.8 | R40: =IF($R$39="",0.8,IF($R$39=0,0.8,IF($R$30<$R$39,1,$R$39/$R$30))) -> 0.8 | S40: =IF($S$39="",0.8,IF($S$39=0,0.8,IF($S$30<$S$39,1,$S$39/$S$30))) -> 0.8
D42: 設備導入後 | Q42: 後1 | R42: 後2 | S42: 後3
E43: 燃料種類 | I43: 吸収式冷凍機の燃料の種類を選択（プルダウン） | T43: =VLOOKUP($Q$43,燃料選択!$B$3:$D$10,3,FALSE) -> 
E44: 定格冷却能力 | I44: 吸収式冷凍機の仕様を入力 | P44: Φco | T44: kW
E45: 定格冷却燃料消費量 | I45: 吸収式冷凍機の仕様を入力（入力単位に気を付けてください） | P45: Pco | T45: =IFERROR(VLOOKUP($Q$43,燃料選択!$B$3:$D$10,2,FALSE),"---") -> --- | U45: ←入力単位
E46: 定格冷却COP | I46: 自動計算 | J46: (ep= | K46: 2.4 | L46: ) | P46: σco | Q46: =IFERROR(Q44/(Q45*$T$43/3.6),"") ->  | R46: =IFERROR(R44/(R45*$T$43/3.6),"") ->  | S46: =IFERROR(S44/(S45*$T$43/3.6),"") ->  | T46: σco＝Φco／Pco
E47: 定格加熱能力 | I47: 吸収式冷凍機の仕様を入力 | P47: Φwo | T47: kW
E48: 定格加熱燃料消費量 | I48: 吸収式冷凍機の仕様を入力（入力単位に気を付けてください） | P48: Pwo | T48: =IFERROR(VLOOKUP($Q$43,燃料選択!$B$3:$D$10,2,FALSE),"---") -> --- | U48: ←入力単位
E49: 定格加熱COP | I49: 自動計算 | P49: σwo | Q49: =IFERROR(Q47/(Q48*$T$43/3.6),"") ->  | R49: =IFERROR(R47/(R48*$T$43/3.6),"") ->  | S49: =IFERROR(S47/(S48*$T$43/3.6),"") ->  | T49: σwo＝Φwo／Pwo
E50: 冷却塔ファンモータ定格出力 | I50: 吸収式冷凍機の仕様を入力 | P50: Pf | T50: kW
E51: 冷却水ポンプモータ定格出力 | I51: 吸収式冷凍機の仕様を入力 | P51: Pp1 | T51: kW
E52: 冷温水ポンプモータ定格出力 | I52: 吸収式冷凍機の仕様を入力 | P52: Pp2 | T52: kW
E53: 最大冷却負荷 | I53: 設計時の値を入力（不明の際は空白のまま） | P53: Qc | T53: kW
Q54: =IF($Q$53="",0.8,IF($Q$53=0,0.8,IF($Q$44<$Q$53,1,$Q$53/$Q$44))) -> 0.8 | R54: =IF($R$53="",0.8,IF($R$53=0,0.8,IF($R$44<$R$53,1,$R$53/$R$44))) -> 0.8 | S54: =IF($S$53="",0.8,IF($S$53=0,0.8,IF($S$44<$S$53,1,$S$53/$S$44))) -> 0.8
C56: 設備導入前年間エネルギー使用量[GJ] | N56: 設備導入前燃料使用量[千Nm3、t、kL]、電力使用量[千kWh]
D57: 冷却 | G57: 加熱 | J57: 合計 | O57: 前1 | S57: 前2 | W57: 前3
C58: 主機 | D58: Ecc’ | E58: =IFERROR($AY$161+$BF$161+$BM$161,"") -> 0 | G58: Eww’ | H58: =IFERROR($AY$186+$BF$186+$BM$186,"") -> 0 | J58: =IFERROR(E58+H58,"") -> 0 | O58: 冷却 | Q58: 加熱 | S58: 冷却 | U58: 加熱 | W58: 冷却 | Y58: 加熱
O59: 主機 | P59: 補機 | Q59: 主機 | R59: 補機 | S59: 主機 | T59: 補機 | U59: 主機 | V59: 補機 | W59: 主機 | X59: 補機 | Y59: 主機 | Z59: 補機
C60: 補機 | D60: Eaxc’ | E60: =IFERROR($BB$161+$BI$161+$BP$161,"") -> 0 | G60: Eaxw’ | H60: =IFERROR($BB$186+$BI$186+$BP$186,"") -> 0 | J60: =IFERROR(E60+H60,"") -> 0 | O60: 燃料 | P60: 電力 | Q60: 燃料 | R60: 電力 | S60: 燃料 | T60: 電力 | U60: 燃料 | V60: 電力 | W60: 燃料 | X60: 電力 | Y60: 燃料 | Z60: 電力
N61: 月 期間 | O61: [※1] | P61: [千kWh] | Q61: [※1] | R61: [千kWh] | S61: [※1] | T61: [千kWh] | U61: [※1] | V61: [千kWh] | W61: [※1] | X61: [千kWh] | Y61: [※1] | Z61: [千kWh]
C62: システム | D62: Ec | E62: =IFERROR($BD$161+$BK$161+$BR$161,"") -> 0 | G62: Ew | H62: =IFERROR($BD$186+$BK$186+$BR$186,"") -> 0 | J62: =IFERROR(E62+H62,"") -> 0 | N62: 4 | O62: =IFERROR(IF($AE101="冷却",$AZ149,""),"") ->  | P62: =IFERROR(IF($AE101="冷却",$BC149,""),"") ->  | Q62: =IFERROR(IF($AG101="加熱",$AZ174,""),"") ->  | R62: =IFERROR(IF($AG101="加熱",$BC174,""),"") ->  | S62: =IFERROR(IF($AE101="冷却",$BG149,""),"") ->  | T62: =IFERROR(IF($AE101="冷却",$BJ149,""),"") ->  | U62: =IFERROR(IF($AG101="加熱",$BG174,""),"") ->  | V62: =IFERROR(IF($AG101="加熱",$BJ174,""),"") ->  | W62: =IFERROR(IF($AE101="冷却",$BN149,""),"") ->  | X62: =IFERROR(IF($AE101="冷却",$BQ149,""),"") ->  | Y62: =IFERROR(IF($AG101="加熱",$BN174,""),"") ->  | Z62: =IFERROR(IF($AG101="加熱",$BQ174,""),"") -> 
N63: 5 | O63: =IFERROR(IF($AE102="冷却",$AZ150,""),"") ->  | P63: =IFERROR(IF($AE102="冷却",$BC150,""),"") ->  | Q63: =IFERROR(IF($AG102="加熱",$AZ175,""),"") ->  | R63: =IFERROR(IF($AG102="加熱",$BC175,""),"") ->  | S63: =IFERROR(IF($AE102="冷却",$BG150,""),"") ->  | T63: =IFERROR(IF($AE102="冷却",$BJ150,""),"") ->  | U63: =IFERROR(IF($AG102="加熱",$BG175,""),"") ->  | V63: =IFERROR(IF($AG102="加熱",$BJ175,""),"") ->  | W63: =IFERROR(IF($AE102="冷却",$BN150,""),"") ->  | X63: =IFERROR(IF($AE102="冷却",$BQ150,""),"") ->  | Y63: =IFERROR(IF($AG102="加熱",$BN175,""),"") ->  | Z63: =IFERROR(IF($AG102="加熱",$BQ175,""),"") -> 
N64: 6
N65: 7
C66: 設備導入前年間燃料使用量[千Nm3、t、kL]、電力使用量[千kWh] | N66: 8
D67: 冷却 | G67: 加熱 | J67: 合計 | N67: 9
C68: 主機 | D68: Ecc’’ | E68: =IFERROR($AZ$161+$BG$161+$BN$161,"") -> 0 | G68: Eww’’ | H68: =IFERROR($AZ$186+$BG$186+$BN$186,"") -> 0 | J68: =IFERROR(E68+H68,"") -> 0 | N68: 10
C69: [※1] | N69: 11
C70: 補機 | D70: Eaxc’’ | E70: =IFERROR($BC$161+$BJ$161+$BQ$161,"") -> 0 | G70: Eaxw’’ | H70: =IFERROR($BC$186+$BJ$186+$BQ$186,"") -> 0 | J70: =IFERROR(E70+H70,"") -> 0 | N70: 12
C71: [千kWh] | N71: 1
D72: ※1:千Nm3、t、kL | N72: 2
N73: 3
N74: 合計 | O74: =SUM(O62:O73) -> 0 | P74: =SUM(P62:P73) -> 0 | Q74: 0 | R74: 0 | S74: 0 | T74: 0 | U74: 0 | V74: 0 | W74: 0 | X74: 0 | Y74: 0 | Z74: 0
C77: 設備導入後年間エネルギー使用量[GJ] | N77: 設備導入後燃料使用量[千Nm3、t、kL]、電力使用量[千kWh]
D78: 冷却 | G78: 加熱 | J78: 合計 | O78: 後1 | S78: 後2 | W78: 後3
C79: 主機 | D79: Ecc’ | E79: =IFERROR($BU$161+$CB$161+$CI$161,"") -> 0 | G79: Eww’ | H79: =IFERROR($BU$186+$CB$186+$CI$186,"") -> 0 | J79: =IFERROR(E79+H79,"") -> 0 | O79: 冷却 | Q79: 加熱 | S79: 冷却 | U79: 加熱 | W79: 冷却 | Y79: 加熱
O80: 主機 | P80: 補機 | Q80: 主機 | R80: 補機 | S80: 主機 | T80: 補機 | U80: 主機 | V80: 補機 | W80: 主機 | X80: 補機 | Y80: 主機 | Z80: 補機
C81: 補機 | D81: Eaxc’ | E81: =IFERROR($BX$161+$CE$161+$CL$161,"") -> 0 | G81: Eaxw’ | H81: =IFERROR($BX$186+$CE$186+$CL$186,"") -> 0 | J81: =IFERROR(E81+H81,"") -> 0 | O81: 燃料 | P81: 電力 | Q81: 燃料 | R81: 電力 | S81: 燃料 | T81: 電力 | U81: 燃料 | V81: 電力 | W81: 燃料 | X81: 電力 | Y81: 燃料 | Z81: 電力
N82: 月 期間 | O82: [※1] | P82: [千kWh] | Q82: [※1] | R82: [千kWh] | S82: [※1] | T82: [千kWh] | U82: [※1] | V82: [千kWh] | W82: [※1] | X82: [千kWh] | Y82: [※1] | Z82: [千kWh]
C83: システム | D83: Ec | E83: =IFERROR($BZ$161+$CG$161+$CN$161,"") -> 0 | G83: Ew | H83: =IFERROR($BZ$186+$CG$186+$CN$186,"") -> 0 | J83: =IFERROR(E83+H83,"") -> 0 | N83: 4 | O83: =IFERROR(IF($AE101="冷却",$BV149,""),"") ->  | P83: =IFERROR(IF($AE101="冷却",$BY149,""),"") ->  | Q83: =IFERROR(IF($AG101="加熱",$BV174,""),"") ->  | R83: =IFERROR(IF($AG101="加熱",$BY174,""),"") ->  | S83: =IFERROR(IF($AE101="冷却",$CC149,""),"") ->  | T83: =IFERROR(IF($AE101="冷却",$CF149,""),"") ->  | U83: =IFERROR(IF($AG101="加熱",$CC174,""),"") ->  | V83: =IFERROR(IF($AG101="加熱",$CF174,""),"") ->  | W83: =IFERROR(IF($AE101="冷却",$CJ149,""),"") ->  | X83: =IFERROR(IF($AE101="冷却",$CM149,""),"") ->  | Y83: =IFERROR(IF($AG101="加熱",$CJ174,""),"") ->  | Z83: =IFERROR(IF($AG101="加熱",$CM174,""),"") -> 
N84: 5 | O84: =IFERROR(IF($AE102="冷却",$BV150,""),"") ->  | P84: =IFERROR(IF($AE102="冷却",$BY150,""),"") ->  | Q84: =IFERROR(IF($AG102="加熱",$BV175,""),"") ->  | R84: =IFERROR(IF($AG102="加熱",$BY175,""),"") ->  | S84: =IFERROR(IF($AE102="冷却",$CC150,""),"") ->  | T84: =IFERROR(IF($AE102="冷却",$CF150,""),"") ->  | U84: =IFERROR(IF($AG102="加熱",$CC175,""),"") ->  | V84: =IFERROR(IF($AG102="加熱",$CF175,""),"") ->  | W84: =IFERROR(IF($AE102="冷却",$CJ150,""),"") ->  | X84: =IFERROR(IF($AE102="冷却",$CM150,""),"") ->  | Y84: =IFERROR(IF($AG102="加熱",$CJ175,""),"") ->  | Z84: =IFERROR(IF($AG102="加熱",$CM175,""),"") -> 
N85: 6
N86: 7
C87: 設備導入後年間燃料使用量[千Nm3、t、kL]、電力使用量[千kWh] | N87: 8
D88: 冷却 | G88: 加熱 | J88: 合計 | N88: 9
C89: 主機 | D89: Ecc’’ | E89: =IFERROR($BV$161+$CC$161+$CJ$161,"") -> 0 | G89: Eww’’ | H89: =IFERROR($BV$186+$CC$186+$CJ$186,"") -> 0 | J89: =IFERROR(E89+H89,"") -> 0 | N89: 10
C90: [※1] | N90: 11
C91: 補機 | D91: Eaxc’’ | E91: =IFERROR($BY$161+$CF$161+$CM$161,"") -> 0 | G91: Eaxw’’ | H91: =IFERROR($BY$186+$CF$186+$CM$186,"") -> 0 | J91: =IFERROR(E91+H91,"") -> 0 | N91: 12
C92: [千kWh] | N92: 1
D93: ※1:千Nm3、t、kL | N93: 2
N94: 3
N95: 合計 | O95: =SUM(O83:O94) -> 0 | P95: =SUM(P83:P94) -> 0 | Q95: 0 | R95: 0 | S95: 0 | T95: 0 | U95: 0 | V95: 0 | W95: 0 | X95: 0 | Y95: 0 | Z95: 0
C98: 作業表1(青色のセルを「24」、オレンジ色のセルを「19」として抽出）
D99: 時刻 | AD99: 空調を行う時間計
C100: 月 | D100: 0 | E100: 1 | F100: 2 | G100: 3 | H100: 4 | I100: 5 | J100: 6 | K100: 7 | L100: 8 | M100: 9 | N100: 10 | O100: 11 | P100: 12 | Q100: 13 | R100: 14 | S100: 15 | T100: 16 | U100: 17 | V100: 18 | W100: 19 | X100: 20 | Y100: 21 | Z100: 22 | AA100: 23 | AB100: 月 | AD100: 24 | AF100: 19
C101: 4 | D101: =CELLCOLOR($D$12) -> -4142 | E101: =CELLCOLOR($E$12) -> -4142 | F101: =CELLCOLOR($F$12) -> -4142 | G101: =CELLCOLOR($G$12) -> -4142 | H101: =CELLCOLOR($H$12) -> -4142 | I101: =CELLCOLOR($I$12) -> -4142 | J101: =CELLCOLOR($J$12) -> -4142 | K101: =CELLCOLOR($K$12) -> -4142 | L101: =CELLCOLOR($L$12) -> -4142 | M101: =CELLCOLOR($M$12) -> -4142 | N101: =CELLCOLOR($N$12) -> -4142 | O101: =CELLCOLOR($O$12) -> -4142 | P101: =CELLCOLOR($P$12) -> -4142 | Q101: =CELLCOLOR($Q$12) -> -4142 | R101: =CELLCOLOR($R$12) -> -4142 | S101: =CELLCOLOR($S$12) -> -4142 | T101: =CELLCOLOR($T$12) -> -4142 | U101: =CELLCOLOR($U$12) -> -4142 | V101: =CELLCOLOR($V$12) -> -4142 | W101: =CELLCOLOR($W$12) -> -4142 | X101: =CELLCOLOR($X$12) -> -4142 | Y101: =CELLCOLOR($Y$12) -> -4142 | Z101: =CELLCOLOR($Z$12) -> -4142 | AA101: =CELLCOLOR($AA$12) -> -4142 | AB101: 4 | AD101: =COUNTIF(D101:AA101,$AD$100) -> 0 | AE101: =IF(AD101<>0,"冷却",IF(AD101=0,"")) ->  | AF101: =COUNTIF(D101:AA101,$AF$100) -> 0 | AG101: =IF(AF101<>0,"加熱",IF(AF101=0,"")) -> 
C102: 5 | D102: =CELLCOLOR($D$13) -> -4142 | E102: =CELLCOLOR($E$13) -> -4142 | F102: =CELLCOLOR($F$13) -> -4142 | G102: =CELLCOLOR($G$13) -> -4142 | H102: =CELLCOLOR($H$13) -> -4142 | I102: =CELLCOLOR($I$13) -> -4142 | J102: =CELLCOLOR($J$13) -> -4142 | K102: =CELLCOLOR($K$13) -> -4142 | L102: =CELLCOLOR($L$13) -> -4142 | M102: =CELLCOLOR($M$13) -> -4142 | N102: =CELLCOLOR($N$13) -> -4142 | O102: =CELLCOLOR($O$13) -> -4142 | P102: =CELLCOLOR($P$13) -> -4142 | Q102: =CELLCOLOR($Q$13) -> -4142 | R102: =CELLCOLOR($R$13) -> -4142 | S102: =CELLCOLOR($S$13) -> -4142 | T102: =CELLCOLOR($T$13) -> -4142 | U102: =CELLCOLOR($U$13) -> -4142 | V102: =CELLCOLOR($V$13) -> -4142 | W102: =CELLCOLOR($W$13) -> -4142 | X102: =CELLCOLOR($X$13) -> -4142 | Y102: =CELLCOLOR($Y$13) -> -4142 | Z102: =CELLCOLOR($Z$13) -> -4142 | AA102: =CELLCOLOR($AA$13) -> -4142 | AB102: 5 | AD102: 0 | AE102: =IF(AD102<>0,"冷却",IF(AD102=0,"")) ->  | AF102: 0 | AG102: =IF(AF102<>0,"加熱",IF(AF102=0,"")) -> 
C103: 6 | D103: =CELLCOLOR($D$14) -> -4142 | E103: =CELLCOLOR($E$14) -> -4142 | F103: =CELLCOLOR($F$14) -> -4142 | G103: =CELLCOLOR($G$14) -> -4142 | H103: =CELLCOLOR($H$14) -> -4142 | I103: =CELLCOLOR($I$14) -> -4142 | J103: =CELLCOLOR($J$14) -> -4142 | K103: =CELLCOLOR($K$14) -> -4142 | L103: =CELLCOLOR($L$14) -> -4142 | M103: =CELLCOLOR($M$14) -> -4142 | N103: =CELLCOLOR($N$14) -> -4142 | O103: =CELLCOLOR($O$14) -> -4142 | P103: =CELLCOLOR($P$14) -> -4142 | Q103: =CELLCOLOR($Q$14) -> -4142 | R103: =CELLCOLOR($R$14) -> -4142 | S103: =CELLCOLOR($S$14) -> -4142 | T103: =CELLCOLOR($T$14) -> -4142 | U103: =CELLCOLOR($U$14) -> -4142 | V103: =CELLCOLOR($V$14) -> -4142 | W103: =CELLCOLOR($W$14) -> -4142 | X103: =CELLCOLOR($X$14) -> -4142 | Y103: =CELLCOLOR($Y$14) -> -4142 | Z103: =CELLCOLOR($Z$14) -> -4142 | AA103: =CELLCOLOR($AA$14) -> -4142 | AB103: 6 | AD103: 0 | AF103: 0
C104: 7 | D104: =CELLCOLOR($D$15) -> -4142 | E104: =CELLCOLOR($E$15) -> -4142 | F104: =CELLCOLOR($F$15) -> -4142 | G104: =CELLCOLOR($G$15) -> -4142 | H104: =CELLCOLOR($H$15) -> -4142 | I104: =CELLCOLOR($I$15) -> -4142 | J104: =CELLCOLOR($J$15) -> -4142 | K104: =CELLCOLOR($K$15) -> -4142 | L104: =CELLCOLOR($L$15) -> -4142 | M104: =CELLCOLOR($M$15) -> -4142 | N104: =CELLCOLOR($N$15) -> -4142 | O104: =CELLCOLOR($O$15) -> -4142 | P104: =CELLCOLOR($P$15) -> -4142 | Q104: =CELLCOLOR($Q$15) -> -4142 | R104: =CELLCOLOR($R$15) -> -4142 | S104: =CELLCOLOR($S$15) -> -4142 | T104: =CELLCOLOR($T$15) -> -4142 | U104: =CELLCOLOR($U$15) -> -4142 | V104: =CELLCOLOR($V$15) -> -4142 | W104: =CELLCOLOR($W$15) -> -4142 | X104: =CELLCOLOR($X$15) -> -4142 | Y104: =CELLCOLOR($Y$15) -> -4142 | Z104: =CELLCOLOR($Z$15) -> -4142 | AA104: =CELLCOLOR($AA$15) -> -4142 | AB104: 7 | AD104: 0 | AF104: 0
C105: 8 | D105: =CELLCOLOR($D$16) -> -4142 | E105: =CELLCOLOR($E$16) -> -4142 | F105: =CELLCOLOR($F$16) -> -4142 | G105: =CELLCOLOR($G$16) -> -4142 | H105: =CELLCOLOR($H$16) -> -4142 | I105: =CELLCOLOR($I$16) -> -4142 | J105: =CELLCOLOR($J$16) -> -4142 | K105: =CELLCOLOR($K$16) -> -4142 | L105: =CELLCOLOR($L$16) -> -4142 | M105: =CELLCOLOR($M$16) -> -4142 | N105: =CELLCOLOR($N$16) -> -4142 | O105: =CELLCOLOR($O$16) -> -4142 | P105: =CELLCOLOR($P$16) -> -4142 | Q105: =CELLCOLOR($Q$16) -> -4142 | R105: =CELLCOLOR($R$16) -> -4142 | S105: =CELLCOLOR($S$16) -> -4142 | T105: =CELLCOLOR($T$16) -> -4142 | U105: =CELLCOLOR($U$16) -> -4142 | V105: =CELLCOLOR($V$16) -> -4142 | W105: =CELLCOLOR($W$16) -> -4142 | X105: =CELLCOLOR($X$16) -> -4142 | Y105: =CELLCOLOR($Y$16) -> -4142 | Z105: =CELLCOLOR($Z$16) -> -4142 | AA105: =CELLCOLOR($AA$16) -> -4142 | AB105: 8 | AD105: 0 | AF105: 0
C106: 9 | D106: =CELLCOLOR($D$17) -> -4142 | E106: =CELLCOLOR($E$17) -> -4142 | F106: =CELLCOLOR($F$17) -> -4142 | G106: =CELLCOLOR($G$17) -> -4142 | H106: =CELLCOLOR($H$17) -> -4142 | I106: =CELLCOLOR($I$17) -> -4142 | J106: =CELLCOLOR($J$17) -> -4142 | K106: =CELLCOLOR($K$17) -> -4142 | L106: =CELLCOLOR($L$17) -> -4142 | M106: =CELLCOLOR($M$17) -> -4142 | N106: =CELLCOLOR($N$17) -> -4142 | O106: =CELLCOLOR($O$17) -> -4142 | P106: =CELLCOLOR($P$17) -> -4142 | Q106: =CELLCOLOR($Q$17) -> -4142 | R106: =CELLCOLOR($R$17) -> -4142 | S106: =CELLCOLOR($S$17) -> -4142 | T106: =CELLCOLOR($T$17) -> -4142 | U106: =CELLCOLOR($U$17) -> -4142 | V106: =CELLCOLOR($V$17) -> -4142 | W106: =CELLCOLOR($W$17) -> -4142 | X106: =CELLCOLOR($X$17) -> -4142 | Y106: =CELLCOLOR($Y$17) -> -4142 | Z106: =CELLCOLOR($Z$17) -> -4142 | AA106: =CELLCOLOR($AA$17) -> -4142 | AB106: 9 | AD106: 0 | AF106: 0
C107: 10 | D107: =CELLCOLOR($D$18) -> -4142 | E107: =CELLCOLOR($E$18) -> -4142 | F107: =CELLCOLOR($F$18) -> -4142 | G107: =CELLCOLOR($G$18) -> -4142 | H107: =CELLCOLOR($H$18) -> -4142 | I107: =CELLCOLOR($I$18) -> -4142 | J107: =CELLCOLOR($J$18) -> -4142 | K107: =CELLCOLOR($K$18) -> -4142 | L107: =CELLCOLOR($L$18) -> -4142 | M107: =CELLCOLOR($M$18) -> -4142 | N107: =CELLCOLOR($N$18) -> -4142 | O107: =CELLCOLOR($O$18) -> -4142 | P107: =CELLCOLOR($P$18) -> -4142 | Q107: =CELLCOLOR($Q$18) -> -4142 | R107: =CELLCOLOR($R$18) -> -4142 | S107: =CELLCOLOR($S$18) -> -4142 | T107: =CELLCOLOR($T$18) -> -4142 | U107: =CELLCOLOR($U$18) -> -4142 | V107: =CELLCOLOR($V$18) -> -4142 | W107: =CELLCOLOR($W$18) -> -4142 | X107: =CELLCOLOR($X$18) -> -4142 | Y107: =CELLCOLOR($Y$18) -> -4142 | Z107: =CELLCOLOR($Z$18) -> -4142 | AA107: =CELLCOLOR($AA$18) -> -4142 | AB107: 10 | AD107: 0 | AF107: 0
C108: 11 | D108: =CELLCOLOR($D$19) -> -4142 | E108: =CELLCOLOR($E$19) -> -4142 | F108: =CELLCOLOR($F$19) -> -4142 | G108: =CELLCOLOR($G$19) -> -4142 | H108: =CELLCOLOR($H$19) -> -4142 | I108: =CELLCOLOR($I$19) -> -4142 | J108: =CELLCOLOR($J$19) -> -4142 | K108: =CELLCOLOR($K$19) -> -4142 | L108: =CELLCOLOR($L$19) -> -4142 | M108: =CELLCOLOR($M$19) -> -4142 | N108: =CELLCOLOR($N$19) -> -4142 | O108: =CELLCOLOR($O$19) -> -4142 | P108: =CELLCOLOR($P$19) -> -4142 | Q108: =CELLCOLOR($Q$19) -> -4142 | R108: =CELLCOLOR($R$19) -> -4142 | S108: =CELLCOLOR($S$19) -> -4142 | T108: =CELLCOLOR($T$19) -> -4142 | U108: =CELLCOLOR($U$19) -> -4142 | V108: =CELLCOLOR($V$19) -> -4142 | W108: =CELLCOLOR($W$19) -> -4142 | X108: =CELLCOLOR($X$19) -> -4142 | Y108: =CELLCOLOR($Y$19) -> -4142 | Z108: =CELLCOLOR($Z$19) -> -4142 | AA108: =CELLCOLOR($AA$19) -> -4142 | AB108: 11 | AD108: 0 | AF108: 0
C109: 12 | D109: =CELLCOLOR($D$20) -> -4142 | E109: =CELLCOLOR($E$20) -> -4142 | F109: =CELLCOLOR($F$20) -> -4142 | G109: =CELLCOLOR($G$20) -> -4142 | H109: =CELLCOLOR($H$20) -> -4142 | I109: =CELLCOLOR($I$20) -> -4142 | J109: =CELLCOLOR($J$20) -> -4142 | K109: =CELLCOLOR($K$20) -> -4142 | L109: =CELLCOLOR($L$20) -> -4142 | M109: =CELLCOLOR($M$20) -> -4142 | N109: =CELLCOLOR($N$20) -> -4142 | O109: =CELLCOLOR($O$20) -> -4142 | P109: =CELLCOLOR($P$20) -> -4142 | Q109: =CELLCOLOR($Q$20) -> -4142 | R109: =CELLCOLOR($R$20) -> -4142 | S109: =CELLCOLOR($S$20) -> -4142 | T109: =CELLCOLOR($T$20) -> -4142 | U109: =CELLCOLOR($U$20) -> -4142 | V109: =CELLCOLOR($V$20) -> -4142 | W109: =CELLCOLOR($W$20) -> -4142 | X109: =CELLCOLOR($X$20) -> -4142 | Y109: =CELLCOLOR($Y$20) -> -4142 | Z109: =CELLCOLOR($Z$20) -> -4142 | AA109: =CELLCOLOR($AA$20) -> -4142 | AB109: 12 | AD109: 0 | AF109: 0
C110: 1 | D110: =CELLCOLOR($D$21) -> -4142 | E110: =CELLCOLOR($E$21) -> -4142 | F110: =CELLCOLOR($F$21) -> -4142 | G110: =CELLCOLOR($G$21) -> -4142 | H110: =CELLCOLOR($H$21) -> -4142 | I110: =CELLCOLOR($I$21) -> -4142 | J110: =CELLCOLOR($J$21) -> -4142 | K110: =CELLCOLOR($K$21) -> -4142 | L110: =CELLCOLOR($L$21) -> -4142 | M110: =CELLCOLOR($M$21) -> -4142 | N110: =CELLCOLOR($N$21) -> -4142 | O110: =CELLCOLOR($O$21) -> -4142 | P110: =CELLCOLOR($P$21) -> -4142 | Q110: =CELLCOLOR($Q$21) -> -4142 | R110: =CELLCOLOR($R$21) -> -4142 | S110: =CELLCOLOR($S$21) -> -4142 | T110: =CELLCOLOR($T$21) -> -4142 | U110: =CELLCOLOR($U$21) -> -4142 | V110: =CELLCOLOR($V$21) -> -4142 | W110: =CELLCOLOR($W$21) -> -4142 | X110: =CELLCOLOR($X$21) -> -4142 | Y110: =CELLCOLOR($Y$21) -> -4142 | Z110: =CELLCOLOR($Z$21) -> -4142 | AA110: =CELLCOLOR($AA$21) -> -4142 | AB110: 1 | AD110: 0 | AF110: 0
C111: 2 | D111: =CELLCOLOR($D$22) -> -4142 | E111: =CELLCOLOR($E$22) -> -4142 | F111: =CELLCOLOR($F$22) -> -4142 | G111: =CELLCOLOR($G$22) -> -4142 | H111: =CELLCOLOR($H$22) -> -4142 | I111: =CELLCOLOR($I$22) -> -4142 | J111: =CELLCOLOR($J$22) -> -4142 | K111: =CELLCOLOR($K$22) -> -4142 | L111: =CELLCOLOR($L$22) -> -4142 | M111: =CELLCOLOR($M$22) -> -4142 | N111: =CELLCOLOR($N$22) -> -4142 | O111: =CELLCOLOR($O$22) -> -4142 | P111: =CELLCOLOR($P$22) -> -4142 | Q111: =CELLCOLOR($Q$22) -> -4142 | R111: =CELLCOLOR($R$22) -> -4142 | S111: =CELLCOLOR($S$22) -> -4142 | T111: =CELLCOLOR($T$22) -> -4142 | U111: =CELLCOLOR($U$22) -> -4142 | V111: =CELLCOLOR($V$22) -> -4142 | W111: =CELLCOLOR($W$22) -> -4142 | X111: =CELLCOLOR($X$22) -> -4142 | Y111: =CELLCOLOR($Y$22) -> -4142 | Z111: =CELLCOLOR($Z$22) -> -4142 | AA111: =CELLCOLOR($AA$22) -> -4142 | AB111: 2 | AD111: 0 | AF111: 0
C112: 3 | D112: =CELLCOLOR($D$23) -> -4142 | E112: =CELLCOLOR($E$23) -> -4142 | F112: =CELLCOLOR($F$23) -> -4142 | G112: =CELLCOLOR($G$23) -> -4142 | H112: =CELLCOLOR($H$23) -> -4142 | I112: =CELLCOLOR($I$23) -> -4142 | J112: =CELLCOLOR($J$23) -> -4142 | K112: =CELLCOLOR($K$23) -> -4142 | L112: =CELLCOLOR($L$23) -> -4142 | M112: =CELLCOLOR($M$23) -> -4142 | N112: =CELLCOLOR($N$23) -> -4142 | O112: =CELLCOLOR($O$23) -> -4142 | P112: =CELLCOLOR($P$23) -> -4142 | Q112: =CELLCOLOR($Q$23) -> -4142 | R112: =CELLCOLOR($R$23) -> -4142 | S112: =CELLCOLOR($S$23) -> -4142 | T112: =CELLCOLOR($T$23) -> -4142 | U112: =CELLCOLOR($U$23) -> -4142 | V112: =CELLCOLOR($V$23) -> -4142 | W112: =CELLCOLOR($W$23) -> -4142 | X112: =CELLCOLOR($X$23) -> -4142 | Y112: =CELLCOLOR($Y$23) -> -4142 | Z112: =CELLCOLOR($Z$23) -> -4142 | AA112: =CELLCOLOR($AA$23) -> -4142 | AB112: 3 | AD112: 0 | AF112: 0
C114: 作業表2-1(冷却)●月▲時の平均外気湿球温度(四捨五入で表示）
D115: 時刻
C116: 月 | D116: 0 | E116: 1 | F116: 2 | G116: 3 | H116: 4 | I116: 5 | J116: 6 | K116: 7 | L116: 8 | M116: 9 | N116: 10 | O116: 11 | P116: 12 | Q116: 13 | R116: 14 | S116: 15 | T116: 16 | U116: 17 | V116: 18 | W116: 19 | X116: 20 | Y116: 21 | Z116: 22 | AA116: 23 | AB116: 月
C117: 4 | D117: =IF($D$101=24,ROUND($D$12,0),"")&"" ->  | E117: =IF($E$101=24,ROUND($E$12,0),"")&"" ->  | F117: =IF($F$101=24,ROUND($F$12,0),"")&"" ->  | G117: =IF($G$101=24,ROUND($G$12,0),"")&"" ->  | H117: =IF($H$101=24,ROUND($H$12,0),"")&"" ->  | I117: =IF($I$101=24,ROUND($I$12,0),"")&"" ->  | J117: =IF($J$101=24,ROUND($J$12,0),"")&"" ->  | K117: =IF($K$101=24,ROUND($K$12,0),"")&"" ->  | L117: =IF($L$101=24,ROUND($L$12,0),"")&"" ->  | M117: =IF($M$101=24,ROUND($M$12,0),"")&"" ->  | N117: =IF($N$101=24,ROUND($N$12,0),"")&"" ->  | O117: =IF($O$101=24,ROUND($O$12,0),"")&"" ->  | P117: =IF($P$101=24,ROUND($P$12,0),"")&"" ->  | Q117: =IF($Q$101=24,ROUND($Q$12,0),"")&"" ->  | R117: =IF($R$101=24,ROUND($R$12,0),"")&"" ->  | S117: =IF($S$101=24,ROUND($S$12,0),"")&"" ->  | T117: =IF($T$101=24,ROUND($T$12,0),"")&"" ->  | U117: =IF($U$101=24,ROUND($U$12,0),"")&"" ->  | V117: =IF($V$101=24,ROUND($V$12,0),"")&"" ->  | W117: =IF($W$101=24,ROUND($W$12,0),"")&"" ->  | X117: =IF($X$101=24,ROUND($X$12,0),"")&"" ->  | Y117: =IF($Y$101=24,ROUND($Y$12,0),"")&"" ->  | Z117: =IF($Z$101=24,ROUND($Z$12,0),"")&"" ->  | AA117: =IF($AA$101=24,ROUND($AA$12,0),"")&"" ->  | AB117: 4
C118: 5 | D118: =IF($D$102=24,ROUND($D$13,0),"")&"" ->  | E118: =IF($E$102=24,ROUND($E$13,0),"")&"" ->  | F118: =IF($F$102=24,ROUND($F$13,0),"")&"" ->  | G118: =IF($G$102=24,ROUND($G$13,0),"")&"" ->  | H118: =IF($H$102=24,ROUND($H$13,0),"")&"" ->  | I118: =IF($I$102=24,ROUND($I$13,0),"")&"" ->  | J118: =IF($J$102=24,ROUND($J$13,0),"")&"" ->  | K118: =IF($K$102=24,ROUND($K$13,0),"")&"" ->  | L118: =IF($L$102=24,ROUND($L$13,0),"")&"" ->  | M118: =IF($M$102=24,ROUND($M$13,0),"")&"" ->  | N118: =IF($N$102=24,ROUND($N$13,0),"")&"" ->  | O118: =IF($O$102=24,ROUND($O$13,0),"")&"" ->  | P118: =IF($P$102=24,ROUND($P$13,0),"")&"" ->  | Q118: =IF($Q$102=24,ROUND($Q$13,0),"")&"" ->  | R118: =IF($R$102=24,ROUND($R$13,0),"")&"" ->  | S118: =IF($S$102=24,ROUND($S$13,0),"")&"" ->  | T118: =IF($T$102=24,ROUND($T$13,0),"")&"" ->  | U118: =IF($U$102=24,ROUND($U$13,0),"")&"" ->  | V118: =IF($V$102=24,ROUND($V$13,0),"")&"" ->  | W118: =IF($W$102=24,ROUND($W$13,0),"")&"" ->  | X118: =IF($X$102=24,ROUND($X$13,0),"")&"" ->  | Y118: =IF($Y$102=24,ROUND($Y$13,0),"")&"" ->  | Z118: =IF($Z$102=24,ROUND($Z$13,0),"")&"" ->  | AA118: =IF($AA$102=24,ROUND($AA$13,0),"")&"" ->  | AB118: 5
C119: 6 | D119: =IF($D$103=24,ROUND($D$14,0),"")&"" ->  | E119: =IF($E$103=24,ROUND($E$14,0),"")&"" ->  | F119: =IF($F$103=24,ROUND($F$14,0),"")&"" ->  | G119: =IF($G$103=24,ROUND($G$14,0),"")&"" ->  | H119: =IF($H$103=24,ROUND($H$14,0),"")&"" ->  | I119: =IF($I$103=24,ROUND($I$14,0),"")&"" ->  | J119: =IF($J$103=24,ROUND($J$14,0),"")&"" ->  | K119: =IF($K$103=24,ROUND($K$14,0),"")&"" ->  | L119: =IF($L$103=24,ROUND($L$14,0),"")&"" ->  | M119: =IF($M$103=24,ROUND($M$14,0),"")&"" ->  | N119: =IF($N$103=24,ROUND($N$14,0),"")&"" ->  | O119: =IF($O$103=24,ROUND($O$14,0),"")&"" ->  | P119: =IF($P$103=24,ROUND($P$14,0),"")&"" ->  | Q119: =IF($Q$103=24,ROUND($Q$14,0),"")&"" ->  | R119: =IF($R$103=24,ROUND($R$14,0),"")&"" ->  | S119: =IF($S$103=24,ROUND($S$14,0),"")&"" ->  | T119: =IF($T$103=24,ROUND($T$14,0),"")&"" ->  | U119: =IF($U$103=24,ROUND($U$14,0),"")&"" ->  | V119: =IF($V$103=24,ROUND($V$14,0),"")&"" ->  | W119: =IF($W$103=24,ROUND($W$14,0),"")&"" ->  | X119: =IF($X$103=24,ROUND($X$14,0),"")&"" ->  | Y119: =IF($Y$103=24,ROUND($Y$14,0),"")&"" ->  | Z119: =IF($Z$103=24,ROUND($Z$14,0),"")&"" ->  | AA119: =IF($AA$103=24,ROUND($AA$14,0),"")&"" ->  | AB119: 6
C120: 7 | D120: =IF($D$104=24,ROUND($D$15,0),"")&"" ->  | E120: =IF($E$104=24,ROUND($E$15,0),"")&"" ->  | F120: =IF($F$104=24,ROUND($F$15,0),"")&"" ->  | G120: =IF($G$104=24,ROUND($G$15,0),"")&"" ->  | H120: =IF($H$104=24,ROUND($H$15,0),"")&"" ->  | I120: =IF($I$104=24,ROUND($I$15,0),"")&"" ->  | J120: =IF($J$104=24,ROUND($J$15,0),"")&"" ->  | K120: =IF($K$104=24,ROUND($K$15,0),"")&"" ->  | L120: =IF($L$104=24,ROUND($L$15,0),"")&"" ->  | M120: =IF($M$104=24,ROUND($M$15,0),"")&"" ->  | N120: =IF($N$104=24,ROUND($N$15,0),"")&"" ->  | O120: =IF($O$104=24,ROUND($O$15,0),"")&"" ->  | P120: =IF($P$104=24,ROUND($P$15,0),"")&"" ->  | Q120: =IF($Q$104=24,ROUND($Q$15,0),"")&"" ->  | R120: =IF($R$104=24,ROUND($R$15,0),"")&"" ->  | S120: =IF($S$104=24,ROUND($S$15,0),"")&"" ->  | T120: =IF($T$104=24,ROUND($T$15,0),"")&"" ->  | U120: =IF($U$104=24,ROUND($U$15,0),"")&"" ->  | V120: =IF($V$104=24,ROUND($V$15,0),"")&"" ->  | W120: =IF($W$104=24,ROUND($W$15,0),"")&"" ->  | X120: =IF($X$104=24,ROUND($X$15,0),"")&"" ->  | Y120: =IF($Y$104=24,ROUND($Y$15,0),"")&"" ->  | Z120: =IF($Z$104=24,ROUND($Z$15,0),"")&"" ->  | AA120: =IF($AA$104=24,ROUND($AA$15,0),"")&"" ->  | AB120: 7
C121: 8 | D121: =IF($D$105=24,ROUND($D$16,0),"")&"" ->  | E121: =IF($E$105=24,ROUND($E$16,0),"")&"" ->  | F121: =IF($F$105=24,ROUND($F$16,0),"")&"" ->  | G121: =IF($G$105=24,ROUND($G$16,0),"")&"" ->  | H121: =IF($H$105=24,ROUND($H$16,0),"")&"" ->  | I121: =IF($I$105=24,ROUND($I$16,0),"")&"" ->  | J121: =IF($J$105=24,ROUND($J$16,0),"")&"" ->  | K121: =IF($K$105=24,ROUND($K$16,0),"")&"" ->  | L121: =IF($L$105=24,ROUND($L$16,0),"")&"" ->  | M121: =IF($M$105=24,ROUND($M$16,0),"")&"" ->  | N121: =IF($N$105=24,ROUND($N$16,0),"")&"" ->  | O121: =IF($O$105=24,ROUND($O$16,0),"")&"" ->  | P121: =IF($P$105=24,ROUND($P$16,0),"")&"" ->  | Q121: =IF($Q$105=24,ROUND($Q$16,0),"")&"" ->  | R121: =IF($R$105=24,ROUND($R$16,0),"")&"" ->  | S121: =IF($S$105=24,ROUND($S$16,0),"")&"" ->  | T121: =IF($T$105=24,ROUND($T$16,0),"")&"" ->  | U121: =IF($U$105=24,ROUND($U$16,0),"")&"" ->  | V121: =IF($V$105=24,ROUND($V$16,0),"")&"" ->  | W121: =IF($W$105=24,ROUND($W$16,0),"")&"" ->  | X121: =IF($X$105=24,ROUND($X$16,0),"")&"" ->  | Y121: =IF($Y$105=24,ROUND($Y$16,0),"")&"" ->  | Z121: =IF($Z$105=24,ROUND($Z$16,0),"")&"" ->  | AA121: =IF($AA$105=24,ROUND($AA$16,0),"")&"" ->  | AB121: 8
C122: 9 | D122: =IF($D$106=24,ROUND($D$17,0),"")&"" ->  | E122: =IF($E$106=24,ROUND($E$17,0),"")&"" ->  | F122: =IF($F$106=24,ROUND($F$17,0),"")&"" ->  | G122: =IF($G$106=24,ROUND($G$17,0),"")&"" ->  | H122: =IF($H$106=24,ROUND($H$17,0),"")&"" ->  | I122: =IF($I$106=24,ROUND($I$17,0),"")&"" ->  | J122: =IF($J$106=24,ROUND($J$17,0),"")&"" ->  | K122: =IF($K$106=24,ROUND($K$17,0),"")&"" ->  | L122: =IF($L$106=24,ROUND($L$17,0),"")&"" ->  | M122: =IF($M$106=24,ROUND($M$17,0),"")&"" ->  | N122: =IF($N$106=24,ROUND($N$17,0),"")&"" ->  | O122: =IF($O$106=24,ROUND($O$17,0),"")&"" ->  | P122: =IF($P$106=24,ROUND($P$17,0),"")&"" ->  | Q122: =IF($Q$106=24,ROUND($Q$17,0),"")&"" ->  | R122: =IF($R$106=24,ROUND($R$17,0),"")&"" ->  | S122: =IF($S$106=24,ROUND($S$17,0),"")&"" ->  | T122: =IF($T$106=24,ROUND($T$17,0),"")&"" ->  | U122: =IF($U$106=24,ROUND($U$17,0),"")&"" ->  | V122: =IF($V$106=24,ROUND($V$17,0),"")&"" ->  | W122: =IF($W$106=24,ROUND($W$17,0),"")&"" ->  | X122: =IF($X$106=24,ROUND($X$17,0),"")&"" ->  | Y122: =IF($Y$106=24,ROUND($Y$17,0),"")&"" ->  | Z122: =IF($Z$106=24,ROUND($Z$17,0),"")&"" ->  | AA122: =IF($AA$106=24,ROUND($AA$17,0),"")&"" ->  | AB122: 9
C123: 10 | D123: =IF($D$107=24,ROUND($D$18,0),"")&"" ->  | E123: =IF($E$107=24,ROUND($E$18,0),"")&"" ->  | F123: =IF($F$107=24,ROUND($F$18,0),"")&"" ->  | G123: =IF($G$107=24,ROUND($G$18,0),"")&"" ->  | H123: =IF($H$107=24,ROUND($H$18,0),"")&"" ->  | I123: =IF($I$107=24,ROUND($I$18,0),"")&"" ->  | J123: =IF($J$107=24,ROUND($J$18,0),"")&"" ->  | K123: =IF($K$107=24,ROUND($K$18,0),"")&"" ->  | L123: =IF($L$107=24,ROUND($L$18,0),"")&"" ->  | M123: =IF($M$107=24,ROUND($M$18,0),"")&"" ->  | N123: =IF($N$107=24,ROUND($N$18,0),"")&"" ->  | O123: =IF($O$107=24,ROUND($O$18,0),"")&"" ->  | P123: =IF($P$107=24,ROUND($P$18,0),"")&"" ->  | Q123: =IF($Q$107=24,ROUND($Q$18,0),"")&"" ->  | R123: =IF($R$107=24,ROUND($R$18,0),"")&"" ->  | S123: =IF($S$107=24,ROUND($S$18,0),"")&"" ->  | T123: =IF($T$107=24,ROUND($T$18,0),"")&"" ->  | U123: =IF($U$107=24,ROUND($U$18,0),"")&"" ->  | V123: =IF($V$107=24,ROUND($V$18,0),"")&"" ->  | W123: =IF($W$107=24,ROUND($W$18,0),"")&"" ->  | X123: =IF($X$107=24,ROUND($X$18,0),"")&"" ->  | Y123: =IF($Y$107=24,ROUND($Y$18,0),"")&"" ->  | Z123: =IF($Z$107=24,ROUND($Z$18,0),"")&"" ->  | AA123: =IF($AA$107=24,ROUND($AA$18,0),"")&"" ->  | AB123: 10
C124: 11 | D124: =IF($D$108=24,ROUND($D$19,0),"")&"" ->  | E124: =IF($E$108=24,ROUND($E$19,0),"")&"" ->  | F124: =IF($F$108=24,ROUND($F$19,0),"")&"" ->  | G124: =IF($G$108=24,ROUND($G$19,0),"")&"" ->  | H124: =IF($H$108=24,ROUND($H$19,0),"")&"" ->  | I124: =IF($I$108=24,ROUND($I$19,0),"")&"" ->  | J124: =IF($J$108=24,ROUND($J$19,0),"")&"" ->  | K124: =IF($K$108=24,ROUND($K$19,0),"")&"" ->  | L124: =IF($L$108=24,ROUND($L$19,0),"")&"" ->  | M124: =IF($M$108=24,ROUND($M$19,0),"")&"" ->  | N124: =IF($N$108=24,ROUND($N$19,0),"")&"" ->  | O124: =IF($O$108=24,ROUND($O$19,0),"")&"" ->  | P124: =IF($P$108=24,ROUND($P$19,0),"")&"" ->  | Q124: =IF($Q$108=24,ROUND($Q$19,0),"")&"" ->  | R124: =IF($R$108=24,ROUND($R$19,0),"")&"" ->  | S124: =IF($S$108=24,ROUND($S$19,0),"")&"" ->  | T124: =IF($T$108=24,ROUND($T$19,0),"")&"" ->  | U124: =IF($U$108=24,ROUND($U$19,0),"")&"" ->  | V124: =IF($V$108=24,ROUND($V$19,0),"")&"" ->  | W124: =IF($W$108=24,ROUND($W$19,0),"")&"" ->  | X124: =IF($X$108=24,ROUND($X$19,0),"")&"" ->  | Y124: =IF($Y$108=24,ROUND($Y$19,0),"")&"" ->  | Z124: =IF($Z$108=24,ROUND($Z$19,0),"")&"" ->  | AA124: =IF($AA$108=24,ROUND($AA$19,0),"")&"" ->  | AB124: 11
C125: 12 | D125: =IF($D$109=24,ROUND($D$20,0),"")&"" ->  | E125: =IF($E$109=24,ROUND($E$20,0),"")&"" ->  | F125: =IF($F$109=24,ROUND($F$20,0),"")&"" ->  | G125: =IF($G$109=24,ROUND($G$20,0),"")&"" ->  | H125: =IF($H$109=24,ROUND($H$20,0),"")&"" ->  | I125: =IF($I$109=24,ROUND($I$20,0),"")&"" ->  | J125: =IF($J$109=24,ROUND($J$20,0),"")&"" ->  | K125: =IF($K$109=24,ROUND($K$20,0),"")&"" ->  | L125: =IF($L$109=24,ROUND($L$20,0),"")&"" ->  | M125: =IF($M$109=24,ROUND($M$20,0),"")&"" ->  | N125: =IF($N$109=24,ROUND($N$20,0),"")&"" ->  | O125: =IF($O$109=24,ROUND($O$20,0),"")&"" ->  | P125: =IF($P$109=24,ROUND($P$20,0),"")&"" ->  | Q125: =IF($Q$109=24,ROUND($Q$20,0),"")&"" ->  | R125: =IF($R$109=24,ROUND($R$20,0),"")&"" ->  | S125: =IF($S$109=24,ROUND($S$20,0),"")&"" ->  | T125: =IF($T$109=24,ROUND($T$20,0),"")&"" ->  | U125: =IF($U$109=24,ROUND($U$20,0),"")&"" ->  | V125: =IF($V$109=24,ROUND($V$20,0),"")&"" ->  | W125: =IF($W$109=24,ROUND($W$20,0),"")&"" ->  | X125: =IF($X$109=24,ROUND($X$20,0),"")&"" ->  | Y125: =IF($Y$109=24,ROUND($Y$20,0),"")&"" ->  | Z125: =IF($Z$109=24,ROUND($Z$20,0),"")&"" ->  | AA125: =IF($AA$109=24,ROUND($AA$20,0),"")&"" ->  | AB125: 12
C126: 1 | D126: =IF($D$110=24,ROUND($D$21,0),"")&"" ->  | E126: =IF($E$110=24,ROUND($E$21,0),"")&"" ->  | F126: =IF($F$110=24,ROUND($F$21,0),"")&"" ->  | G126: =IF($G$110=24,ROUND($G$21,0),"")&"" ->  | H126: =IF($H$110=24,ROUND($H$21,0),"")&"" ->  | I126: =IF($I$110=24,ROUND($I$21,0),"")&"" ->  | J126: =IF($J$110=24,ROUND($J$21,0),"")&"" ->  | K126: =IF($K$110=24,ROUND($K$21,0),"")&"" ->  | L126: =IF($L$110=24,ROUND($L$21,0),"")&"" ->  | M126: =IF($M$110=24,ROUND($M$21,0),"")&"" ->  | N126: =IF($N$110=24,ROUND($N$21,0),"")&"" ->  | O126: =IF($O$110=24,ROUND($O$21,0),"")&"" ->  | P126: =IF($P$110=24,ROUND($P$21,0),"")&"" ->  | Q126: =IF($Q$110=24,ROUND($Q$21,0),"")&"" ->  | R126: =IF($R$110=24,ROUND($R$21,0),"")&"" ->  | S126: =IF($S$110=24,ROUND($S$21,0),"")&"" ->  | T126: =IF($T$110=24,ROUND($T$21,0),"")&"" ->  | U126: =IF($U$110=24,ROUND($U$21,0),"")&"" ->  | V126: =IF($V$110=24,ROUND($V$21,0),"")&"" ->  | W126: =IF($W$110=24,ROUND($W$21,0),"")&"" ->  | X126: =IF($X$110=24,ROUND($X$21,0),"")&"" ->  | Y126: =IF($Y$110=24,ROUND($Y$21,0),"")&"" ->  | Z126: =IF($Z$110=24,ROUND($Z$21,0),"")&"" ->  | AA126: =IF($AA$110=24,ROUND($AA$21,0),"")&"" ->  | AB126: 1
C127: 2 | D127: =IF($D$111=24,ROUND($D$22,0),"")&"" ->  | E127: =IF($E$111=24,ROUND($E$22,0),"")&"" ->  | F127: =IF($F$111=24,ROUND($F$22,0),"")&"" ->  | G127: =IF($G$111=24,ROUND($G$22,0),"")&"" ->  | H127: =IF($H$111=24,ROUND($H$22,0),"")&"" ->  | I127: =IF($I$111=24,ROUND($I$22,0),"")&"" ->  | J127: =IF($J$111=24,ROUND($J$22,0),"")&"" ->  | K127: =IF($K$111=24,ROUND($K$22,0),"")&"" ->  | L127: =IF($L$111=24,ROUND($L$22,0),"")&"" ->  | M127: =IF($M$111=24,ROUND($M$22,0),"")&"" ->  | N127: =IF($N$111=24,ROUND($N$22,0),"")&"" ->  | O127: =IF($O$111=24,ROUND($O$22,0),"")&"" ->  | P127: =IF($P$111=24,ROUND($P$22,0),"")&"" ->  | Q127: =IF($Q$111=24,ROUND($Q$22,0),"")&"" ->  | R127: =IF($R$111=24,ROUND($R$22,0),"")&"" ->  | S127: =IF($S$111=24,ROUND($S$22,0),"")&"" ->  | T127: =IF($T$111=24,ROUND($T$22,0),"")&"" ->  | U127: =IF($U$111=24,ROUND($U$22,0),"")&"" ->  | V127: =IF($V$111=24,ROUND($V$22,0),"")&"" ->  | W127: =IF($W$111=24,ROUND($W$22,0),"")&"" ->  | X127: =IF($X$111=24,ROUND($X$22,0),"")&"" ->  | Y127: =IF($Y$111=24,ROUND($Y$22,0),"")&"" ->  | Z127: =IF($Z$111=24,ROUND($Z$22,0),"")&"" ->  | AA127: =IF($AA$111=24,ROUND($AA$22,0),"")&"" ->  | AB127: 2
C128: 3 | D128: =IF($D$112=24,ROUND($D$23,0),"")&"" ->  | E128: =IF($E$112=24,ROUND($E$23,0),"")&"" ->  | F128: =IF($F$112=24,ROUND($F$23,0),"")&"" ->  | G128: =IF($G$112=24,ROUND($G$23,0),"")&"" ->  | H128: =IF($H$112=24,ROUND($H$23,0),"")&"" ->  | I128: =IF($I$112=24,ROUND($I$23,0),"")&"" ->  | J128: =IF($J$112=24,ROUND($J$23,0),"")&"" ->  | K128: =IF($K$112=24,ROUND($K$23,0),"")&"" ->  | L128: =IF($L$112=24,ROUND($L$23,0),"")&"" ->  | M128: =IF($M$112=24,ROUND($M$23,0),"")&"" ->  | N128: =IF($N$112=24,ROUND($N$23,0),"")&"" ->  | O128: =IF($O$112=24,ROUND($O$23,0),"")&"" ->  | P128: =IF($P$112=24,ROUND($P$23,0),"")&"" ->  | Q128: =IF($Q$112=24,ROUND($Q$23,0),"")&"" ->  | R128: =IF($R$112=24,ROUND($R$23,0),"")&"" ->  | S128: =IF($S$112=24,ROUND($S$23,0),"")&"" ->  | T128: =IF($T$112=24,ROUND($T$23,0),"")&"" ->  | U128: =IF($U$112=24,ROUND($U$23,0),"")&"" ->  | V128: =IF($V$112=24,ROUND($V$23,0),"")&"" ->  | W128: =IF($W$112=24,ROUND($W$23,0),"")&"" ->  | X128: =IF($X$112=24,ROUND($X$23,0),"")&"" ->  | Y128: =IF($Y$112=24,ROUND($Y$23,0),"")&"" ->  | Z128: =IF($Z$112=24,ROUND($Z$23,0),"")&"" ->  | AA128: =IF($AA$112=24,ROUND($AA$23,0),"")&"" ->  | AB128: 3
C130: 作業表2-2(加熱)●月▲時の平均外気湿球温度(四捨五入で表示）
D131: 時刻
C132: 月 | D132: 0 | E132: 1 | F132: 2 | G132: 3 | H132: 4 | I132: 5 | J132: 6 | K132: 7 | L132: 8 | M132: 9 | N132: 10 | O132: 11 | P132: 12 | Q132: 13 | R132: 14 | S132: 15 | T132: 16 | U132: 17 | V132: 18 | W132: 19 | X132: 20 | Y132: 21 | Z132: 22 | AA132: 23 | AB132: 月
C133: 4 | D133: =IF($D$101=19,ROUND($D$12,0),"")&"" ->  | E133: =IF($E$101=19,ROUND($E$12,0),"")&"" ->  | F133: =IF($F$101=19,ROUND($F$12,0),"")&"" ->  | G133: =IF($G$101=19,ROUND($G$12,0),"")&"" ->  | H133: =IF($H$101=19,ROUND($H$12,0),"")&"" ->  | I133: =IF($I$101=19,ROUND($I$12,0),"")&"" ->  | J133: =IF($J$101=19,ROUND($J$12,0),"")&"" ->  | K133: =IF($K$101=19,ROUND($K$12,0),"")&"" ->  | L133: =IF($L$101=19,ROUND($L$12,0),"")&"" ->  | M133: =IF($M$101=19,ROUND($M$12,0),"")&"" ->  | N133: =IF($N$101=19,ROUND($N$12,0),"")&"" ->  | O133: =IF($O$101=19,ROUND($O$12,0),"")&"" ->  | P133: =IF($P$101=19,ROUND($P$12,0),"")&"" ->  | Q133: =IF($Q$101=19,ROUND($Q$12,0),"")&"" ->  | R133: =IF($R$101=19,ROUND($R$12,0),"")&"" ->  | S133: =IF($S$101=19,ROUND($S$12,0),"")&"" ->  | T133: =IF($T$101=19,ROUND($T$12,0),"")&"" ->  | U133: =IF($U$101=19,ROUND($U$12,0),"")&"" ->  | V133: =IF($V$101=19,ROUND($V$12,0),"")&"" ->  | W133: =IF($W$101=19,ROUND($W$12,0),"")&"" ->  | X133: =IF($X$101=19,ROUND($X$12,0),"")&"" ->  | Y133: =IF($Y$101=19,ROUND($Y$12,0),"")&"" ->  | Z133: =IF($Z$101=19,ROUND($Z$12,0),"")&"" ->  | AA133: =IF($AA$101=19,ROUND($AA$12,0),"")&"" ->  | AB133: 4
C134: 5 | D134: =IF($D$102=19,ROUND($D$13,0),"")&"" ->  | E134: =IF($E$102=19,ROUND($E$13,0),"")&"" ->  | F134: =IF($F$102=19,ROUND($F$13,0),"")&"" ->  | G134: =IF($G$102=19,ROUND($G$13,0),"")&"" ->  | H134: =IF($H$102=19,ROUND($H$13,0),"")&"" ->  | I134: =IF($I$102=19,ROUND($I$13,0),"")&"" ->  | J134: =IF($J$102=19,ROUND($J$13,0),"")&"" ->  | K134: =IF($K$102=19,ROUND($K$13,0),"")&"" ->  | L134: =IF($L$102=19,ROUND($L$13,0),"")&"" ->  | M134: =IF($M$102=19,ROUND($M$13,0),"")&"" ->  | N134: =IF($N$102=19,ROUND($N$13,0),"")&"" ->  | O134: =IF($O$102=19,ROUND($O$13,0),"")&"" ->  | P134: =IF($P$102=19,ROUND($P$13,0),"")&"" ->  | Q134: =IF($Q$102=19,ROUND($Q$13,0),"")&"" ->  | R134: =IF($R$102=19,ROUND($R$13,0),"")&"" ->  | S134: =IF($S$102=19,ROUND($S$13,0),"")&"" ->  | T134: =IF($T$102=19,ROUND($T$13,0),"")&"" ->  | U134: =IF($U$102=19,ROUND($U$13,0),"")&"" ->  | V134: =IF($V$102=19,ROUND($V$13,0),"")&"" ->  | W134: =IF($W$102=19,ROUND($W$13,0),"")&"" ->  | X134: =IF($X$102=19,ROUND($X$13,0),"")&"" ->  | Y134: =IF($Y$102=19,ROUND($Y$13,0),"")&"" ->  | Z134: =IF($Z$102=19,ROUND($Z$13,0),"")&"" ->  | AA134: =IF($AA$102=19,ROUND($AA$13,0),"")&"" ->  | AB134: 5
C135: 6 | D135: =IF($D$103=19,ROUND($D$14,0),"")&"" ->  | E135: =IF($E$103=19,ROUND($E$14,0),"")&"" ->  | F135: =IF($F$103=19,ROUND($F$14,0),"")&"" ->  | G135: =IF($G$103=19,ROUND($G$14,0),"")&"" ->  | H135: =IF($H$103=19,ROUND($H$14,0),"")&"" ->  | I135: =IF($I$103=19,ROUND($I$14,0),"")&"" ->  | J135: =IF($J$103=19,ROUND($J$14,0),"")&"" ->  | K135: =IF($K$103=19,ROUND($K$14,0),"")&"" ->  | L135: =IF($L$103=19,ROUND($L$14,0),"")&"" ->  | M135: =IF($M$103=19,ROUND($M$14,0),"")&"" ->  | N135: =IF($N$103=19,ROUND($N$14,0),"")&"" ->  | O135: =IF($O$103=19,ROUND($O$14,0),"")&"" ->  | P135: =IF($P$103=19,ROUND($P$14,0),"")&"" ->  | Q135: =IF($Q$103=19,ROUND($Q$14,0),"")&"" ->  | R135: =IF($R$103=19,ROUND($R$14,0),"")&"" ->  | S135: =IF($S$103=19,ROUND($S$14,0),"")&"" ->  | T135: =IF($T$103=19,ROUND($T$14,0),"")&"" ->  | U135: =IF($U$103=19,ROUND($U$14,0),"")&"" ->  | V135: =IF($V$103=19,ROUND($V$14,0),"")&"" ->  | W135: =IF($W$103=19,ROUND($W$14,0),"")&"" ->  | X135: =IF($X$103=19,ROUND($X$14,0),"")&"" ->  | Y135: =IF($Y$103=19,ROUND($Y$14,0),"")&"" ->  | Z135: =IF($Z$103=19,ROUND($Z$14,0),"")&"" ->  | AA135: =IF($AA$103=19,ROUND($AA$14,0),"")&"" ->  | AB135: 6
C136: 7 | D136: =IF($D$104=19,ROUND($D$15,0),"")&"" ->  | E136: =IF($E$104=19,ROUND($E$15,0),"")&"" ->  | F136: =IF($F$104=19,ROUND($F$15,0),"")&"" ->  | G136: =IF($G$104=19,ROUND($G$15,0),"")&"" ->  | H136: =IF($H$104=19,ROUND($H$15,0),"")&"" ->  | I136: =IF($I$104=19,ROUND($I$15,0),"")&"" ->  | J136: =IF($J$104=19,ROUND($J$15,0),"")&"" ->  | K136: =IF($K$104=19,ROUND($K$15,0),"")&"" ->  | L136: =IF($L$104=19,ROUND($L$15,0),"")&"" ->  | M136: =IF($M$104=19,ROUND($M$15,0),"")&"" ->  | N136: =IF($N$104=19,ROUND($N$15,0),"")&"" ->  | O136: =IF($O$104=19,ROUND($O$15,0),"")&"" ->  | P136: =IF($P$104=19,ROUND($P$15,0),"")&"" ->  | Q136: =IF($Q$104=19,ROUND($Q$15,0),"")&"" ->  | R136: =IF($R$104=19,ROUND($R$15,0),"")&"" ->  | S136: =IF($S$104=19,ROUND($S$15,0),"")&"" ->  | T136: =IF($T$104=19,ROUND($T$15,0),"")&"" ->  | U136: =IF($U$104=19,ROUND($U$15,0),"")&"" ->  | V136: =IF($V$104=19,ROUND($V$15,0),"")&"" ->  | W136: =IF($W$104=19,ROUND($W$15,0),"")&"" ->  | X136: =IF($X$104=19,ROUND($X$15,0),"")&"" ->  | Y136: =IF($Y$104=19,ROUND($Y$15,0),"")&"" ->  | Z136: =IF($Z$104=19,ROUND($Z$15,0),"")&"" ->  | AA136: =IF($AA$104=19,ROUND($AA$15,0),"")&"" ->  | AB136: 7
C137: 8 | D137: =IF($D$105=19,ROUND($D$16,0),"")&"" ->  | E137: =IF($E$105=19,ROUND($E$16,0),"")&"" ->  | F137: =IF($F$105=19,ROUND($F$16,0),"")&"" ->  | G137: =IF($G$105=19,ROUND($G$16,0),"")&"" ->  | H137: =IF($H$105=19,ROUND($H$16,0),"")&"" ->  | I137: =IF($I$105=19,ROUND($I$16,0),"")&"" ->  | J137: =IF($J$105=19,ROUND($J$16,0),"")&"" ->  | K137: =IF($K$105=19,ROUND($K$16,0),"")&"" ->  | L137: =IF($L$105=19,ROUND($L$16,0),"")&"" ->  | M137: =IF($M$105=19,ROUND($M$16,0),"")&"" ->  | N137: =IF($N$105=19,ROUND($N$16,0),"")&"" ->  | O137: =IF($O$105=19,ROUND($O$16,0),"")&"" ->  | P137: =IF($P$105=19,ROUND($P$16,0),"")&"" ->  | Q137: =IF($Q$105=19,ROUND($Q$16,0),"")&"" ->  | R137: =IF($R$105=19,ROUND($R$16,0),"")&"" ->  | S137: =IF($S$105=19,ROUND($S$16,0),"")&"" ->  | T137: =IF($T$105=19,ROUND($T$16,0),"")&"" ->  | U137: =IF($U$105=19,ROUND($U$16,0),"")&"" ->  | V137: =IF($V$105=19,ROUND($V$16,0),"")&"" ->  | W137: =IF($W$105=19,ROUND($W$16,0),"")&"" ->  | X137: =IF($X$105=19,ROUND($X$16,0),"")&"" ->  | Y137: =IF($Y$105=19,ROUND($Y$16,0),"")&"" ->  | Z137: =IF($Z$105=19,ROUND($Z$16,0),"")&"" ->  | AA137: =IF($AA$105=19,ROUND($AA$16,0),"")&"" ->  | AB137: 8
C138: 9 | D138: =IF($D$106=19,ROUND($D$17,0),"")&"" ->  | E138: =IF($E$106=19,ROUND($E$17,0),"")&"" ->  | F138: =IF($F$106=19,ROUND($F$17,0),"")&"" ->  | G138: =IF($G$106=19,ROUND($G$17,0),"")&"" ->  | H138: =IF($H$106=19,ROUND($H$17,0),"")&"" ->  | I138: =IF($I$106=19,ROUND($I$17,0),"")&"" ->  | J138: =IF($J$106=19,ROUND($J$17,0),"")&"" ->  | K138: =IF($K$106=19,ROUND($K$17,0),"")&"" ->  | L138: =IF($L$106=19,ROUND($L$17,0),"")&"" ->  | M138: =IF($M$106=19,ROUND($M$17,0),"")&"" ->  | N138: =IF($N$106=19,ROUND($N$17,0),"")&"" ->  | O138: =IF($O$106=19,ROUND($O$17,0),"")&"" ->  | P138: =IF($P$106=19,ROUND($P$17,0),"")&"" ->  | Q138: =IF($Q$106=19,ROUND($Q$17,0),"")&"" ->  | R138: =IF($R$106=19,ROUND($R$17,0),"")&"" ->  | S138: =IF($S$106=19,ROUND($S$17,0),"")&"" ->  | T138: =IF($T$106=19,ROUND($T$17,0),"")&"" ->  | U138: =IF($U$106=19,ROUND($U$17,0),"")&"" ->  | V138: =IF($V$106=19,ROUND($V$17,0),"")&"" ->  | W138: =IF($W$106=19,ROUND($W$17,0),"")&"" ->  | X138: =IF($X$106=19,ROUND($X$17,0),"")&"" ->  | Y138: =IF($Y$106=19,ROUND($Y$17,0),"")&"" ->  | Z138: =IF($Z$106=19,ROUND($Z$17,0),"")&"" ->  | AA138: =IF($AA$106=19,ROUND($AA$17,0),"")&"" ->  | AB138: 9
C139: 10 | D139: =IF($D$107=19,ROUND($D$18,0),"")&"" ->  | E139: =IF($E$107=19,ROUND($E$18,0),"")&"" ->  | F139: =IF($F$107=19,ROUND($F$18,0),"")&"" ->  | G139: =IF($G$107=19,ROUND($G$18,0),"")&"" ->  | H139: =IF($H$107=19,ROUND($H$18,0),"")&"" ->  | I139: =IF($I$107=19,ROUND($I$18,0),"")&"" ->  | J139: =IF($J$107=19,ROUND($J$18,0),"")&"" ->  | K139: =IF($K$107=19,ROUND($K$18,0),"")&"" ->  | L139: =IF($L$107=19,ROUND($L$18,0),"")&"" ->  | M139: =IF($M$107=19,ROUND($M$18,0),"")&"" ->  | N139: =IF($N$107=19,ROUND($N$18,0),"")&"" ->  | O139: =IF($O$107=19,ROUND($O$18,0),"")&"" ->  | P139: =IF($P$107=19,ROUND($P$18,0),"")&"" ->  | Q139: =IF($Q$107=19,ROUND($Q$18,0),"")&"" ->  | R139: =IF($R$107=19,ROUND($R$18,0),"")&"" ->  | S139: =IF($S$107=19,ROUND($S$18,0),"")&"" ->  | T139: =IF($T$107=19,ROUND($T$18,0),"")&"" ->  | U139: =IF($U$107=19,ROUND($U$18,0),"")&"" ->  | V139: =IF($V$107=19,ROUND($V$18,0),"")&"" ->  | W139: =IF($W$107=19,ROUND($W$18,0),"")&"" ->  | X139: =IF($X$107=19,ROUND($X$18,0),"")&"" ->  | Y139: =IF($Y$107=19,ROUND($Y$18,0),"")&"" ->  | Z139: =IF($Z$107=19,ROUND($Z$18,0),"")&"" ->  | AA139: =IF($AA$107=19,ROUND($AA$18,0),"")&"" ->  | AB139: 10
C140: 11 | D140: =IF($D$108=19,ROUND($D$19,0),"")&"" ->  | E140: =IF($E$108=19,ROUND($E$19,0),"")&"" ->  | F140: =IF($F$108=19,ROUND($F$19,0),"")&"" ->  | G140: =IF($G$108=19,ROUND($G$19,0),"")&"" ->  | H140: =IF($H$108=19,ROUND($H$19,0),"")&"" ->  | I140: =IF($I$108=19,ROUND($I$19,0),"")&"" ->  | J140: =IF($J$108=19,ROUND($J$19,0),"")&"" ->  | K140: =IF($K$108=19,ROUND($K$19,0),"")&"" ->  | L140: =IF($L$108=19,ROUND($L$19,0),"")&"" ->  | M140: =IF($M$108=19,ROUND($M$19,0),"")&"" ->  | N140: =IF($N$108=19,ROUND($N$19,0),"")&"" ->  | O140: =IF($O$108=19,ROUND($O$19,0),"")&"" ->  | P140: =IF($P$108=19,ROUND($P$19,0),"")&"" ->  | Q140: =IF($Q$108=19,ROUND($Q$19,0),"")&"" ->  | R140: =IF($R$108=19,ROUND($R$19,0),"")&"" ->  | S140: =IF($S$108=19,ROUND($S$19,0),"")&"" ->  | T140: =IF($T$108=19,ROUND($T$19,0),"")&"" ->  | U140: =IF($U$108=19,ROUND($U$19,0),"")&"" ->  | V140: =IF($V$108=19,ROUND($V$19,0),"")&"" ->  | W140: =IF($W$108=19,ROUND($W$19,0),"")&"" ->  | X140: =IF($X$108=19,ROUND($X$19,0),"")&"" ->  | Y140: =IF($Y$108=19,ROUND($Y$19,0),"")&"" ->  | Z140: =IF($Z$108=19,ROUND($Z$19,0),"")&"" ->  | AA140: =IF($AA$108=19,ROUND($AA$19,0),"")&"" ->  | AB140: 11
C141: 12 | D141: =IF($D$109=19,ROUND($D$20,0),"")&"" ->  | E141: =IF($E$109=19,ROUND($E$20,0),"")&"" ->  | F141: =IF($F$109=19,ROUND($F$20,0),"")&"" ->  | G141: =IF($G$109=19,ROUND($G$20,0),"")&"" ->  | H141: =IF($H$109=19,ROUND($H$20,0),"")&"" ->  | I141: =IF($I$109=19,ROUND($I$20,0),"")&"" ->  | J141: =IF($J$109=19,ROUND($J$20,0),"")&"" ->  | K141: =IF($K$109=19,ROUND($K$20,0),"")&"" ->  | L141: =IF($L$109=19,ROUND($L$20,0),"")&"" ->  | M141: =IF($M$109=19,ROUND($M$20,0),"")&"" ->  | N141: =IF($N$109=19,ROUND($N$20,0),"")&"" ->  | O141: =IF($O$109=19,ROUND($O$20,0),"")&"" ->  | P141: =IF($P$109=19,ROUND($P$20,0),"")&"" ->  | Q141: =IF($Q$109=19,ROUND($Q$20,0),"")&"" ->  | R141: =IF($R$109=19,ROUND($R$20,0),"")&"" ->  | S141: =IF($S$109=19,ROUND($S$20,0),"")&"" ->  | T141: =IF($T$109=19,ROUND($T$20,0),"")&"" ->  | U141: =IF($U$109=19,ROUND($U$20,0),"")&"" ->  | V141: =IF($V$109=19,ROUND($V$20,0),"")&"" ->  | W141: =IF($W$109=19,ROUND($W$20,0),"")&"" ->  | X141: =IF($X$109=19,ROUND($X$20,0),"")&"" ->  | Y141: =IF($Y$109=19,ROUND($Y$20,0),"")&"" ->  | Z141: =IF($Z$109=19,ROUND($Z$20,0),"")&"" ->  | AA141: =IF($AA$109=19,ROUND($AA$20,0),"")&"" ->  | AB141: 12
C142: 1 | D142: =IF($D$110=19,ROUND($D$21,0),"")&"" ->  | E142: =IF($E$110=19,ROUND($E$21,0),"")&"" ->  | F142: =IF($F$110=19,ROUND($F$21,0),"")&"" ->  | G142: =IF($G$110=19,ROUND($G$21,0),"")&"" ->  | H142: =IF($H$110=19,ROUND($H$21,0),"")&"" ->  | I142: =IF($I$110=19,ROUND($I$21,0),"")&"" ->  | J142: =IF($J$110=19,ROUND($J$21,0),"")&"" ->  | K142: =IF($K$110=19,ROUND($K$21,0),"")&"" ->  | L142: =IF($L$110=19,ROUND($L$21,0),"")&"" ->  | M142: =IF($M$110=19,ROUND($M$21,0),"")&"" ->  | N142: =IF($N$110=19,ROUND($N$21,0),"")&"" ->  | O142: =IF($O$110=19,ROUND($O$21,0),"")&"" ->  | P142: =IF($P$110=19,ROUND($P$21,0),"")&"" ->  | Q142: =IF($Q$110=19,ROUND($Q$21,0),"")&"" ->  | R142: =IF($R$110=19,ROUND($R$21,0),"")&"" ->  | S142: =IF($S$110=19,ROUND($S$21,0),"")&"" ->  | T142: =IF($T$110=19,ROUND($T$21,0),"")&"" ->  | U142: =IF($U$110=19,ROUND($U$21,0),"")&"" ->  | V142: =IF($V$110=19,ROUND($V$21,0),"")&"" ->  | W142: =IF($W$110=19,ROUND($W$21,0),"")&"" ->  | X142: =IF($X$110=19,ROUND($X$21,0),"")&"" ->  | Y142: =IF($Y$110=19,ROUND($Y$21,0),"")&"" ->  | Z142: =IF($Z$110=19,ROUND($Z$21,0),"")&"" ->  | AA142: =IF($AA$110=19,ROUND($AA$21,0),"")&"" ->  | AB142: 1
C143: 2 | D143: =IF($D$111=19,ROUND($D$22,0),"")&"" ->  | E143: =IF($E$111=19,ROUND($E$22,0),"")&"" ->  | F143: =IF($F$111=19,ROUND($F$22,0),"")&"" ->  | G143: =IF($G$111=19,ROUND($G$22,0),"")&"" ->  | H143: =IF($H$111=19,ROUND($H$22,0),"")&"" ->  | I143: =IF($I$111=19,ROUND($I$22,0),"")&"" ->  | J143: =IF($J$111=19,ROUND($J$22,0),"")&"" ->  | K143: =IF($K$111=19,ROUND($K$22,0),"")&"" ->  | L143: =IF($L$111=19,ROUND($L$22,0),"")&"" ->  | M143: =IF($M$111=19,ROUND($M$22,0),"")&"" ->  | N143: =IF($N$111=19,ROUND($N$22,0),"")&"" ->  | O143: =IF($O$111=19,ROUND($O$22,0),"")&"" ->  | P143: =IF($P$111=19,ROUND($P$22,0),"")&"" ->  | Q143: =IF($Q$111=19,ROUND($Q$22,0),"")&"" ->  | R143: =IF($R$111=19,ROUND($R$22,0),"")&"" ->  | S143: =IF($S$111=19,ROUND($S$22,0),"")&"" ->  | T143: =IF($T$111=19,ROUND($T$22,0),"")&"" ->  | U143: =IF($U$111=19,ROUND($U$22,0),"")&"" ->  | V143: =IF($V$111=19,ROUND($V$22,0),"")&"" ->  | W143: =IF($W$111=19,ROUND($W$22,0),"")&"" ->  | X143: =IF($X$111=19,ROUND($X$22,0),"")&"" ->  | Y143: =IF($Y$111=19,ROUND($Y$22,0),"")&"" ->  | Z143: =IF($Z$111=19,ROUND($Z$22,0),"")&"" ->  | AA143: =IF($AA$111=19,ROUND($AA$22,0),"")&"" ->  | AB143: 2
C144: 3 | D144: =IF($D$112=19,ROUND($D$23,0),"")&"" ->  | E144: =IF($E$112=19,ROUND($E$23,0),"")&"" ->  | F144: =IF($F$112=19,ROUND($F$23,0),"")&"" ->  | G144: =IF($G$112=19,ROUND($G$23,0),"")&"" ->  | H144: =IF($H$112=19,ROUND($H$23,0),"")&"" ->  | I144: =IF($I$112=19,ROUND($I$23,0),"")&"" ->  | J144: =IF($J$112=19,ROUND($J$23,0),"")&"" ->  | K144: =IF($K$112=19,ROUND($K$23,0),"")&"" ->  | L144: =IF($L$112=19,ROUND($L$23,0),"")&"" ->  | M144: =IF($M$112=19,ROUND($M$23,0),"")&"" ->  | N144: =IF($N$112=19,ROUND($N$23,0),"")&"" ->  | O144: =IF($O$112=19,ROUND($O$23,0),"")&"" ->  | P144: =IF($P$112=19,ROUND($P$23,0),"")&"" ->  | Q144: =IF($Q$112=19,ROUND($Q$23,0),"")&"" ->  | R144: =IF($R$112=19,ROUND($R$23,0),"")&"" ->  | S144: =IF($S$112=19,ROUND($S$23,0),"")&"" ->  | T144: =IF($T$112=19,ROUND($T$23,0),"")&"" ->  | U144: =IF($U$112=19,ROUND($U$23,0),"")&"" ->  | V144: =IF($V$112=19,ROUND($V$23,0),"")&"" ->  | W144: =IF($W$112=19,ROUND($W$23,0),"")&"" ->  | X144: =IF($X$112=19,ROUND($X$23,0),"")&"" ->  | Y144: =IF($Y$112=19,ROUND($Y$23,0),"")&"" ->  | Z144: =IF($Z$112=19,ROUND($Z$23,0),"")&"" ->  | AA144: =IF($AA$112=19,ROUND($AA$23,0),"")&"" ->  | AB144: 3
C146: 冷却期間中 外気湿球温度(Tw)が発生する時間[hour] | AZ146: =$T$29 ->  | BV146: =$T$43 -> 
D147: 外気湿球温度(Tw) | AV147: 共通 | AW147: 共通 | AX147: 前1 | BE147: 前2 | BL147: 前3 | BT147: Rc= | BU147: =$Q$30/$Q$44 ->  | BV147: 後1 | CA147: Rc= | CB147: =$R$30/$R$44 ->  | CC147: 後2 | CH147: Rc= | CI147: =$S$30/$S$44 ->  | CJ147: 後3
C148: 月 | D148: -11 | E148: -10 | F148: -9 | G148: -8 | H148: -7 | I148: -6 | J148: -5 | K148: -4 | L148: -3 | M148: -2 | N148: -1 | O148: 0 | P148: 1 | Q148: 2 | R148: 3 | S148: 4 | T148: 5 | U148: 6 | V148: 7 | W148: 8 | X148: 9 | Y148: 10 | Z148: 11 | AA148: 12 | AB148: 13 | AC148: 14 | AD148: 15 | AE148: 16 | AF148: 17 | AG148: 18 | AH148: 19 | AI148: 20 | AJ148: 21 | AK148: 22 | AL148: 23 | AM148: 24 | AN148: 25 | AO148: 26 | AP148: 27 | AQ148: 28 | AR148: 29 | AS148: 30 | AT148: 月 | AV148: EccのΣ | AW148: EaxcのΣ | AX148: Ecc | AY148: Ecc’ | AZ148: Ecc’’ | BA148: Eaxc | BB148: Eaxc’ | BC148: Eaxc’’ | BD148: Ec | BE148: Ecc | BF148: Ecc’ | BG148: Ecc’’ | BH148: Eaxc | BI148: Eaxc’ | BJ148: Eaxc’’ | BK148: Ec | BL148: Ecc | BM148: Ecc’ | BN148: Ecc’’ | BO148: Eaxc | BP148: Eaxc’ | BQ148: Eaxc’’ | BR148: Ec | BT148: Ecc | BU148: Ecc’ | BV148: Ecc’’ | BW148: Eaxc | BX148: Eaxc’ | BY148: Eaxc’’ | BZ148: Ec | CA148: Ecc | CB148: Ecc’ | CC148: Ecc’’ | CD148: Eaxc | CE148: Eaxc’ | CF148: Eaxc’’ | CG148: Ec | CH148: Ecc | CI148: Ecc’ | CJ148: Ecc’’ | CK148: Eaxc | CL148: Eaxc’ | CM148: Eaxc’’ | CN148: Ec
C149: 4 | D149: =COUNTIF($D$117:$AA$117,$D$148)*$AB$12 -> 0 | E149: =COUNTIF($D$117:$AA$117,$E$148)*$AB$12 -> 0 | F149: =COUNTIF($D$117:$AA$117,$F$148)*$AB$12 -> 0 | G149: =COUNTIF($D$117:$AA$117,$G$148)*$AB$12 -> 0 | H149: =COUNTIF($D$117:$AA$117,$H$148)*$AB$12 -> 0 | I149: =COUNTIF($D$117:$AA$117,$I$148)*$AB$12 -> 0 | J149: =COUNTIF($D$117:$AA$117,$J$148)*$AB$12 -> 0 | K149: =COUNTIF($D$117:$AA$117,$K$148)*$AB$12 -> 0 | L149: =COUNTIF($D$117:$AA$117,$L$148)*$AB$12 -> 0 | M149: =COUNTIF($D$117:$AA$117,$M$148)*$AB$12 -> 0 | N149: =COUNTIF($D$117:$AA$117,$N$148)*$AB$12 -> 0 | O149: =COUNTIF($D$117:$AA$117,$O$148)*$AB$12 -> 0 | P149: =COUNTIF($D$117:$AA$117,$P$148)*$AB$12 -> 0 | Q149: =COUNTIF($D$117:$AA$117,$Q$148)*$AB$12 -> 0 | R149: =COUNTIF($D$117:$AA$117,$R$148)*$AB$12 -> 0 | S149: =COUNTIF($D$117:$AA$117,$S$148)*$AB$12 -> 0 | T149: =COUNTIF($D$117:$AA$117,$T$148)*$AB$12 -> 0 | U149: =COUNTIF($D$117:$AA$117,$U$148)*$AB$12 -> 0 | V149: =COUNTIF($D$117:$AA$117,$V$148)*$AB$12 -> 0 | W149: =COUNTIF($D$117:$AA$117,$W$148)*$AB$12 -> 0 | X149: =COUNTIF($D$117:$AA$117,$X$148)*$AB$12 -> 0 | Y149: =COUNTIF($D$117:$AA$117,$Y$148)*$AB$12 -> 0 | Z149: =COUNTIF($D$117:$AA$117,$Z$148)*$AB$12 -> 0 | AA149: =COUNTIF($D$117:$AA$117,$AA$148)*$AB$12 -> 0 | AB149: =COUNTIF($D$117:$AA$117,$AB$148)*$AB$12 -> 0 | AC149: =COUNTIF($D$117:$AA$117,$AC$148)*$AB$12 -> 0 | AD149: =COUNTIF($D$117:$AA$117,$AD$148)*$AB$12 -> 0 | AE149: =COUNTIF($D$117:$AA$117,$AE$148)*$AB$12 -> 0 | AF149: =COUNTIF($D$117:$AA$117,$AF$148)*$AB$12 -> 0 | AG149: =COUNTIF($D$117:$AA$117,$AG$148)*$AB$12 -> 0 | AH149: =COUNTIF($D$117:$AA$117,$AH$148)*$AB$12 -> 0 | AI149: =COUNTIF($D$117:$AA$117,$AI$148)*$AB$12 -> 0 | AJ149: =COUNTIF($D$117:$AA$117,$AJ$148)*$AB$12 -> 0 | AK149: =COUNTIF($D$117:$AA$117,$AK$148)*$AB$12 -> 0 | AL149: =COUNTIF($D$117:$AA$117,$AL$148)*$AB$12 -> 0 | AM149: =COUNTIF($D$117:$AA$117,$AM$148)*$AB$12 -> 0 | AN149: =COUNTIF($D$117:$AA$117,$AN$148)*$AB$12 -> 0 | AO149: =COUNTIF($D$117:$AA$117,$AO$148)*$AB$12 -> 0 | AP149: =COUNTIF($D$117:$AA$117,$AP$148)*$AB$12 -> 0 | AQ149: =COUNTIF($D$117:$AA$117,$AQ$148)*$AB$12 -> 0 | AR149: =COUNTIF($D$117:$AA$117,$AR$148)*$AB$12 -> 0 | AS149: =COUNTIF($D$117:$AA$117,$AS$148)*$AB$12 -> 0 | AT149: 4 | AV149: =SUMPRODUCT($D149:$AS149,$D$162:$AS$162) -> 0 | AW149: =SUMPRODUCT($D149:$AS149,$D$168:$AS$168) -> 0 | AX149: =IFERROR($Q$30/$Q$32*$AV149*$Q$40,"") ->  | AY149: =IFERROR($AX149*3.6/1000,"") ->  | AZ149: =IFERROR($AY149/$AZ$146,"") ->  | BA149: =IFERROR(($Q$36+$Q$37+$Q$38)*$AW149,"") -> 0 | BB149: =IFERROR($BA149*2.4*3.6/1000,"") -> 0 | BC149: =IFERROR($BA149/1000,"") -> 0 | BD149: =IFERROR($AY149+$BB149,"") ->  | BE149: =IFERROR($R$30/$R$32*$AV149*$R$40,"") ->  | BF149: =IFERROR($BE149*3.6/1000,"") ->  | BG149: =IFERROR($BF149/$AZ$146,"") ->  | BH149: =IFERROR(($R$36+$R$37+$R$38)*$AW149,"") -> 0 | BI149: =IFERROR($BH149*2.4*3.6/1000,"") -> 0 | BJ149: =IFERROR($BH149/1000,"") -> 0 | BK149: =IFERROR($BF149+$BI149,"") ->  | BL149: =IFERROR($S$30/$S$32*$AV149*$S$40,"") ->  | BM149: =IFERROR($BL149*3.6/1000,"") ->  | BN149: =IFERROR($BM149/$AZ$146,"") ->  | BO149: =IFERROR(($S$36+$S$37+$S$38)*$AW149,"") -> 0 | BP149: =IFERROR($BO149*2.4*3.6/1000,"") -> 0 | BQ149: =IFERROR($BO149/1000,"") -> 0 | BR149: =IFERROR($BM149+$BP149,"") ->  | BT149: =IFERROR($Q$44/$Q$46*$AV149*$Q$54*$BU$147,"") ->  | BU149: =IFERROR($BT149*3.6/1000,"") ->  | BV149: =IFERROR($BU149/$BV$146,"") ->  | BW149: =IFERROR(($Q$50+$Q$51+$Q$52)*$AW149,"") -> 0 | BX149: =IFERROR($BW149*2.4*3.6/1000,"") -> 0 | BY149: =IFERROR($BW149/1000,"") -> 0 | BZ149: =IFERROR($BU149+$BX149,"") ->  | CA149: =IFERROR($R$44/$R$46*$AV149*$R$54*$CB$147,"") ->  | CB149: =IFERROR($CA149*3.6/1000,"") ->  | CC149: =IFERROR($CB149/$BV$146,"") ->  | CD149: =IFERROR(($R$50+$R$51+$R$52)*$AW149,"") -> 0 | CE149: =IFERROR($CD149*2.4*3.6/1000,"") -> 0 | CF149: =IFERROR($CD149/1000,"") -> 0 | CG149: =IFERROR($CB149+$CE149,"") ->  | CH149: =IFERROR($S$44/$S$46*$AV149*$S$54*$CI$147,"") ->  | CI149: =IFERROR($CH149*3.6/1000,"") ->  | CJ149: =IFERROR($CI149/$BV$146,"") ->  | CK149: =IFERROR(($S$50+$S$51+$S$52)*$AW149,"") -> 0 | CL149: =IFERROR($CK149*2.4*3.6/1000,"") -> 0 | CM149: =IFERROR($CK149/1000,"") -> 0 | CN149: =IFERROR($CI149+$CL149,"") -> 
C150: 5 | D150: =COUNTIF($D$118:$AA$118,$D$148)*$AB$13 -> 0 | E150: =COUNTIF($D$118:$AA$118,$E$148)*$AB$13 -> 0 | F150: =COUNTIF($D$118:$AA$118,$F$148)*$AB$13 -> 0 | G150: =COUNTIF($D$118:$AA$118,$G$148)*$AB$13 -> 0 | H150: =COUNTIF($D$118:$AA$118,$H$148)*$AB$13 -> 0 | I150: =COUNTIF($D$118:$AA$118,$I$148)*$AB$13 -> 0 | J150: =COUNTIF($D$118:$AA$118,$J$148)*$AB$13 -> 0 | K150: =COUNTIF($D$118:$AA$118,$K$148)*$AB$13 -> 0 | L150: =COUNTIF($D$118:$AA$118,$L$148)*$AB$13 -> 0 | M150: =COUNTIF($D$118:$AA$118,$M$148)*$AB$13 -> 0 | N150: =COUNTIF($D$118:$AA$118,$N$148)*$AB$13 -> 0 | O150: =COUNTIF($D$118:$AA$118,$O$148)*$AB$13 -> 0 | P150: =COUNTIF($D$118:$AA$118,$P$148)*$AB$13 -> 0 | Q150: =COUNTIF($D$118:$AA$118,$Q$148)*$AB$13 -> 0 | R150: =COUNTIF($D$118:$AA$118,$R$148)*$AB$13 -> 0 | S150: =COUNTIF($D$118:$AA$118,$S$148)*$AB$13 -> 0 | T150: =COUNTIF($D$118:$AA$118,$T$148)*$AB$13 -> 0 | U150: =COUNTIF($D$118:$AA$118,$U$148)*$AB$13 -> 0 | V150: =COUNTIF($D$118:$AA$118,$V$148)*$AB$13 -> 0 | W150: =COUNTIF($D$118:$AA$118,$W$148)*$AB$13 -> 0 | X150: =COUNTIF($D$118:$AA$118,$X$148)*$AB$13 -> 0 | Y150: =COUNTIF($D$118:$AA$118,$Y$148)*$AB$13 -> 0 | Z150: =COUNTIF($D$118:$AA$118,$Z$148)*$AB$13 -> 0 | AA150: =COUNTIF($D$118:$AA$118,$AA$148)*$AB$13 -> 0 | AB150: =COUNTIF($D$118:$AA$118,$AB$148)*$AB$13 -> 0 | AC150: =COUNTIF($D$118:$AA$118,$AC$148)*$AB$13 -> 0 | AD150: =COUNTIF($D$118:$AA$118,$AD$148)*$AB$13 -> 0 | AE150: =COUNTIF($D$118:$AA$118,$AE$148)*$AB$13 -> 0 | AF150: =COUNTIF($D$118:$AA$118,$AF$148)*$AB$13 -> 0 | AG150: =COUNTIF($D$118:$AA$118,$AG$148)*$AB$13 -> 0 | AH150: =COUNTIF($D$118:$AA$118,$AH$148)*$AB$13 -> 0 | AI150: =COUNTIF($D$118:$AA$118,$AI$148)*$AB$13 -> 0 | AJ150: =COUNTIF($D$118:$AA$118,$AJ$148)*$AB$13 -> 0 | AK150: =COUNTIF($D$118:$AA$118,$AK$148)*$AB$13 -> 0 | AL150: =COUNTIF($D$118:$AA$118,$AL$148)*$AB$13 -> 0 | AM150: =COUNTIF($D$118:$AA$118,$AM$148)*$AB$13 -> 0 | AN150: =COUNTIF($D$118:$AA$118,$AN$148)*$AB$13 -> 0 | AO150: =COUNTIF($D$118:$AA$118,$AO$148)*$AB$13 -> 0 | AP150: =COUNTIF($D$118:$AA$118,$AP$148)*$AB$13 -> 0 | AQ150: =COUNTIF($D$118:$AA$118,$AQ$148)*$AB$13 -> 0 | AR150: =COUNTIF($D$118:$AA$118,$AR$148)*$AB$13 -> 0 | AS150: =COUNTIF($D$118:$AA$118,$AS$148)*$AH$13 -> 0 | AT150: 5 | AV150: =SUMPRODUCT($D150:$AS150,$D$162:$AS$162) -> 0 | AW150: =SUMPRODUCT($D150:$AS150,$D$168:$AS$168) -> 0 | AX150: =IFERROR($Q$30/$Q$32*$AV150*$Q$40,"") ->  | AY150: =IFERROR($AX150*3.6/1000,"") ->  | AZ150: =IFERROR($AY150/$AZ$146,"") ->  | BA150: =IFERROR(($Q$36+$Q$37+$Q$38)*$AW150,"") -> 0 | BB150: =IFERROR($BA150*2.4*3.6/1000,"") -> 0 | BC150: =IFERROR($BA150/1000,"") -> 0 | BD150: =IFERROR($AY150+$BB150,"") ->  | BE150: =IFERROR($R$30/$R$32*$AV150*$R$40,"") ->  | BF150: =IFERROR($BE150*3.6/1000,"") ->  | BG150: =IFERROR($BF150/$AZ$146,"") ->  | BH150: =IFERROR(($R$36+$R$37+$R$38)*$AW150,"") -> 0 | BI150: =IFERROR($BH150*2.4*3.6/1000,"") -> 0 | BJ150: =IFERROR($BH150/1000,"") -> 0 | BK150: =IFERROR($BF150+$BI150,"") ->  | BL150: =IFERROR($S$30/$S$32*$AV150*$S$40,"") ->  | BM150: =IFERROR($BL150*3.6/1000,"") ->  | BN150: =IFERROR($BM150/$AZ$146,"") ->  | BO150: =IFERROR(($S$36+$S$37+$S$38)*$AW150,"") -> 0 | BP150: =IFERROR($BO150*2.4*3.6/1000,"") -> 0 | BQ150: =IFERROR($BO150/1000,"") -> 0 | BR150: =IFERROR($BM150+$BP150,"") ->  | BT150: =IFERROR($Q$44/$Q$46*$AV150*$Q$54*$BU$147,"") ->  | BU150: =IFERROR($BT150*3.6/1000,"") ->  | BV150: =IFERROR($BU150/$BV$146,"") ->  | BW150: =IFERROR(($Q$50+$Q$51+$Q$52)*$AW150,"") -> 0 | BX150: =IFERROR($BW150*2.4*3.6/1000,"") -> 0 | BY150: =IFERROR($BW150/1000,"") -> 0 | BZ150: =IFERROR($BU150+$BX150,"") ->  | CA150: =IFERROR($R$44/$R$46*$AV150*$R$54*$CB$147,"") ->  | CB150: =IFERROR($CA150*3.6/1000,"") ->  | CC150: =IFERROR($CB150/$BV$146,"") ->  | CD150: =IFERROR(($R$50+$R$51+$R$52)*$AW150,"") -> 0 | CE150: =IFERROR($CD150*2.4*3.6/1000,"") -> 0 | CF150: =IFERROR($CD150/1000,"") -> 0 | CG150: =IFERROR($CB150+$CE150,"") ->  | CH150: =IFERROR($S$44/$S$46*$AV150*$S$54*$CI$147,"") ->  | CI150: =IFERROR($CH150*3.6/1000,"") ->  | CJ150: =IFERROR($CI150/$BV$146,"") ->  | CK150: =IFERROR(($S$50+$S$51+$S$52)*$AW150,"") -> 0 | CL150: =IFERROR($CK150*2.4*3.6/1000,"") -> 0 | CM150: =IFERROR($CK150/1000,"") -> 0 | CN150: =IFERROR($CI150+$CL150,"") -> 
C151: 6 | D151: =COUNTIF($D$119:$AA$119,$D$148)*$AB$14 -> 0 | E151: =COUNTIF($D$119:$AA$119,$E$148)*$AB$14 -> 0 | F151: =COUNTIF($D$119:$AA$119,$F$148)*$AB$14 -> 0 | G151: =COUNTIF($D$119:$AA$119,$G$148)*$AB$14 -> 0 | H151: =COUNTIF($D$119:$AA$119,$H$148)*$AB$14 -> 0 | I151: =COUNTIF($D$119:$AA$119,$I$148)*$AB$14 -> 0 | J151: =COUNTIF($D$119:$AA$119,$J$148)*$AB$14 -> 0 | K151: =COUNTIF($D$119:$AA$119,$K$148)*$AB$14 -> 0 | L151: =COUNTIF($D$119:$AA$119,$L$148)*$AB$14 -> 0 | M151: =COUNTIF($D$119:$AA$119,$M$148)*$AB$14 -> 0 | N151: =COUNTIF($D$119:$AA$119,$N$148)*$AB$14 -> 0 | O151: =COUNTIF($D$119:$AA$119,$O$148)*$AB$14 -> 0 | P151: =COUNTIF($D$119:$AA$119,$P$148)*$AB$14 -> 0 | Q151: =COUNTIF($D$119:$AA$119,$Q$148)*$AB$14 -> 0 | R151: =COUNTIF($D$119:$AA$119,$R$148)*$AB$14 -> 0 | S151: =COUNTIF($D$119:$AA$119,$S$148)*$AB$14 -> 0 | T151: =COUNTIF($D$119:$AA$119,$T$148)*$AB$14 -> 0 | U151: =COUNTIF($D$119:$AA$119,$U$148)*$AB$14 -> 0 | V151: =COUNTIF($D$119:$AA$119,$V$148)*$AB$14 -> 0 | W151: =COUNTIF($D$119:$AA$119,$W$148)*$AB$14 -> 0 | X151: =COUNTIF($D$119:$AA$119,$X$148)*$AB$14 -> 0 | Y151: =COUNTIF($D$119:$AA$119,$Y$148)*$AB$14 -> 0 | Z151: =COUNTIF($D$119:$AA$119,$Z$148)*$AB$14 -> 0 | AA151: =COUNTIF($D$119:$AA$119,$AA$148)*$AB$14 -> 0 | AB151: =COUNTIF($D$119:$AA$119,$AB$148)*$AB$14 -> 0 | AC151: =COUNTIF($D$119:$AA$119,$AC$148)*$AB$14 -> 0 | AD151: =COUNTIF($D$119:$AA$119,$AD$148)*$AB$14 -> 0 | AE151: =COUNTIF($D$119:$AA$119,$AE$148)*$AB$14 -> 0 | AF151: =COUNTIF($D$119:$AA$119,$AF$148)*$AB$14 -> 0 | AG151: =COUNTIF($D$119:$AA$119,$AG$148)*$AB$14 -> 0 | AH151: =COUNTIF($D$119:$AA$119,$AH$148)*$AB$14 -> 0 | AI151: =COUNTIF($D$119:$AA$119,$AI$148)*$AB$14 -> 0 | AJ151: =COUNTIF($D$119:$AA$119,$AJ$148)*$AB$14 -> 0 | AK151: =COUNTIF($D$119:$AA$119,$AK$148)*$AB$14 -> 0 | AL151: =COUNTIF($D$119:$AA$119,$AL$148)*$AB$14 -> 0 | AM151: =COUNTIF($D$119:$AA$119,$AM$148)*$AB$14 -> 0 | AN151: =COUNTIF($D$119:$AA$119,$AN$148)*$AB$14 -> 0 | AO151: =COUNTIF($D$119:$AA$119,$AO$148)*$AB$14 -> 0 | AP151: =COUNTIF($D$119:$AA$119,$AP$148)*$AB$14 -> 0 | AQ151: =COUNTIF($D$119:$AA$119,$AQ$148)*$AB$14 -> 0 | AR151: =COUNTIF($D$119:$AA$119,$AR$148)*$AB$14 -> 0 | AS151: =COUNTIF($D$119:$AA$119,$AS$148)*$AB$14 -> 0 | AT151: 6 | AV151: 0 | AW151: 0 | AX151: =IFERROR($Q$30/$Q$32*$AV151*$Q$40,"") ->  | BA151: 0 | BB151: 0 | BC151: 0 | BH151: 0 | BI151: 0 | BJ151: 0 | BO151: 0 | BP151: 0 | BQ151: 0 | BT151: =IFERROR($Q$44/$Q$46*$AV151*$Q$54*$BU$147,"") ->  | BW151: 0 | BX151: 0 | BY151: 0 | CD151: 0 | CE151: 0 | CF151: 0 | CH151: =IFERROR($S$44/$S$46*$AV151*$S$54*$CI$147,"") ->  | CK151: 0 | CL151: 0 | CM151: 0
C152: 7 | D152: =COUNTIF($D$120:$AA$120,$D$148)*$AB$15 -> 0 | E152: =COUNTIF($D$120:$AA$120,$E$148)*$AB$15 -> 0 | F152: =COUNTIF($D$120:$AA$120,$F$148)*$AB$15 -> 0 | G152: =COUNTIF($D$120:$AA$120,$G$148)*$AB$15 -> 0 | H152: =COUNTIF($D$120:$AA$120,$H$148)*$AB$15 -> 0 | I152: =COUNTIF($D$120:$AA$120,$I$148)*$AB$15 -> 0 | J152: =COUNTIF($D$120:$AA$120,$J$148)*$AB$15 -> 0 | K152: =COUNTIF($D$120:$AA$120,$K$148)*$AB$15 -> 0 | L152: =COUNTIF($D$120:$AA$120,$L$148)*$AB$15 -> 0 | M152: =COUNTIF($D$120:$AA$120,$M$148)*$AB$15 -> 0 | N152: =COUNTIF($D$120:$AA$120,$N$148)*$AB$15 -> 0 | O152: =COUNTIF($D$120:$AA$120,$O$148)*$AB$15 -> 0 | P152: =COUNTIF($D$120:$AA$120,$P$148)*$AB$15 -> 0 | Q152: =COUNTIF($D$120:$AA$120,$Q$148)*$AB$15 -> 0 | R152: =COUNTIF($D$120:$AA$120,$R$148)*$AB$15 -> 0 | S152: =COUNTIF($D$120:$AA$120,$S$148)*$AB$15 -> 0 | T152: =COUNTIF($D$120:$AA$120,$T$148)*$AB$15 -> 0 | U152: =COUNTIF($D$120:$AA$120,$U$148)*$AB$15 -> 0 | V152: =COUNTIF($D$120:$AA$120,$V$148)*$AB$15 -> 0 | W152: =COUNTIF($D$120:$AA$120,$W$148)*$AB$15 -> 0 | X152: =COUNTIF($D$120:$AA$120,$X$148)*$AB$15 -> 0 | Y152: =COUNTIF($D$120:$AA$120,$Y$148)*$AB$15 -> 0 | Z152: =COUNTIF($D$120:$AA$120,$Z$148)*$AB$15 -> 0 | AA152: =COUNTIF($D$120:$AA$120,$AA$148)*$AB$15 -> 0 | AB152: =COUNTIF($D$120:$AA$120,$AB$148)*$AB$15 -> 0 | AC152: =COUNTIF($D$120:$AA$120,$AC$148)*$AB$15 -> 0 | AD152: =COUNTIF($D$120:$AA$120,$AD$148)*$AB$15 -> 0 | AE152: =COUNTIF($D$120:$AA$120,$AE$148)*$AB$15 -> 0 | AF152: =COUNTIF($D$120:$AA$120,$AF$148)*$AB$15 -> 0 | AG152: =COUNTIF($D$120:$AA$120,$AG$148)*$AB$15 -> 0 | AH152: =COUNTIF($D$120:$AA$120,$AH$148)*$AB$15 -> 0 | AI152: =COUNTIF($D$120:$AA$120,$AI$148)*$AB$15 -> 0 | AJ152: =COUNTIF($D$120:$AA$120,$AJ$148)*$AB$15 -> 0 | AK152: =COUNTIF($D$120:$AA$120,$AK$148)*$AB$15 -> 0 | AL152: =COUNTIF($D$120:$AA$120,$AL$148)*$AB$15 -> 0 | AM152: =COUNTIF($D$120:$AA$120,$AM$148)*$AB$15 -> 0 | AN152: =COUNTIF($D$120:$AA$120,$AN$148)*$AB$15 -> 0 | AO152: =COUNTIF($D$120:$AA$120,$AO$148)*$AB$15 -> 0 | AP152: =COUNTIF($D$120:$AA$120,$AP$148)*$AB$15 -> 0 | AQ152: =COUNTIF($D$120:$AA$120,$AQ$148)*$AB$15 -> 0 | AR152: =COUNTIF($D$120:$AA$120,$AR$148)*$AB$15 -> 0 | AS152: =COUNTIF($D$120:$AA$120,$AS$148)*$AB$15 -> 0 | AT152: 7 | AV152: 0 | AW152: 0 | BA152: 0 | BB152: 0 | BC152: 0 | BH152: 0 | BI152: 0 | BJ152: 0 | BO152: 0 | BP152: 0 | BQ152: 0 | BT152: =IFERROR($Q$44/$Q$46*$AV152*$Q$54*$BU$147,"") ->  | BW152: 0 | BX152: 0 | BY152: 0 | CD152: 0 | CE152: 0 | CF152: 0 | CK152: 0 | CL152: 0 | CM152: 0
C153: 8 | D153: =COUNTIF($D$121:$AA$121,$D$148)*$AB$16 -> 0 | E153: =COUNTIF($D$121:$AA$121,$E$148)*$AB$16 -> 0 | F153: =COUNTIF($D$121:$AA$121,$F$148)*$AB$16 -> 0 | G153: =COUNTIF($D$121:$AA$121,$G$148)*$AB$16 -> 0 | H153: =COUNTIF($D$121:$AA$121,$H$148)*$AB$16 -> 0 | I153: =COUNTIF($D$121:$AA$121,$I$148)*$AB$16 -> 0 | J153: =COUNTIF($D$121:$AA$121,$J$148)*$AB$16 -> 0 | K153: =COUNTIF($D$121:$AA$121,$K$148)*$AB$16 -> 0 | L153: =COUNTIF($D$121:$AA$121,$L$148)*$AB$16 -> 0 | M153: =COUNTIF($D$121:$AA$121,$M$148)*$AB$16 -> 0 | N153: =COUNTIF($D$121:$AA$121,$N$148)*$AB$16 -> 0 | O153: =COUNTIF($D$121:$AA$121,$O$148)*$AB$16 -> 0 | P153: =COUNTIF($D$121:$AA$121,$P$148)*$AB$16 -> 0 | Q153: =COUNTIF($D$121:$AA$121,$Q$148)*$AB$16 -> 0 | R153: =COUNTIF($D$121:$AA$121,$R$148)*$AB$16 -> 0 | S153: =COUNTIF($D$121:$AA$121,$S$148)*$AB$16 -> 0 | T153: =COUNTIF($D$121:$AA$121,$T$148)*$AB$16 -> 0 | U153: =COUNTIF($D$121:$AA$121,$U$148)*$AB$16 -> 0 | V153: =COUNTIF($D$121:$AA$121,$V$148)*$AB$16 -> 0 | W153: =COUNTIF($D$121:$AA$121,$W$148)*$AB$16 -> 0 | X153: =COUNTIF($D$121:$AA$121,$X$148)*$AB$16 -> 0 | Y153: =COUNTIF($D$121:$AA$121,$Y$148)*$AB$16 -> 0 | Z153: =COUNTIF($D$121:$AA$121,$Z$148)*$AB$16 -> 0 | AA153: =COUNTIF($D$121:$AA$121,$AA$148)*$AB$16 -> 0 | AB153: =COUNTIF($D$121:$AA$121,$AB$148)*$AB$16 -> 0 | AC153: =COUNTIF($D$121:$AA$121,$AC$148)*$AB$16 -> 0 | AD153: =COUNTIF($D$121:$AA$121,$AD$148)*$AB$16 -> 0 | AE153: =COUNTIF($D$121:$AA$121,$AE$148)*$AB$16 -> 0 | AF153: =COUNTIF($D$121:$AA$121,$AF$148)*$AB$16 -> 0 | AG153: =COUNTIF($D$121:$AA$121,$AG$148)*$AB$16 -> 0 | AH153: =COUNTIF($D$121:$AA$121,$AH$148)*$AB$16 -> 0 | AI153: =COUNTIF($D$121:$AA$121,$AI$148)*$AB$16 -> 0 | AJ153: =COUNTIF($D$121:$AA$121,$AJ$148)*$AB$16 -> 0 | AK153: =COUNTIF($D$121:$AA$121,$AK$148)*$AB$16 -> 0 | AL153: =COUNTIF($D$121:$AA$121,$AL$148)*$AB$16 -> 0 | AM153: =COUNTIF($D$121:$AA$121,$AM$148)*$AB$16 -> 0 | AN153: =COUNTIF($D$121:$AA$121,$AN$148)*$AB$16 -> 0 | AO153: =COUNTIF($D$121:$AA$121,$AO$148)*$AB$16 -> 0 | AP153: =COUNTIF($D$121:$AA$121,$AP$148)*$AB$16 -> 0 | AQ153: =COUNTIF($D$121:$AA$121,$AQ$148)*$AB$16 -> 0 | AR153: =COUNTIF($D$121:$AA$121,$AR$148)*$AB$16 -> 0 | AS153: =COUNTIF($D$121:$AA$121,$AS$148)*$AB$16 -> 0 | AT153: 8 | AV153: 0 | AW153: 0 | BA153: 0 | BB153: 0 | BC153: 0 | BH153: 0 | BI153: 0 | BJ153: 0 | BO153: 0 | BP153: 0 | BQ153: 0 | BT153: =IFERROR($Q$44/$Q$46*$AV153*$Q$54*$BU$147,"") ->  | BW153: 0 | BX153: 0 | BY153: 0 | CD153: 0 | CE153: 0 | CF153: 0 | CK153: 0 | CL153: 0 | CM153: 0
C154: 9 | D154: =COUNTIF($D$122:$AA$122,$D$148)*$AB$17 -> 0 | E154: =COUNTIF($D$122:$AA$122,$E$148)*$AB$17 -> 0 | F154: =COUNTIF($D$122:$AA$122,$F$148)*$AB$17 -> 0 | G154: =COUNTIF($D$122:$AA$122,$G$148)*$AB$17 -> 0 | H154: =COUNTIF($D$122:$AA$122,$H$148)*$AB$17 -> 0 | I154: =COUNTIF($D$122:$AA$122,$I$148)*$AB$17 -> 0 | J154: =COUNTIF($D$122:$AA$122,$J$148)*$AB$17 -> 0 | K154: =COUNTIF($D$122:$AA$122,$K$148)*$AB$17 -> 0 | L154: =COUNTIF($D$122:$AA$122,$L$148)*$AB$17 -> 0 | M154: =COUNTIF($D$122:$AA$122,$M$148)*$AB$17 -> 0 | N154: =COUNTIF($D$122:$AA$122,$N$148)*$AB$17 -> 0 | O154: =COUNTIF($D$122:$AA$122,$O$148)*$AB$17 -> 0 | P154: =COUNTIF($D$122:$AA$122,$P$148)*$AB$17 -> 0 | Q154: =COUNTIF($D$122:$AA$122,$Q$148)*$AB$17 -> 0 | R154: =COUNTIF($D$122:$AA$122,$R$148)*$AB$17 -> 0 | S154: =COUNTIF($D$122:$AA$122,$S$148)*$AB$17 -> 0 | T154: =COUNTIF($D$122:$AA$122,$T$148)*$AB$17 -> 0 | U154: =COUNTIF($D$122:$AA$122,$U$148)*$AB$17 -> 0 | V154: =COUNTIF($D$122:$AA$122,$V$148)*$AB$17 -> 0 | W154: =COUNTIF($D$122:$AA$122,$W$148)*$AB$17 -> 0 | X154: =COUNTIF($D$122:$AA$122,$X$148)*$AB$17 -> 0 | Y154: =COUNTIF($D$122:$AA$122,$Y$148)*$AB$17 -> 0 | Z154: =COUNTIF($D$122:$AA$122,$Z$148)*$AB$17 -> 0 | AA154: =COUNTIF($D$122:$AA$122,$AA$148)*$AB$17 -> 0 | AB154: =COUNTIF($D$122:$AA$122,$AB$148)*$AB$17 -> 0 | AC154: =COUNTIF($D$122:$AA$122,$AC$148)*$AB$17 -> 0 | AD154: =COUNTIF($D$122:$AA$122,$AD$148)*$AB$17 -> 0 | AE154: =COUNTIF($D$122:$AA$122,$AE$148)*$AB$17 -> 0 | AF154: =COUNTIF($D$122:$AA$122,$AF$148)*$AB$17 -> 0 | AG154: =COUNTIF($D$122:$AA$122,$AG$148)*$AB$17 -> 0 | AH154: =COUNTIF($D$122:$AA$122,$AH$148)*$AB$17 -> 0 | AI154: =COUNTIF($D$122:$AA$122,$AI$148)*$AB$17 -> 0 | AJ154: =COUNTIF($D$122:$AA$122,$AJ$148)*$AB$17 -> 0 | AK154: =COUNTIF($D$122:$AA$122,$AK$148)*$AB$17 -> 0 | AL154: =COUNTIF($D$122:$AA$122,$AL$148)*$AB$17 -> 0 | AM154: =COUNTIF($D$122:$AA$122,$AM$148)*$AB$17 -> 0 | AN154: =COUNTIF($D$122:$AA$122,$AN$148)*$AB$17 -> 0 | AO154: =COUNTIF($D$122:$AA$122,$AO$148)*$AB$17 -> 0 | AP154: =COUNTIF($D$122:$AA$122,$AP$148)*$AB$17 -> 0 | AQ154: =COUNTIF($D$122:$AA$122,$AQ$148)*$AB$17 -> 0 | AR154: =COUNTIF($D$122:$AA$122,$AR$148)*$AB$17 -> 0 | AS154: =COUNTIF($D$122:$AA$122,$AS$148)*$AB$17 -> 0 | AT154: 9 | AV154: 0 | AW154: 0 | BA154: 0 | BB154: 0 | BC154: 0 | BH154: 0 | BI154: 0 | BJ154: 0 | BO154: 0 | BP154: 0 | BQ154: 0 | BW154: 0 | BX154: 0 | BY154: 0 | CD154: 0 | CE154: 0 | CF154: 0 | CK154: 0 | CL154: 0 | CM154: 0
C155: 10 | D155: =COUNTIF($D$123:$AA$123,$D$148)*$AB$18 -> 0 | E155: =COUNTIF($D$123:$AA$123,$E$148)*$AB$18 -> 0 | F155: =COUNTIF($D$123:$AA$123,$F$148)*$AB$18 -> 0 | G155: =COUNTIF($D$123:$AA$123,$G$148)*$AB$18 -> 0 | H155: =COUNTIF($D$123:$AA$123,$H$148)*$AB$18 -> 0 | I155: =COUNTIF($D$123:$AA$123,$I$148)*$AB$18 -> 0 | J155: =COUNTIF($D$123:$AA$123,$J$148)*$AB$18 -> 0 | K155: =COUNTIF($D$123:$AA$123,$K$148)*$AB$18 -> 0 | L155: =COUNTIF($D$123:$AA$123,$L$148)*$AB$18 -> 0 | M155: =COUNTIF($D$123:$AA$123,$M$148)*$AB$18 -> 0 | N155: =COUNTIF($D$123:$AA$123,$N$148)*$AB$18 -> 0 | O155: =COUNTIF($D$123:$AA$123,$O$148)*$AB$18 -> 0 | P155: =COUNTIF($D$123:$AA$123,$P$148)*$AB$18 -> 0 | Q155: =COUNTIF($D$123:$AA$123,$Q$148)*$AB$18 -> 0 | R155: =COUNTIF($D$123:$AA$123,$R$148)*$AB$18 -> 0 | S155: =COUNTIF($D$123:$AA$123,$S$148)*$AB$18 -> 0 | T155: =COUNTIF($D$123:$AA$123,$T$148)*$AB$18 -> 0 | U155: =COUNTIF($D$123:$AA$123,$U$148)*$AB$18 -> 0 | V155: =COUNTIF($D$123:$AA$123,$V$148)*$AB$18 -> 0 | W155: =COUNTIF($D$123:$AA$123,$W$148)*$AB$18 -> 0 | X155: =COUNTIF($D$123:$AA$123,$X$148)*$AB$18 -> 0 | Y155: =COUNTIF($D$123:$AA$123,$Y$148)*$AB$18 -> 0 | Z155: =COUNTIF($D$123:$AA$123,$Z$148)*$AB$18 -> 0 | AA155: =COUNTIF($D$123:$AA$123,$AA$148)*$AB$18 -> 0 | AB155: =COUNTIF($D$123:$AA$123,$AB$148)*$AB$18 -> 0 | AC155: =COUNTIF($D$123:$AA$123,$AC$148)*$AB$18 -> 0 | AD155: =COUNTIF($D$123:$AA$123,$AD$148)*$AB$18 -> 0 | AE155: =COUNTIF($D$123:$AA$123,$AE$148)*$AB$18 -> 0 | AF155: =COUNTIF($D$123:$AA$123,$AF$148)*$AB$18 -> 0 | AG155: =COUNTIF($D$123:$AA$123,$AG$148)*$AB$18 -> 0 | AH155: =COUNTIF($D$123:$AA$123,$AH$148)*$AB$18 -> 0 | AI155: =COUNTIF($D$123:$AA$123,$AI$148)*$AB$18 -> 0 | AJ155: =COUNTIF($D$123:$AA$123,$AJ$148)*$AB$18 -> 0 | AK155: =COUNTIF($D$123:$AA$123,$AK$148)*$AB$18 -> 0 | AL155: =COUNTIF($D$123:$AA$123,$AL$148)*$AB$18 -> 0 | AM155: =COUNTIF($D$123:$AA$123,$AM$148)*$AB$18 -> 0 | AN155: =COUNTIF($D$123:$AA$123,$AN$148)*$AB$18 -> 0 | AO155: =COUNTIF($D$123:$AA$123,$AO$148)*$AB$18 -> 0 | AP155: =COUNTIF($D$123:$AA$123,$AP$148)*$AB$18 -> 0 | AQ155: =COUNTIF($D$123:$AA$123,$AQ$148)*$AB$18 -> 0 | AR155: =COUNTIF($D$123:$AA$123,$AR$148)*$AB$18 -> 0 | AS155: =COUNTIF($D$123:$AA$123,$AS$148)*$AB$18 -> 0 | AT155: 10 | AV155: 0 | AW155: 0 | BA155: 0 | BB155: 0 | BC155: 0 | BH155: 0 | BI155: 0 | BJ155: 0 | BO155: 0 | BP155: 0 | BQ155: 0 | BW155: 0 | BX155: 0 | BY155: 0 | CD155: 0 | CE155: 0 | CF155: 0 | CK155: 0 | CL155: 0 | CM155: 0
C156: 11 | D156: =COUNTIF($D$124:$AA$124,$D$148)*$AB$19 -> 0 | E156: =COUNTIF($D$124:$AA$124,$E$148)*$AB$19 -> 0 | F156: =COUNTIF($D$124:$AA$124,$F$148)*$AB$19 -> 0 | G156: =COUNTIF($D$124:$AA$124,$G$148)*$AB$19 -> 0 | H156: =COUNTIF($D$124:$AA$124,$H$148)*$AB$19 -> 0 | I156: =COUNTIF($D$124:$AA$124,$I$148)*$AB$19 -> 0 | J156: =COUNTIF($D$124:$AA$124,$J$148)*$AB$19 -> 0 | K156: =COUNTIF($D$124:$AA$124,$K$148)*$AB$19 -> 0 | L156: =COUNTIF($D$124:$AA$124,$L$148)*$AB$19 -> 0 | M156: =COUNTIF($D$124:$AA$124,$M$148)*$AB$19 -> 0 | N156: =COUNTIF($D$124:$AA$124,$N$148)*$AB$19 -> 0 | O156: =COUNTIF($D$124:$AA$124,$O$148)*$AB$19 -> 0 | P156: =COUNTIF($D$124:$AA$124,$P$148)*$AB$19 -> 0 | Q156: =COUNTIF($D$124:$AA$124,$Q$148)*$AB$19 -> 0 | R156: =COUNTIF($D$124:$AA$124,$R$148)*$AB$19 -> 0 | S156: =COUNTIF($D$124:$AA$124,$S$148)*$AB$19 -> 0 | T156: =COUNTIF($D$124:$AA$124,$T$148)*$AB$19 -> 0 | U156: =COUNTIF($D$124:$AA$124,$U$148)*$AB$19 -> 0 | V156: =COUNTIF($D$124:$AA$124,$V$148)*$AB$19 -> 0 | W156: =COUNTIF($D$124:$AA$124,$W$148)*$AB$19 -> 0 | X156: =COUNTIF($D$124:$AA$124,$X$148)*$AB$19 -> 0 | Y156: =COUNTIF($D$124:$AA$124,$Y$148)*$AB$19 -> 0 | Z156: =COUNTIF($D$124:$AA$124,$Z$148)*$AB$19 -> 0 | AA156: =COUNTIF($D$124:$AA$124,$AA$148)*$AB$19 -> 0 | AB156: =COUNTIF($D$124:$AA$124,$AB$148)*$AB$19 -> 0 | AC156: =COUNTIF($D$124:$AA$124,$AC$148)*$AB$19 -> 0 | AD156: =COUNTIF($D$124:$AA$124,$AD$148)*$AB$19 -> 0 | AE156: =COUNTIF($D$124:$AA$124,$AE$148)*$AB$19 -> 0 | AF156: =COUNTIF($D$124:$AA$124,$AF$148)*$AB$19 -> 0 | AG156: =COUNTIF($D$124:$AA$124,$AG$148)*$AB$19 -> 0 | AH156: =COUNTIF($D$124:$AA$124,$AH$148)*$AB$19 -> 0 | AI156: =COUNTIF($D$124:$AA$124,$AI$148)*$AB$19 -> 0 | AJ156: =COUNTIF($D$124:$AA$124,$AJ$148)*$AB$19 -> 0 | AK156: =COUNTIF($D$124:$AA$124,$AK$148)*$AB$19 -> 0 | AL156: =COUNTIF($D$124:$AA$124,$AL$148)*$AB$19 -> 0 | AM156: =COUNTIF($D$124:$AA$124,$AM$148)*$AB$19 -> 0 | AN156: =COUNTIF($D$124:$AA$124,$AN$148)*$AB$19 -> 0 | AO156: =COUNTIF($D$124:$AA$124,$AO$148)*$AB$19 -> 0 | AP156: =COUNTIF($D$124:$AA$124,$AP$148)*$AB$19 -> 0 | AQ156: =COUNTIF($D$124:$AA$124,$AQ$148)*$AB$19 -> 0 | AR156: =COUNTIF($D$124:$AA$124,$AR$148)*$AB$19 -> 0 | AS156: =COUNTIF($D$124:$AA$124,$AS$148)*$AB$19 -> 0 | AT156: 11 | AV156: 0 | AW156: 0 | BA156: 0 | BB156: 0 | BC156: 0 | BH156: 0 | BI156: 0 | BJ156: 0 | BO156: 0 | BP156: 0 | BQ156: 0 | BW156: 0 | BX156: 0 | BY156: 0 | CD156: 0 | CE156: 0 | CF156: 0 | CH156: =IFERROR($S$44/$S$46*$AV156*$S$54*$CI$147,"") ->  | CK156: 0 | CL156: 0 | CM156: 0
C157: 12 | D157: =COUNTIF($D$125:$AA$125,$D$148)*$AB$20 -> 0 | E157: =COUNTIF($D$125:$AA$125,$E$148)*$AB$20 -> 0 | F157: =COUNTIF($D$125:$AA$125,$F$148)*$AB$20 -> 0 | G157: =COUNTIF($D$125:$AA$125,$G$148)*$AB$20 -> 0 | H157: =COUNTIF($D$125:$AA$125,$H$148)*$AB$20 -> 0 | I157: =COUNTIF($D$125:$AA$125,$I$148)*$AB$20 -> 0 | J157: =COUNTIF($D$125:$AA$125,$J$148)*$AB$20 -> 0 | K157: =COUNTIF($D$125:$AA$125,$K$148)*$AB$20 -> 0 | L157: =COUNTIF($D$125:$AA$125,$L$148)*$AB$20 -> 0 | M157: =COUNTIF($D$125:$AA$125,$M$148)*$AB$20 -> 0 | N157: =COUNTIF($D$125:$AA$125,$N$148)*$AB$20 -> 0 | O157: =COUNTIF($D$125:$AA$125,$O$148)*$AB$20 -> 0 | P157: =COUNTIF($D$125:$AA$125,$P$148)*$AB$20 -> 0 | Q157: =COUNTIF($D$125:$AA$125,$Q$148)*$AB$20 -> 0 | R157: =COUNTIF($D$125:$AA$125,$R$148)*$AB$20 -> 0 | S157: =COUNTIF($D$125:$AA$125,$S$148)*$AB$20 -> 0 | T157: =COUNTIF($D$125:$AA$125,$T$148)*$AB$20 -> 0 | U157: =COUNTIF($D$125:$AA$125,$U$148)*$AB$20 -> 0 | V157: =COUNTIF($D$125:$AA$125,$V$148)*$AB$20 -> 0 | W157: =COUNTIF($D$125:$AA$125,$W$148)*$AB$20 -> 0 | X157: =COUNTIF($D$125:$AA$125,$X$148)*$AB$20 -> 0 | Y157: =COUNTIF($D$125:$AA$125,$Y$148)*$AB$20 -> 0 | Z157: =COUNTIF($D$125:$AA$125,$Z$148)*$AB$20 -> 0 | AA157: =COUNTIF($D$125:$AA$125,$AA$148)*$AB$20 -> 0 | AB157: =COUNTIF($D$125:$AA$125,$AB$148)*$AB$20 -> 0 | AC157: =COUNTIF($D$125:$AA$125,$AC$148)*$AB$20 -> 0 | AD157: =COUNTIF($D$125:$AA$125,$AD$148)*$AB$20 -> 0 | AE157: =COUNTIF($D$125:$AA$125,$AE$148)*$AB$20 -> 0 | AF157: =COUNTIF($D$125:$AA$125,$AF$148)*$AB$20 -> 0 | AG157: =COUNTIF($D$125:$AA$125,$AG$148)*$AB$20 -> 0 | AH157: =COUNTIF($D$125:$AA$125,$AH$148)*$AB$20 -> 0 | AI157: =COUNTIF($D$125:$AA$125,$AI$148)*$AB$20 -> 0 | AJ157: =COUNTIF($D$125:$AA$125,$AJ$148)*$AB$20 -> 0 | AK157: =COUNTIF($D$125:$AA$125,$AK$148)*$AB$20 -> 0 | AL157: =COUNTIF($D$125:$AA$125,$AL$148)*$AB$20 -> 0 | AM157: =COUNTIF($D$125:$AA$125,$AM$148)*$AB$20 -> 0 | AN157: =COUNTIF($D$125:$AA$125,$AN$148)*$AB$20 -> 0 | AO157: =COUNTIF($D$125:$AA$125,$AO$148)*$AB$20 -> 0 | AP157: =COUNTIF($D$125:$AA$125,$AP$148)*$AB$20 -> 0 | AQ157: =COUNTIF($D$125:$AA$125,$AQ$148)*$AB$20 -> 0 | AR157: =COUNTIF($D$125:$AA$125,$AR$148)*$AB$20 -> 0 | AS157: =COUNTIF($D$125:$AA$125,$AS$148)*$AB$20 -> 0 | AT157: 12 | AV157: 0 | AW157: 0 | BA157: 0 | BB157: 0 | BC157: 0 | BH157: 0 | BI157: 0 | BJ157: 0 | BO157: 0 | BP157: 0 | BQ157: 0 | BW157: 0 | BX157: 0 | BY157: 0 | CD157: 0 | CE157: 0 | CF157: 0 | CK157: 0 | CL157: 0 | CM157: 0
C158: 1 | D158: =COUNTIF($D$126:$AA$126,$D$148)*$AB$21 -> 0 | E158: =COUNTIF($D$126:$AA$126,$E$148)*$AB$21 -> 0 | F158: =COUNTIF($D$126:$AA$126,$F$148)*$AB$21 -> 0 | G158: =COUNTIF($D$126:$AA$126,$G$148)*$AB$21 -> 0 | H158: =COUNTIF($D$126:$AA$126,$H$148)*$AB$21 -> 0 | I158: =COUNTIF($D$126:$AA$126,$I$148)*$AB$21 -> 0 | J158: =COUNTIF($D$126:$AA$126,$J$148)*$AB$21 -> 0 | K158: =COUNTIF($D$126:$AA$126,$K$148)*$AB$21 -> 0 | L158: =COUNTIF($D$126:$AA$126,$L$148)*$AB$21 -> 0 | M158: =COUNTIF($D$126:$AA$126,$M$148)*$AB$21 -> 0 | N158: =COUNTIF($D$126:$AA$126,$N$148)*$AB$21 -> 0 | O158: =COUNTIF($D$126:$AA$126,$O$148)*$AB$21 -> 0 | P158: =COUNTIF($D$126:$AA$126,$P$148)*$AB$21 -> 0 | Q158: =COUNTIF($D$126:$AA$126,$Q$148)*$AB$21 -> 0 | R158: =COUNTIF($D$126:$AA$126,$R$148)*$AB$21 -> 0 | S158: =COUNTIF($D$126:$AA$126,$S$148)*$AB$21 -> 0 | T158: =COUNTIF($D$126:$AA$126,$T$148)*$AB$21 -> 0 | U158: =COUNTIF($D$126:$AA$126,$U$148)*$AB$21 -> 0 | V158: =COUNTIF($D$126:$AA$126,$V$148)*$AB$21 -> 0 | W158: =COUNTIF($D$126:$AA$126,$W$148)*$AB$21 -> 0 | X158: =COUNTIF($D$126:$AA$126,$X$148)*$AB$21 -> 0 | Y158: =COUNTIF($D$126:$AA$126,$Y$148)*$AB$21 -> 0 | Z158: =COUNTIF($D$126:$AA$126,$Z$148)*$AB$21 -> 0 | AA158: =COUNTIF($D$126:$AA$126,$AA$148)*$AB$21 -> 0 | AB158: =COUNTIF($D$126:$AA$126,$AB$148)*$AB$21 -> 0 | AC158: =COUNTIF($D$126:$AA$126,$AC$148)*$AB$21 -> 0 | AD158: =COUNTIF($D$126:$AA$126,$AD$148)*$AB$21 -> 0 | AE158: =COUNTIF($D$126:$AA$126,$AE$148)*$AB$21 -> 0 | AF158: =COUNTIF($D$126:$AA$126,$AF$148)*$AB$21 -> 0 | AG158: =COUNTIF($D$126:$AA$126,$AG$148)*$AB$21 -> 0 | AH158: =COUNTIF($D$126:$AA$126,$AH$148)*$AB$21 -> 0 | AI158: =COUNTIF($D$126:$AA$126,$AI$148)*$AB$21 -> 0 | AJ158: =COUNTIF($D$126:$AA$126,$AJ$148)*$AB$21 -> 0 | AK158: =COUNTIF($D$126:$AA$126,$AK$148)*$AB$21 -> 0 | AL158: =COUNTIF($D$126:$AA$126,$AL$148)*$AB$21 -> 0 | AM158: =COUNTIF($D$126:$AA$126,$AM$148)*$AB$21 -> 0 | AN158: =COUNTIF($D$126:$AA$126,$AN$148)*$AB$21 -> 0 | AO158: =COUNTIF($D$126:$AA$126,$AO$148)*$AB$21 -> 0 | AP158: =COUNTIF($D$126:$AA$126,$AP$148)*$AB$21 -> 0 | AQ158: =COUNTIF($D$126:$AA$126,$AQ$148)*$AB$21 -> 0 | AR158: =COUNTIF($D$126:$AA$126,$AR$148)*$AB$21 -> 0 | AS158: =COUNTIF($D$126:$AA$126,$AS$148)*$AB$21 -> 0 | AT158: 1 | AV158: 0 | AW158: 0 | BA158: 0 | BB158: 0 | BC158: 0 | BH158: 0 | BI158: 0 | BJ158: 0 | BO158: 0 | BP158: 0 | BQ158: 0 | BW158: 0 | BX158: 0 | BY158: 0 | CD158: 0 | CE158: 0 | CF158: 0 | CK158: 0 | CL158: 0 | CM158: 0
C159: 2 | D159: =COUNTIF($D$127:$AA$127,$D$148)*$AB$22 -> 0 | E159: =COUNTIF($D$127:$AA$127,$E$148)*$AB$22 -> 0 | F159: =COUNTIF($D$127:$AA$127,$F$148)*$AB$22 -> 0 | G159: =COUNTIF($D$127:$AA$127,$G$148)*$AB$22 -> 0 | H159: =COUNTIF($D$127:$AA$127,$H$148)*$AB$22 -> 0 | I159: =COUNTIF($D$127:$AA$127,$I$148)*$AB$22 -> 0 | J159: =COUNTIF($D$127:$AA$127,$J$148)*$AB$22 -> 0 | K159: =COUNTIF($D$127:$AA$127,$K$148)*$AB$22 -> 0 | L159: =COUNTIF($D$127:$AA$127,$L$148)*$AB$22 -> 0 | M159: =COUNTIF($D$127:$AA$127,$M$148)*$AB$22 -> 0 | N159: =COUNTIF($D$127:$AA$127,$N$148)*$AB$22 -> 0 | O159: =COUNTIF($D$127:$AA$127,$O$148)*$AB$22 -> 0 | P159: =COUNTIF($D$127:$AA$127,$P$148)*$AB$22 -> 0 | Q159: =COUNTIF($D$127:$AA$127,$Q$148)*$AB$22 -> 0 | R159: =COUNTIF($D$127:$AA$127,$R$148)*$AB$22 -> 0 | S159: =COUNTIF($D$127:$AA$127,$S$148)*$AB$22 -> 0 | T159: =COUNTIF($D$127:$AA$127,$T$148)*$AB$22 -> 0 | U159: =COUNTIF($D$127:$AA$127,$U$148)*$AB$22 -> 0 | V159: =COUNTIF($D$127:$AA$127,$V$148)*$AB$22 -> 0 | W159: =COUNTIF($D$127:$AA$127,$W$148)*$AB$22 -> 0 | X159: =COUNTIF($D$127:$AA$127,$X$148)*$AB$22 -> 0 | Y159: =COUNTIF($D$127:$AA$127,$Y$148)*$AB$22 -> 0 | Z159: =COUNTIF($D$127:$AA$127,$Z$148)*$AB$22 -> 0 | AA159: =COUNTIF($D$127:$AA$127,$AA$148)*$AB$22 -> 0 | AB159: =COUNTIF($D$127:$AA$127,$AB$148)*$AB$22 -> 0 | AC159: =COUNTIF($D$127:$AA$127,$AC$148)*$AB$22 -> 0 | AD159: =COUNTIF($D$127:$AA$127,$AD$148)*$AB$22 -> 0 | AE159: =COUNTIF($D$127:$AA$127,$AE$148)*$AB$22 -> 0 | AF159: =COUNTIF($D$127:$AA$127,$AF$148)*$AB$22 -> 0 | AG159: =COUNTIF($D$127:$AA$127,$AG$148)*$AB$22 -> 0 | AH159: =COUNTIF($D$127:$AA$127,$AH$148)*$AB$22 -> 0 | AI159: =COUNTIF($D$127:$AA$127,$AI$148)*$AB$22 -> 0 | AJ159: =COUNTIF($D$127:$AA$127,$AJ$148)*$AB$22 -> 0 | AK159: =COUNTIF($D$127:$AA$127,$AK$148)*$AB$22 -> 0 | AL159: =COUNTIF($D$127:$AA$127,$AL$148)*$AB$22 -> 0 | AM159: =COUNTIF($D$127:$AA$127,$AM$148)*$AB$22 -> 0 | AN159: =COUNTIF($D$127:$AA$127,$AN$148)*$AB$22 -> 0 | AO159: =COUNTIF($D$127:$AA$127,$AO$148)*$AB$22 -> 0 | AP159: =COUNTIF($D$127:$AA$127,$AP$148)*$AB$22 -> 0 | AQ159: =COUNTIF($D$127:$AA$127,$AQ$148)*$AB$22 -> 0 | AR159: =COUNTIF($D$127:$AA$127,$AR$148)*$AB$22 -> 0 | AS159: =COUNTIF($D$127:$AA$127,$AS$148)*$AB$22 -> 0 | AT159: 2 | AV159: 0 | AW159: 0 | BA159: 0 | BB159: 0 | BC159: 0 | BH159: 0 | BI159: 0 | BJ159: 0 | BO159: 0 | BP159: 0 | BQ159: 0 | BW159: 0 | BX159: 0 | BY159: 0 | CA159: =IFERROR($R$44/$R$46*$AV159*$R$54*$CB$147,"") ->  | CD159: 0 | CE159: 0 | CF159: 0 | CK159: 0 | CL159: 0 | CM159: 0
C160: 3 | D160: =COUNTIF($D$128:$AA$128,$D$148)*$AB$23 -> 0 | E160: =COUNTIF($D$128:$AA$128,$E$148)*$AB$23 -> 0 | F160: =COUNTIF($D$128:$AA$128,$F$148)*$AB$23 -> 0 | G160: =COUNTIF($D$128:$AA$128,$G$148)*$AB$23 -> 0 | H160: =COUNTIF($D$128:$AA$128,$H$148)*$AB$23 -> 0 | I160: =COUNTIF($D$128:$AA$128,$I$148)*$AB$23 -> 0 | J160: =COUNTIF($D$128:$AA$128,$J$148)*$AB$23 -> 0 | K160: =COUNTIF($D$128:$AA$128,$K$148)*$AB$23 -> 0 | L160: =COUNTIF($D$128:$AA$128,$L$148)*$AB$23 -> 0 | M160: =COUNTIF($D$128:$AA$128,$M$148)*$AB$23 -> 0 | N160: =COUNTIF($D$128:$AA$128,$N$148)*$AB$23 -> 0 | O160: =COUNTIF($D$128:$AA$128,$O$148)*$AB$23 -> 0 | P160: =COUNTIF($D$128:$AA$128,$P$148)*$AB$23 -> 0 | Q160: =COUNTIF($D$128:$AA$128,$Q$148)*$AB$23 -> 0 | R160: =COUNTIF($D$128:$AA$128,$R$148)*$AB$23 -> 0 | S160: =COUNTIF($D$128:$AA$128,$S$148)*$AB$23 -> 0 | T160: =COUNTIF($D$128:$AA$128,$T$148)*$AB$23 -> 0 | U160: =COUNTIF($D$128:$AA$128,$U$148)*$AB$23 -> 0 | V160: =COUNTIF($D$128:$AA$128,$V$148)*$AB$23 -> 0 | W160: =COUNTIF($D$128:$AA$128,$W$148)*$AB$23 -> 0 | X160: =COUNTIF($D$128:$AA$128,$X$148)*$AB$23 -> 0 | Y160: =COUNTIF($D$128:$AA$128,$Y$148)*$AB$23 -> 0 | Z160: =COUNTIF($D$128:$AA$128,$Z$148)*$AB$23 -> 0 | AA160: =COUNTIF($D$128:$AA$128,$AA$148)*$AB$23 -> 0 | AB160: =COUNTIF($D$128:$AA$128,$AB$148)*$AB$23 -> 0 | AC160: =COUNTIF($D$128:$AA$128,$AC$148)*$AB$23 -> 0 | AD160: =COUNTIF($D$128:$AA$128,$AD$148)*$AB$23 -> 0 | AE160: =COUNTIF($D$128:$AA$128,$AE$148)*$AB$23 -> 0 | AF160: =COUNTIF($D$128:$AA$128,$AF$148)*$AB$23 -> 0 | AG160: =COUNTIF($D$128:$AA$128,$AG$148)*$AB$23 -> 0 | AH160: =COUNTIF($D$128:$AA$128,$AH$148)*$AB$23 -> 0 | AI160: =COUNTIF($D$128:$AA$128,$AI$148)*$AB$23 -> 0 | AJ160: =COUNTIF($D$128:$AA$128,$AJ$148)*$AB$23 -> 0 | AK160: =COUNTIF($D$128:$AA$128,$AK$148)*$AB$23 -> 0 | AL160: =COUNTIF($D$128:$AA$128,$AL$148)*$AB$23 -> 0 | AM160: =COUNTIF($D$128:$AA$128,$AM$148)*$AB$23 -> 0 | AN160: =COUNTIF($D$128:$AA$128,$AN$148)*$AB$23 -> 0 | AO160: =COUNTIF($D$128:$AA$128,$AO$148)*$AB$23 -> 0 | AP160: =COUNTIF($D$128:$AA$128,$AP$148)*$AB$23 -> 0 | AQ160: =COUNTIF($D$128:$AA$128,$AQ$148)*$AB$23 -> 0 | AR160: =COUNTIF($D$128:$AA$128,$AR$148)*$AB$23 -> 0 | AS160: =COUNTIF($D$128:$AA$128,$AS$148)*$AB$23 -> 0 | AT160: 3 | AV160: 0 | AW160: 0 | BA160: 0 | BB160: 0 | BC160: 0 | BH160: 0 | BI160: 0 | BJ160: 0 | BO160: 0 | BP160: 0 | BQ160: 0 | BT160: =IFERROR($Q$44/$Q$46*$AV160*$Q$54*$BU$147,"") ->  | BW160: 0 | BX160: 0 | BY160: 0 | CD160: 0 | CE160: 0 | CF160: 0 | CK160: 0 | CL160: 0 | CM160: 0
C161: 冷却運転時間 | D161: =SUM($D$149:$D$160) -> 0 | E161: =SUM($E$149:$E$160) -> 0 | F161: =SUM($F$149:$F$160) -> 0 | G161: =SUM($G$149:$G$160) -> 0 | H161: =SUM($H$149:$H$160) -> 0 | I161: =SUM($I$149:$I$160) -> 0 | J161: =SUM($J$149:$J$160) -> 0 | K161: =SUM($K$149:$K$160) -> 0 | L161: =SUM($L$149:$L$160) -> 0 | M161: =SUM($M$149:$M$160) -> 0 | N161: =SUM($N$149:$N$160) -> 0 | O161: =SUM($O$149:$O$160) -> 0 | P161: =SUM($P$149:$P$160) -> 0 | Q161: =SUM($Q$149:$Q$160) -> 0 | R161: =SUM($R$149:$R$160) -> 0 | S161: =SUM($S$149:$S$160) -> 0 | T161: =SUM($T$149:$T$160) -> 0 | U161: =SUM($U$149:$U$160) -> 0 | V161: =SUM($V$149:$V$160) -> 0 | W161: =SUM($W$149:$W$160) -> 0 | X161: =SUM($X$149:$X$160) -> 0 | Y161: =SUM($Y$149:$Y$160) -> 0 | Z161: =SUM($Z$149:$Z$160) -> 0 | AA161: =SUM($AA$149:$AA$160) -> 0 | AB161: =SUM($AB$149:$AB$160) -> 0 | AC161: =SUM($AC$149:$AC$160) -> 0 | AD161: =SUM($AD$149:$AD$160) -> 0 | AE161: =SUM($AE$149:$AE$160) -> 0 | AF161: =SUM($AF$149:$AF$160) -> 0 | AG161: =SUM($AG$149:$AG$160) -> 0 | AH161: =SUM($AH$149:$AH$160) -> 0 | AI161: =SUM($AI$149:$AI$160) -> 0 | AJ161: =SUM($AJ$149:$AJ$160) -> 0 | AK161: =SUM($AK$149:$AK$160) -> 0 | AL161: =SUM($AL$149:$AL$160) -> 0 | AM161: =SUM($AM$149:$AM$160) -> 0 | AN161: =SUM($AN$149:$AN$160) -> 0 | AO161: =SUM($AO$149:$AO$160) -> 0 | AP161: =SUM($AP$149:$AP$160) -> 0 | AQ161: =SUM($AQ$149:$AQ$160) -> 0 | AR161: =SUM($AR$149:$AR$160) -> 0 | AS161: =SUM($AS$149:$AS$160) -> 0 | AT161: =C161 -> 冷却運転時間 | AV161: =SUM($AV$149:$AV$160) -> 0 | AW161: =SUM($AW$149:$AW$160) -> 0 | AX161: =SUM($AX$149:$AX$160) -> 0 | AY161: =SUM(AY149:AY160) -> 0 | AZ161: =SUM(AZ149:AZ160) -> 0 | BA161: =SUM($BA$149:$BA$160) -> 0 | BB161: =SUM(BB149:BB160) -> 0 | BC161: =SUM(BC149:BC160) -> 0 | BD161: =SUM(BD149:BD160) -> 0 | BE161: =SUM($BE$149:$BE$160) -> 0 | BF161: =SUM(BF149:BF160) -> 0 | BG161: =SUM(BG149:BG160) -> 0 | BH161: =SUM($BI$149:$BI$160) -> 0 | BI161: =SUM(BI149:BI160) -> 0 | BJ161: =SUM(BJ149:BJ160) -> 0 | BK161: =SUM(BK149:BK160) -> 0 | BL161: =SUM($BL$149:$BL$160) -> 0 | BM161: =SUM(BM149:BM160) -> 0 | BN161: =SUM(BN149:BN160) -> 0 | BO161: =SUM($BO$149:$BO$160) -> 0 | BP161: =SUM(BP149:BP160) -> 0 | BQ161: =SUM(BQ149:BQ160) -> 0 | BR161: =SUM(BR149:BR160) -> 0 | BT161: =SUM($BT$149:$BT$160) -> 0 | BU161: =SUM(BU149:BU160) -> 0 | BV161: =SUM(BV149:BV160) -> 0 | BW161: =SUM($BW$149:$BW$160) -> 0 | BX161: =SUM(BX149:BX160) -> 0 | BY161: =SUM(BY149:BY160) -> 0 | BZ161: =SUM(BZ149:BZ160) -> 0 | CA161: =SUM($CA$149:$CA$160) -> 0 | CB161: =SUM(CB149:CB160) -> 0 | CC161: =SUM(CC149:CC160) -> 0 | CD161: =SUM($CD$149:$CD$160) -> 0 | CE161: =SUM(CE149:CE160) -> 0 | CF161: =SUM(CF149:CF160) -> 0 | CG161: =SUM(CG149:CG160) -> 0 | CH161: =SUM($CH$149:$CH$160) -> 0 | CI161: =SUM(CI149:CI160) -> 0 | CJ161: =SUM(CJ149:CJ160) -> 0 | CK161: =SUM($CK$149:$CK$160) -> 0 | CL161: =SUM(CL149:CL160) -> 0 | CM161: =SUM(CM149:CM160) -> 0 | CN161: =SUM(CN149:CN160) -> 0
B162: εc | C162: 冷却時消費電力比 | D162: =D$163/D$164 -> 0 | E162: =E$163/E$164 -> 0 | F162: 0 | G162: 0 | H162: 0 | I162: 0 | J162: 0 | K162: 0 | L162: 0 | M162: 0 | N162: 0 | O162: 0 | P162: 0 | Q162: 0 | R162: 0 | S162: 0 | T162: 0 | U162: 0 | V162: 0 | W162: 0 | X162: 0 | Y162: 0 | Z162: 0 | AA162: 0 | AB162: 0 | AC162: 0 | AD162: 0.955566173 | AE162: 0.8214766865 | AF162: 0.7990071005 | AG162: 0.7989517753 | AH162: 0.8077100773 | AI162: 0.8212428141 | AJ162: 0.837968095 | AK162: 0.8571771442 | AL162: 0.8785407633 | AM162: 0.9019214535 | AN162: 0.9272918862 | AO162: 0.9546964702 | AP162: 0.9842325938 | AQ162: 0.9434674315 | AR162: 0.9102659797 | AS162: =AS$163/AS$164 -> 0.8833922261 | AT162: =C162 -> 冷却時消費電力比 | AU162: εc | AX162: kWh | AY162: GJ | AZ162: 千Nm3 | BA162: kWh | BB162: GJ | BC162: 千kWh | BD162: GJ
B163: αc | C163: 冷却空調負荷率 | D163: =IF((1/13)*(D$148-27)+1<0,0,IF((1/13)*(D$148-27)+1>1,1,(1/13)*(D$148-27)+1)) -> 0 | E163: =IF((1/13)*(E$148-27)+1<0,0,IF((1/13)*(E$148-27)+1>1,1,(1/13)*(E$148-27)+1)) -> 0 | F163: 0 | G163: 0 | H163: 0 | I163: 0 | J163: 0 | K163: 0 | L163: 0 | M163: 0 | N163: 0 | O163: 0 | P163: 0 | Q163: 0 | R163: 0 | S163: 0 | T163: 0 | U163: 0 | V163: 0 | W163: 0 | X163: 0 | Y163: 0 | Z163: 0 | AA163: 0 | AB163: 0 | AC163: 0 | AD163: 0.07692307692 | AE163: 0.1538461538 | AF163: 0.2307692308 | AG163: 0.3076923077 | AH163: 0.3846153846 | AI163: 0.4615384615 | AJ163: 0.5384615385 | AK163: 0.6153846154 | AL163: 0.6923076923 | AM163: 0.7692307692 | AN163: 0.8461538462 | AO163: 0.9230769231 | AP163: 1 | AQ163: 1 | AR163: 1 | AS163: =IF((1/13)*(AS$148-27)+1<0,0,IF((1/13)*(AS$148-27)+1>1,1,(1/13)*(AS$148-27)+1)) -> 1 | AT163: 冷却空調負荷率 | AU163: αc
B164: βc | C164: 冷却COP比 | D164: =-2.62/1000*D$148*D$148+0.188*D$148-2.15 -> -4.53502 | E164: =-2.62/1000*E$148*E$148+0.188*E$148-2.15 -> -4.292 | F164: -4.05422 | G164: -3.82168 | H164: -3.59438 | I164: -3.37232 | J164: -3.1555 | K164: -2.94392 | L164: -2.73758 | M164: =-2.62/1000*M$148*M$148+0.188*M$148-2.15 -> -2.53648 | N164: -2.34062 | O164: -2.15 | P164: -1.96462 | Q164: -1.78448 | R164: -1.60958 | S164: =-2.62/1000*S$148*S$148+0.188*S$148-2.15 -> -1.43992 | T164: -1.2755 | U164: -1.11632 | V164: -0.96238 | W164: -0.81368 | X164: -0.67022 | Y164: -0.532 | Z164: =-2.62/1000*Z$148*Z$148+0.188*Z$148-2.15 -> -0.39902 | AA164: -0.27128 | AB164: -0.14878 | AC164: -0.03152 | AD164: 0.0805 | AE164: 0.18728 | AF164: 0.28882 | AG164: 0.38512 | AH164: 0.47618 | AI164: 0.562 | AJ164: 0.64258 | AK164: 0.71792 | AL164: 0.78802 | AM164: 0.85288 | AN164: 0.9125 | AO164: 0.96688 | AP164: 1.01602 | AQ164: 1.05992 | AR164: 1.09858 | AS164: =-2.62/1000*AS$148*AS$148+0.188*AS$148-2.15 -> 1.132 | AT164: 冷却COP比 | AU164: βc
B165: Tc1 | C165: 冷却水入口温度 | D165: =(18/13)*(D$148-27)+32 -> -20.61538462 | E165: =(18/13)*(E$148-27)+32 -> -19.23076923 | F165: -17.84615385 | G165: -16.46153846 | H165: -15.07692308 | I165: -13.69230769 | J165: -12.30769231 | K165: -10.92307692 | L165: -9.538461538 | M165: -8.153846154 | N165: -6.769230769 | O165: -5.384615385 | P165: -4 | Q165: -2.615384615 | R165: -1.230769231 | S165: 0.1538461538 | T165: 1.538461538 | U165: 2.923076923 | V165: 4.307692308 | W165: 5.692307692 | X165: 7.076923077 | Y165: 8.461538462 | Z165: 9.846153846 | AA165: 11.23076923 | AB165: 12.61538462 | AC165: 14 | AD165: 15.38461538 | AE165: 16.76923077 | AF165: 18.15384615 | AG165: 19.53846154 | AH165: 20.92307692 | AI165: 22.30769231 | AJ165: 23.69230769 | AK165: 25.07692308 | AL165: 26.46153846 | AM165: 27.84615385 | AN165: 29.23076923 | AO165: 30.61538462 | AP165: 32 | AQ165: 33.38461538 | AR165: 34.76923077 | AS165: =(18/13)*(AS$148-27)+32 -> 36.15384615 | AT165: 冷却水入口温度 | AU165: Tc1
C166: Σ | D166: =D161*D162 -> 0 | E166: =E161*E162 -> 0 | F166: 0 | G166: 0 | H166: 0 | I166: 0 | J166: 0 | K166: 0 | L166: 0 | M166: 0 | N166: 0 | O166: 0 | P166: 0 | Q166: 0 | R166: 0 | S166: 0 | T166: 0 | U166: 0 | V166: 0 | W166: 0 | X166: 0 | Y166: 0 | Z166: 0 | AA166: 0 | AB166: 0 | AC166: 0 | AD166: 0 | AE166: 0 | AF166: 0 | AG166: 0 | AH166: 0 | AI166: 0 | AJ166: 0 | AK166: 0 | AL166: 0 | AM166: 0 | AN166: 0 | AO166: 0 | AP166: 0 | AQ166: 0 | AR166: 0 | AS166: =AS161*AS162 -> 0 | AT166: =SUM(D166:AS166) -> 0 | AU166: Σ
C168: αc^0.6 | D168: =D163^0.6 -> 0 | E168: =E163^0.6 -> 0 | F168: 0 | G168: 0 | H168: 0 | I168: 0 | J168: =J163^0.6 -> 0 | K168: 0 | L168: 0 | M168: 0 | N168: 0 | O168: 0 | P168: 0 | Q168: 0 | R168: 0 | S168: 0 | T168: 0 | U168: 0 | V168: 0 | W168: 0 | X168: 0 | Y168: 0 | Z168: 0 | AA168: 0 | AB168: 0 | AC168: 0 | AD168: 0.2146021105 | AE168: 0.325275974 | AF168: 0.4148649467 | AG168: 0.4930261825 | AH168: 0.56365841 | AI168: 0.6288176726 | AJ168: 0.6897517525 | AK168: 0.7472879526 | AL168: 0.8020094661 | AM168: =AM163^0.6 -> 0.8543463899 | AN168: 0.9046271123 | AO168: 0.9531093637 | AP168: 1 | AQ168: 1 | AR168: 1 | AS168: =AS163^0.6 -> 1 | AT168: αc^0.6
C169: Σ | D169: =D$168*D$161 -> 0 | E169: =E$168*E$161 -> 0 | F169: 0 | G169: 0 | H169: 0 | I169: 0 | J169: 0 | K169: 0 | L169: 0 | M169: 0 | N169: 0 | O169: 0 | P169: 0 | Q169: 0 | R169: 0 | S169: 0 | T169: 0 | U169: 0 | V169: 0 | W169: 0 | X169: 0 | Y169: 0 | Z169: 0 | AA169: 0 | AB169: 0 | AC169: 0 | AD169: 0 | AE169: 0 | AF169: 0 | AG169: 0 | AH169: 0 | AI169: 0 | AJ169: 0 | AK169: 0 | AL169: 0 | AM169: 0 | AN169: 0 | AO169: 0 | AP169: 0 | AQ169: 0 | AR169: 0 | AS169: =AS$168*AS$161 -> 0 | AT169: =SUM(D169:AS169) -> 0
C171: 暖房期間中 外気湿球温度(Tw)が発生する時間[hour]
D172: 外気湿球温度(Tw) | AV172: 共通 | AW172: 共通 | AX172: 前1 | BE172: 前2 | BL172: 前3 | BT172: Rw= | BU172: =$Q$33/$Q$47 ->  | BV172: 後1 | CA172: Rw= | CB172: =$R$33/$R$47 ->  | CC172: 後2 | CH172: Rw= | CI172: =$S$33/$S$47 ->  | CJ172: 後3
C173: 月 | D173: -6 | E173: -5 | F173: -4 | G173: -3 | H173: -2 | I173: -1 | J173: 0 | K173: 1 | L173: 2 | M173: 3 | N173: 4 | O173: 5 | P173: 6 | Q173: 7 | R173: 8 | S173: 9 | T173: 10 | U173: 11 | V173: 12 | W173: 13 | X173: 14 | Y173: 15 | Z173: 16 | AA173: 17 | AB173: 18 | AC173: 19 | AD173: 20 | AE173: 21 | AF173: 22 | AG173: 23 | AH173: 24 | AI173: 25 | AJ173: 26 | AK173: 27 | AL173: 28 | AM173: 29 | AN173: 30 | AO173: 31 | AP173: 32 | AQ173: 33 | AR173: 34 | AS173: 35 | AT173: 月 | AV173: EwwのΣ | AW173: EaxwのΣ | AX173: Eww | AY173: Eww’ | AZ173: Eww’’ | BA173: Eaxw | BB173: Eaxw’ | BC173: Eaxw’’ | BD173: Ew | BE173: Eww | BF173: Eww’ | BG173: Eww’’ | BH173: Eaxw | BI173: Eaxw’ | BJ173: Eaxw’’ | BK173: Ew | BL173: Eww | BM173: Eww’ | BN173: Eww’’ | BO173: Eaxw | BP173: Eaxw’ | BQ173: Eaxw’’ | BR173: Ew | BT173: Eww | BU173: Eww’ | BV173: Eww’’ | BW173: Eaxw | BX173: Eaxw’ | BY173: Eaxw’’ | BZ173: Ew | CA173: Eww | CB173: Eww’ | CC173: Eww’’ | CD173: Eaxw | CE173: Eaxw’ | CF173: Eaxw’’ | CG173: Ew | CH173: Eww | CI173: Eww’ | CJ173: Eww’’ | CK173: Eaxw | CL173: Eaxw’ | CM173: Eaxw’’ | CN173: Ew
C174: 4 | D174: =COUNTIF($D$133:$AA$133,D$173)*$AB$12 -> 0 | E174: 0 | F174: 0 | G174: 0 | H174: 0 | I174: 0 | J174: 0 | K174: 0 | L174: 0 | M174: 0 | N174: 0 | O174: 0 | P174: 0 | Q174: 0 | R174: 0 | S174: 0 | T174: 0 | U174: 0 | V174: 0 | W174: 0 | X174: 0 | Y174: 0 | Z174: 0 | AA174: 0 | AB174: 0 | AC174: 0 | AD174: 0 | AE174: 0 | AF174: 0 | AG174: 0 | AH174: 0 | AI174: 0 | AJ174: 0 | AK174: 0 | AL174: 0 | AM174: 0 | AN174: 0 | AO174: 0 | AP174: 0 | AQ174: 0 | AR174: 0 | AS174: 0 | AT174: 4 | AV174: =SUMPRODUCT($D174:$AS174,$D$187:$AS$187) -> 0 | AW174: =SUMPRODUCT($D174:$AS174,$D$190:$AS$190) -> 0 | AX174: =IFERROR($Q$33/$Q$35*$AV174,"") ->  | AY174: =IFERROR($AX174*3.6/1000,"") ->  | AZ174: =IFERROR($AY174/$AZ$146,"") ->  | BA174: =IFERROR($Q$38*$AW174,"") -> 0 | BB174: =IFERROR($BA174*2.4*3.6/1000,"") -> 0 | BC174: =IFERROR($BA174/1000,"") -> 0 | BD174: =IFERROR($AY174+$BB174,"") ->  | BE174: =IFERROR($R$33/$R$35*$AV174,"") ->  | BF174: =IFERROR($BE174*3.6/1000,"") ->  | BG174: =IFERROR($BF174/$AZ$146,"") ->  | BH174: =IFERROR($R$38*$AW174,"") -> 0 | BI174: =IFERROR($BH174*2.4*3.6/1000,"") -> 0 | BJ174: =IFERROR($BH174/1000,"") -> 0 | BK174: =IFERROR($BF174+$BI174,"") ->  | BL174: =IFERROR($S$33/$S$35*$AV174,"") ->  | BM174: =IFERROR($BL174*3.6/1000,"") ->  | BN174: =IFERROR($BM174/$AZ$146,"") ->  | BO174: =IFERROR($S$38*$AW174,"") -> 0 | BP174: =IFERROR($BO174*2.4*3.6/1000,"") -> 0 | BQ174: =IFERROR($BO174/1000,"") -> 0 | BR174: =IFERROR($BM174+$BP174,"") ->  | BT174: =IFERROR($Q$47/$Q$49*$AV174*$BU$172,"") ->  | BU174: =IFERROR($BT174*3.6/1000,"") ->  | BV174: =IFERROR($BU174/$BV$146,"") ->  | BW174: =IFERROR($Q$52*$AW174,"") -> 0 | BX174: =IFERROR($BW174*2.4*3.6/1000,"") -> 0 | BY174: =IFERROR($BW174/1000,"") -> 0 | BZ174: =IFERROR($BU174+$BX174,"") ->  | CA174: =IFERROR($R$47/$R$49*$AV174*$CB$172,"") ->  | CB174: =IFERROR($CA174*3.6/1000,"") ->  | CC174: =IFERROR($CB174/$BV$146,"") ->  | CD174: =IFERROR($R$52*$AW174,"") -> 0 | CE174: =IFERROR($CD174*2.4*3.6/1000,"") -> 0 | CF174: =IFERROR($CD174/1000,"") -> 0 | CG174: =IFERROR($CB174+$CE174,"") ->  | CH174: =IFERROR($S$47/$S$49*$AV174*$CI$172,"") ->  | CI174: =IFERROR($CH174*3.6/1000,"") ->  | CJ174: =IFERROR($CI174/$BV$146,"") ->  | CK174: =IFERROR($S$52*$AW174,"") -> 0 | CL174: =IFERROR($CK174*2.4*3.6/1000,"") -> 0 | CM174: =IFERROR($CK174/1000,"") -> 0 | CN174: =IFERROR($CI174+$CL174,"") -> 
C175: 5 | D175: =COUNTIF($D$134:$AA$134,D$173)*$AB$13 -> 0 | E175: 0 | F175: 0 | G175: 0 | H175: 0 | I175: 0 | J175: 0 | K175: 0 | L175: 0 | M175: 0 | N175: 0 | O175: 0 | P175: 0 | Q175: 0 | R175: 0 | S175: 0 | T175: 0 | U175: 0 | V175: 0 | W175: 0 | X175: 0 | Y175: 0 | Z175: 0 | AA175: 0 | AB175: 0 | AC175: 0 | AD175: 0 | AE175: 0 | AF175: 0 | AG175: 0 | AH175: 0 | AI175: 0 | AJ175: 0 | AK175: 0 | AL175: 0 | AM175: 0 | AN175: 0 | AO175: 0 | AP175: 0 | AQ175: 0 | AR175: 0 | AS175: 0 | AT175: 5 | AV175: =SUMPRODUCT($D175:$AS175,$D$187:$AS$187) -> 0 | AW175: =SUMPRODUCT($D175:$AS175,$D$190:$AS$190) -> 0 | AX175: =IFERROR($Q$33/$Q$35*$AV175,"") ->  | AY175: =IFERROR($AX175*3.6/1000,"") ->  | AZ175: =IFERROR($AY175/$AZ$146,"") ->  | BA175: =IFERROR($Q$38*$AW175,"") -> 0 | BB175: =IFERROR($BA175*2.4*3.6/1000,"") -> 0 | BC175: =IFERROR($BA175/1000,"") -> 0 | BD175: =IFERROR($AY175+$BB175,"") ->  | BE175: =IFERROR($R$33/$R$35*$AV175,"") ->  | BF175: =IFERROR($BE175*3.6/1000,"") ->  | BG175: =IFERROR($BF175/$AZ$146,"") ->  | BH175: =IFERROR($R$38*$AW175,"") -> 0 | BI175: =IFERROR($BH175*2.4*3.6/1000,"") -> 0 | BJ175: =IFERROR($BH175/1000,"") -> 0 | BK175: =IFERROR($BF175+$BI175,"") ->  | BL175: =IFERROR($S$33/$S$35*$AV175,"") ->  | BM175: =IFERROR($BL175*3.6/1000,"") ->  | BN175: =IFERROR($BM175/$AZ$146,"") ->  | BO175: =IFERROR($S$38*$AW175,"") -> 0 | BP175: =IFERROR($BO175*2.4*3.6/1000,"") -> 0 | BQ175: =IFERROR($BO175/1000,"") -> 0 | BR175: =IFERROR($BM175+$BP175,"") ->  | BT175: =IFERROR($Q$47/$Q$49*$AV175*$BU$172,"") ->  | BU175: =IFERROR($BT175*3.6/1000,"") ->  | BV175: =IFERROR($BU175/$BV$146,"") ->  | BW175: =IFERROR($Q$52*$AW175,"") -> 0 | BX175: =IFERROR($BW175*2.4*3.6/1000,"") -> 0 | BY175: =IFERROR($BW175/1000,"") -> 0 | BZ175: =IFERROR($BU175+$BX175,"") ->  | CA175: =IFERROR($R$47/$R$49*$AV175*$CB$172,"") ->  | CB175: =IFERROR($CA175*3.6/1000,"") ->  | CC175: =IFERROR($CB175/$BV$146,"") ->  | CD175: =IFERROR($R$52*$AW175,"") -> 0 | CE175: =IFERROR($CD175*2.4*3.6/1000,"") -> 0 | CF175: =IFERROR($CD175/1000,"") -> 0 | CG175: =IFERROR($CB175+$CE175,"") ->  | CH175: =IFERROR($S$47/$S$49*$AV175*$CI$172,"") ->  | CI175: =IFERROR($CH175*3.6/1000,"") ->  | CJ175: =IFERROR($CI175/$BV$146,"") ->  | CK175: =IFERROR($S$52*$AW175,"") -> 0 | CL175: =IFERROR($CK175*2.4*3.6/1000,"") -> 0 | CM175: =IFERROR($CK175/1000,"") -> 0 | CN175: =IFERROR($CI175+$CL175,"") -> 
C176: 6 | D176: =COUNTIF($D$135:$AA$135,D$173)*$AB$14 -> 0 | E176: 0 | F176: 0 | G176: 0 | H176: 0 | I176: 0 | J176: 0 | K176: 0 | L176: 0 | M176: 0 | N176: 0 | O176: 0 | P176: 0 | Q176: 0 | R176: 0 | S176: 0 | T176: 0 | U176: 0 | V176: 0 | W176: 0 | X176: 0 | Y176: 0 | Z176: 0 | AA176: 0 | AB176: 0 | AC176: 0 | AD176: 0 | AE176: 0 | AF176: 0 | AG176: 0 | AH176: 0 | AI176: 0 | AJ176: 0 | AK176: 0 | AL176: 0 | AM176: 0 | AN176: 0 | AO176: 0 | AP176: 0 | AQ176: 0 | AR176: 0 | AS176: 0 | AT176: 6 | AV176: =SUMPRODUCT($D176:$AS176,$D$187:$AS$187) -> 0 | AW176: 0 | BA176: 0 | BB176: 0 | BC176: 0 | BH176: 0 | BI176: 0 | BJ176: 0 | BO176: 0 | BP176: 0 | BQ176: 0 | BT176: =IFERROR($Q$47/$Q$49*$AV176*$BU$172,"") ->  | BW176: 0 | BX176: 0 | BY176: 0 | CD176: 0 | CE176: 0 | CF176: 0 | CK176: 0 | CL176: 0 | CM176: 0
C177: 7 | D177: =COUNTIF($D$136:$AA$136,D$173)*$AB$15 -> 0 | E177: 0 | F177: 0 | G177: 0 | H177: 0 | I177: 0 | J177: 0 | K177: 0 | L177: 0 | M177: 0 | N177: 0 | O177: 0 | P177: 0 | Q177: 0 | R177: 0 | S177: 0 | T177: 0 | U177: 0 | V177: 0 | W177: 0 | X177: 0 | Y177: 0 | Z177: 0 | AA177: 0 | AB177: 0 | AC177: 0 | AD177: 0 | AE177: 0 | AF177: 0 | AG177: 0 | AH177: 0 | AI177: 0 | AJ177: 0 | AK177: 0 | AL177: 0 | AM177: 0 | AN177: 0 | AO177: 0 | AP177: 0 | AQ177: 0 | AR177: 0 | AS177: 0 | AT177: 7 | AV177: 0 | AW177: 0 | BA177: 0 | BB177: 0 | BC177: 0 | BH177: 0 | BI177: 0 | BJ177: 0 | BO177: 0 | BP177: 0 | BQ177: 0 | BW177: 0 | BX177: 0 | BY177: 0 | CD177: 0 | CE177: 0 | CF177: 0 | CK177: 0 | CL177: 0 | CM177: 0
C178: 8 | D178: =COUNTIF($D$137:$AA$137,D$173)*$AB$16 -> 0 | E178: 0 | F178: 0 | G178: 0 | H178: 0 | I178: 0 | J178: 0 | K178: 0 | L178: 0 | M178: 0 | N178: 0 | O178: 0 | P178: 0 | Q178: 0 | R178: 0 | S178: 0 | T178: 0 | U178: 0 | V178: 0 | W178: 0 | X178: 0 | Y178: 0 | Z178: 0 | AA178: 0 | AB178: 0 | AC178: 0 | AD178: 0 | AE178: 0 | AF178: 0 | AG178: 0 | AH178: 0 | AI178: 0 | AJ178: 0 | AK178: 0 | AL178: 0 | AM178: 0 | AN178: 0 | AO178: 0 | AP178: 0 | AQ178: 0 | AR178: 0 | AS178: 0 | AT178: 8 | AV178: 0 | AW178: 0 | BA178: 0 | BB178: 0 | BC178: 0 | BH178: 0 | BI178: 0 | BJ178: 0 | BO178: 0 | BP178: 0 | BQ178: 0 | BW178: 0 | BX178: 0 | BY178: 0 | CD178: 0 | CE178: 0 | CF178: 0 | CK178: 0 | CL178: 0 | CM178: 0
C179: 9 | D179: =COUNTIF($D$138:$AA$138,D$173)*$AB$17 -> 0 | E179: 0 | F179: 0 | G179: 0 | H179: 0 | I179: 0 | J179: 0 | K179: 0 | L179: 0 | M179: 0 | N179: 0 | O179: 0 | P179: 0 | Q179: 0 | R179: 0 | S179: 0 | T179: 0 | U179: 0 | V179: 0 | W179: 0 | X179: 0 | Y179: 0 | Z179: 0 | AA179: 0 | AB179: 0 | AC179: 0 | AD179: 0 | AE179: 0 | AF179: 0 | AG179: 0 | AH179: 0 | AI179: 0 | AJ179: 0 | AK179: 0 | AL179: 0 | AM179: 0 | AN179: 0 | AO179: 0 | AP179: 0 | AQ179: 0 | AR179: 0 | AS179: 0 | AT179: 9 | AV179: 0 | AW179: 0 | BA179: 0 | BB179: 0 | BC179: 0 | BH179: 0 | BI179: 0 | BJ179: 0 | BO179: 0 | BP179: 0 | BQ179: 0 | BW179: 0 | BX179: 0 | BY179: 0 | CD179: 0 | CE179: 0 | CF179: 0 | CK179: 0 | CL179: 0 | CM179: 0
C180: 10 | D180: =COUNTIF($D$139:$AA$139,D$173)*$AB$18 -> 0 | E180: 0 | F180: 0 | G180: 0 | H180: 0 | I180: 0 | J180: 0 | K180: 0 | L180: 0 | M180: 0 | N180: 0 | O180: 0 | P180: 0 | Q180: 0 | R180: 0 | S180: 0 | T180: 0 | U180: 0 | V180: 0 | W180: 0 | X180: 0 | Y180: 0 | Z180: 0 | AA180: 0 | AB180: 0 | AC180: 0 | AD180: 0 | AE180: 0 | AF180: 0 | AG180: 0 | AH180: 0 | AI180: 0 | AJ180: 0 | AK180: 0 | AL180: 0 | AM180: 0 | AN180: 0 | AO180: 0 | AP180: 0 | AQ180: 0 | AR180: 0 | AS180: 0 | AT180: 10 | AV180: 0 | AW180: 0 | BA180: 0 | BB180: 0 | BC180: 0 | BH180: 0 | BI180: 0 | BJ180: 0 | BO180: 0 | BP180: 0 | BQ180: 0 | BW180: 0 | BX180: 0 | BY180: 0 | CD180: 0 | CE180: 0 | CF180: 0 | CK180: 0 | CL180: 0 | CM180: 0
C181: 11 | D181: =COUNTIF($D$140:$AA$140,D$173)*$AB$19 -> 0 | E181: 0 | F181: 0 | G181: 0 | H181: 0 | I181: 0 | J181: 0 | K181: 0 | L181: 0 | M181: 0 | N181: 0 | O181: 0 | P181: 0 | Q181: 0 | R181: 0 | S181: 0 | T181: 0 | U181: 0 | V181: 0 | W181: 0 | X181: 0 | Y181: 0 | Z181: 0 | AA181: 0 | AB181: 0 | AC181: 0 | AD181: 0 | AE181: 0 | AF181: 0 | AG181: 0 | AH181: 0 | AI181: 0 | AJ181: 0 | AK181: 0 | AL181: 0 | AM181: 0 | AN181: 0 | AO181: 0 | AP181: 0 | AQ181: 0 | AR181: 0 | AS181: 0 | AT181: 11 | AV181: 0 | AW181: 0 | BA181: 0 | BB181: 0 | BC181: 0 | BH181: 0 | BI181: 0 | BJ181: 0 | BO181: 0 | BP181: 0 | BQ181: 0 | BW181: 0 | BX181: 0 | BY181: 0 | CD181: 0 | CE181: 0 | CF181: 0 | CK181: 0 | CL181: 0 | CM181: 0
C182: 12 | D182: =COUNTIF($D$141:$AA$141,D$173)*$AB$20 -> 0 | E182: 0 | F182: 0 | G182: 0 | H182: 0 | I182: 0 | J182: 0 | K182: 0 | L182: 0 | M182: 0 | N182: 0 | O182: 0 | P182: 0 | Q182: 0 | R182: 0 | S182: 0 | T182: 0 | U182: 0 | V182: 0 | W182: 0 | X182: 0 | Y182: 0 | Z182: 0 | AA182: 0 | AB182: 0 | AC182: 0 | AD182: 0 | AE182: 0 | AF182: 0 | AG182: 0 | AH182: 0 | AI182: 0 | AJ182: 0 | AK182: 0 | AL182: 0 | AM182: 0 | AN182: 0 | AO182: 0 | AP182: 0 | AQ182: 0 | AR182: 0 | AS182: 0 | AT182: 12 | AV182: 0 | AW182: 0 | BA182: 0 | BB182: 0 | BC182: 0 | BH182: 0 | BI182: 0 | BJ182: 0 | BO182: 0 | BP182: 0 | BQ182: 0 | BW182: 0 | BX182: 0 | BY182: 0 | CA182: =IFERROR($R$47/$R$49*$AV182*$CB$172,"") ->  | CD182: 0 | CE182: 0 | CF182: 0 | CH182: =IFERROR($S$47/$S$49*$AV182*$CI$172,"") ->  | CK182: 0 | CL182: 0 | CM182: 0
C183: 1 | D183: =COUNTIF($D$142:$AA$142,D$173)*$AB$21 -> 0 | E183: 0 | F183: 0 | G183: 0 | H183: 0 | I183: 0 | J183: 0 | K183: 0 | L183: 0 | M183: 0 | N183: 0 | O183: 0 | P183: 0 | Q183: 0 | R183: 0 | S183: 0 | T183: 0 | U183: 0 | V183: 0 | W183: 0 | X183: 0 | Y183: 0 | Z183: 0 | AA183: 0 | AB183: 0 | AC183: 0 | AD183: 0 | AE183: 0 | AF183: 0 | AG183: 0 | AH183: 0 | AI183: 0 | AJ183: 0 | AK183: 0 | AL183: 0 | AM183: 0 | AN183: 0 | AO183: 0 | AP183: 0 | AQ183: 0 | AR183: 0 | AS183: 0 | AT183: 1 | AV183: 0 | AW183: 0 | BA183: 0 | BB183: 0 | BC183: 0 | BH183: 0 | BI183: 0 | BJ183: 0 | BO183: 0 | BP183: 0 | BQ183: 0 | BW183: 0 | BX183: 0 | BY183: 0 | CD183: 0 | CE183: 0 | CF183: 0 | CK183: 0 | CL183: 0 | CM183: 0
C184: 2 | D184: =COUNTIF($D$143:$AA$143,D$173)*$AB$22 -> 0 | E184: 0 | F184: 0 | G184: 0 | H184: 0 | I184: 0 | J184: 0 | K184: 0 | L184: 0 | M184: 0 | N184: 0 | O184: 0 | P184: 0 | Q184: 0 | R184: 0 | S184: 0 | T184: 0 | U184: 0 | V184: 0 | W184: 0 | X184: 0 | Y184: 0 | Z184: 0 | AA184: 0 | AB184: 0 | AC184: 0 | AD184: 0 | AE184: 0 | AF184: 0 | AG184: 0 | AH184: 0 | AI184: 0 | AJ184: 0 | AK184: 0 | AL184: 0 | AM184: 0 | AN184: 0 | AO184: 0 | AP184: 0 | AQ184: 0 | AR184: 0 | AS184: 0 | AT184: 2 | AV184: 0 | AW184: 0 | BA184: 0 | BB184: 0 | BC184: 0 | BH184: 0 | BI184: 0 | BJ184: 0 | BO184: 0 | BP184: 0 | BQ184: 0 | BW184: 0 | BX184: 0 | BY184: 0 | CD184: 0 | CE184: 0 | CF184: 0 | CK184: 0 | CL184: 0 | CM184: 0
C185: 3 | D185: =COUNTIF($D$144:$AA$144,D$173)*$AB$23 -> 0 | E185: 0 | F185: 0 | G185: 0 | H185: 0 | I185: 0 | J185: 0 | K185: 0 | L185: 0 | M185: 0 | N185: 0 | O185: 0 | P185: 0 | Q185: 0 | R185: 0 | S185: 0 | T185: 0 | U185: 0 | V185: 0 | W185: 0 | X185: 0 | Y185: 0 | Z185: 0 | AA185: 0 | AB185: 0 | AC185: 0 | AD185: 0 | AE185: 0 | AF185: 0 | AG185: 0 | AH185: 0 | AI185: 0 | AJ185: 0 | AK185: 0 | AL185: 0 | AM185: 0 | AN185: 0 | AO185: 0 | AP185: 0 | AQ185: 0 | AR185: 0 | AS185: 0 | AT185: 3 | AV185: =SUMPRODUCT($D185:$AS185,$D$187:$AS$187) -> 0 | AW185: 0 | BA185: 0 | BB185: 0 | BC185: 0 | BH185: 0 | BI185: 0 | BJ185: 0 | BO185: 0 | BP185: 0 | BQ185: 0 | BW185: 0 | BX185: 0 | BY185: 0 | CD185: 0 | CE185: 0 | CF185: 0 | CK185: 0 | CL185: 0 | CM185: 0
C186: 加熱運転時間 | D186: =SUM(D$174:D$185) -> 0 | E186: =SUM(E$174:E$185) -> 0 | F186: 0 | G186: 0 | H186: 0 | I186: 0 | J186: 0 | K186: 0 | L186: 0 | M186: 0 | N186: 0 | O186: 0 | P186: 0 | Q186: 0 | R186: 0 | S186: 0 | T186: 0 | U186: 0 | V186: 0 | W186: 0 | X186: 0 | Y186: 0 | Z186: 0 | AA186: 0 | AB186: 0 | AC186: 0 | AD186: 0 | AE186: 0 | AF186: 0 | AG186: 0 | AH186: 0 | AI186: 0 | AJ186: 0 | AK186: 0 | AL186: 0 | AM186: 0 | AN186: 0 | AO186: 0 | AP186: 0 | AQ186: 0 | AR186: 0 | AS186: =SUM(AS$174:AS$185) -> 0 | AT186: 加熱運転時間 | AV186: =SUM(AV174:AV185) -> 0 | AW186: 0 | AX186: =SUM(AX174:AX185) -> 0 | AY186: =SUM(AY174:AY185) -> 0 | AZ186: =SUM(AZ174:AZ185) -> 0 | BA186: =SUM(BA174:BA185) -> 0 | BB186: =SUM(BB174:BB185) -> 0 | BC186: 0 | BD186: 0 | BE186: =SUM(BE174:BE185) -> 0 | BF186: =SUM(BF174:BF185) -> 0 | BG186: =SUM(BG174:BG185) -> 0 | BH186: =SUM(BH174:BH185) -> 0 | BI186: 0 | BJ186: 0 | BK186: 0 | BL186: =SUM(BL174:BL185) -> 0 | BM186: =SUM(BM174:BM185) -> 0 | BN186: =SUM(BN174:BN185) -> 0 | BO186: =SUM(BO174:BO185) -> 0 | BP186: 0 | BQ186: 0 | BR186: =SUM(BR174:BR185) -> 0 | BT186: =SUM(BT174:BT185) -> 0 | BU186: =SUM(BU174:BU185) -> 0 | BV186: =SUM(BV174:BV185) -> 0 | BW186: =SUM(BW174:BW185) -> 0 | BX186: 0 | BY186: =SUM(BY174:BY185) -> 0 | BZ186: =SUM(BZ174:BZ185) -> 0 | CA186: =SUM(CA174:CA185) -> 0 | CB186: =SUM(CB174:CB185) -> 0 | CC186: =SUM(CC174:CC185) -> 0 | CD186: =SUM(CD174:CD185) -> 0 | CE186: 0 | CF186: 0 | CG186: 0 | CH186: =SUM(CH174:CH185) -> 0 | CI186: =SUM(CI174:CI185) -> 0 | CJ186: =SUM(CJ174:CJ185) -> 0 | CK186: =SUM(CK174:CK185) -> 0 | CL186: 0 | CM186: =SUM(CM174:CM185) -> 0 | CN186: =SUM(CN174:CN185) -> 0
B187: αw | C187: 加熱空調負荷率 | D187: =IF((-1/18.1)*(D$173-11.4)<0,0,IF((-1/18.1)*(D$173-11.4)>1,1,(-1/18.1)*(D$173-11.4))) -> 0.9613259669 | E187: =IF((-1/18.1)*(E$173-11.4)<0,0,IF((-1/18.1)*(E$173-11.4)>1,1,(-1/18.1)*(E$173-11.4))) -> 0.9060773481 | F187: 0.8508287293 | G187: 0.7955801105 | H187: 0.7403314917 | I187: 0.6850828729 | J187: 0.6298342541 | K187: 0.5745856354 | L187: 0.5193370166 | M187: 0.4640883978 | N187: 0.408839779 | O187: 0.3535911602 | P187: 0.2983425414 | Q187: 0.2430939227 | R187: 0.1878453039 | S187: 0.1325966851 | T187: 0.0773480663 | U187: 0.02209944751 | V187: 0 | W187: 0 | X187: 0 | Y187: 0 | Z187: 0 | AA187: 0 | AB187: 0 | AC187: 0 | AD187: 0 | AE187: 0 | AF187: 0 | AG187: 0 | AH187: 0 | AI187: 0 | AJ187: 0 | AK187: 0 | AL187: 0 | AM187: 0 | AN187: 0 | AO187: 0 | AP187: 0 | AQ187: 0 | AR187: 0 | AS187: =IF((-1/18.1)*(AS$173-11.4)<0,0,IF((-1/18.1)*(AS$173-11.4)>1,1,(-1/18.1)*(AS$173-11.4))) -> 0 | AT187: 加熱空調負荷率 | AU187: αw
C188: Σ | D188: =D$186*D$187 -> 0 | E188: =E$186*E$187 -> 0 | F188: =F$186*F$187 -> 0 | G188: 0 | H188: 0 | I188: 0 | J188: 0 | K188: =K$186*K$187 -> 0 | L188: 0 | M188: 0 | N188: 0 | O188: 0 | P188: 0 | Q188: 0 | R188: 0 | S188: 0 | T188: 0 | U188: 0 | V188: 0 | W188: 0 | X188: 0 | Y188: 0 | Z188: 0 | AA188: 0 | AB188: 0 | AC188: 0 | AD188: 0 | AE188: 0 | AF188: 0 | AG188: 0 | AH188: 0 | AI188: 0 | AJ188: 0 | AK188: =AK$186*AK$187 -> 0 | AL188: 0 | AM188: 0 | AN188: 0 | AO188: =AO$186*AO$187 -> 0 | AP188: 0 | AQ188: 0 | AR188: 0 | AS188: =AS$186*AS$187 -> 0 | AT188: =SUM($D$188:$AS$188) -> 0 | AU188: Σ
C190: αw^0.6 | D190: =D187^0.6 -> 0.9766127819 | E190: =E187^0.6 -> 0.942538641 | F190: =F187^0.6 -> 0.9076225712 | G190: =G187^0.6 -> 0.8717869232 | H190: 0.8349408969 | I190: 0.796977143 | J190: 0.7577671354 | K190: =K187^0.6 -> 0.717154716 | L190: 0.6749468382 | M190: 0.6308998537 | N190: 0.5846983751 | O190: 0.5359210794 | P190: 0.4839818898 | Q190: 0.4280203925 | R190: 0.3666740752 | S190: 0.297522353 | T190: 0.2153127146 | U190: 0.1015380573 | V190: 0 | W190: 0 | X190: 0 | Y190: 0 | Z190: 0 | AA190: 0 | AB190: 0 | AC190: 0 | AD190: 0 | AE190: 0 | AF190: 0 | AG190: 0 | AH190: 0 | AI190: 0 | AJ190: 0 | AK190: 0 | AL190: 0 | AM190: 0 | AN190: 0 | AO190: 0 | AP190: 0 | AQ190: 0 | AR190: 0 | AS190: =AS187^0.6 -> 0 | AT190: αw^0.6
C191: Σ | D191: =D186*D190 -> 0 | E191: =E186*E190 -> 0 | F191: 0 | G191: 0 | H191: 0 | I191: 0 | J191: 0 | K191: =K186*K190 -> 0 | L191: =L186*L190 -> 0 | M191: 0 | N191: 0 | O191: 0 | P191: 0 | Q191: 0 | R191: 0 | S191: 0 | T191: 0 | U191: 0 | V191: 0 | W191: 0 | X191: 0 | Y191: 0 | Z191: 0 | AA191: 0 | AB191: 0 | AC191: 0 | AD191: 0 | AE191: 0 | AF191: 0 | AG191: 0 | AH191: 0 | AI191: 0 | AJ191: 0 | AK191: 0 | AL191: 0 | AM191: 0 | AN191: 0 | AO191: 0 | AP191: 0 | AQ191: 0 | AR191: 0 | AS191: =AS186*AS190 -> 0 | AT191: =SUM(D191:AS191) -> 0

Sheet 燃料選択 (hidden)
B2: 吸収式冷凍機の燃料の種類 | C2: 入力単位 | D2: 高位発熱量(H)
B3: 都市ガス13A | C3: Nm3/h | D3: 45 | E3: GJ/千Nm3
A4: 1 | B4: 都市ガス12A | C4: Nm3/h | D4: 42 | E4: GJ/千Nm3
A5: 2 | B5: LPG | C5: kg/h | D5: 50.1 | E5: MJ/kg
A6: 3 | B6: 灯油 | C6: L/h | D6: 36.5 | E6: MJ/L
A7: 4 | B7: A重油 | C7: L/h | D7: 38.9 | E7: MJ/L
A8: 5 | B8: --- | C8: --- | D8: --- | E8: ---
A9: 6 | B9: --- | C9: --- | D9: --- | E9: ---
A10: 7 | B10: --- | C10: --- | D10: --- | E10: ---
B12: 燃料消費量のkW変換
B13: C（α/h）＝C×H（高位発熱量）/3.6
B14: 例えば、都市ガス13Aで、C＝50Nm3/hの場合、625kWとなる。
B15: σc（COP）＝Φc（kW）/Pc（kW）←単位を揃える

Sheet 管理 (hidden)
B2: 管理番号 | C2: 起票日 | D2: 起票者 | E2: 区分 | F2: 状態 | G2: 内容 | H2: 担当者 | I2: 対応日 | J2: 対応内容
B3: 0 | C3: 2023-02-01 | D3: ●●● | E3: バグ／課題／要望 | F3: 発生／完了／対応なし | G3: 発生状況等 | H3: ■■■ | I3: 2023-02-05
B4: 1 | C4: 2025-01-23 | D4: hayakawa | E4: Ver. 1.0 | F4: 完了 | G4: バージョン変更 | H4: hayakawa | I4: 2025-01-23 | J4: 内容変更
B5: 2 | C5: 2025-02-05 | D5: hayakawa | E5: Ver.1.0.1 | F5: 完了 | G5: 主機の燃料使用量の桁違い | H5: hayakawa | I5: 2025-02-07 | J5: 計算式、単位等修正（原さん監修）
B6: 3 | C6: 2025-02-19 | D6: hayakawa | E6: Ver.1.1 | F6: 完了 | G6: 計算式不備 | H6: hayakawa | I6: 2025-02-19 | J6: 計算式修正（原さん監修）
B7: 4
B8: 5
B9: 6
B10: 7
B11: 8
B12: 9
B13: 10
B14: 11
B15: 12
B16: 13
B17: 14
B18: 15
B19: 16
B20: 17
B21: 18
B22: 19
B23: 20
B24: 21
B25: 22
B26: 23
B27: 24
B28: 25
B29: 26
B30: 27
B31: 28
B32: 29
B33: 30
B34: 31
B35: 32
B36: 33
B37: 34
B38: 35
B39: 36
B40: 37
B41: 38
B42: 39
B43: 40

Sheet 都道府県庁所在地等一覧表 (hidden)
B2: 都道府県
C3: 都道府県名 | D3: data取得都市名 | E3: 県庁所在都市名
B4: 1 | C4: 北海道 | D4: 札幌 | E4: 札幌
B5: 2 | C5: 青森 | D5: 青森 | E5: 青森
B6: 3 | C6: 岩手 | D6: 盛岡 | E6: 盛岡
B7: 4 | C7: 宮城 | D7: 仙台 | E7: 仙台
B8: 5 | C8: 秋田 | D8: 秋田 | E8: 秋田
B9: 6 | C9: 山形 | D9: 山形 | E9: 山形
B10: 7 | C10: 福島 | D10: 福島 | E10: 福島
B11: 8 | C11: 茨城 | D11: 水戸 | E11: 水戸
B12: 9 | C12: 栃木 | D12: 宇都宮 | E12: 宇都宮
B13: 10 | C13: 群馬 | D13: 前橋 | E13: 前橋
B14: 11 | C14: 埼玉 | D14: 熊谷 | E14: さいたま
B15: 12 | C15: 千葉 | D15: 千葉 | E15: 千葉
B16: 13 | C16: 東京 | D16: 東京 | E16: 東京
B17: 14 | C17: 神奈川 | D17: 横浜 | E17: 横浜
B18: 15 | C18: 新潟 | D18: 新潟 | E18: 新潟
B19: 16 | C19: 富山 | D19: 富山 | E19: 富山
B20: 17 | C20: 石川 | D20: 金沢 | E20: 金沢
B21: 18 | C21: 福井 | D21: 福井 | E21: 福井
B22: 19 | C22: 山梨 | D22: 甲府 | E22: 甲府
B23: 20 | C23: 長野 | D23: 長野 | E23: 長野
B24: 21 | C24: 岐阜 | D24: 岐阜 | E24: 岐阜
B25: 22 | C25: 静岡 | D25: 静岡 | E25: 静岡
B26: 23 | C26: 愛知 | D26: 名古屋 | E26: 名古屋
B27: 24 | C27: 三重 | D27: 津 | E27: 津
B28: 25 | C28: 滋賀 | D28: 彦根 | E28: 大津
B29: 26 | C29: 京都 | D29: 京都 | E29: 京都
B30: 27 | C30: 大阪 | D30: 大阪 | E30: 大阪
B31: 28 | C31: 兵庫 | D31: 神戸 | E31: 神戸
B32: 29 | C32: 奈良 | D32: 奈良 | E32: 奈良
B33: 30 | C33: 和歌山 | D33: 和歌山 | E33: 和歌山
B34: 31 | C34: 鳥取 | D34: 鳥取 | E34: 鳥取
B35: 32 | C35: 島根 | D35: 松江 | E35: 松江
B36: 33 | C36: 岡山 | D36: 岡山 | E36: 岡山
B37: 34 | C37: 広島 | D37: 広島 | E37: 広島
B38: 35 | C38: 山口 | D38: 山口 | E38: 山口
B39: 36 | C39: 徳島 | D39: 徳島 | E39: 徳島
B40: 37 | C40: 香川 | D40: 高松 | E40: 高松
B41: 38 | C41: 愛媛 | D41: 松山 | E41: 松山
B42: 39 | C42: 高知 | D42: 高知 | E42: 高知
B43: 40 | C43: 福岡 | D43: 福岡 | E43: 福岡
B44: 41 | C44: 佐賀 | D44: 佐賀 | E44: 佐賀
B45: 42 | C45: 長崎 | D45: 長崎 | E45: 長崎
B46: 43 | C46: 熊本 | D46: 熊本 | E46: 熊本
B47: 44 | C47: 大分 | D47: 大分 | E47: 大分
B48: 45 | C48: 宮崎 | D48: 宮崎 | E48: 宮崎
B49: 46 | C49: 鹿児島 | D49: 鹿児島 | E49: 鹿児島
B50: 47 | C50: 沖縄 | D50: 那覇 | E50: 那覇

Sheet 札幌 (hidden)
A1: 気象データ
A2: =RIGHT(CELL("filename",A2),LEN(CELL("filename",A2))-FIND("]",CELL("filename",A2))) -> 札幌
A3: 時刻別平均外気湿球温度
A4: 時刻 | B4: 0 | C4: 1 | D4: 2 | E4: 3 | F4: 4 | G4: 5 | H4: 6 | I4: 7 | J4: 8 | K4: 9 | L4: 10 | M4: 11 | N4: 12 | O4: 13 | P4: 14 | Q4: 15 | R4: 16 | S4: 17 | T4: 18 | U4: 19 | V4: 20 | W4: 21 | X4: 22 | Y4: 23
A5: 4月 | B5: 3.1 | C5: 2.9 | D5: 2.8 | E5: 2.6 | F5: 2.5 | G5: 2.4 | H5: 2.6 | I5: 3.1 | J5: 3.9 | K5: 4.5 | L5: 4.9 | M5: 5.2 | N5: 5.5 | O5: 5.5 | P5: 5.5 | Q5: 5.3 | R5: 5.1 | S5: 4.8 | T5: 4.5 | U5: 4.3 | V5: 4.1 | W5: 3.8 | X5: 3.6 | Y5: 3.4
A6: 5月 | B6: 8.4 | C6: 8.2 | D6: 8.1 | E6: 7.9 | F6: 7.8 | G6: 7.8 | H6: 8.2 | I6: 8.8 | J6: 9.5 | K6: 10 | L6: 10.4 | M6: 10.7 | N6: 10.9 | O6: 10.9 | P6: 10.8 | Q6: 10.6 | R6: 10.4 | S6: 10.1 | T6: 9.7 | U6: 9.5 | V6: 9.3 | W6: 9.1 | X6: 8.9 | Y6: 8.7
A7: 6月 | B7: 12.9 | C7: 12.8 | D7: 12.6 | E7: 12.5 | F7: 12.4 | G7: 12.4 | H7: 12.7 | I7: 13.2 | J7: 13.8 | K7: 14.4 | L7: 14.8 | M7: 15.1 | N7: 15.2 | O7: 15.3 | P7: 15.3 | Q7: 15.1 | R7: 14.9 | S7: 14.6 | T7: 14.3 | U7: 14 | V7: 13.8 | W7: 13.6 | X7: 13.4 | Y7: 13.2
A8: 7月 | B8: 17.3 | C8: 17.1 | D8: 17 | E8: 16.9 | F8: 16.8 | G8: 16.8 | H8: 17 | I8: 17.5 | J8: 18 | K8: 18.5 | L8: 18.8 | M8: 19.1 | N8: 19.3 | O8: 19.3 | P8: 19.3 | Q8: 19.2 | R8: 19 | S8: 18.8 | T8: 18.5 | U8: 18.2 | V8: 18 | W8: 17.9 | X8: 17.7 | Y8: 17.6
A9: 8月 | B9: 18.6 | C9: 18.4 | D9: 18.3 | E9: 18.1 | F9: 18 | G9: 18 | H9: 18.1 | I9: 18.5 | J9: 19 | K9: 19.4 | L9: 19.7 | M9: 19.9 | N9: 20.1 | O9: 20.2 | P9: 20.2 | Q9: 20.1 | R9: 19.9 | S9: 19.7 | T9: 19.5 | U9: 19.3 | V9: 19.1 | W9: 18.9 | X9: 18.8 | Y9: 18.6
A10: 9月 | B10: 14.6 | C10: 14.5 | D10: 14.3 | E10: 14.1 | F10: 14 | G10: 13.9 | H10: 13.9 | I10: 14.4 | J10: 15 | K10: 15.6 | L10: 15.9 | M10: 16.1 | N10: 16.3 | O10: 16.3 | P10: 16.3 | Q10: 16.2 | R10: 16 | S10: 15.8 | T10: 15.6 | U10: 15.4 | V10: 15.2 | W10: 15 | X10: 14.8 | Y10: 14.6
A11: 10月 | B11: 8.5 | C11: 8.3 | D11: 8.1 | E11: 8 | F11: 7.8 | G11: 7.7 | H11: 7.6 | I11: 7.9 | J11: 8.7 | K11: 9.3 | L11: 9.8 | M11: 10.1 | N11: 10.3 | O11: 10.3 | P11: 10.3 | Q11: 10.2 | R11: 9.9 | S11: 9.6 | T11: 9.4 | U11: 9.2 | V11: 9 | W11: 8.8 | X11: 8.6 | Y11: 8.4
A12: 11月 | B12: 2.5 | C12: 2.4 | D12: 2.3 | E12: 2.1 | F12: 2.1 | G12: 2 | H12: 1.9 | I12: 2 | J12: 2.5 | K12: 3 | L12: 3.5 | M12: 3.8 | N12: 4 | O12: 4 | P12: 3.9 | Q12: 3.8 | R12: 3.5 | S12: 3.3 | T12: 3.1 | U12: 2.9 | V12: 2.7 | W12: 2.6 | X12: 2.5 | Y12: 2.3
A13: 12月 | B13: -3 | C13: -3.1 | D13: -3.2 | E13: -3.2 | F13: -3.3 | G13: -3.3 | H13: -3.4 | I13: -3.4 | J13: -3.2 | K13: -2.6 | L13: -2.2 | M13: -1.8 | N13: -1.6 | O13: -1.6 | P13: -1.6 | Q13: -1.8 | R13: -2 | S13: -2.2 | T13: -2.4 | U13: -2.5 | V13: -2.6 | W13: -2.8 | X13: -2.9 | Y13: -3
A14: 1月 | B14: -5.3 | C14: -5.4 | D14: -5.5 | E14: -5.6 | F14: -5.6 | G14: -5.7 | H14: -5.8 | I14: -5.8 | J14: -5.5 | K14: -4.9 | L14: -4.4 | M14: -4 | N14: -3.7 | O14: -3.6 | P14: -3.5 | Q14: -3.7 | R14: -3.9 | S14: -4.1 | T14: -4.3 | U14: -4.5 | V14: -4.7 | W14: -4.9 | X14: -5 | Y14: -5.2
A15: 2月 | B15: -4.8 | C15: -5 | D15: -5.1 | E15: -5.3 | F15: -5.4 | G15: -5.5 | H15: -5.6 | I15: -5.6 | J15: -5.1 | K15: -4.3 | L15: -3.8 | M15: -3.3 | N15: -3.1 | O15: -2.9 | P15: -2.9 | Q15: -2.9 | R15: -3.2 | S15: -3.5 | T15: -3.7 | U15: -3.8 | V15: -4 | W15: -4.2 | X15: -4.3 | Y15: -4.5
A16: 3月 | B16: -1.6 | C16: -1.7 | D16: -1.9 | E16: -2 | F16: -2.1 | G16: -2.2 | H16: -2.3 | I16: -2 | J16: -1.3 | K16: -0.7 | L16: -0.2 | M16: 0.1 | N16: 0.3 | O16: 0.3 | P16: 0.4 | Q16: 0.2 | R16: 0.1 | S16: -0.2 | T16: -0.4 | U16: -0.6 | V16: -0.8 | W16: -1 | X16: -1.1 | Y16: -1.3

Sheet 青森 (hidden)
A1: 気象データ
A2: =RIGHT(CELL("filename",A2),LEN(CELL("filename",A2))-FIND("]",CELL("filename",A2))) -> 青森
A3: 時刻別平均外気湿球温度
A4: 時刻 | B4: 0 | C4: 1 | D4: 2 | E4: 3 | F4: 4 | G4: 5 | H4: 6 | I4: 7 | J4: 8 | K4: 9 | L4: 10 | M4: 11 | N4: 12 | O4: 13 | P4: 14 | Q4: 15 | R4: 16 | S4: 17 | T4: 18 | U4: 19 | V4: 20 | W4: 21 | X4: 22 | Y4: 23
A5: 4月 | B5: 3.1 | C5: 2.9 | D5: 2.8 | E5: 2.7 | F5: 2.5 | G5: 2.4 | H5: 2.6 | I5: 3.2 | J5: 3.9 | K5: 4.5 | L5: 5 | M5: 5.3 | N5: 5.5 | O5: 5.6 | P5: 5.5 | Q5: 5.4 | R5: 5.2 | S5: 4.8 | T5: 4.5 | U5: 4.3 | V5: 4.1 | W5: 3.9 | X5: 3.6 | Y5: 3.5
A6: 5月 | B6: 8.4 | C6: 8.2 | D6: 8.1 | E6: 7.9 | F6: 7.8 | G6: 7.8 | H6: 8.2 | I6: 8.8 | J6: 9.5 | K6: 10 | L6: 10.4 | M6: 10.7 | N6: 10.9 | O6: 10.9 | P6: 10.8 | Q6: 10.6 | R6: 10.4 | S6: 10.1 | T6: 9.7 | U6: 9.5 | V6: 9.3 | W6: 9.1 | X6: 8.9 | Y6: 8.7
A7: 6月 | B7: 12.9 | C7: 12.8 | D7: 12.6 | E7: 12.5 | F7: 12.4 | G7: 12.4 | H7: 12.7 | I7: 13.2 | J7: 13.8 | K7: 14.4 | L7: 14.8 | M7: 15.1 | N7: 15.2 | O7: 15.3 | P7: 15.3 | Q7: 15.1 | R7: 14.9 | S7: 14.6 | T7: 14.3 | U7: 14 | V7: 13.8 | W7: 13.6 | X7: 13.4 | Y7: 13.2
A8: 7月 | B8: 17.3 | C8: 17.1 | D8: 17 | E8: 16.9 | F8: 16.8 | G8: 16.8 | H8: 17 | I8: 17.5 | J8: 18 | K8: 18.5 | L8: 18.8 | M8: 19.1 | N8: 19.3 | O8: 19.3 | P8: 19.3 | Q8: 19.2 | R8: 19 | S8: 18.8 | T8: 18.5 | U8: 18.2 | V8: 18 | W8: 17.9 | X8: 17.7 | Y8: 17.6
A9: 8月 | B9: 18.6 | C9: 18.4 | D9: 18.3 | E9: 18.1 | F9: 18 | G9: 18 | H9: 18.1 | I9: 18.5 | J9: 19 | K9: 19.4 | L9: 19.7 | M9: 19.9 | N9: 20.1 | O9: 20.2 | P9: 20.2 | Q9: 20.1 | R9: 19.9 | S9: 19.7 | T9: 19.5 | U9: 19.3 | V9: 19.1 | W9: 18.9 | X9: 18.8 | Y9: 18.6
A10: 9月 | B10: 14.6 | C10: 14.5 | D10: 14.3 | E10: 14.1 | F10: 14 | G10: 13.9 | H10: 13.9 | I10: 14.4 | J10: 15 | K10: 15.6 | L10: 15.9 | M10: 16.1 | N10: 16.3 | O10: 16.3 | P10: 16.3 | Q10: 16.2 | R10: 16 | S10: 15.8 | T10: 15.6 | U10: 15.4 | V10: 15.2 | W10: 15 | X10: 14.8 | Y10: 14.6
A11: 10月 | B11: 8.5 | C11: 8.3 | D11: 8.1 | E11: 8 | F11: 7.8 | G11: 7.7 | H11: 7.6 | I11: 7.9 | J11: 8.7 | K11: 9.3 | L11: 9.8 | M11: 10.1 | N11: 10.3 | O11: 10.3 | P11: 10.3 | Q11: 10.2 | R11: 9.9 | S11: 9.6 | T11: 9.4 | U11: 9.2 | V11: 9 | W11: 8.8 | X11: 8.6 | Y11: 8.4
A12: 11月 | B12: 2.5 | C12: 2.4 | D12: 2.3 | E12: 2.1 | F12: 2.1 | G12: 2 | H12: 1.9 | I12: 2 | J12: 2.5 | K12: 3 | L12: 3.5 | M12: 3.8 | N12: 4 | O12: 4 | P12: 3.9 | Q12: 3.8 | R12: 3.5 | S12: 3.3 | T12: 3.1 | U12: 2.9 | V12: 2.7 | W12: 2.6 | X12: 2.5 | Y12: 2.3
A13: 12月 | B13: -3 | C13: -3.1 | D13: -3.2 | E13: -3.2 | F13: -3.3 | G13: -3.3 | H13: -3.4 | I13: -3.4 | J13: -3.2 | K13: -2.6 | L13: -2.2 | M13: -1.8 | N13: -1.6 | O13: -1.6 | P13: -1.6 | Q13: -1.8 | R13: -2 | S13: -2.2 | T13: -2.4 | U13: -2.5 | V13: -2.6 | W13: -2.8 | X13: -2.9 | Y13: -3
A14: 1月 | B14: -5.3 | C14: -5.4 | D14: -5.5 | E14: -5.6 | F14: -5.6 | G14: -5.7 | H14: -5.8 | I14: -5.8 | J14: -5.5 | K14: -4.9 | L14: -4.4 | M14: -4 | N14: -3.7 | O14: -3.6 | P14: -3.5 | Q14: -3.7 | R14: -3.9 | S14: -4.1 | T14: -4.3 | U14: -4.5 | V14: -4.7 | W14: -4.9 | X14: -5 | Y14: -5.2
A15: 2月 | B15: -4.8 | C15: -5 | D15: -5.1 | E15: -5.3 | F15: -5.4 | G15: -5.5 | H15: -5.6 | I15: -5.6 | J15: -5.1 | K15: -4.3 | L15: -3.8 | M15: -3.3 | N15: -3.1 | O15: -2.9 | P15: -2.9 | Q15: -2.9 | R15: -3.2 | S15: -3.5 | T15: -3.7 | U15: -3.8 | V15: -4 | W15: -4.2 | X15: -4.3 | Y15: -4.5
A16: 3月 | B16: -1.6 | C16: -1.7 | D16: -1.9 | E16: -2 | F16: -2.1 | G16: -2.2 | H16: -2.3 | I16: -2 | J16: -1.3 | K16: -0.7 | L16: -0.2 | M16: 0.1 | N16: 0.3 | O16: 0.3 | P16: 0.4 | Q16: 0.2 | R16: 0.1 | S16: -0.2 | T16: -0.4 | U16: -0.6 | V16: -0.8 | W16: -1 | X16: -1.1 | Y16: -1.3

Sheet 盛岡 (hidden)
A1: 気象データ
A2: =RIGHT(CELL("filename",A2),LEN(CELL("filename",A2))-FIND("]",CELL("filename",A2))) -> 盛岡
A3: 時刻別平均外気湿球温度
A4: 時刻 | B4: 0 | C4: 1 | D4: 2 | E4: 3 | F4: 4 | G4: 5 | H4: 6 | I4: 7 | J4: 8 | K4: 9 | L4: 10 | M4: 11 | N4: 12 | O4: 13 | P4: 14 | Q4: 15 | R4: 16 | S4: 17 | T4: 18 | U4: 19 | V4: 20 | W4: 21 | X4: 22 | Y4: 23
A5: 4月 | B5: 4.2 | C5: 3.9 | D5: 3.7 | E5: 3.5 | F5: 3.3 | G5: 3.1 | H5: 3.3 | I5: 4.2 | J5: 5 | K5: 5.8 | L5: 6.4 | M5: 6.9 | N5: 7.2 | O5: 7.4 | P5: 7.5 | Q5: 7.4 | R5: 7.2 | S5: 6.9 | T5: 6.4 | U5: 6.1 | V5: 5.7 | W5: 5.3 | X5: 5 | Y5: 4.7
A6: 5月 | B6: 9.9 | C6: 9.6 | D6: 9.4 | E6: 9.1 | F6: 8.9 | G6: 8.9 | H6: 9.4 | I6: 10.1 | J6: 10.8 | K6: 11.4 | L6: 11.9 | M6: 12.3 | N6: 12.6 | O6: 12.9 | P6: 12.9 | Q6: 12.8 | R6: 12.7 | S6: 12.3 | T6: 12 | U6: 11.6 | V6: 11.3 | W6: 10.9 | X6: 10.6 | Y6: 10.3
A7: 6月 | B7: 14.6 | C7: 14.4 | D7: 14.2 | E7: 14 | F7: 13.8 | G7: 13.9 | H7: 14.3 | I7: 14.8 | J7: 15.4 | K7: 15.9 | L7: 16.3 | M7: 16.7 | N7: 16.9 | O7: 17.1 | P7: 17.2 | Q7: 17.2 | R7: 17.1 | S7: 16.8 | T7: 16.6 | U7: 16.2 | V7: 15.9 | W7: 15.6 | X7: 15.3 | Y7: 15.1
A8: 7月 | B8: 19 | C8: 18.8 | D8: 18.7 | E8: 18.5 | F8: 18.4 | G8: 18.4 | H8: 18.6 | I8: 19 | J8: 19.5 | K8: 19.9 | L8: 20.2 | M8: 20.6 | N8: 20.8 | O8: 20.9 | P8: 21 | Q8: 21.1 | R8: 20.9 | S8: 20.8 | T8: 20.5 | U8: 20.2 | V8: 20 | W8: 19.7 | X8: 19.5 | Y8: 19.3
A9: 8月 | B9: 20.2 | C9: 20 | D9: 19.8 | E9: 19.7 | F9: 19.6 | G9: 19.5 | H9: 19.6 | I9: 20 | J9: 20.5 | K9: 21 | L9: 21.3 | M9: 21.6 | N9: 21.8 | O9: 21.9 | P9: 22 | Q9: 21.9 | R9: 21.8 | S9: 21.7 | T9: 21.4 | U9: 21.1 | V9: 20.9 | W9: 20.7 | X9: 20.5 | Y9: 20.3
A10: 9月 | B10: 16.1 | C10: 15.9 | D10: 15.8 | E10: 15.6 | F10: 15.4 | G10: 15.3 | H10: 15.3 | I10: 15.8 | J10: 16.5 | K10: 17.1 | L10: 17.5 | M10: 17.8 | N10: 18 | O10: 18.1 | P10: 18.2 | Q10: 18.1 | R10: 18 | S10: 17.8 | T10: 17.5 | U10: 17.2 | V10: 16.9 | W10: 16.7 | X10: 16.4 | Y10: 16.2
A11: 10月 | B11: 9.6 | C11: 9.4 | D11: 9.2 | E11: 9 | F11: 8.8 | G11: 8.6 | H11: 8.5 | I11: 8.9 | J11: 9.8 | K11: 10.7 | L11: 11.4 | M11: 11.8 | N11: 12.1 | O11: 12.2 | P11: 12.3 | Q11: 12.2 | R11: 12 | S11: 11.6 | T11: 11.2 | U11: 10.8 | V11: 10.5 | W11: 10.2 | X11: 9.9 | Y11: 9.7
A12: 11月 | B12: 3.7 | C12: 3.5 | D12: 3.4 | E12: 3.2 | F12: 3 | G12: 2.9 | H12: 2.8 | I12: 2.9 | J12: 3.6 | K12: 4.5 | L12: 5.2 | M12: 5.7 | N12: 6.1 | O12: 6.3 | P12: 6.3 | Q12: 6.2 | R12: 5.8 | S12: 5.4 | T12: 5 | U12: 4.7 | V12: 4.4 | W12: 4.1 | X12: 3.9 | Y12: 3.7
A13: 12月 | B13: -1.2 | C13: -1.3 | D13: -1.5 | E13: -1.5 | F13: -1.7 | G13: -1.8 | H13: -1.9 | I13: -1.9 | J13: -1.6 | K13: -0.8 | L13: -0.2 | M13: 0.3 | N13: 0.7 | O13: 0.8 | P13: 0.9 | Q13: 0.7 | R13: 0.4 | S13: 0 | T13: -0.2 | U13: -0.5 | V13: -0.7 | W13: -0.8 | X13: -1 | Y13: -1.1
A14: 1月 | B14: -3.8 | C14: -3.9 | D14: -4.1 | E14: -4.2 | F14: -4.4 | G14: -4.5 | H14: -4.6 | I14: -4.7 | J14: -4.3 | K14: -3.4 | L14: -2.6 | M14: -2 | N14: -1.6 | O14: -1.4 | P14: -1.4 | Q14: -1.5 | R14: -1.8 | S14: -2.2 | T14: -2.5 | U14: -2.7 | V14: -3 | W14: -3.2 | X14: -3.4 | Y14: -3.6
A15: 2月 | B15: -3.3 | C15: -3.5 | D15: -3.7 | E15: -3.9 | F15: -4 | G15: -4.2 | H15: -4.4 | I15: -4.4 | J15: -3.7 | K15: -2.7 | L15: -1.9 | M15: -1.3 | N15: -1 | O15: -0.7 | P15: -0.6 | Q15: -0.7 | R15: -0.9 | S15: -1.3 | T15: -1.7 | U15: -2 | V15: -2.3 | W15: -2.5 | X15: -2.7 | Y15: -3
A16: 3月 | B16: -0.5 | C16: -0.7 | D16: -0.9 | E16: -1.1 | F16: -1.2 | G16: -1.4 | H16: -1.5 | I16: -1.1 | J16: -0.2 | K16: 0.6 | L16: 1.3 | M16: 1.8 | N16: 2.2 | O16: 2.4 | P16: 2.5 | Q16: 2.4 | R16: 2.1 | S16: 1.8 | T16: 1.3 | U16: 1 | V16: 0.7 | W16: 0.4 | X16: 0.1 | Y16: -0.1

Sheet 仙台 (hidden)
A1: 気象データ
A2: =RIGHT(CELL("filename",A2),LEN(CELL("filename",A2))-FIND("]",CELL("filename",A2))) -> 仙台
A3: 時刻別平均外気湿球温度
A4: 時刻 | B4: 0 | C4: 1 | D4: 2 | E4: 3 | F4: 4 | G4: 5 | H4: 6 | I4: 7 | J4: 8 | K4: 9 | L4: 10 | M4: 11 | N4: 12 | O4: 13 | P4: 14 | Q4: 15 | R4: 16 | S4: 17 | T4: 18 | U4: 19 | V4: 20 | W4: 21 | X4: 22 | Y4: 23
A5: 4月 | B5: 6.3 | C5: 6.1 | D5: 5.9 | E5: 5.6 | F5: 5.5 | G5: 5.3 | H5: 5.5 | I5: 6 | J5: 6.7 | K5: 7.4 | L5: 7.9 | M5: 8.3 | N5: 8.5 | O5: 8.5 | P5: 8.6 | Q5: 8.5 | R5: 8.3 | S5: 8 | T5: 7.7 | U5: 7.5 | V5: 7.3 | W5: 7.2 | X5: 6.9 | Y5: 6.7
A6: 5月 | B6: 11.6 | C6: 11.4 | D6: 11.2 | E6: 11 | F6: 10.8 | G6: 10.8 | H6: 11.1 | I6: 11.6 | J6: 12.2 | K6: 12.7 | L6: 13.1 | M6: 13.3 | N6: 13.4 | O6: 13.4 | P6: 13.4 | Q6: 13.3 | R6: 13.2 | S6: 13 | T6: 12.7 | U6: 12.5 | V6: 12.4 | W6: 12.2 | X6: 12.1 | Y6: 11.9
A7: 6月 | B7: 16.1 | C7: 15.9 | D7: 15.8 | E7: 15.6 | F7: 15.5 | G7: 15.5 | H7: 15.7 | I7: 16.1 | J7: 16.5 | K7: 16.8 | L7: 17.2 | M7: 17.4 | N7: 17.5 | O7: 17.5 | P7: 17.4 | Q7: 17.3 | R7: 17.2 | S7: 17.1 | T7: 16.9 | U7: 16.7 | V7: 16.6 | W7: 16.6 | X7: 16.5 | Y7: 16.4
A8: 7月 | B8: 20.2 | C8: 20.1 | D8: 20 | E8: 19.9 | F8: 19.8 | G8: 19.8 | H8: 19.9 | I8: 20.2 | J8: 20.5 | K8: 20.8 | L8: 21.2 | M8: 21.3 | N8: 21.4 | O8: 21.4 | P8: 21.4 | Q8: 21.2 | R8: 21.1 | S8: 21 | T8: 20.8 | U8: 20.7 | V8: 20.6 | W8: 20.5 | X8: 20.5 | Y8: 20.4
A9: 8月 | B9: 21.6 | C9: 21.5 | D9: 21.3 | E9: 21.2 | F9: 21.1 | G9: 21 | H9: 21.1 | I9: 21.3 | J9: 21.7 | K9: 22 | L9: 22.4 | M9: 22.6 | N9: 22.7 | O9: 22.7 | P9: 22.5 | Q9: 22.6 | R9: 22.4 | S9: 22.3 | T9: 22.1 | U9: 22 | V9: 22 | W9: 21.9 | X9: 21.8 | Y9: 21.7
A10: 9月 | B10: 18.1 | C10: 17.9 | D10: 17.8 | E10: 17.6 | F10: 17.4 | G10: 17.3 | H10: 17.3 | I10: 17.6 | J10: 18.1 | K10: 18.5 | L10: 18.8 | M10: 19 | N10: 19.2 | O10: 19.3 | P10: 19.3 | Q10: 19.2 | R10: 19.1 | S10: 19 | T10: 18.9 | U10: 18.8 | V10: 18.7 | W10: 18.5 | X10: 18.3 | Y10: 18.1
A11: 10月 | B11: 12.2 | C11: 12 | D11: 11.8 | E11: 11.6 | F11: 11.5 | G11: 11.3 | H11: 11.2 | I11: 11.5 | J11: 12.1 | K11: 12.7 | L11: 13.2 | M11: 13.6 | N11: 13.8 | O11: 13.9 | P11: 13.9 | Q11: 13.8 | R11: 13.6 | S11: 13.4 | T11: 13.2 | U11: 13 | V11: 12.9 | W11: 12.6 | X11: 12.4 | Y11: 12.2
A12: 11月 | B12: 6.4 | C12: 6.3 | D12: 6.1 | E12: 5.9 | F12: 5.8 | G12: 5.7 | H12: 5.6 | I12: 5.7 | J12: 6.3 | K12: 7 | L12: 7.6 | M12: 8 | N12: 8.3 | O12: 8.5 | P12: 8.5 | Q12: 8.4 | R12: 8.1 | S12: 7.8 | T12: 7.6 | U12: 7.4 | V12: 7.1 | W12: 6.9 | X12: 6.7 | Y12: 6.4
A13: 12月 | B13: 1.6 | C13: 1.5 | D13: 1.3 | E13: 1.2 | F13: 1.1 | G13: 1 | H13: 0.9 | I13: 0.9 | J13: 1.3 | K13: 2 | L13: 2.6 | M13: 3.1 | N13: 3.4 | O13: 3.5 | P13: 3.5 | Q13: 3.4 | R13: 3.1 | S13: 2.8 | T13: 2.6 | U13: 2.4 | V13: 2.2 | W13: 2 | X13: 1.8 | Y13: 1.6
A14: 1月 | B14: -0.8 | C14: -0.9 | D14: -1.1 | E14: -1.2 | F14: -1.3 | G14: -1.4 | H14: -1.5 | I14: -1.5 | J14: -1 | K14: -0.4 | L14: 0.2 | M14: 0.7 | N14: 1 | O14: 1.1 | P14: 1.1 | Q14: 1 | R14: 0.7 | S14: 0.4 | T14: 0.2 | U14: 0 | V14: -0.2 | W14: -0.4 | X14: -0.5 | Y14: -0.7
A15: 2月 | B15: -0.6 | C15: -0.8 | D15: -0.9 | E15: -1.1 | F15: -1.2 | G15: -1.3 | H15: -1.4 | I15: -1.3 | J15: -0.7 | K15: 0 | L15: 0.7 | M15: 1.1 | N15: 1.4 | O15: 1.6 | P15: 1.7 | Q15: 1.6 | R15: 1.3 | S15: 1 | T15: 0.7 | U15: 0.4 | V15: 0.2 | W15: 0 | X15: -0.1 | Y15: -0.3
A16: 3月 | B16: 1.9 | C16: 1.7 | D16: 1.5 | E16: 1.3 | F16: 1.1 | G16: 1 | H16: 0.9 | I16: 1.3 | J16: 2 | K16: 2.7 | L16: 3.3 | M16: 3.7 | N16: 4 | O16: 4.2 | P16: 4.2 | Q16: 4.1 | R16: 4 | S16: 3.6 | T16: 3.3 | U16: 3.1 | V16: 2.9 | W16: 2.6 | X16: 2.4 | Y16: 2.2

Sheet 秋田 (hidden)
A1: 気象データ
A2: =RIGHT(CELL("filename",A2),LEN(CELL("filename",A2))-FIND("]",CELL("filename",A2))) -> 秋田
A3: 時刻別平均外気湿球温度
A4: 時刻 | B4: 0 | C4: 1 | D4: 2 | E4: 3 | F4: 4 | G4: 5 | H4: 6 | I4: 7 | J4: 8 | K4: 9 | L4: 10 | M4: 11 | N4: 12 | O4: 13 | P4: 14 | Q4: 15 | R4: 16 | S4: 17 | T4: 18 | U4: 19 | V4: 20 | W4: 21 | X4: 22 | Y4: 23
A5: 4月 | B5: 5.7 | C5: 5.5 | D5: 5.3 | E5: 5.1 | F5: 4.9 | G5: 4.8 | H5: 4.9 | I5: 5.6 | J5: 6.4 | K5: 7.1 | L5: 7.6 | M5: 7.8 | N5: 8 | O5: 8.1 | P5: 8.1 | Q5: 8 | R5: 7.8 | S5: 7.6 | T5: 7.3 | U5: 7.1 | V5: 6.9 | W5: 6.6 | X5: 6.3 | Y5: 6.1
A6: 5月 | B6: 11.2 | C6: 10.9 | D6: 10.7 | E6: 10.6 | F6: 10.4 | G6: 10.4 | H6: 10.7 | I6: 11.3 | J6: 12 | K6: 12.5 | L6: 12.8 | M6: 13.1 | N6: 13.2 | O6: 13.2 | P6: 13.2 | Q6: 13.1 | R6: 13 | S6: 12.8 | T6: 12.6 | U6: 12.4 | V6: 12.2 | W6: 12.1 | X6: 11.8 | Y6: 11.6
A7: 6月 | B7: 15.7 | C7: 15.5 | D7: 15.3 | E7: 15.2 | F7: 15 | G7: 15 | H7: 15.3 | I7: 15.9 | J7: 16.4 | K7: 16.8 | L7: 17.1 | M7: 17.3 | N7: 17.4 | O7: 17.4 | P7: 17.4 | Q7: 17.4 | R7: 17.3 | S7: 17.2 | T7: 17 | U7: 16.8 | V7: 16.7 | W7: 16.5 | X7: 16.3 | Y7: 16.1
A8: 7月 | B8: 20.2 | C8: 20 | D8: 19.8 | E8: 19.7 | F8: 19.6 | G8: 19.6 | H8: 19.8 | I8: 20.2 | J8: 20.6 | K8: 20.9 | L8: 21.2 | M8: 21.4 | N8: 21.5 | O8: 21.5 | P8: 21.5 | Q8: 21.5 | R8: 21.5 | S8: 21.4 | T8: 21.2 | U8: 21.1 | V8: 20.9 | W8: 20.8 | X8: 20.7 | Y8: 20.5
A9: 8月 | B9: 21.3 | C9: 21.1 | D9: 20.9 | E9: 20.8 | F9: 20.7 | G9: 20.6 | H9: 20.7 | I9: 21.1 | J9: 21.6 | K9: 22 | L9: 22.3 | M9: 22.5 | N9: 22.6 | O9: 22.7 | P9: 22.7 | Q9: 22.7 | R9: 22.6 | S9: 22.5 | T9: 22.3 | U9: 22.2 | V9: 22.1 | W9: 21.9 | X9: 21.7 | Y9: 21.4
A10: 9月 | B10: 17.2 | C10: 16.9 | D10: 16.8 | E10: 16.6 | F10: 16.5 | G10: 16.4 | H10: 16.4 | I10: 16.8 | J10: 17.4 | K10: 18 | L10: 18.4 | M10: 18.6 | N10: 18.8 | O10: 18.8 | P10: 18.8 | Q10: 18.8 | R10: 18.7 | S10: 18.5 | T10: 18.3 | U10: 18.1 | V10: 17.9 | W10: 17.7 | X10: 17.4 | Y10: 17.2
A11: 10月 | B11: 11 | C11: 10.8 | D11: 10.7 | E11: 10.5 | F11: 10.4 | G11: 10.3 | H11: 10.2 | I11: 10.4 | J11: 11.1 | K11: 11.9 | L11: 12.5 | M11: 12.8 | N11: 13 | O11: 13 | P11: 13 | Q11: 12.9 | R11: 12.7 | S11: 12.5 | T11: 12.3 | U11: 12.1 | V11: 11.8 | W11: 11.5 | X11: 11.2 | Y11: 11
A12: 11月 | B12: 5.6 | C12: 5.4 | D12: 5.3 | E12: 5.2 | F12: 5.1 | G12: 5 | H12: 4.9 | I12: 5 | J12: 5.4 | K12: 6 | L12: 6.6 | M12: 7 | N12: 7.2 | O12: 7.4 | P12: 7.3 | Q12: 7.2 | R12: 7 | S12: 6.7 | T12: 6.5 | U12: 6.3 | V12: 6 | W12: 5.8 | X12: 5.6 | Y12: 5.5
A13: 12月 | B13: 0.7 | C13: 0.7 | D13: 0.6 | E13: 0.6 | F13: 0.5 | G13: 0.4 | H13: 0.4 | I13: 0.3 | J13: 0.5 | K13: 0.9 | L13: 1.3 | M13: 1.6 | N13: 1.8 | O13: 1.9 | P13: 1.9 | Q13: 1.9 | R13: 1.7 | S13: 1.5 | T13: 1.4 | U13: 1.2 | V13: 1 | W13: 0.9 | X13: 0.8 | Y13: 0.7
A14: 1月 | B14: -1.5 | C14: -1.6 | D14: -1.6 | E14: -1.7 | F14: -1.8 | G14: -1.8 | H14: -1.9 | I14: -1.9 | J14: -1.7 | K14: -1.4 | L14: -1 | M14: -0.7 | N14: -0.5 | O14: -0.4 | P14: -0.4 | Q14: -0.5 | R14: -0.7 | S14: -0.8 | T14: -0.9 | U14: -1.1 | V14: -1.2 | W14: -1.3 | X14: -1.4 | Y14: -1.5
A15: 2月 | B15: -1.3 | C15: -1.4 | D15: -1.5 | E15: -1.6 | F15: -1.7 | G15: -1.7 | H15: -1.8 | I15: -1.8 | J15: -1.5 | K15: -1 | L15: -0.5 | M15: -0.2 | N15: 0 | O15: 0.2 | P15: 0.2 | Q15: 0.1 | R15: 0 | S15: -0.2 | T15: -0.4 | U15: -0.6 | V15: -0.7 | W15: -0.9 | X15: -1 | Y15: -1.1
A16: 3月 | B16: 1.1 | C16: 1 | D16: 0.8 | E16: 0.7 | F16: 0.6 | G16: 0.5 | H16: 0.5 | I16: 0.7 | J16: 1.3 | K16: 2 | L16: 2.5 | M16: 2.9 | N16: 3.1 | O16: 3.2 | P16: 3.2 | Q16: 3.1 | R16: 3 | S16: 2.7 | T16: 2.5 | U16: 2.3 | V16: 2 | W16: 1.8 | X16: 1.6 | Y16: 1.4

Sheet 山形 (hidden)
A1: 気象データ
A2: =RIGHT(CELL("filename",A2),LEN(CELL("filename",A2))-FIND("]",CELL("filename",A2))) -> 山形
A3: 時刻別平均外気湿球温度
A4: 時刻 | B4: 0 | C4: 1 | D4: 2 | E4: 3 | F4: 4 | G4: 5 | H4: 6 | I4: 7 | J4: 8 | K4: 9 | L4: 10 | M4: 11 | N4: 12 | O4: 13 | P4: 14 | Q4: 15 | R4: 16 | S4: 17 | T4: 18 | U4: 19 | V4: 20 | W4: 21 | X4: 22 | Y4: 23
A5: 4月 | B5: 5.3 | C5: 5.1 | D5: 4.8 | E5: 4.6 | F5: 4.4 | G5: 4.2 | H5: 4.4 | I5: 5.1 | J5: 5.8 | K5: 6.6 | L5: 7.2 | M5: 7.8 | N5: 8.1 | O5: 8.3 | P5: 8.4 | Q5: 8.4 | R5: 8.2 | S5: 7.9 | T5: 7.4 | U5: 7 | V5: 6.7 | W5: 6.4 | X5: 6 | Y5: 5.7
A6: 5月 | B6: 10.9 | C6: 10.7 | D6: 10.5 | E6: 10.3 | F6: 10.1 | G6: 10 | H6: 10.3 | I6: 10.9 | J6: 11.6 | K6: 12.2 | L6: 12.7 | M6: 13.1 | N6: 13.4 | O6: 13.7 | P6: 13.7 | Q6: 13.6 | R6: 13.5 | S6: 13.2 | T6: 12.9 | U6: 12.4 | V6: 12.1 | W6: 11.8 | X6: 11.5 | Y6: 11.3
A7: 6月 | B7: 15.6 | C7: 15.4 | D7: 15.3 | E7: 15.1 | F7: 14.9 | G7: 14.9 | H7: 15.3 | I7: 15.7 | J7: 16.2 | K7: 16.7 | L7: 17.1 | M7: 17.4 | N7: 17.6 | O7: 17.8 | P7: 17.9 | Q7: 17.9 | R7: 17.9 | S7: 17.6 | T7: 17.4 | U7: 17 | V7: 16.8 | W7: 16.5 | X7: 16.3 | Y7: 16
A8: 7月 | B8: 19.9 | C8: 19.8 | D8: 19.7 | E8: 19.5 | F8: 19.4 | G8: 19.4 | H8: 19.6 | I8: 20 | J8: 20.4 | K8: 20.8 | L8: 21.2 | M8: 21.5 | N8: 21.7 | O8: 21.8 | P8: 21.9 | Q8: 21.9 | R8: 21.8 | S8: 21.6 | T8: 21.4 | U8: 21 | V8: 20.8 | W8: 20.6 | X8: 20.4 | Y8: 20.2
A9: 8月 | B9: 20.9 | C9: 20.7 | D9: 20.6 | E9: 20.5 | F9: 20.3 | G9: 20.2 | H9: 20.4 | I9: 20.8 | J9: 21.3 | K9: 21.7 | L9: 22.1 | M9: 22.3 | N9: 22.5 | O9: 22.5 | P9: 22.6 | Q9: 22.6 | R9: 22.5 | S9: 22.4 | T9: 22.1 | U9: 21.9 | V9: 21.6 | W9: 21.4 | X9: 21.2 | Y9: 21
A10: 9月 | B10: 17.1 | C10: 16.9 | D10: 16.7 | E10: 16.6 | F10: 16.4 | G10: 16.3 | H10: 16.3 | I10: 16.7 | J10: 17.2 | K10: 17.8 | L10: 18.2 | M10: 18.5 | N10: 18.7 | O10: 18.8 | P10: 18.9 | Q10: 18.9 | R10: 18.8 | S10: 18.5 | T10: 18.2 | U10: 17.9 | V10: 17.7 | W10: 17.5 | X10: 17.3 | Y10: 17.1
A11: 10月 | B11: 11 | C11: 10.8 | D11: 10.6 | E11: 10.4 | F11: 10.3 | G11: 10.1 | H11: 10 | I11: 10.4 | J11: 11 | K11: 11.7 | L11: 12.3 | M11: 12.7 | N11: 13 | O11: 13.2 | P11: 13.2 | Q11: 13.2 | R11: 13 | S11: 12.7 | T11: 12.3 | U11: 12 | V11: 11.7 | W11: 11.4 | X11: 11.2 | Y11: 11
A12: 11月 | B12: 5.2 | C12: 5.1 | D12: 4.9 | E12: 4.8 | F12: 4.6 | G12: 4.5 | H12: 4.4 | I12: 4.5 | J12: 5.1 | K12: 5.8 | L12: 6.5 | M12: 7 | N12: 7.4 | O12: 7.6 | P12: 7.6 | Q12: 7.6 | R12: 7.3 | S12: 6.8 | T12: 6.5 | U12: 6.2 | V12: 5.9 | W12: 5.7 | X12: 5.4 | Y12: 5.3
A13: 12月 | B13: 0.7 | C13: 0.5 | D13: 0.4 | E13: 0.3 | F13: 0.2 | G13: 0.1 | H13: 0 | I13: 0 | J13: 0.4 | K13: 1 | L13: 1.6 | M13: 2 | N13: 2.3 | O13: 2.5 | P13: 2.6 | Q13: 2.4 | R13: 2.1 | S13: 1.8 | T13: 1.5 | U13: 1.3 | V13: 1.1 | W13: 1 | X13: 0.8 | Y13: 0.7
A14: 1月 | B14: -1.7 | C14: -1.9 | D14: -2 | E14: -2.1 | F14: -2.2 | G14: -2.3 | H14: -2.4 | I14: -2.4 | J14: -2.1 | K14: -1.5 | L14: -0.9 | M14: -0.4 | N14: -0.1 | O14: 0.1 | P14: 0.1 | Q14: 0 | R14: -0.2 | S14: -0.5 | T14: -0.8 | U14: -1 | V14: -1.2 | W14: -1.3 | X14: -1.5 | Y14: -1.6
A15: 2月 | B15: -1.7 | C15: -1.8 | D15: -2 | E15: -2.1 | F15: -2.3 | G15: -2.4 | H15: -2.5 | I15: -2.5 | J15: -1.9 | K15: -1.2 | L15: -0.5 | M15: 0 | N15: 0.3 | O15: 0.5 | P15: 0.6 | Q15: 0.6 | R15: 0.4 | S15: 0 | T15: -0.3 | U15: -0.6 | V15: -0.8 | W15: -1 | X15: -1.2 | Y15: -1.4
A16: 3月 | B16: 0.8 | C16: 0.6 | D16: 0.4 | E16: 0.2 | F16: 0 | G16: -0.1 | H16: -0.2 | I16: 0.2 | J16: 0.9 | K16: 1.7 | L16: 2.3 | M16: 2.8 | N16: 3.2 | O16: 3.5 | P16: 3.6 | Q16: 3.6 | R16: 3.4 | S16: 3 | T16: 2.5 | U16: 2.2 | V16: 1.9 | W16: 1.6 | X16: 1.4 | Y16: 1.1

Sheet 福島 (hidden)
A1: 気象データ
A2: =RIGHT(CELL("filename",A2),LEN(CELL("filename",A2))-FIND("]",CELL("filename",A2))) -> 福島
A3: 時刻別平均外気湿球温度
A4: 時刻 | B4: 0 | C4: 1 | D4: 2 | E4: 3 | F4: 4 | G4: 5 | H4: 6 | I4: 7 | J4: 8 | K4: 9 | L4: 10 | M4: 11 | N4: 12 | O4: 13 | P4: 14 | Q4: 15 | R4: 16 | S4: 17 | T4: 18 | U4: 19 | V4: 20 | W4: 21 | X4: 22 | Y4: 23
A5: 4月 | B5: 6.5 | C5: 6.3 | D5: 6 | E5: 5.8 | F5: 5.6 | G5: 5.4 | H5: 5.5 | I5: 6.1 | J5: 6.9 | K5: 7.7 | L5: 8.3 | M5: 8.7 | N5: 9 | O5: 9.2 | P5: 9.3 | Q5: 9.2 | R5: 9 | S5: 8.7 | T5: 8.3 | U5: 7.9 | V5: 7.6 | W5: 7.4 | X5: 7.2 | Y5: 6.9
A6: 5月 | B6: 11.8 | C6: 11.6 | D6: 11.4 | E6: 11.2 | F6: 11 | G6: 10.9 | H6: 11.2 | I6: 11.7 | J6: 12.4 | K6: 13 | L6: 13.5 | M6: 13.8 | N6: 14 | O6: 14.1 | P6: 14.3 | Q6: 14.2 | R6: 14 | S6: 13.8 | T6: 13.4 | U6: 13.1 | V6: 12.8 | W6: 12.6 | X6: 12.4 | Y6: 12.2
A7: 6月 | B7: 16.3 | C7: 16.1 | D7: 16 | E7: 15.8 | F7: 15.6 | G7: 15.6 | H7: 15.8 | I7: 16.2 | J7: 16.7 | K7: 17.1 | L7: 17.5 | M7: 17.8 | N7: 18 | O7: 18.1 | P7: 18.2 | Q7: 18.3 | R7: 18.2 | S7: 18 | T7: 17.8 | U7: 17.4 | V7: 17.2 | W7: 17 | X7: 16.8 | Y7: 16.6
A8: 7月 | B8: 20.4 | C8: 20.3 | D8: 20.2 | E8: 20.1 | F8: 20 | G8: 19.9 | H8: 20 | I8: 20.4 | J8: 20.7 | K8: 21.1 | L8: 21.4 | M8: 21.7 | N8: 21.8 | O8: 22.1 | P8: 22.1 | Q8: 22.2 | R8: 22.1 | S8: 21.9 | T8: 21.6 | U8: 21.4 | V8: 21.1 | W8: 20.9 | X8: 20.8 | Y8: 20.6
A9: 8月 | B9: 21.6 | C9: 21.4 | D9: 21.3 | E9: 21.2 | F9: 21.1 | G9: 21 | H9: 21 | I9: 21.3 | J9: 21.7 | K9: 22.1 | L9: 22.4 | M9: 22.7 | N9: 22.8 | O9: 22.8 | P9: 22.9 | Q9: 23 | R9: 23 | S9: 22.8 | T9: 22.6 | U9: 22.3 | V9: 22.1 | W9: 21.9 | X9: 21.8 | Y9: 21.7
A10: 9月 | B10: 18 | C10: 17.9 | D10: 17.7 | E10: 17.5 | F10: 17.4 | G10: 17.3 | H10: 17.2 | I10: 17.5 | J10: 17.9 | K10: 18.4 | L10: 18.8 | M10: 19.1 | N10: 19.3 | O10: 19.4 | P10: 19.4 | Q10: 19.4 | R10: 19.3 | S10: 19.2 | T10: 19 | U10: 18.8 | V10: 18.6 | W10: 18.4 | X10: 18.2 | Y10: 18
A11: 10月 | B11: 12.2 | C11: 12 | D11: 11.8 | E11: 11.6 | F11: 11.4 | G11: 11.3 | H11: 11.2 | I11: 11.4 | J11: 12 | K11: 12.6 | L11: 13.2 | M11: 13.6 | N11: 13.9 | O11: 14.1 | P11: 14.1 | Q11: 14.1 | R11: 13.9 | S11: 13.6 | T11: 13.4 | U11: 13.1 | V11: 12.9 | W11: 12.7 | X11: 12.4 | Y11: 12.2
A12: 11月 | B12: 6.3 | C12: 6.1 | D12: 5.9 | E12: 5.7 | F12: 5.5 | G12: 5.4 | H12: 5.2 | I12: 5.3 | J12: 5.8 | K12: 6.6 | L12: 7.3 | M12: 8 | N12: 8.4 | O12: 8.6 | P12: 8.7 | Q12: 8.6 | R12: 8.3 | S12: 8 | T12: 7.7 | U12: 7.4 | V12: 7.1 | W12: 6.9 | X12: 6.6 | Y12: 6.4
A13: 12月 | B13: 1.6 | C13: 1.5 | D13: 1.3 | E13: 1.2 | F13: 1 | G13: 0.9 | H13: 0.8 | I13: 0.7 | J13: 1 | K13: 1.7 | L13: 2.4 | M13: 3 | N13: 3.4 | O13: 3.7 | P13: 3.7 | Q13: 3.6 | R13: 3.3 | S13: 3 | T13: 2.7 | U13: 2.5 | V13: 2.3 | W13: 2.1 | X13: 1.9 | Y13: 1.7
A14: 1月 | B14: -0.8 | C14: -1 | D14: -1.1 | E14: -1.3 | F14: -1.4 | G14: -1.5 | H14: -1.6 | I14: -1.6 | J14: -1.3 | K14: -0.6 | L14: 0.1 | M14: 0.6 | N14: 1.1 | O14: 1.3 | P14: 1.4 | Q14: 1.2 | R14: 0.9 | S14: 0.6 | T14: 0.3 | U14: 0.1 | V14: -0.1 | W14: -0.3 | X14: -0.5 | Y14: -0.7
A15: 2月 | B15: -0.5 | C15: -0.7 | D15: -0.9 | E15: -1.1 | F15: -1.2 | G15: -1.3 | H15: -1.4 | I15: -1.4 | J15: -0.9 | K15: -0.1 | L15: 0.6 | M15: 1.2 | N15: 1.7 | O15: 1.9 | P15: 2 | Q15: 1.9 | R15: 1.7 | S15: 1.2 | T15: 0.9 | U15: 0.7 | V15: 0.4 | W15: 0.2 | X15: 0 | Y15: -0.2
A16: 3月 | B16: 1.9 | C16: 1.7 | D16: 1.5 | E16: 1.3 | F16: 1.1 | G16: 1 | H16: 0.9 | I16: 1.2 | J16: 1.9 | K16: 2.7 | L16: 3.5 | M16: 4 | N16: 4.4 | O16: 4.7 | P16: 4.8 | Q16: 4.7 | R16: 4.5 | S16: 4 | T16: 3.6 | U16: 3.3 | V16: 3 | W16: 2.8 | X16: 2.5 | Y16: 2.3

Sheet 水戸 (hidden)
A1: 気象データ
A2: =RIGHT(CELL("filename",A2),LEN(CELL("filename",A2))-FIND("]",CELL("filename",A2))) -> 水戸
A3: 時刻別平均外気湿球温度
A4: 時刻 | B4: 0 | C4: 1 | D4: 2 | E4: 3 | F4: 4 | G4: 5 | H4: 6 | I4: 7 | J4: 8 | K4: 9 | L4: 10 | M4: 11 | N4: 12 | O4: 13 | P4: 14 | Q4: 15 | R4: 16 | S4: 17 | T4: 18 | U4: 19 | V4: 20 | W4: 21 | X4: 22 | Y4: 23
A5: 4月 | B5: 8.2 | C5: 7.9 | D5: 7.6 | E5: 7.4 | F5: 7.1 | G5: 6.9 | H5: 7 | I5: 7.8 | J5: 8.9 | K5: 9.7 | L5: 10.2 | M5: 10.5 | N5: 10.8 | O5: 11 | P5: 10.9 | Q5: 10.8 | R5: 10.6 | S5: 10.3 | T5: 10.1 | U5: 9.8 | V5: 9.6 | W5: 9.4 | X5: 9.1 | Y5: 8.7
A6: 5月 | B6: 13.4 | C6: 13.1 | D6: 12.9 | E6: 12.7 | F6: 12.5 | G6: 12.4 | H6: 12.7 | I6: 13.4 | J6: 14.1 | K6: 14.6 | L6: 14.9 | M6: 15.2 | N6: 15.2 | O6: 15.3 | P6: 15.3 | Q6: 15.2 | R6: 15 | S6: 14.8 | T6: 14.5 | U6: 14.3 | V6: 14.2 | W6: 14.1 | X6: 13.9 | Y6: 13.7
A7: 6月 | B7: 17.4 | C7: 17.2 | D7: 17.1 | E7: 16.9 | F7: 16.8 | G7: 16.7 | H7: 17 | I7: 17.5 | J7: 18 | K7: 18.3 | L7: 18.6 | M7: 18.8 | N7: 18.9 | O7: 18.9 | P7: 18.9 | Q7: 18.7 | R7: 18.5 | S7: 18.4 | T7: 18.2 | U7: 18 | V7: 17.8 | W7: 17.8 | X7: 17.7 | Y7: 17.6
A8: 7月 | B8: 21.1 | C8: 21 | D8: 20.9 | E8: 20.9 | F8: 20.8 | G8: 20.7 | H8: 21 | I8: 21.4 | J8: 21.8 | K8: 22.2 | L8: 22.5 | M8: 22.6 | N8: 22.8 | O8: 22.8 | P8: 22.7 | Q8: 22.5 | R8: 22.3 | S8: 22.1 | T8: 21.9 | U8: 21.6 | V8: 21.5 | W8: 21.4 | X8: 21.4 | Y8: 21.3
A9: 8月 | B9: 22.4 | C9: 22.3 | D9: 22.2 | E9: 22.1 | F9: 22 | G9: 21.9 | H9: 22 | I9: 22.5 | J9: 23 | K9: 23.3 | L9: 23.5 | M9: 23.7 | N9: 23.9 | O9: 23.9 | P9: 23.8 | Q9: 23.7 | R9: 23.5 | S9: 23.3 | T9: 23 | U9: 22.9 | V9: 22.8 | W9: 22.7 | X9: 22.6 | Y9: 22.5
A10: 9月 | B10: 19.1 | C10: 18.9 | D10: 18.8 | E10: 18.7 | F10: 18.5 | G10: 18.4 | H10: 18.4 | I10: 18.9 | J10: 19.6 | K10: 20 | L10: 20.3 | M10: 20.5 | N10: 20.6 | O10: 20.7 | P10: 20.6 | Q10: 20.5 | R10: 20.3 | S10: 20.1 | T10: 19.9 | U10: 19.8 | V10: 19.7 | W10: 19.6 | X10: 19.4 | Y10: 19.2
A11: 10月 | B11: 13.5 | C11: 13.3 | D11: 13.1 | E11: 12.9 | F11: 12.7 | G11: 12.6 | H11: 12.5 | I11: 12.9 | J11: 13.8 | K11: 14.6 | L11: 15.1 | M11: 15.4 | N11: 15.5 | O11: 15.6 | P11: 15.6 | Q11: 15.5 | R11: 15.3 | S11: 15 | T11: 14.8 | U11: 14.6 | V11: 14.3 | W11: 14 | X11: 13.7 | Y11: 13.5
A12: 11月 | B12: 7.5 | C12: 7.2 | D12: 7 | E12: 6.8 | F12: 6.6 | G12: 6.4 | H12: 6.2 | I12: 6.4 | J12: 7.4 | K12: 8.7 | L12: 9.7 | M12: 10.3 | N12: 10.5 | O12: 10.7 | P12: 10.6 | Q12: 10.5 | R12: 10.3 | S12: 9.9 | T12: 9.5 | U12: 9.1 | V12: 8.6 | W12: 8.2 | X12: 7.9 | Y12: 7.5
A13: 12月 | B13: 1.9 | C13: 1.6 | D13: 1.4 | E13: 1.2 | F13: 1.1 | G13: 0.9 | H13: 0.8 | I13: 0.7 | J13: 1.5 | K13: 2.9 | L13: 4.2 | M13: 5.1 | N13: 5.5 | O13: 5.7 | P13: 5.8 | Q13: 5.6 | R13: 5.2 | S13: 4.7 | T13: 4.2 | U13: 3.7 | V13: 3.2 | W13: 2.7 | X13: 2.3 | Y13: 2
A14: 1月 | B14: -0.6 | C14: -0.8 | D14: -1.1 | E14: -1.3 | F14: -1.5 | G14: -1.7 | H14: -1.8 | I14: -1.9 | J14: -1.1 | K14: 0.3 | L14: 1.7 | M14: 2.5 | N14: 3 | O14: 3.3 | P14: 3.4 | Q14: 3.2 | R14: 2.9 | S14: 2.4 | T14: 1.8 | U14: 1.3 | V14: 0.8 | W14: 0.4 | X14: 0 | Y14: -0.3
A15: 2月 | B15: 0 | C15: -0.2 | D15: -0.5 | E15: -0.7 | F15: -0.9 | G15: -1.1 | H15: -1.2 | I15: -1.2 | J15: -0.2 | K15: 1.2 | L15: 2.4 | M15: 3.1 | N15: 3.5 | O15: 3.8 | P15: 3.9 | Q15: 3.8 | R15: 3.5 | S15: 3.1 | T15: 2.7 | U15: 2.2 | V15: 1.8 | W15: 1.3 | X15: 0.9 | Y15: 0.5
A16: 3月 | B16: 3.4 | C16: 3.2 | D16: 2.9 | E16: 2.6 | F16: 2.4 | G16: 2.2 | H16: 2 | I16: 2.5 | J16: 3.7 | K16: 4.8 | L16: 5.5 | M16: 6 | N16: 6.3 | O16: 6.6 | P16: 6.6 | Q16: 6.6 | R16: 6.4 | S16: 6 | T16: 5.7 | U16: 5.4 | V16: 5.1 | W16: 4.7 | X16: 4.3 | Y16: 3.9

Sheet 宇都宮 (hidden)
A1: 気象データ
A2: =RIGHT(CELL("filename",A2),LEN(CELL("filename",A2))-FIND("]",CELL("filename",A2))) -> 宇都宮
A3: 時刻別平均外気湿球温度
A4: 時刻 | B4: 0 | C4: 1 | D4: 2 | E4: 3 | F4: 4 | G4: 5 | H4: 6 | I4: 7 | J4: 8 | K4: 9 | L4: 10 | M4: 11 | N4: 12 | O4: 13 | P4: 14 | Q4: 15 | R4: 16 | S4: 17 | T4: 18 | U4: 19 | V4: 20 | W4: 21 | X4: 22 | Y4: 23
A5: 4月 | B5: 8 | C5: 7.7 | D5: 7.5 | E5: 7.2 | F5: 6.9 | G5: 6.7 | H5: 6.8 | I5: 7.5 | J5: 8.3 | K5: 9.1 | L5: 9.7 | M5: 10.2 | N5: 10.5 | O5: 10.7 | P5: 10.8 | Q5: 10.8 | R5: 10.6 | S5: 10.3 | T5: 9.9 | U5: 9.5 | V5: 9.2 | W5: 9 | X5: 8.7 | Y5: 8.5
A6: 5月 | B6: 13.2 | C6: 13 | D6: 12.8 | E6: 12.6 | F6: 12.4 | G6: 12.3 | H6: 12.6 | I6: 13.1 | J6: 13.7 | K6: 14.2 | L6: 14.7 | M6: 15.1 | N6: 15.3 | O6: 15.4 | P6: 15.5 | Q6: 15.4 | R6: 15.3 | S6: 15.1 | T6: 14.7 | U6: 14.4 | V6: 14.1 | W6: 13.9 | X6: 13.7 | Y6: 13.6
A7: 6月 | B7: 17.4 | C7: 17.2 | D7: 17.1 | E7: 17 | F7: 16.8 | G7: 16.8 | H7: 17 | I7: 17.4 | J7: 17.8 | K7: 18.2 | L7: 18.6 | M7: 18.9 | N7: 19.1 | O7: 19.2 | P7: 19.2 | Q7: 19.2 | R7: 19.1 | S7: 19 | T7: 18.8 | U7: 18.5 | V7: 18.2 | W7: 18 | X7: 17.8 | Y7: 17.7
A8: 7月 | B8: 21.2 | C8: 21.1 | D8: 21 | E8: 21 | F8: 20.8 | G8: 20.7 | H8: 20.9 | I8: 21.2 | J8: 21.6 | K8: 22 | L8: 22.4 | M8: 22.6 | N8: 22.9 | O8: 23 | P8: 23 | Q8: 23.1 | R8: 22.9 | S8: 22.8 | T8: 22.4 | U8: 22.2 | V8: 21.9 | W8: 21.8 | X8: 21.6 | Y8: 21.4
A9: 8月 | B9: 22.3 | C9: 22.2 | D9: 22.1 | E9: 22 | F9: 21.9 | G9: 21.8 | H9: 21.9 | I9: 22.2 | J9: 22.6 | K9: 23 | L9: 23.3 | M9: 23.6 | N9: 23.8 | O9: 23.9 | P9: 23.9 | Q9: 23.9 | R9: 23.7 | S9: 23.5 | T9: 23.3 | U9: 23 | V9: 22.8 | W9: 22.6 | X9: 22.5 | Y9: 22.4
A10: 9月 | B10: 18.9 | C10: 18.8 | D10: 18.6 | E10: 18.5 | F10: 18.3 | G10: 18.2 | H10: 18.2 | I10: 18.5 | J10: 19 | K10: 19.4 | L10: 19.8 | M10: 20.1 | N10: 20.3 | O10: 20.4 | P10: 20.4 | Q10: 20.4 | R10: 20.2 | S10: 20.1 | T10: 19.8 | U10: 19.6 | V10: 19.3 | W10: 19.2 | X10: 19 | Y10: 18.9
A11: 10月 | B11: 13.2 | C11: 13 | D11: 12.8 | E11: 12.6 | F11: 12.4 | G11: 12.2 | H11: 12.1 | I11: 12.5 | J11: 13.2 | K11: 13.9 | L11: 14.4 | M11: 14.8 | N11: 15 | O11: 15.2 | P11: 15.2 | Q11: 15.1 | R11: 14.9 | S11: 14.6 | T11: 14.3 | U11: 14.1 | V11: 13.9 | W11: 13.7 | X11: 13.5 | Y11: 13.2
A12: 11月 | B12: 7.1 | C12: 6.8 | D12: 6.6 | E12: 6.3 | F12: 6.1 | G12: 5.9 | H12: 5.7 | I12: 5.9 | J12: 7 | K12: 8 | L12: 8.8 | M12: 9.4 | N12: 9.8 | O12: 10 | P12: 10 | Q12: 9.8 | R12: 9.5 | S12: 9.1 | T12: 8.8 | U12: 8.5 | V12: 8.1 | W12: 7.8 | X12: 7.5 | Y12: 7.2
A13: 12月 | B13: 1.6 | C13: 1.3 | D13: 1 | E13: 0.8 | F13: 0.6 | G13: 0.4 | H13: 0.2 | I13: 0.2 | J13: 1.1 | K13: 2.6 | L13: 3.6 | M13: 4.3 | N13: 4.8 | O13: 5 | P13: 5.1 | Q13: 4.9 | R13: 4.6 | S13: 4 | T13: 3.5 | U13: 3.1 | V13: 2.7 | W13: 2.3 | X13: 2 | Y13: 1.7
A14: 1月 | B14: -1 | C14: -1.3 | D14: -1.5 | E14: -1.8 | F14: -2.1 | G14: -2.3 | H14: -2.5 | I14: -2.5 | J14: -1.6 | K14: -0.1 | L14: 1 | M14: 1.7 | N14: 2.3 | O14: 2.6 | P14: 2.7 | Q14: 2.6 | R14: 2.2 | S14: 1.6 | T14: 1.2 | U14: 0.7 | V14: 0.3 | W14: -0.1 | X14: -0.4 | Y14: -0.7
A15: 2月 | B15: -0.3 | C15: -0.6 | D15: -0.8 | E15: -1.1 | F15: -1.3 | G15: -1.5 | H15: -1.7 | I15: -1.6 | J15: -0.5 | K15: 0.8 | L15: 1.7 | M15: 2.4 | N15: 2.9 | O15: 3.2 | P15: 3.4 | Q15: 3.4 | R15: 3.1 | S15: 2.6 | T15: 2 | U15: 1.6 | V15: 1.3 | W15: 0.9 | X15: 0.5 | Y15: 0.2
A16: 3月 | B16: 3.1 | C16: 2.8 | D16: 2.5 | E16: 2.2 | F16: 2 | G16: 1.8 | H16: 1.6 | I16: 2.1 | J16: 3.2 | K16: 4.1 | L16: 4.9 | M16: 5.5 | N16: 5.9 | O16: 6.2 | P16: 6.3 | Q16: 6.3 | R16: 6.1 | S16: 5.7 | T16: 5.2 | U16: 4.8 | V16: 4.5 | W16: 4.2 | X16: 3.9 | Y16: 3.5

Sheet 前橋 (hidden)
A1: 気象データ
A2: =RIGHT(CELL("filename",A2),LEN(CELL("filename",A2))-FIND("]",CELL("filename",A2))) -> 前橋
A3: 時刻別平均外気湿球温度
A4: 時刻 | B4: 0 | C4: 1 | D4: 2 | E4: 3 | F4: 4 | G4: 5 | H4: 6 | I4: 7 | J4: 8 | K4: 9 | L4: 10 | M4: 11 | N4: 12 | O4: 13 | P4: 14 | Q4: 15 | R4: 16 | S4: 17 | T4: 18 | U4: 19 | V4: 20 | W4: 21 | X4: 22 | Y4: 23
A5: 4月 | B5: 7.6 | C5: 7.2 | D5: 7 | E5: 6.7 | F5: 6.5 | G5: 6.2 | H5: 6.3 | I5: 7 | J5: 8 | K5: 8.7 | L5: 9.4 | M5: 9.9 | N5: 10.2 | O5: 10.4 | P5: 10.5 | Q5: 10.5 | R5: 10.3 | S5: 10 | T5: 9.7 | U5: 9.3 | V5: 9.1 | W5: 8.8 | X5: 8.5 | Y5: 8.1
A6: 5月 | B6: 12.8 | C6: 12.5 | D6: 12.2 | E6: 11.9 | F6: 11.7 | G6: 11.6 | H6: 11.8 | I6: 12.5 | J6: 13.2 | K6: 13.8 | L6: 14.3 | M6: 14.7 | N6: 14.9 | O6: 15.1 | P6: 15.2 | Q6: 15.2 | R6: 15 | S6: 14.9 | T6: 14.6 | U6: 14.3 | V6: 14 | W6: 13.8 | X6: 13.5 | Y6: 13.2
A7: 6月 | B7: 17.3 | C7: 17.1 | D7: 16.9 | E7: 16.7 | F7: 16.5 | G7: 16.4 | H7: 16.6 | I7: 17 | J7: 17.5 | K7: 17.9 | L7: 18.3 | M7: 18.6 | N7: 18.8 | O7: 18.9 | P7: 19.1 | Q7: 18.9 | R7: 19 | S7: 18.8 | T7: 18.7 | U7: 18.5 | V7: 18.3 | W7: 18.1 | X7: 17.9 | Y7: 17.7
A8: 7月 | B8: 21.3 | C8: 21.2 | D8: 21 | E8: 20.9 | F8: 20.7 | G8: 20.6 | H8: 20.7 | I8: 21.1 | J8: 21.5 | K8: 21.9 | L8: 22.2 | M8: 22.4 | N8: 22.6 | O8: 22.8 | P8: 22.8 | Q8: 22.9 | R8: 22.8 | S8: 22.8 | T8: 22.6 | U8: 22.4 | V8: 22.2 | W8: 22 | X8: 21.8 | Y8: 21.6
A9: 8月 | B9: 22.2 | C9: 22 | D9: 21.9 | E9: 21.7 | F9: 21.6 | G9: 21.5 | H9: 21.5 | I9: 21.9 | J9: 22.3 | K9: 22.7 | L9: 23.1 | M9: 23.4 | N9: 23.5 | O9: 23.6 | P9: 23.7 | Q9: 23.6 | R9: 23.5 | S9: 23.4 | T9: 23.2 | U9: 23 | V9: 22.9 | W9: 22.7 | X9: 22.5 | Y9: 22.3
A10: 9月 | B10: 18.7 | C10: 18.5 | D10: 18.4 | E10: 18.2 | F10: 18.1 | G10: 17.9 | H10: 17.9 | I10: 18.2 | J10: 18.7 | K10: 19.1 | L10: 19.5 | M10: 19.8 | N10: 20 | O10: 20.1 | P10: 20.1 | Q10: 20.1 | R10: 19.9 | S10: 19.8 | T10: 19.6 | U10: 19.5 | V10: 19.3 | W10: 19.1 | X10: 18.9 | Y10: 18.7
A11: 10月 | B11: 12.8 | C11: 12.7 | D11: 12.5 | E11: 12.3 | F11: 12.1 | G11: 12 | H11: 11.8 | I11: 12.1 | J11: 12.8 | K11: 13.5 | L11: 14 | M11: 14.4 | N11: 14.6 | O11: 14.7 | P11: 14.7 | Q11: 14.7 | R11: 14.4 | S11: 14.2 | T11: 14 | U11: 13.8 | V11: 13.5 | W11: 13.3 | X11: 13.1 | Y11: 12.9
A12: 11月 | B12: 6.8 | C12: 6.6 | D12: 6.4 | E12: 6.2 | F12: 6.1 | G12: 5.9 | H12: 5.7 | I12: 5.8 | J12: 6.7 | K12: 7.7 | L12: 8.5 | M12: 9 | N12: 9.4 | O12: 9.6 | P12: 9.6 | Q12: 9.4 | R12: 9.1 | S12: 8.6 | T12: 8.3 | U12: 8 | V12: 7.7 | W12: 7.4 | X12: 7.2 | Y12: 6.9
A13: 12月 | B13: 1.9 | C13: 1.7 | D13: 1.5 | E13: 1.4 | F13: 1.2 | G13: 1.1 | H13: 0.9 | I13: 0.9 | J13: 1.7 | K13: 2.8 | L13: 3.7 | M13: 4.3 | N13: 4.7 | O13: 4.9 | P13: 4.9 | Q13: 4.7 | R13: 4.2 | S13: 3.7 | T13: 3.3 | U13: 3 | V13: 2.7 | W13: 2.4 | X13: 2.2 | Y13: 1.9
A14: 1月 | B14: -0.5 | C14: -0.7 | D14: -0.9 | E14: -1.1 | F14: -1.2 | G14: -1.4 | H14: -1.5 | I14: -1.6 | J14: -0.9 | K14: 0.3 | L14: 1.3 | M14: 2 | N14: 2.4 | O14: 2.6 | P14: 2.6 | Q14: 2.5 | R14: 2.1 | S14: 1.5 | T14: 1.1 | U14: 0.7 | V14: 0.4 | W14: 0.2 | X14: -0.1 | Y14: -0.3
A15: 2月 | B15: -0.1 | C15: -0.3 | D15: -0.5 | E15: -0.7 | F15: -0.8 | G15: -1 | H15: -1.2 | I15: -1.1 | J15: -0.2 | K15: 0.9 | L15: 1.8 | M15: 2.4 | N15: 2.9 | O15: 3.1 | P15: 3.2 | Q15: 3.1 | R15: 2.8 | S15: 2.3 | T15: 1.8 | U15: 1.4 | V15: 1.1 | W15: 0.8 | X15: 0.6 | Y15: 0.3
A16: 3月 | B16: 2.9 | C16: 2.6 | D16: 2.4 | E16: 2.2 | F16: 2 | G16: 1.8 | H16: 1.7 | I16: 2.1 | J16: 3 | K16: 3.9 | L16: 4.6 | M16: 5.2 | N16: 5.6 | O16: 5.8 | P16: 5.9 | Q16: 5.9 | R16: 5.7 | S16: 5.3 | T16: 4.9 | U16: 4.5 | V16: 4.2 | W16: 3.9 | X16: 3.6 | Y16: 3.3

Sheet 熊谷 (hidden)
A1: 気象データ
A2: =RIGHT(CELL("filename",A2),LEN(CELL("filename",A2))-FIND("]",CELL("filename",A2))) -> 熊谷
A3: 時刻別平均外気湿球温度
A4: 時刻 | B4: 0 | C4: 1 | D4: 2 | E4: 3 | F4: 4 | G4: 5 | H4: 6 | I4: 7 | J4: 8 | K4: 9 | L4: 10 | M4: 11 | N4: 12 | O4: 13 | P4: 14 | Q4: 15 | R4: 16 | S4: 17 | T4: 18 | U4: 19 | V4: 20 | W4: 21 | X4: 22 | Y4: 23
A5: 4月 | B5: 8.5 | C5: 8.3 | D5: 8 | E5: 7.7 | F5: 7.5 | G5: 7.2 | H5: 7.3 | I5: 8 | J5: 8.6 | K5: 9.3 | L5: 9.9 | M5: 10.4 | N5: 10.8 | O5: 11.1 | P5: 11.2 | Q5: 11.3 | R5: 11.2 | S5: 10.9 | T5: 10.6 | U5: 10.2 | V5: 9.9 | W5: 9.6 | X5: 9.3 | Y5: 9
A6: 5月 | B6: 13.7 | C6: 13.4 | D6: 13.2 | E6: 13 | F6: 12.8 | G6: 12.6 | H6: 12.9 | I6: 13.4 | J6: 13.9 | K6: 14.4 | L6: 14.8 | M6: 15.2 | N6: 15.5 | O6: 15.6 | P6: 15.8 | Q6: 15.7 | R6: 15.7 | S6: 15.5 | T6: 15.2 | U6: 14.9 | V6: 14.7 | W6: 14.4 | X6: 14.2 | Y6: 14
A7: 6月 | B7: 18 | C7: 17.8 | D7: 17.7 | E7: 17.5 | F7: 17.4 | G7: 17.3 | H7: 17.5 | I7: 17.8 | J7: 18.1 | K7: 18.4 | L7: 18.7 | M7: 19 | N7: 19.3 | O7: 19.4 | P7: 19.5 | Q7: 19.5 | R7: 19.5 | S7: 19.4 | T7: 19.2 | U7: 19 | V7: 18.8 | W7: 18.6 | X7: 18.5 | Y7: 18.3
A8: 7月 | B8: 21.9 | C8: 21.7 | D8: 21.7 | E8: 21.6 | F8: 21.5 | G8: 21.4 | H8: 21.6 | I8: 21.8 | J8: 22.1 | K8: 22.4 | L8: 22.7 | M8: 22.9 | N8: 23.2 | O8: 23.2 | P8: 23.3 | Q8: 23.4 | R8: 23.3 | S8: 23.2 | T8: 23.1 | U8: 22.8 | V8: 22.5 | W8: 22.4 | X8: 22.2 | Y8: 22.1
A9: 8月 | B9: 22.9 | C9: 22.8 | D9: 22.7 | E9: 22.6 | F9: 22.5 | G9: 22.4 | H9: 22.5 | I9: 22.7 | J9: 23 | K9: 23.3 | L9: 23.6 | M9: 23.8 | N9: 24 | O9: 24.1 | P9: 24 | Q9: 24 | R9: 24.1 | S9: 24 | T9: 23.8 | U9: 23.5 | V9: 23.3 | W9: 23.2 | X9: 23 | Y9: 23
A10: 9月 | B10: 19.5 | C10: 19.4 | D10: 19.2 | E10: 19.1 | F10: 19 | G10: 18.8 | H10: 18.8 | I10: 19.1 | J10: 19.4 | K10: 19.8 | L10: 20 | M10: 20.3 | N10: 20.5 | O10: 20.6 | P10: 20.6 | Q10: 20.6 | R10: 20.5 | S10: 20.5 | T10: 20.3 | U10: 20.1 | V10: 19.9 | W10: 19.8 | X10: 19.6 | Y10: 19.5
A11: 10月 | B11: 13.8 | C11: 13.5 | D11: 13.4 | E11: 13.2 | F11: 13 | G11: 12.9 | H11: 12.7 | I11: 13 | J11: 13.6 | K11: 14.1 | L11: 14.6 | M11: 14.9 | N11: 15.1 | O11: 15.3 | P11: 15.3 | Q11: 15.3 | R11: 15.2 | S11: 15 | T11: 14.8 | U11: 14.6 | V11: 14.4 | W11: 14.1 | X11: 13.9 | Y11: 13.7
A12: 11月 | B12: 7.7 | C12: 7.4 | D12: 7.2 | E12: 6.9 | F12: 6.7 | G12: 6.5 | H12: 6.4 | I12: 6.5 | J12: 7.4 | K12: 8.3 | L12: 9 | M12: 9.5 | N12: 9.8 | O12: 10.1 | P12: 10.2 | Q12: 10.1 | R12: 9.8 | S12: 9.3 | T12: 9 | U12: 8.7 | V12: 8.5 | W12: 8.2 | X12: 8 | Y12: 7.7
A13: 12月 | B13: 2.3 | C13: 2.1 | D13: 1.9 | E13: 1.7 | F13: 1.5 | G13: 1.3 | H13: 1.2 | I13: 1.1 | J13: 2 | K13: 3.1 | L13: 4 | M13: 4.7 | N13: 5.1 | O13: 5.4 | P13: 5.5 | Q13: 5.3 | R13: 4.9 | S13: 4.3 | T13: 3.8 | U13: 3.5 | V13: 3.2 | W13: 2.9 | X13: 2.6 | Y13: 2.4
A14: 1月 | B14: -0.1 | C14: -0.4 | D14: -0.6 | E14: -0.8 | F14: -1 | G14: -1.1 | H14: -1.3 | I14: -1.4 | J14: -0.6 | K14: 0.6 | L14: 1.6 | M14: 2.4 | N14: 2.8 | O14: 3.1 | P14: 3.3 | Q14: 3.1 | R14: 2.7 | S14: 2.1 | T14: 1.5 | U14: 1.2 | V14: 0.9 | W14: 0.6 | X14: 0.3 | Y14: 0.1
A15: 2月 | B15: 0.5 | C15: 0.2 | D15: 0 | E15: -0.2 | F15: -0.4 | G15: -0.6 | H15: -0.8 | I15: -0.7 | J15: 0.2 | K15: 1.3 | L15: 2.2 | M15: 2.8 | N15: 3.3 | O15: 3.7 | P15: 3.8 | Q15: 3.8 | R15: 3.6 | S15: 3.1 | T15: 2.5 | U15: 2.1 | V15: 1.8 | W15: 1.5 | X15: 1.2 | Y15: 0.9
A16: 3月 | B16: 3.8 | C16: 3.5 | D16: 3.2 | E16: 2.9 | F16: 2.7 | G16: 2.5 | H16: 2.4 | I16: 2.8 | J16: 3.6 | K16: 4.4 | L16: 5.1 | M16: 5.7 | N16: 6.2 | O16: 6.5 | P16: 6.7 | Q16: 6.8 | R16: 6.6 | S16: 6.3 | T16: 5.8 | U16: 5.5 | V16: 5.1 | W16: 4.8 | X16: 4.5 | Y16: 4.2

Sheet 千葉 (hidden)
A1: 気象データ
A2: =RIGHT(CELL("filename",A2),LEN(CELL("filename",A2))-FIND("]",CELL("filename",A2))) -> 千葉
A3: 時刻別平均外気湿球温度
A4: 時刻 | B4: 0 | C4: 1 | D4: 2 | E4: 3 | F4: 4 | G4: 5 | H4: 6 | I4: 7 | J4: 8 | K4: 9 | L4: 10 | M4: 11 | N4: 12 | O4: 13 | P4: 14 | Q4: 15 | R4: 16 | S4: 17 | T4: 18 | U4: 19 | V4: 20 | W4: 21 | X4: 22 | Y4: 23
A5: 4月 | B5: 10.3 | C5: 10.2 | D5: 10 | E5: 9.8 | F5: 9.6 | G5: 9.5 | H5: 9.5 | I5: 9.8 | J5: 10.3 | K5: 10.8 | L5: 11.1 | M5: 11.4 | N5: 11.6 | O5: 11.8 | P5: 11.9 | Q5: 11.9 | R5: 11.9 | S5: 11.6 | T5: 11.4 | U5: 11.2 | V5: 11.1 | W5: 10.9 | X5: 10.8 | Y5: 10.6
A6: 5月 | B6: 14.9 | C6: 14.8 | D6: 14.7 | E6: 14.6 | F6: 14.5 | G6: 14.4 | H6: 14.5 | I6: 14.9 | J6: 15.2 | K6: 15.5 | L6: 15.7 | M6: 15.9 | N6: 16.1 | O6: 16.1 | P6: 16.2 | Q6: 16.2 | R6: 16.1 | S6: 15.9 | T6: 15.7 | U6: 15.5 | V6: 15.4 | W6: 15.4 | X6: 15.2 | Y6: 15.1
A7: 6月 | B7: 18.5 | C7: 18.4 | D7: 18.3 | E7: 18.3 | F7: 18.2 | G7: 18.1 | H7: 18.3 | I7: 18.5 | J7: 18.8 | K7: 19.1 | L7: 19.3 | M7: 19.4 | N7: 19.5 | O7: 19.6 | P7: 19.7 | Q7: 19.7 | R7: 19.7 | S7: 19.5 | T7: 19.3 | U7: 19.1 | V7: 19 | W7: 18.9 | X7: 18.8 | Y7: 18.7
A8: 7月 | B8: 22.3 | C8: 22.2 | D8: 22.1 | E8: 22.1 | F8: 22 | G8: 22 | H8: 22.1 | I8: 22.4 | J8: 22.6 | K8: 22.9 | L8: 23.1 | M8: 23.3 | N8: 23.4 | O8: 23.5 | P8: 23.6 | Q8: 23.5 | R8: 23.4 | S8: 23.2 | T8: 22.9 | U8: 22.8 | V8: 22.6 | W8: 22.5 | X8: 22.5 | Y8: 22.4
A9: 8月 | B9: 23.5 | C9: 23.4 | D9: 23.3 | E9: 23.3 | F9: 23.2 | G9: 23.2 | H9: 23.2 | I9: 23.5 | J9: 23.8 | K9: 24 | L9: 24.1 | M9: 24.2 | N9: 24.3 | O9: 24.4 | P9: 24.5 | Q9: 24.4 | R9: 24.3 | S9: 24.1 | T9: 23.9 | U9: 23.7 | V9: 23.6 | W9: 23.6 | X9: 23.5 | Y9: 23.5
A10: 9月 | B10: 20.4 | C10: 20.3 | D10: 20.2 | E10: 20.1 | F10: 20 | G10: 19.9 | H10: 19.9 | I10: 20.1 | J10: 20.5 | K10: 20.7 | L10: 20.9 | M10: 21.1 | N10: 21.2 | O10: 21.2 | P10: 21.2 | Q10: 21.2 | R10: 21.1 | S10: 21 | T10: 20.8 | U10: 20.7 | V10: 20.6 | W10: 20.6 | X10: 20.5 | Y10: 20.4
A11: 10月 | B11: 15.2 | C11: 15 | D11: 14.9 | E11: 14.7 | F11: 14.5 | G11: 14.3 | H11: 14.2 | I11: 14.4 | J11: 14.9 | K11: 15.4 | L11: 15.7 | M11: 16 | N11: 16.1 | O11: 16.2 | P11: 16.2 | Q11: 16.2 | R11: 16.1 | S11: 16 | T11: 15.8 | U11: 15.7 | V11: 15.5 | W11: 15.4 | X11: 15.3 | Y11: 15.2
A12: 11月 | B12: 9.8 | C12: 9.5 | D12: 9.3 | E12: 9 | F12: 8.8 | G12: 8.6 | H12: 8.4 | I12: 8.5 | J12: 8.9 | K12: 9.6 | L12: 10.2 | M12: 10.7 | N12: 11 | O12: 11.2 | P12: 11.3 | Q12: 11.4 | R12: 11.2 | S12: 11.1 | T12: 10.9 | U12: 10.8 | V12: 10.6 | W12: 10.3 | X12: 10.1 | Y12: 9.9
A13: 12月 | B13: 4.5 | C13: 4.3 | D13: 4 | E13: 3.8 | F13: 3.5 | G13: 3.3 | H13: 3.2 | I13: 3.2 | J13: 3.7 | K13: 4.4 | L13: 5.1 | M13: 5.7 | N13: 6.1 | O13: 6.3 | P13: 6.5 | Q13: 6.5 | R13: 6.3 | S13: 6.1 | T13: 5.8 | U13: 5.5 | V13: 5.3 | W13: 5 | X13: 4.8 | Y13: 4.6
A14: 1月 | B14: 1.9 | C14: 1.6 | D14: 1.4 | E14: 1.2 | F14: 1 | G14: 0.8 | H14: 0.7 | I14: 0.6 | J14: 1 | K14: 1.8 | L14: 2.6 | M14: 3.1 | N14: 3.6 | O14: 3.8 | P14: 4 | Q14: 4.1 | R14: 3.9 | S14: 3.6 | T14: 3.3 | U14: 3.1 | V14: 2.8 | W14: 2.5 | X14: 2.3 | Y14: 2.1
A15: 2月 | B15: 2.6 | C15: 2.3 | D15: 2.1 | E15: 1.9 | F15: 1.6 | G15: 1.4 | H15: 1.3 | I15: 1.3 | J15: 1.8 | K15: 2.5 | L15: 3.2 | M15: 3.7 | N15: 4.1 | O15: 4.4 | P15: 4.6 | Q15: 4.7 | R15: 4.6 | S15: 4.4 | T15: 4.1 | U15: 3.9 | V15: 3.6 | W15: 3.4 | X15: 3.2 | Y15: 2.9
A16: 3月 | B16: 5.9 | C16: 5.6 | D16: 5.4 | E16: 5.1 | F16: 4.9 | G16: 4.7 | H16: 4.5 | I16: 4.7 | J16: 5.3 | K16: 5.9 | L16: 6.4 | M16: 6.8 | N16: 7.1 | O16: 7.4 | P16: 7.5 | Q16: 7.6 | R16: 7.6 | S16: 7.4 | T16: 7.2 | U16: 7 | V16: 6.8 | W16: 6.6 | X16: 6.3 | Y16: 6.2

Sheet 東京 (hidden)
A1: 気象データ
A2: =RIGHT(CELL("filename",A2),LEN(CELL("filename",A2))-FIND("]",CELL("filename",A2))) -> 東京
A3: 時刻別平均外気湿球温度
A4: 時刻 | B4: 0 | C4: 1 | D4: 2 | E4: 3 | F4: 4 | G4: 5 | H4: 6 | I4: 7 | J4: 8 | K4: 9 | L4: 10 | M4: 11 | N4: 12 | O4: 13 | P4: 14 | Q4: 15 | R4: 16 | S4: 17 | T4: 18 | U4: 19 | V4: 20 | W4: 21 | X4: 22 | Y4: 23
A5: 4月 | B5: 10 | C5: 9.8 | D5: 9.6 | E5: 9.3 | F5: 9.2 | G5: 8.9 | H5: 9 | I5: 9.3 | J5: 9.7 | K5: 10.2 | L5: 10.6 | M5: 11 | N5: 11.3 | O5: 11.5 | P5: 11.6 | Q5: 11.5 | R5: 11.5 | S5: 11.4 | T5: 11.2 | U5: 11 | V5: 10.8 | W5: 10.7 | X5: 10.5 | Y5: 10.3
A6: 5月 | B6: 14.6 | C6: 14.5 | D6: 14.3 | E6: 14.2 | F6: 14.1 | G6: 14 | H6: 14.1 | I6: 14.4 | J6: 14.7 | K6: 15 | L6: 15.3 | M6: 15.6 | N6: 15.8 | O6: 15.9 | P6: 15.9 | Q6: 15.9 | R6: 15.8 | S6: 15.7 | T6: 15.6 | U6: 15.4 | V6: 15.3 | W6: 15.1 | X6: 15 | Y6: 14.9
A7: 6月 | B7: 18.4 | C7: 18.3 | D7: 18.2 | E7: 18.1 | F7: 18 | G7: 18 | H7: 18.1 | I7: 18.3 | J7: 18.5 | K7: 18.8 | L7: 19 | M7: 19.2 | N7: 19.4 | O7: 19.5 | P7: 19.5 | Q7: 19.5 | R7: 19.5 | S7: 19.4 | T7: 19.2 | U7: 19.1 | V7: 18.9 | W7: 18.8 | X7: 18.7 | Y7: 18.7
A8: 7月 | B8: 22.1 | C8: 22.1 | D8: 22 | E8: 21.9 | F8: 21.9 | G8: 21.8 | H8: 22 | I8: 22.2 | J8: 22.4 | K8: 22.6 | L8: 22.9 | M8: 23.1 | N8: 23.2 | O8: 23.3 | P8: 23.3 | Q8: 23.3 | R8: 23.2 | S8: 23.1 | T8: 22.9 | U8: 22.7 | V8: 22.6 | W8: 22.5 | X8: 22.4 | Y8: 22.3
A9: 8月 | B9: 23.3 | C9: 23.2 | D9: 23.1 | E9: 23.1 | F9: 23 | G9: 22.9 | H9: 23 | I9: 23.2 | J9: 23.4 | K9: 23.5 | L9: 23.8 | M9: 24 | N9: 24.1 | O9: 24.1 | P9: 24.2 | Q9: 24.1 | R9: 24 | S9: 24 | T9: 23.8 | U9: 23.6 | V9: 23.5 | W9: 23.5 | X9: 23.4 | Y9: 23.3
A10: 9月 | B10: 20.1 | C10: 20 | D10: 19.9 | E10: 19.8 | F10: 19.7 | G10: 19.6 | H10: 19.6 | I10: 19.7 | J10: 19.9 | K10: 20.2 | L10: 20.4 | M10: 20.5 | N10: 20.7 | O10: 20.8 | P10: 20.8 | Q10: 20.8 | R10: 20.8 | S10: 20.7 | T10: 20.6 | U10: 20.5 | V10: 20.4 | W10: 20.3 | X10: 20.2 | Y10: 20.1
A11: 10月 | B11: 14.9 | C11: 14.7 | D11: 14.5 | E11: 14.3 | F11: 14.1 | G11: 14 | H11: 13.8 | I11: 14 | J11: 14.3 | K11: 14.6 | L11: 15 | M11: 15.3 | N11: 15.6 | O11: 15.7 | P11: 15.7 | Q11: 15.7 | R11: 15.7 | S11: 15.5 | T11: 15.5 | U11: 15.4 | V11: 15.2 | W11: 15.1 | X11: 15 | Y11: 14.9
A12: 11月 | B12: 9.3 | C12: 9.1 | D12: 8.9 | E12: 8.6 | F12: 8.4 | G12: 8.2 | H12: 8.1 | I12: 8.2 | J12: 8.5 | K12: 9 | L12: 9.5 | M12: 10 | N12: 10.4 | O12: 10.6 | P12: 10.7 | Q12: 10.8 | R12: 10.7 | S12: 10.5 | T12: 10.4 | U12: 10.3 | V12: 10.1 | W12: 9.9 | X12: 9.6 | Y12: 9.4
A13: 12月 | B13: 4.1 | C13: 3.9 | D13: 3.6 | E13: 3.4 | F13: 3.2 | G13: 3.1 | H13: 3.1 | I13: 3 | J13: 3.3 | K13: 4 | L13: 4.6 | M13: 5.1 | N13: 5.6 | O13: 5.9 | P13: 6 | Q13: 6 | R13: 5.8 | S13: 5.5 | T13: 5.3 | U13: 5.1 | V13: 4.9 | W13: 4.7 | X13: 4.5 | Y13: 4.2
A14: 1月 | B14: 1.6 | C14: 1.3 | D14: 1.1 | E14: 0.9 | F14: 0.7 | G14: 0.5 | H14: 0.4 | I14: 0.4 | J14: 0.8 | K14: 1.4 | L14: 2.1 | M14: 2.7 | N14: 3.1 | O14: 3.5 | P14: 3.6 | Q14: 3.6 | R14: 3.5 | S14: 3.2 | T14: 2.9 | U14: 2.7 | V14: 2.5 | W14: 2.3 | X14: 2.1 | Y14: 1.8
A15: 2月 | B15: 2.3 | C15: 2 | D15: 1.7 | E15: 1.5 | F15: 1.2 | G15: 1.1 | H15: 1 | I15: 1 | J15: 1.4 | K15: 2 | L15: 2.6 | M15: 3.2 | N15: 3.7 | O15: 4 | P15: 4.3 | Q15: 4.3 | R15: 4.3 | S15: 4 | T15: 3.8 | U15: 3.6 | V15: 3.4 | W15: 3.2 | X15: 2.9 | Y15: 2.7
A16: 3月 | B16: 5.5 | C16: 5.2 | D16: 5 | E16: 4.7 | F16: 4.4 | G16: 4.3 | H16: 4.1 | I16: 4.3 | J16: 4.7 | K16: 5.3 | L16: 5.8 | M16: 6.3 | N16: 6.8 | O16: 7.1 | P16: 7.2 | Q16: 7.3 | R16: 7.3 | S16: 7.1 | T16: 6.9 | U16: 6.7 | V16: 6.6 | W16: 6.4 | X16: 6.1 | Y16: 5.8

Sheet 横浜 (hidden)
A1: 気象データ
A2: =RIGHT(CELL("filename",A2),LEN(CELL("filename",A2))-FIND("]",CELL("filename",A2))) -> 横浜
A3: 時刻別平均外気湿球温度
A4: 時刻 | B4: 0 | C4: 1 | D4: 2 | E4: 3 | F4: 4 | G4: 5 | H4: 6 | I4: 7 | J4: 8 | K4: 9 | L4: 10 | M4: 11 | N4: 12 | O4: 13 | P4: 14 | Q4: 15 | R4: 16 | S4: 17 | T4: 18 | U4: 19 | V4: 20 | W4: 21 | X4: 22 | Y4: 23
A5: 4月 | B5: 10.2 | C5: 10 | D5: 9.8 | E5: 9.6 | F5: 9.4 | G5: 9.3 | H5: 9.3 | I5: 9.5 | J5: 10 | K5: 10.6 | L5: 11 | M5: 11.4 | N5: 11.6 | O5: 11.7 | P5: 11.9 | Q5: 11.8 | R5: 11.8 | S5: 11.6 | T5: 11.4 | U5: 11.2 | V5: 11.1 | W5: 10.9 | X5: 10.7 | Y5: 10.6
A6: 5月 | B6: 14.7 | C6: 14.6 | D6: 14.4 | E6: 14.3 | F6: 14.2 | G6: 14.1 | H6: 14.2 | I6: 14.5 | J6: 14.9 | K6: 15.3 | L6: 15.6 | M6: 15.8 | N6: 15.9 | O6: 16.1 | P6: 16.1 | Q6: 16.1 | R6: 16 | S6: 15.8 | T6: 15.6 | U6: 15.5 | V6: 15.3 | W6: 15.2 | X6: 15 | Y6: 14.9
A7: 6月 | B7: 18.4 | C7: 18.3 | D7: 18.2 | E7: 18.1 | F7: 18 | G7: 18 | H7: 18.1 | I7: 18.3 | J7: 18.6 | K7: 18.9 | L7: 19.1 | M7: 19.3 | N7: 19.4 | O7: 19.5 | P7: 19.6 | Q7: 19.6 | R7: 19.5 | S7: 19.3 | T7: 19.2 | U7: 19 | V7: 18.9 | W7: 18.8 | X7: 18.7 | Y7: 18.6
A8: 7月 | B8: 22.1 | C8: 22 | D8: 22 | E8: 21.9 | F8: 21.9 | G8: 21.8 | H8: 22 | I8: 22.2 | J8: 22.5 | K8: 22.7 | L8: 23 | M8: 23.1 | N8: 23.2 | O8: 23.3 | P8: 23.4 | Q8: 23.4 | R8: 23.2 | S8: 23 | T8: 22.8 | U8: 22.6 | V8: 22.5 | W8: 22.4 | X8: 22.3 | Y8: 22.3
A9: 8月 | B9: 23.3 | C9: 23.3 | D9: 23.2 | E9: 23.1 | F9: 23.1 | G9: 23 | H9: 23.1 | I9: 23.2 | J9: 23.5 | K9: 23.7 | L9: 24 | M9: 24.1 | N9: 24.3 | O9: 24.3 | P9: 24.3 | Q9: 24.3 | R9: 24.2 | S9: 24 | T9: 23.7 | U9: 23.6 | V9: 23.6 | W9: 23.5 | X9: 23.4 | Y9: 23.4
A10: 9月 | B10: 20.3 | C10: 20.2 | D10: 20 | E10: 19.9 | F10: 19.8 | G10: 19.7 | H10: 19.7 | I10: 19.8 | J10: 20.1 | K10: 20.4 | L10: 20.6 | M10: 20.8 | N10: 21 | O10: 21.1 | P10: 21.1 | Q10: 21.1 | R10: 21 | S10: 20.9 | T10: 20.7 | U10: 20.6 | V10: 20.5 | W10: 20.4 | X10: 20.4 | Y10: 20.2
A11: 10月 | B11: 15 | C11: 14.9 | D11: 14.7 | E11: 14.5 | F11: 14.3 | G11: 14.2 | H11: 14.1 | I11: 14.1 | J11: 14.5 | K11: 14.9 | L11: 15.3 | M11: 15.6 | N11: 15.9 | O11: 16.1 | P11: 16.1 | Q11: 16.1 | R11: 15.9 | S11: 15.8 | T11: 15.6 | U11: 15.5 | V11: 15.4 | W11: 15.3 | X11: 15.2 | Y11: 15.1
A12: 11月 | B12: 9.7 | C12: 9.4 | D12: 9.2 | E12: 9 | F12: 8.8 | G12: 8.6 | H12: 8.5 | I12: 8.5 | J12: 8.8 | K12: 9.4 | L12: 9.9 | M12: 10.4 | N12: 10.8 | O12: 11.1 | P12: 11.2 | Q12: 11.2 | R12: 11 | S12: 10.8 | T12: 10.7 | U12: 10.5 | V12: 10.4 | W12: 10.2 | X12: 10 | Y12: 9.7
A13: 12月 | B13: 4.5 | C13: 4.2 | D13: 4 | E13: 3.8 | F13: 3.7 | G13: 3.5 | H13: 3.5 | I13: 3.4 | J13: 3.8 | K13: 4.4 | L13: 5.1 | M13: 5.7 | N13: 6.1 | O13: 6.4 | P13: 6.6 | Q13: 6.5 | R13: 6.3 | S13: 5.9 | T13: 5.7 | U13: 5.5 | V13: 5.3 | W13: 5.1 | X13: 4.8 | Y13: 4.6
A14: 1月 | B14: 1.9 | C14: 1.7 | D14: 1.4 | E14: 1.2 | F14: 1 | G14: 0.9 | H14: 0.8 | I14: 0.7 | J14: 1.1 | K14: 1.8 | L14: 2.5 | M14: 3.1 | N14: 3.6 | O14: 4 | P14: 4.1 | Q14: 4.1 | R14: 3.9 | S14: 3.6 | T14: 3.3 | U14: 3.1 | V14: 2.9 | W14: 2.7 | X14: 2.4 | Y14: 2.1
A15: 2月 | B15: 2.6 | C15: 2.3 | D15: 2.1 | E15: 1.8 | F15: 1.6 | G15: 1.5 | H15: 1.3 | I15: 1.3 | J15: 1.7 | K15: 2.3 | L15: 3 | M15: 3.6 | N15: 4.1 | O15: 4.4 | P15: 4.7 | Q15: 4.7 | R15: 4.6 | S15: 4.4 | T15: 4.1 | U15: 3.9 | V15: 3.7 | W15: 3.5 | X15: 3.3 | Y15: 3
A16: 3月 | B16: 5.9 | C16: 5.6 | D16: 5.3 | E16: 5.1 | F16: 4.8 | G16: 4.6 | H16: 4.5 | I16: 4.6 | J16: 5 | K16: 5.6 | L16: 6.2 | M16: 6.7 | N16: 7.1 | O16: 7.4 | P16: 7.6 | Q16: 7.7 | R16: 7.6 | S16: 7.4 | T16: 7.2 | U16: 7 | V16: 6.8 | W16: 6.7 | X16: 6.4 | Y16: 6.2

Sheet 新潟 (hidden)
A1: 気象データ
A2: =RIGHT(CELL("filename",A2),LEN(CELL("filename",A2))-FIND("]",CELL("filename",A2))) -> 新潟
A3: 時刻別平均外気湿球温度
A4: 時刻 | B4: 0 | C4: 1 | D4: 2 | E4: 3 | F4: 4 | G4: 5 | H4: 6 | I4: 7 | J4: 8 | K4: 9 | L4: 10 | M4: 11 | N4: 12 | O4: 13 | P4: 14 | Q4: 15 | R4: 16 | S4: 17 | T4: 18 | U4: 19 | V4: 20 | W4: 21 | X4: 22 | Y4: 23
A5: 4月 | B5: 7.4 | C5: 7.1 | D5: 6.9 | E5: 6.8 | F5: 6.6 | G5: 6.4 | H5: 6.6 | I5: 7.2 | J5: 7.9 | K5: 8.6 | L5: 9 | M5: 9.3 | N5: 9.5 | O5: 9.5 | P5: 9.4 | Q5: 9.3 | R5: 9.1 | S5: 8.8 | T5: 8.5 | U5: 8.4 | V5: 8.3 | W5: 8.1 | X5: 8 | Y5: 7.8
A6: 5月 | B6: 12.7 | C6: 12.6 | D6: 12.4 | E6: 12.2 | F6: 12.1 | G6: 12 | H6: 12.2 | I6: 12.7 | J6: 13.2 | K6: 13.7 | L6: 14.1 | M6: 14.4 | N6: 14.4 | O6: 14.4 | P6: 14.3 | Q6: 14.1 | R6: 14 | S6: 13.7 | T6: 13.5 | U6: 13.3 | V6: 13.2 | W6: 13.2 | X6: 13.1 | Y6: 13
A7: 6月 | B7: 17.2 | C7: 17.1 | D7: 17 | E7: 16.8 | F7: 16.7 | G7: 16.7 | H7: 16.9 | I7: 17.3 | J7: 17.7 | K7: 18 | L7: 18.3 | M7: 18.5 | N7: 18.6 | O7: 18.5 | P7: 18.6 | Q7: 18.5 | R7: 18.3 | S7: 18.1 | T7: 17.9 | U7: 17.8 | V7: 17.6 | W7: 17.6 | X7: 17.5 | Y7: 17.4
A8: 7月 | B8: 21.5 | C8: 21.4 | D8: 21.2 | E8: 21.1 | F8: 21 | G8: 21 | H8: 21.1 | I8: 21.5 | J8: 21.8 | K8: 22.1 | L8: 22.4 | M8: 22.6 | N8: 22.6 | O8: 22.7 | P8: 22.6 | Q8: 22.6 | R8: 22.5 | S8: 22.3 | T8: 22.1 | U8: 22 | V8: 21.9 | W8: 21.8 | X8: 21.7 | Y8: 21.7
A9: 8月 | B9: 22.6 | C9: 22.5 | D9: 22.3 | E9: 22.2 | F9: 22.1 | G9: 21.9 | H9: 22 | I9: 22.4 | J9: 22.8 | K9: 23.1 | L9: 23.3 | M9: 23.6 | N9: 23.7 | O9: 23.8 | P9: 23.7 | Q9: 23.7 | R9: 23.6 | S9: 23.5 | T9: 23.3 | U9: 23.2 | V9: 23.1 | W9: 23 | X9: 22.9 | Y9: 22.8
A10: 9月 | B10: 18.8 | C10: 18.7 | D10: 18.5 | E10: 18.4 | F10: 18.3 | G10: 18.2 | H10: 18.2 | I10: 18.5 | J10: 19 | K10: 19.4 | L10: 19.7 | M10: 19.9 | N10: 20 | O10: 20.1 | P10: 20.1 | Q10: 20 | R10: 19.9 | S10: 19.7 | T10: 19.5 | U10: 19.4 | V10: 19.3 | W10: 19.1 | X10: 19 | Y10: 18.9
A11: 10月 | B11: 13.2 | C11: 13 | D11: 12.9 | E11: 12.7 | F11: 12.6 | G11: 12.5 | H11: 12.4 | I11: 12.6 | J11: 13.2 | K11: 13.8 | L11: 14.2 | M11: 14.5 | N11: 14.6 | O11: 14.6 | P11: 14.6 | Q11: 14.5 | R11: 14.3 | S11: 14.1 | T11: 14 | U11: 13.9 | V11: 13.7 | W11: 13.5 | X11: 13.3 | Y11: 13.1
A12: 11月 | B12: 7.9 | C12: 7.7 | D12: 7.6 | E12: 7.4 | F12: 7.3 | G12: 7.2 | H12: 7.1 | I12: 7.2 | J12: 7.6 | K12: 8.2 | L12: 8.8 | M12: 9.1 | N12: 9.3 | O12: 9.4 | P12: 9.4 | Q12: 9.3 | R12: 9.1 | S12: 8.8 | T12: 8.7 | U12: 8.5 | V12: 8.4 | W12: 8.2 | X12: 8 | Y12: 7.8
A13: 12月 | B13: 3.3 | C13: 3.1 | D13: 3.1 | E13: 3 | F13: 2.9 | G13: 2.8 | H13: 2.8 | I13: 2.7 | J13: 2.9 | K13: 3.3 | L13: 3.8 | M13: 4.1 | N13: 4.3 | O13: 4.4 | P13: 4.4 | Q13: 4.4 | R13: 4.2 | S13: 4 | T13: 3.9 | U13: 3.8 | V13: 3.6 | W13: 3.5 | X13: 3.4 | Y13: 3.2
A14: 1月 | B14: 0.8 | C14: 0.7 | D14: 0.7 | E14: 0.6 | F14: 0.5 | G14: 0.5 | H14: 0.5 | I14: 0.5 | J14: 0.6 | K14: 0.9 | L14: 1.3 | M14: 1.6 | N14: 1.8 | O14: 1.9 | P14: 1.9 | Q14: 1.8 | R14: 1.7 | S14: 1.5 | T14: 1.4 | U14: 1.3 | V14: 1.1 | W14: 1 | X14: 0.9 | Y14: 0.8
A15: 2月 | B15: 0.7 | C15: 0.6 | D15: 0.5 | E15: 0.4 | F15: 0.3 | G15: 0.3 | H15: 0.2 | I15: 0.2 | J15: 0.6 | K15: 1 | L15: 1.5 | M15: 1.8 | N15: 2.1 | O15: 2.3 | P15: 2.3 | Q15: 2.3 | R15: 2.1 | S15: 1.8 | T15: 1.7 | U15: 1.5 | V15: 1.4 | W15: 1.2 | X15: 1.1 | Y15: 0.9
A16: 3月 | B16: 3 | C16: 2.8 | D16: 2.7 | E16: 2.5 | F16: 2.4 | G16: 2.3 | H16: 2.2 | I16: 2.5 | J16: 3.1 | K16: 3.8 | L16: 4.3 | M16: 4.7 | N16: 4.9 | O16: 5 | P16: 5 | Q16: 4.9 | R16: 4.7 | S16: 4.5 | T16: 4.2 | U16: 4.1 | V16: 3.9 | W16: 3.7 | X16: 3.5 | Y16: 3.3

Sheet 富山 (hidden)
A1: 気象データ
A2: =RIGHT(CELL("filename",A2),LEN(CELL("filename",A2))-FIND("]",CELL("filename",A2))) -> 富山
A3: 時刻別平均外気湿球温度
A4: 時刻 | B4: 0 | C4: 1 | D4: 2 | E4: 3 | F4: 4 | G4: 5 | H4: 6 | I4: 7 | J4: 8 | K4: 9 | L4: 10 | M4: 11 | N4: 12 | O4: 13 | P4: 14 | Q4: 15 | R4: 16 | S4: 17 | T4: 18 | U4: 19 | V4: 20 | W4: 21 | X4: 22 | Y4: 23
A5: 4月 | B5: 8 | C5: 7.8 | D5: 7.6 | E5: 7.4 | F5: 7.3 | G5: 7.1 | H5: 7.3 | I5: 8 | J5: 8.9 | K5: 9.5 | L5: 10 | M5: 10.2 | N5: 10.5 | O5: 10.6 | P5: 10.5 | Q5: 10.3 | R5: 10.1 | S5: 9.8 | T5: 9.5 | U5: 9.2 | V5: 9.1 | W5: 8.9 | X5: 8.7 | Y5: 8.4
A6: 5月 | B6: 13.2 | C6: 13 | D6: 12.8 | E6: 12.6 | F6: 12.5 | G6: 12.4 | H6: 12.8 | I6: 13.4 | J6: 14.1 | K6: 14.5 | L6: 14.9 | M6: 15.1 | N6: 15.2 | O6: 15.3 | P6: 15.2 | Q6: 15.1 | R6: 14.9 | S6: 14.6 | T6: 14.3 | U6: 14 | V6: 13.9 | W6: 13.9 | X6: 13.7 | Y6: 13.5
A7: 6月 | B7: 17.9 | C7: 17.8 | D7: 17.6 | E7: 17.4 | F7: 17.3 | G7: 17.2 | H7: 17.6 | I7: 18.1 | J7: 18.5 | K7: 18.8 | L7: 19.1 | M7: 19.4 | N7: 19.5 | O7: 19.5 | P7: 19.5 | Q7: 19.4 | R7: 19.2 | S7: 19 | T7: 18.8 | U7: 18.6 | V7: 18.5 | W7: 18.5 | X7: 18.4 | Y7: 18.3
A8: 7月 | B8: 22.2 | C8: 22 | D8: 21.9 | E8: 21.7 | F8: 21.6 | G8: 21.5 | H8: 21.7 | I8: 22.1 | J8: 22.5 | K8: 22.9 | L8: 23.2 | M8: 23.4 | N8: 23.6 | O8: 23.6 | P8: 23.6 | Q8: 23.5 | R8: 23.4 | S8: 23.2 | T8: 23 | U8: 22.8 | V8: 22.7 | W8: 22.6 | X8: 22.5 | Y8: 22.4
A9: 8月 | B9: 23.1 | C9: 22.9 | D9: 22.7 | E9: 22.6 | F9: 22.4 | G9: 22.2 | H9: 22.3 | I9: 22.8 | J9: 23.3 | K9: 23.8 | L9: 24.1 | M9: 24.3 | N9: 24.5 | O9: 24.5 | P9: 24.5 | Q9: 24.4 | R9: 24.3 | S9: 24.2 | T9: 24 | U9: 23.8 | V9: 23.7 | W9: 23.6 | X9: 23.5 | Y9: 23.3
A10: 9月 | B10: 19.4 | C10: 19.2 | D10: 19 | E10: 18.9 | F10: 18.7 | G10: 18.6 | H10: 18.6 | I10: 19.1 | J10: 19.7 | K10: 20.1 | L10: 20.5 | M10: 20.7 | N10: 20.8 | O10: 20.8 | P10: 20.8 | Q10: 20.7 | R10: 20.6 | S10: 20.3 | T10: 20.1 | U10: 20.1 | V10: 20 | W10: 19.9 | X10: 19.7 | Y10: 19.5
A11: 10月 | B11: 13.8 | C11: 13.6 | D11: 13.4 | E11: 13.3 | F11: 13.1 | G11: 13 | H11: 12.9 | I11: 13.3 | J11: 14.1 | K11: 14.7 | L11: 15.1 | M11: 15.4 | N11: 15.6 | O11: 15.7 | P11: 15.6 | Q11: 15.5 | R11: 15.3 | S11: 15 | T11: 14.9 | U11: 14.7 | V11: 14.5 | W11: 14.2 | X11: 14 | Y11: 13.8
A12: 11月 | B12: 8.4 | C12: 8.2 | D12: 8 | E12: 7.9 | F12: 7.8 | G12: 7.7 | H12: 7.6 | I12: 7.7 | J12: 8.4 | K12: 9.2 | L12: 9.7 | M12: 10.1 | N12: 10.3 | O12: 10.4 | P12: 10.5 | Q12: 10.3 | R12: 10.1 | S12: 9.8 | T12: 9.6 | U12: 9.4 | V12: 9.1 | W12: 8.8 | X12: 8.6 | Y12: 8.4
A13: 12月 | B13: 3.7 | C13: 3.6 | D13: 3.5 | E13: 3.4 | F13: 3.4 | G13: 3.3 | H13: 3.3 | I13: 3.2 | J13: 3.5 | K13: 4.1 | L13: 4.7 | M13: 5.1 | N13: 5.3 | O13: 5.4 | P13: 5.4 | Q13: 5.3 | R13: 5.1 | S13: 4.8 | T13: 4.6 | U13: 4.4 | V13: 4.2 | W13: 4 | X13: 3.8 | Y13: 3.6
A14: 1月 | B14: 1.2 | C14: 1 | D14: 0.9 | E14: 0.9 | F14: 0.8 | G14: 0.7 | H14: 0.7 | I14: 0.7 | J14: 0.9 | K14: 1.4 | L14: 2 | M14: 2.4 | N14: 2.7 | O14: 2.8 | P14: 2.8 | Q14: 2.8 | R14: 2.6 | S14: 2.3 | T14: 2.1 | U14: 2 | V14: 1.8 | W14: 1.6 | X14: 1.4 | Y14: 1.3
A15: 2月 | B15: 1.1 | C15: 1 | D15: 0.9 | E15: 0.8 | F15: 0.7 | G15: 0.6 | H15: 0.5 | I15: 0.5 | J15: 1 | K15: 1.7 | L15: 2.3 | M15: 2.7 | N15: 3.1 | O15: 3.2 | P15: 3.3 | Q15: 3.3 | R15: 3.1 | S15: 2.8 | T15: 2.5 | U15: 2.3 | V15: 2.1 | W15: 1.8 | X15: 1.6 | Y15: 1.4
A16: 3月 | B16: 3.7 | C16: 3.6 | D16: 3.4 | E16: 3.3 | F16: 3.1 | G16: 3 | H16: 2.9 | I16: 3.2 | J16: 4 | K16: 4.8 | L16: 5.3 | M16: 5.8 | N16: 6 | O16: 6.2 | P16: 6.2 | Q16: 6.1 | R16: 5.9 | S16: 5.6 | T16: 5.2 | U16: 5 | V16: 4.8 | W16: 4.5 | X16: 4.2 | Y16: 4

Sheet 金沢 (hidden)
A1: 気象データ
A2: =RIGHT(CELL("filename",A2),LEN(CELL("filename",A2))-FIND("]",CELL("filename",A2))) -> 金沢
A3: 時刻別平均外気湿球温度
A4: 時刻 | B4: 0 | C4: 1 | D4: 2 | E4: 3 | F4: 4 | G4: 5 | H4: 6 | I4: 7 | J4: 8 | K4: 9 | L4: 10 | M4: 11 | N4: 12 | O4: 13 | P4: 14 | Q4: 15 | R4: 16 | S4: 17 | T4: 18 | U4: 19 | V4: 20 | W4: 21 | X4: 22 | Y4: 23
A5: 4月 | B5: 8.1 | C5: 7.9 | D5: 7.7 | E5: 7.5 | F5: 7.4 | G5: 7.3 | H5: 7.3 | I5: 7.8 | J5: 8.7 | K5: 9.3 | L5: 9.8 | M5: 10.1 | N5: 10.3 | O5: 10.4 | P5: 10.3 | Q5: 10.2 | R5: 10.1 | S5: 9.8 | T5: 9.5 | U5: 9.3 | V5: 9.2 | W5: 9 | X5: 8.7 | Y5: 8.4
A6: 5月 | B6: 13.1 | C6: 12.9 | D6: 12.7 | E6: 12.5 | F6: 12.3 | G6: 12.2 | H6: 12.4 | I6: 13 | J6: 13.7 | K6: 14.2 | L6: 14.6 | M6: 14.8 | N6: 14.9 | O6: 15 | P6: 14.9 | Q6: 14.8 | R6: 14.6 | S6: 14.4 | T6: 14.2 | U6: 14 | V6: 13.9 | W6: 13.8 | X6: 13.6 | Y6: 13.4
A7: 6月 | B7: 17.7 | C7: 17.5 | D7: 17.4 | E7: 17.2 | F7: 17.1 | G7: 17 | H7: 17.2 | I7: 17.6 | J7: 18.1 | K7: 18.5 | L7: 18.7 | M7: 19 | N7: 19.1 | O7: 19.1 | P7: 19.1 | Q7: 19 | R7: 18.9 | S7: 18.7 | T7: 18.6 | U7: 18.4 | V7: 18.3 | W7: 18.2 | X7: 18.1 | Y7: 18
A8: 7月 | B8: 22 | C8: 21.8 | D8: 21.7 | E8: 21.6 | F8: 21.4 | G8: 21.3 | H8: 21.4 | I8: 21.7 | J8: 22.2 | K8: 22.5 | L8: 22.8 | M8: 23 | N8: 23.1 | O8: 23.1 | P8: 23.1 | Q8: 23 | R8: 22.9 | S8: 22.8 | T8: 22.7 | U8: 22.5 | V8: 22.4 | W8: 22.4 | X8: 22.3 | Y8: 22.2
A9: 8月 | B9: 23 | C9: 22.8 | D9: 22.6 | E9: 22.4 | F9: 22.2 | G9: 22.1 | H9: 22.1 | I9: 22.4 | J9: 23 | K9: 23.4 | L9: 23.7 | M9: 23.9 | N9: 24 | O9: 24.1 | P9: 24.1 | Q9: 24 | R9: 23.9 | S9: 23.8 | T9: 23.7 | U9: 23.5 | V9: 23.5 | W9: 23.4 | X9: 23.2 | Y9: 23.1
A10: 9月 | B10: 19.2 | C10: 19.1 | D10: 18.9 | E10: 18.8 | F10: 18.7 | G10: 18.5 | H10: 18.5 | I10: 18.7 | J10: 19.3 | K10: 19.8 | L10: 20 | M10: 20.3 | N10: 20.4 | O10: 20.5 | P10: 20.5 | Q10: 20.4 | R10: 20.3 | S10: 20.2 | T10: 20 | U10: 19.9 | V10: 19.7 | W10: 19.6 | X10: 19.4 | Y10: 19.3
A11: 10月 | B11: 13.7 | C11: 13.5 | D11: 13.3 | E11: 13.2 | F11: 13.1 | G11: 13 | H11: 12.9 | I11: 13.1 | J11: 13.7 | K11: 14.4 | L11: 14.8 | M11: 15.1 | N11: 15.2 | O11: 15.3 | P11: 15.3 | Q11: 15.2 | R11: 15 | S11: 14.8 | T11: 14.7 | U11: 14.5 | V11: 14.3 | W11: 14 | X11: 13.8 | Y11: 13.7
A12: 11月 | B12: 8.4 | C12: 8.3 | D12: 8.2 | E12: 8.1 | F12: 8 | G12: 7.9 | H12: 7.9 | I12: 7.9 | J12: 8.4 | K12: 9 | L12: 9.6 | M12: 10 | N12: 10.1 | O12: 10.2 | P12: 10.2 | Q12: 10.1 | R12: 10 | S12: 9.8 | T12: 9.6 | U12: 9.4 | V12: 9.1 | W12: 8.9 | X12: 8.7 | Y12: 8.5
A13: 12月 | B13: 3.9 | C13: 3.8 | D13: 3.8 | E13: 3.7 | F13: 3.7 | G13: 3.6 | H13: 3.6 | I13: 3.6 | J13: 3.8 | K13: 4.3 | L13: 4.7 | M13: 5 | N13: 5.2 | O13: 5.3 | P13: 5.3 | Q13: 5.2 | R13: 5.1 | S13: 4.9 | T13: 4.7 | U13: 4.5 | V13: 4.3 | W13: 4.1 | X13: 4 | Y13: 3.9
A14: 1月 | B14: 1.6 | C14: 1.5 | D14: 1.5 | E14: 1.4 | F14: 1.4 | G14: 1.3 | H14: 1.3 | I14: 1.3 | J14: 1.4 | K14: 1.8 | L14: 2.3 | M14: 2.6 | N14: 2.8 | O14: 2.9 | P14: 2.9 | Q14: 2.9 | R14: 2.8 | S14: 2.6 | T14: 2.4 | U14: 2.3 | V14: 2.1 | W14: 1.9 | X14: 1.8 | Y14: 1.7
A15: 2月 | B15: 1.5 | C15: 1.4 | D15: 1.3 | E15: 1.2 | F15: 1.1 | G15: 1.1 | H15: 1 | I15: 1 | J15: 1.4 | K15: 2 | L15: 2.5 | M15: 2.9 | N15: 3.2 | O15: 3.3 | P15: 3.3 | Q15: 3.3 | R15: 3.2 | S15: 3 | T15: 2.7 | U15: 2.5 | V15: 2.3 | W15: 2.1 | X15: 1.9 | Y15: 1.8
A16: 3月 | B16: 3.8 | C16: 3.6 | D16: 3.5 | E16: 3.3 | F16: 3.2 | G16: 3.1 | H16: 3 | I16: 3.2 | J16: 3.9 | K16: 4.7 | L16: 5.2 | M16: 5.6 | N16: 5.9 | O16: 6 | P16: 6 | Q16: 5.9 | R16: 5.8 | S16: 5.5 | T16: 5.2 | U16: 5 | V16: 4.8 | W16: 4.5 | X16: 4.3 | Y16: 4.1

Sheet 福井 (hidden)
A1: 気象データ
A2: =RIGHT(CELL("filename",A2),LEN(CELL("filename",A2))-FIND("]",CELL("filename",A2))) -> 福井
A3: 時刻別平均外気湿球温度
A4: 時刻 | B4: 0 | C4: 1 | D4: 2 | E4: 3 | F4: 4 | G4: 5 | H4: 6 | I4: 7 | J4: 8 | K4: 9 | L4: 10 | M4: 11 | N4: 12 | O4: 13 | P4: 14 | Q4: 15 | R4: 16 | S4: 17 | T4: 18 | U4: 19 | V4: 20 | W4: 21 | X4: 22 | Y4: 23
A5: 4月 | B5: 8 | C5: 7.8 | D5: 7.6 | E5: 7.4 | F5: 7.3 | G5: 7.1 | H5: 7.3 | I5: 8 | J5: 8.9 | K5: 9.5 | L5: 10 | M5: 10.2 | N5: 10.5 | O5: 10.6 | P5: 10.5 | Q5: 10.3 | R5: 10.1 | S5: 9.8 | T5: 9.5 | U5: 9.2 | V5: 9.1 | W5: 8.9 | X5: 8.7 | Y5: 8.4
A6: 5月 | B6: 13.2 | C6: 13 | D6: 12.8 | E6: 12.6 | F6: 12.5 | G6: 12.4 | H6: 12.8 | I6: 13.4 | J6: 14.1 | K6: 14.5 | L6: 14.9 | M6: 15.1 | N6: 15.2 | O6: 15.3 | P6: 15.2 | Q6: 15.1 | R6: 14.9 | S6: 14.6 | T6: 14.3 | U6: 14 | V6: 13.9 | W6: 13.9 | X6: 13.7 | Y6: 13.5
A7: 6月 | B7: 17.9 | C7: 17.8 | D7: 17.6 | E7: 17.4 | F7: 17.3 | G7: 17.2 | H7: 17.6 | I7: 18.1 | J7: 18.5 | K7: 18.8 | L7: 19.1 | M7: 19.4 | N7: 19.5 | O7: 19.5 | P7: 19.5 | Q7: 19.4 | R7: 19.2 | S7: 19 | T7: 18.8 | U7: 18.6 | V7: 18.5 | W7: 18.5 | X7: 18.4 | Y7: 18.3
A8: 7月 | B8: 22.2 | C8: 22 | D8: 21.9 | E8: 21.7 | F8: 21.6 | G8: 21.5 | H8: 21.7 | I8: 22.1 | J8: 22.5 | K8: 22.9 | L8: 23.2 | M8: 23.4 | N8: 23.6 | O8: 23.6 | P8: 23.6 | Q8: 23.5 | R8: 23.4 | S8: 23.2 | T8: 23 | U8: 22.8 | V8: 22.7 | W8: 22.6 | X8: 22.5 | Y8: 22.4
A9: 8月 | B9: 23.1 | C9: 22.9 | D9: 22.7 | E9: 22.6 | F9: 22.4 | G9: 22.2 | H9: 22.3 | I9: 22.8 | J9: 23.3 | K9: 23.8 | L9: 24.1 | M9: 24.3 | N9: 24.5 | O9: 24.5 | P9: 24.5 | Q9: 24.4 | R9: 24.3 | S9: 24.2 | T9: 24 | U9: 23.8 | V9: 23.7 | W9: 23.6 | X9: 23.5 | Y9: 23.3
A10: 9月 | B10: 19.4 | C10: 19.2 | D10: 19 | E10: 18.9 | F10: 18.7 | G10: 18.6 | H10: 18.6 | I10: 19.1 | J10: 19.7 | K10: 20.1 | L10: 20.5 | M10: 20.7 | N10: 20.8 | O10: 20.8 | P10: 20.8 | Q10: 20.7 | R10: 20.6 | S10: 20.3 | T10: 20.1 | U10: 20.1 | V10: 20 | W10: 19.9 | X10: 19.7 | Y10: 19.5
A11: 10月 | B11: 13.8 | C11: 13.6 | D11: 13.4 | E11: 13.3 | F11: 13.1 | G11: 13 | H11: 12.9 | I11: 13.3 | J11: 14.1 | K11: 14.7 | L11: 15.1 | M11: 15.4 | N11: 15.6 | O11: 15.7 | P11: 15.6 | Q11: 15.5 | R11: 15.3 | S11: 15 | T11: 14.9 | U11: 14.7 | V11: 14.5 | W11: 14.2 | X11: 14 | Y11: 13.8
A12: 11月 | B12: 8.4 | C12: 8.2 | D12: 8 | E12: 7.9 | F12: 7.8 | G12: 7.7 | H12: 7.6 | I12: 7.7 | J12: 8.4 | K12: 9.2 | L12: 9.7 | M12: 10.1 | N12: 10.3 | O12: 10.4 | P12: 10.5 | Q12: 10.3 | R12: 10.1 | S12: 9.8 | T12: 9.6 | U12: 9.4 | V12: 9.1 | W12: 8.8 | X12: 8.6 | Y12: 8.4
A13: 12月 | B13: 3.7 | C13: 3.6 | D13: 3.5 | E13: 3.4 | F13: 3.4 | G13: 3.3 | H13: 3.3 | I13: 3.2 | J13: 3.5 | K13: 4.1 | L13: 4.7 | M13: 5.1 | N13: 5.3 | O13: 5.4 | P13: 5.4 | Q13: 5.3 | R13: 5.1 | S13: 4.8 | T13: 4.6 | U13: 4.4 | V13: 4.2 | W13: 4 | X13: 3.8 | Y13: 3.6
A14: 1月 | B14: 1.2 | C14: 1 | D14: 0.9 | E14: 0.9 | F14: 0.8 | G14: 0.7 | H14: 0.7 | I14: 0.7 | J14: 0.9 | K14: 1.4 | L14: 2 | M14: 2.4 | N14: 2.7 | O14: 2.8 | P14: 2.8 | Q14: 2.8 | R14: 2.6 | S14: 2.3 | T14: 2.1 | U14: 2 | V14: 1.8 | W14: 1.6 | X14: 1.4 | Y14: 1.3
A15: 2月 | B15: 1.1 | C15: 1 | D15: 0.9 | E15: 0.8 | F15: 0.7 | G15: 0.6 | H15: 0.5 | I15: 0.5 | J15: 1 | K15: 1.7 | L15: 2.3 | M15: 2.7 | N15: 3.1 | O15: 3.2 | P15: 3.3 | Q15: 3.3 | R15: 3.1 | S15: 2.8 | T15: 2.5 | U15: 2.3 | V15: 2.1 | W15: 1.8 | X15: 1.6 | Y15: 1.4
A16: 3月 | B16: 3.7 | C16: 3.6 | D16: 3.4 | E16: 3.3 | F16: 3.1 | G16: 3 | H16: 2.9 | I16: 3.2 | J16: 4 | K16: 4.8 | L16: 5.3 | M16: 5.8 | N16: 6 | O16: 6.2 | P16: 6.2 | Q16: 6.1 | R16: 5.9 | S16: 5.6 | T16: 5.2 | U16: 5 | V16: 4.8 | W16: 4.5 | X16: 4.2 | Y16: 4

Sheet 甲府 (hidden)
A1: 気象データ
A2: =RIGHT(CELL("filename",A2),LEN(CELL("filename",A2))-FIND("]",CELL("filename",A2))) -> 甲府
A3: 時刻別平均外気湿球温度
A4: 時刻 | B4: 0 | C4: 1 | D4: 2 | E4: 3 | F4: 4 | G4: 5 | H4: 6 | I4: 7 | J4: 8 | K4: 9 | L4: 10 | M4: 11 | N4: 12 | O4: 13 | P4: 14 | Q4: 15 | R4: 16 | S4: 17 | T4: 18 | U4: 19 | V4: 20 | W4: 21 | X4: 22 | Y4: 23
A5: 4月 | B5: 8.4 | C5: 8.1 | D5: 7.8 | E5: 7.5 | F5: 7.3 | G5: 7 | H5: 7.1 | I5: 7.7 | J5: 8.3 | K5: 9 | L5: 9.6 | M5: 10.1 | N5: 10.5 | O5: 10.9 | P5: 11.2 | Q5: 11.4 | R5: 11.2 | S5: 11 | T5: 10.5 | U5: 10.1 | V5: 9.7 | W5: 9.5 | X5: 9.2 | Y5: 8.9
A6: 5月 | B6: 13.3 | C6: 13.1 | D6: 12.8 | E6: 12.6 | F6: 12.4 | G6: 12.2 | H6: 12.5 | I6: 12.9 | J6: 13.4 | K6: 13.9 | L6: 14.4 | M6: 14.7 | N6: 14.9 | O6: 15.3 | P6: 15.5 | Q6: 15.7 | R6: 15.6 | S6: 15.4 | T6: 15 | U6: 14.6 | V6: 14.3 | W6: 14.1 | X6: 13.9 | Y6: 13.6
A7: 6月 | B7: 17.6 | C7: 17.4 | D7: 17.3 | E7: 17.1 | F7: 17 | G7: 16.9 | H7: 17.1 | I7: 17.3 | J7: 17.7 | K7: 18 | L7: 18.3 | M7: 18.5 | N7: 18.7 | O7: 18.9 | P7: 19.2 | Q7: 19.2 | R7: 19.2 | S7: 19.1 | T7: 18.9 | U7: 18.6 | V7: 18.4 | W7: 18.2 | X7: 18.1 | Y7: 17.9
A8: 7月 | B8: 21.5 | C8: 21.4 | D8: 21.3 | E8: 21.2 | F8: 21 | G8: 21 | H8: 21 | I8: 21.3 | J8: 21.5 | K8: 21.8 | L8: 22.1 | M8: 22.3 | N8: 22.4 | O8: 22.6 | P8: 22.6 | Q8: 22.9 | R8: 22.9 | S8: 22.8 | T8: 22.5 | U8: 22.3 | V8: 22.1 | W8: 22 | X8: 21.8 | Y8: 21.7
A9: 8月 | B9: 22.3 | C9: 22.2 | D9: 22.1 | E9: 21.9 | F9: 21.8 | G9: 21.7 | H9: 21.7 | I9: 21.9 | J9: 22.2 | K9: 22.5 | L9: 22.8 | M9: 23 | N9: 23.1 | O9: 23.2 | P9: 23.4 | Q9: 23.5 | R9: 23.6 | S9: 23.4 | T9: 23.2 | U9: 23 | V9: 22.8 | W9: 22.7 | X9: 22.6 | Y9: 22.4
A10: 9月 | B10: 19 | C10: 18.8 | D10: 18.7 | E10: 18.5 | F10: 18.4 | G10: 18.2 | H10: 18.2 | I10: 18.4 | J10: 18.7 | K10: 19.1 | L10: 19.4 | M10: 19.7 | N10: 19.9 | O10: 20 | P10: 20 | Q10: 20.2 | R10: 20.3 | S10: 20.1 | T10: 19.8 | U10: 19.6 | V10: 19.5 | W10: 19.3 | X10: 19.1 | Y10: 19
A11: 10月 | B11: 13.3 | C11: 13.1 | D11: 13 | E11: 12.8 | F11: 12.6 | G11: 12.4 | H11: 12.2 | I11: 12.5 | J11: 12.9 | K11: 13.5 | L11: 13.9 | M11: 14.3 | N11: 14.7 | O11: 14.9 | P11: 15 | Q11: 15.1 | R11: 15.1 | S11: 14.9 | T11: 14.6 | U11: 14.3 | V11: 14 | W11: 13.8 | X11: 13.6 | Y11: 13.3
A12: 11月 | B12: 7.1 | C12: 6.9 | D12: 6.6 | E12: 6.3 | F12: 6.1 | G12: 5.8 | H12: 5.6 | I12: 5.7 | J12: 6.5 | K12: 7.2 | L12: 7.9 | M12: 8.6 | N12: 9.1 | O12: 9.5 | P12: 9.7 | Q12: 9.7 | R12: 9.6 | S12: 9.3 | T12: 8.9 | U12: 8.5 | V12: 8.1 | W12: 7.8 | X12: 7.5 | Y12: 7.2
A13: 12月 | B13: 1.5 | C13: 1.2 | D13: 0.9 | E13: 0.7 | F13: 0.4 | G13: 0.2 | H13: 0 | I13: -0.1 | J13: 0.6 | K13: 1.6 | L13: 2.5 | M13: 3.3 | N13: 4 | O13: 4.5 | P13: 4.7 | Q13: 4.7 | R13: 4.4 | S13: 3.9 | T13: 3.5 | U13: 3 | V13: 2.6 | W13: 2.2 | X13: 1.9 | Y13: 1.6
A14: 1月 | B14: -0.9 | C14: -1.2 | D14: -1.5 | E14: -1.8 | F14: -2.1 | G14: -2.3 | H14: -2.6 | I14: -2.8 | J14: -2 | K14: -1 | L14: 0 | M14: 0.8 | N14: 1.5 | O14: 2.1 | P14: 2.4 | Q14: 2.5 | R14: 2.3 | S14: 1.8 | T14: 1.3 | U14: 0.9 | V14: 0.4 | W14: 0 | X14: -0.3 | Y14: -0.6
A15: 2月 | B15: 0.2 | C15: -0.1 | D15: -0.4 | E15: -0.7 | F15: -1 | G15: -1.2 | H15: -1.4 | I15: -1.4 | J15: -0.6 | K15: 0.3 | L15: 1.1 | M15: 2 | N15: 2.7 | O15: 3.2 | P15: 3.6 | Q15: 3.8 | R15: 3.7 | S15: 3.2 | T15: 2.7 | U15: 2.3 | V15: 1.8 | W15: 1.4 | X15: 1 | Y15: 0.7
A16: 3月 | B16: 3.7 | C16: 3.4 | D16: 3.1 | E16: 2.8 | F16: 2.5 | G16: 2.3 | H16: 2 | I16: 2.4 | J16: 3.2 | K16: 3.9 | L16: 4.7 | M16: 5.4 | N16: 6 | O16: 6.5 | P16: 6.8 | Q16: 7.1 | R16: 7 | S16: 6.6 | T16: 6.1 | U16: 5.6 | V16: 5.3 | W16: 4.9 | X16: 4.5 | Y16: 4.1

Sheet 長野 (hidden)
A1: 気象データ
A2: =RIGHT(CELL("filename",A2),LEN(CELL("filename",A2))-FIND("]",CELL("filename",A2))) -> 長野
A3: 時刻別平均外気湿球温度
A4: 時刻 | B4: 0 | C4: 1 | D4: 2 | E4: 3 | F4: 4 | G4: 5 | H4: 6 | I4: 7 | J4: 8 | K4: 9 | L4: 10 | M4: 11 | N4: 12 | O4: 13 | P4: 14 | Q4: 15 | R4: 16 | S4: 17 | T4: 18 | U4: 19 | V4: 20 | W4: 21 | X4: 22 | Y4: 23
A5: 4月 | B5: 5.6 | C5: 5.3 | D5: 5 | E5: 4.8 | F5: 4.6 | G5: 4.4 | H5: 4.5 | I5: 5.2 | J5: 6.1 | K5: 7 | L5: 7.7 | M5: 8.3 | N5: 8.7 | O5: 8.9 | P5: 9.1 | Q5: 8.9 | R5: 8.6 | S5: 8.2 | T5: 7.6 | U5: 7.2 | V5: 6.8 | W5: 6.5 | X5: 6.2 | Y5: 6
A6: 5月 | B6: 11 | C6: 10.8 | D6: 10.6 | E6: 10.4 | F6: 10.2 | G6: 10 | H6: 10.3 | I6: 11 | J6: 11.7 | K6: 12.4 | L6: 13 | M6: 13.4 | N6: 13.7 | O6: 13.9 | P6: 14 | Q6: 14 | R6: 13.7 | S6: 13.3 | T6: 12.9 | U6: 12.4 | V6: 12.1 | W6: 11.8 | X6: 11.5 | Y6: 11.3
A7: 6月 | B7: 15.7 | C7: 15.6 | D7: 15.4 | E7: 15.3 | F7: 15.1 | G7: 15 | H7: 15.3 | I7: 15.7 | J7: 16.3 | K7: 16.8 | L7: 17.2 | M7: 17.5 | N7: 17.8 | O7: 18 | P7: 18.1 | Q7: 18.1 | R7: 18 | S7: 17.7 | T7: 17.3 | U7: 17 | V7: 16.7 | W7: 16.5 | X7: 16.2 | Y7: 16.1
A8: 7月 | B8: 20.1 | C8: 19.9 | D8: 19.8 | E8: 19.7 | F8: 19.6 | G8: 19.5 | H8: 19.7 | I8: 20 | J8: 20.5 | K8: 20.9 | L8: 21.2 | M8: 21.5 | N8: 21.7 | O8: 22 | P8: 22.2 | Q8: 22.2 | R8: 22 | S8: 21.8 | T8: 21.4 | U8: 21.1 | V8: 20.8 | W8: 20.6 | X8: 20.4 | Y8: 20.3
A9: 8月 | B9: 21 | C9: 20.8 | D9: 20.7 | E9: 20.6 | F9: 20.4 | G9: 20.3 | H9: 20.3 | I9: 20.7 | J9: 21.1 | K9: 21.6 | L9: 21.9 | M9: 22.1 | N9: 22.4 | O9: 22.5 | P9: 22.7 | Q9: 22.8 | R9: 22.7 | S9: 22.4 | T9: 22 | U9: 21.7 | V9: 21.5 | W9: 21.3 | X9: 21.2 | Y9: 21
A10: 9月 | B10: 17.2 | C10: 17 | D10: 16.9 | E10: 16.7 | F10: 16.6 | G10: 16.5 | H10: 16.5 | I10: 16.8 | J10: 17.2 | K10: 17.7 | L10: 18.2 | M10: 18.5 | N10: 18.7 | O10: 18.8 | P10: 19 | Q10: 19 | R10: 18.8 | S10: 18.4 | T10: 18.1 | U10: 17.8 | V10: 17.6 | W10: 17.5 | X10: 17.3 | Y10: 17.1
A11: 10月 | B11: 11.2 | C11: 11 | D11: 10.9 | E11: 10.7 | F11: 10.5 | G11: 10.4 | H11: 10.2 | I11: 10.5 | J11: 11.2 | K11: 11.8 | L11: 12.4 | M11: 12.9 | N11: 13.2 | O11: 13.4 | P11: 13.5 | Q11: 13.4 | R11: 13.2 | S11: 12.7 | T11: 12.3 | U11: 12.1 | V11: 11.8 | W11: 11.6 | X11: 11.4 | Y11: 11.2
A12: 11月 | B12: 5.2 | C12: 5 | D12: 4.7 | E12: 4.5 | F12: 4.3 | G12: 4.1 | H12: 4 | I12: 4 | J12: 4.7 | K12: 5.6 | L12: 6.4 | M12: 7.1 | N12: 7.6 | O12: 8 | P12: 8.1 | Q12: 8 | R12: 7.7 | S12: 7.1 | T12: 6.7 | U12: 6.4 | V12: 6.1 | W12: 5.8 | X12: 5.5 | Y12: 5.3
A13: 12月 | B13: 0.2 | C13: 0 | D13: -0.2 | E13: -0.3 | F13: -0.5 | G13: -0.7 | H13: -0.8 | I13: -0.9 | J13: -0.4 | K13: 0.3 | L13: 1.1 | M13: 1.8 | N13: 2.3 | O13: 2.7 | P13: 2.9 | Q13: 2.8 | R13: 2.5 | S13: 1.9 | T13: 1.6 | U13: 1.3 | V13: 1 | W13: 0.7 | X13: 0.5 | Y13: 0.3
A14: 1月 | B14: -2.3 | C14: -2.5 | D14: -2.7 | E14: -2.9 | F14: -3.1 | G14: -3.2 | H14: -3.4 | I14: -3.5 | J14: -3.1 | K14: -2.4 | L14: -1.6 | M14: -0.9 | N14: -0.4 | O14: 0.1 | P14: 0.3 | Q14: 0.3 | R14: 0 | S14: -0.4 | T14: -0.8 | U14: -1.1 | V14: -1.4 | W14: -1.6 | X14: -1.9 | Y14: -2.1
A15: 2月 | B15: -2 | C15: -2.2 | D15: -2.4 | E15: -2.7 | F15: -2.8 | G15: -3 | H15: -3.2 | I15: -3.2 | J15: -2.6 | K15: -1.7 | L15: -0.9 | M15: -0.1 | N15: 0.5 | O15: 0.9 | P15: 1.1 | Q15: 1.1 | R15: 0.8 | S15: 0.3 | T15: -0.2 | U15: -0.5 | V15: -0.8 | W15: -1.1 | X15: -1.4 | Y15: -1.6
A16: 3月 | B16: 0.9 | C16: 0.7 | D16: 0.5 | E16: 0.3 | F16: 0.1 | G16: -0.1 | H16: -0.3 | I16: 0.1 | J16: 0.9 | K16: 1.7 | L16: 2.6 | M16: 3.3 | N16: 3.9 | O16: 4.2 | P16: 4.3 | Q16: 4.2 | R16: 3.9 | S16: 3.4 | T16: 2.8 | U16: 2.4 | V16: 2 | W16: 1.7 | X16: 1.5 | Y16: 1.2

Sheet 岐阜 (hidden)
A1: 気象データ
A2: =RIGHT(CELL("filename",A2),LEN(CELL("filename",A2))-FIND("]",CELL("filename",A2))) -> 岐阜
A3: 時刻別平均外気湿球温度
A4: 時刻 | B4: 0 | C4: 1 | D4: 2 | E4: 3 | F4: 4 | G4: 5 | H4: 6 | I4: 7 | J4: 8 | K4: 9 | L4: 10 | M4: 11 | N4: 12 | O4: 13 | P4: 14 | Q4: 15 | R4: 16 | S4: 17 | T4: 18 | U4: 19 | V4: 20 | W4: 21 | X4: 22 | Y4: 23
A5: 4月 | B5: 9.3 | C5: 9 | D5: 8.8 | E5: 8.6 | F5: 8.4 | G5: 8.2 | H5: 8.2 | I5: 8.6 | J5: 9.2 | K5: 9.8 | L5: 10.4 | M5: 10.9 | N5: 11.4 | O5: 11.6 | P5: 11.7 | Q5: 11.6 | R5: 11.5 | S5: 11.1 | T5: 10.7 | U5: 10.5 | V5: 10.3 | W5: 10.1 | X5: 9.9 | Y5: 9.7
A6: 5月 | B6: 14.1 | C6: 13.9 | D6: 13.7 | E6: 13.5 | F6: 13.4 | G6: 13.2 | H6: 13.4 | I6: 13.7 | J6: 14.2 | K6: 14.7 | L6: 15.2 | M6: 15.5 | N6: 15.8 | O6: 15.9 | P6: 16.1 | Q6: 16 | R6: 15.8 | S6: 15.6 | T6: 15.2 | U6: 14.9 | V6: 14.8 | W6: 14.6 | X6: 14.5 | Y6: 14.4
A7: 6月 | B7: 18.4 | C7: 18.3 | D7: 18.2 | E7: 18.1 | F7: 17.9 | G7: 17.8 | H7: 18 | I7: 18.2 | J7: 18.6 | K7: 18.9 | L7: 19.3 | M7: 19.5 | N7: 19.8 | O7: 19.9 | P7: 20 | Q7: 20 | R7: 19.8 | S7: 19.6 | T7: 19.4 | U7: 19.1 | V7: 19 | W7: 18.9 | X7: 18.8 | Y7: 18.7
A8: 7月 | B8: 22.5 | C8: 22.4 | D8: 22.3 | E8: 22.2 | F8: 22.2 | G8: 22.1 | H8: 22.2 | I8: 22.4 | J8: 22.7 | K8: 22.9 | L8: 23.2 | M8: 23.4 | N8: 23.6 | O8: 23.7 | P8: 23.7 | Q8: 23.8 | R8: 23.7 | S8: 23.4 | T8: 23.3 | U8: 23.1 | V8: 23 | W8: 22.9 | X8: 22.8 | Y8: 22.7
A9: 8月 | B9: 23.3 | C9: 23.2 | D9: 23.1 | E9: 23 | F9: 22.9 | G9: 22.8 | H9: 22.8 | I9: 23 | J9: 23.3 | K9: 23.6 | L9: 23.8 | M9: 24.1 | N9: 24.2 | O9: 24.4 | P9: 24.3 | Q9: 24.3 | R9: 24.2 | S9: 24 | T9: 23.8 | U9: 23.6 | V9: 23.6 | W9: 23.5 | X9: 23.4 | Y9: 23.3
A10: 9月 | B10: 20 | C10: 19.9 | D10: 19.8 | E10: 19.6 | F10: 19.5 | G10: 19.4 | H10: 19.3 | I10: 19.5 | J10: 19.8 | K10: 20.2 | L10: 20.5 | M10: 20.8 | N10: 21 | O10: 21.1 | P10: 21 | Q10: 21.1 | R10: 21 | S10: 20.8 | T10: 20.6 | U10: 20.4 | V10: 20.3 | W10: 20.2 | X10: 20.1 | Y10: 20
A11: 10月 | B11: 14.4 | C11: 14.2 | D11: 14 | E11: 13.9 | F11: 13.7 | G11: 13.5 | H11: 13.4 | I11: 13.7 | J11: 14.2 | K11: 14.6 | L11: 15.1 | M11: 15.5 | N11: 15.7 | O11: 15.9 | P11: 15.9 | Q11: 15.8 | R11: 15.7 | S11: 15.4 | T11: 15.2 | U11: 15 | V11: 14.9 | W11: 14.7 | X11: 14.5 | Y11: 14.3
A12: 11月 | B12: 8.7 | C12: 8.6 | D12: 8.3 | E12: 8.1 | F12: 7.9 | G12: 7.8 | H12: 7.6 | I12: 7.7 | J12: 8.4 | K12: 9 | L12: 9.6 | M12: 10.1 | N12: 10.5 | O12: 10.7 | P12: 10.8 | Q12: 10.7 | R12: 10.5 | S12: 10.1 | T12: 9.9 | U12: 9.7 | V12: 9.4 | W12: 9.2 | X12: 9 | Y12: 8.8
A13: 12月 | B13: 3.9 | C13: 3.7 | D13: 3.5 | E13: 3.3 | F13: 3.2 | G13: 3 | H13: 2.9 | I13: 2.8 | J13: 3.4 | K13: 4.1 | L13: 4.8 | M13: 5.4 | N13: 5.7 | O13: 6 | P13: 6.1 | Q13: 5.9 | R13: 5.7 | S13: 5.3 | T13: 5 | U13: 4.8 | V13: 4.6 | W13: 4.4 | X13: 4.1 | Y13: 3.9
A14: 1月 | B14: 1.5 | C14: 1.3 | D14: 1.1 | E14: 0.9 | F14: 0.7 | G14: 0.5 | H14: 0.4 | I14: 0.3 | J14: 0.8 | K14: 1.6 | L14: 2.4 | M14: 3 | N14: 3.4 | O14: 3.7 | P14: 3.8 | Q14: 3.7 | R14: 3.5 | S14: 3.1 | T14: 2.8 | U14: 2.5 | V14: 2.3 | W14: 2.1 | X14: 1.9 | Y14: 1.7
A15: 2月 | B15: 1.8 | C15: 1.5 | D15: 1.3 | E15: 1.2 | F15: 1 | G15: 0.8 | H15: 0.7 | I15: 0.7 | J15: 1.3 | K15: 2.1 | L15: 2.8 | M15: 3.5 | N15: 4 | O15: 4.3 | P15: 4.4 | Q15: 4.3 | R15: 4.1 | S15: 3.7 | T15: 3.3 | U15: 3 | V15: 2.8 | W15: 2.6 | X15: 2.3 | Y15: 2.1
A16: 3月 | B16: 4.6 | C16: 4.4 | D16: 4.2 | E16: 3.9 | F16: 3.7 | G16: 3.5 | H16: 3.4 | I16: 3.7 | J16: 4.3 | K16: 5 | L16: 5.7 | M16: 6.3 | N16: 6.8 | O16: 7.1 | P16: 7.2 | Q16: 7.2 | R16: 7 | S16: 6.6 | T16: 6.2 | U16: 5.9 | V16: 5.7 | W16: 5.4 | X16: 5.2 | Y16: 5

Sheet 静岡 (hidden)
A1: 気象データ
A2: =RIGHT(CELL("filename",A2),LEN(CELL("filename",A2))-FIND("]",CELL("filename",A2))) -> 静岡
A3: 時刻別平均外気湿球温度
A4: 時刻 | B4: 0 | C4: 1 | D4: 2 | E4: 3 | F4: 4 | G4: 5 | H4: 6 | I4: 7 | J4: 8 | K4: 9 | L4: 10 | M4: 11 | N4: 12 | O4: 13 | P4: 14 | Q4: 15 | R4: 16 | S4: 17 | T4: 18 | U4: 19 | V4: 20 | W4: 21 | X4: 22 | Y4: 23
A5: 4月 | B5: 10.5 | C5: 10.3 | D5: 10.1 | E5: 9.9 | F5: 9.7 | G5: 9.5 | H5: 9.6 | I5: 10.3 | J5: 11 | K5: 11.6 | L5: 12 | M5: 12.3 | N5: 12.5 | O5: 12.7 | P5: 12.7 | Q5: 12.6 | R5: 12.5 | S5: 12.3 | T5: 12.1 | U5: 11.9 | V5: 11.7 | W5: 11.5 | X5: 11.2 | Y5: 11
A6: 5月 | B6: 15.1 | C6: 14.9 | D6: 14.7 | E6: 14.4 | F6: 14.2 | G6: 14.1 | H6: 14.4 | I6: 14.9 | J6: 15.5 | K6: 16 | L6: 16.3 | M6: 16.5 | N6: 16.6 | O6: 16.7 | P6: 16.7 | Q6: 16.7 | R6: 16.6 | S6: 16.5 | T6: 16.3 | U6: 16.2 | V6: 16 | W6: 15.9 | X6: 15.7 | Y6: 15.5
A7: 6月 | B7: 19 | C7: 18.9 | D7: 18.7 | E7: 18.5 | F7: 18.4 | G7: 18.3 | H7: 18.5 | I7: 18.9 | J7: 19.3 | K7: 19.6 | L7: 19.8 | M7: 20 | N7: 20.1 | O7: 20.1 | P7: 20.1 | Q7: 20.2 | R7: 20.1 | S7: 20 | T7: 19.9 | U7: 19.8 | V7: 19.7 | W7: 19.6 | X7: 19.5 | Y7: 19.3
A8: 7月 | B8: 22.8 | C8: 22.7 | D8: 22.5 | E8: 22.4 | F8: 22.3 | G8: 22.2 | H8: 22.3 | I8: 22.6 | J8: 23 | K8: 23.3 | L8: 23.5 | M8: 23.7 | N8: 23.8 | O8: 23.8 | P8: 23.8 | Q8: 23.8 | R8: 23.7 | S8: 23.6 | T8: 23.5 | U8: 23.4 | V8: 23.3 | W8: 23.2 | X8: 23.1 | Y8: 23
A9: 8月 | B9: 23.7 | C9: 23.5 | D9: 23.4 | E9: 23.2 | F9: 23.1 | G9: 23 | H9: 23 | I9: 23.4 | J9: 23.8 | K9: 24.2 | L9: 24.3 | M9: 24.5 | N9: 24.6 | O9: 24.7 | P9: 24.8 | Q9: 24.7 | R9: 24.6 | S9: 24.5 | T9: 24.4 | U9: 24.3 | V9: 24.2 | W9: 24.1 | X9: 24 | Y9: 23.8
A10: 9月 | B10: 20.7 | C10: 20.5 | D10: 20.4 | E10: 20.2 | F10: 20 | G10: 19.9 | H10: 19.9 | I10: 20.2 | J10: 20.7 | K10: 21.1 | L10: 21.3 | M10: 21.5 | N10: 21.6 | O10: 21.7 | P10: 21.7 | Q10: 21.7 | R10: 21.7 | S10: 21.5 | T10: 21.5 | U10: 21.4 | V10: 21.3 | W10: 21.1 | X10: 21 | Y10: 20.7
A11: 10月 | B11: 15.5 | C11: 15.4 | D11: 15.2 | E11: 15 | F11: 14.9 | G11: 14.7 | H11: 14.6 | I11: 14.9 | J11: 15.5 | K11: 16.1 | L11: 16.4 | M11: 16.7 | N11: 16.9 | O11: 17 | P11: 17 | Q11: 17 | R11: 16.9 | S11: 16.7 | T11: 16.6 | U11: 16.4 | V11: 16.2 | W11: 16 | X11: 15.8 | Y11: 15.6
A12: 11月 | B12: 10.2 | C12: 10 | D12: 9.8 | E12: 9.6 | F12: 9.4 | G12: 9.3 | H12: 9.1 | I12: 9.2 | J12: 10 | K12: 10.8 | L12: 11.5 | M12: 11.9 | N12: 12.2 | O12: 12.4 | P12: 12.4 | Q12: 12.4 | R12: 12.2 | S12: 11.9 | T12: 11.6 | U12: 11.4 | V12: 11.1 | W12: 10.8 | X12: 10.6 | Y12: 10.3
A13: 12月 | B13: 5 | C13: 4.8 | D13: 4.6 | E13: 4.4 | F13: 4.2 | G13: 4.1 | H13: 3.9 | I13: 3.9 | J13: 4.6 | K13: 5.7 | L13: 6.5 | M13: 7.1 | N13: 7.5 | O13: 7.7 | P13: 7.7 | Q13: 7.6 | R13: 7.3 | S13: 6.8 | T13: 6.5 | U13: 6.2 | V13: 5.9 | W13: 5.6 | X13: 5.3 | Y13: 5.1
A14: 1月 | B14: 2.5 | C14: 2.3 | D14: 2.1 | E14: 1.9 | F14: 1.7 | G14: 1.5 | H14: 1.3 | I14: 1.2 | J14: 1.9 | K14: 3.1 | L14: 4.1 | M14: 4.7 | N14: 5.1 | O14: 5.4 | P14: 5.5 | Q14: 5.4 | R14: 5.1 | S14: 4.7 | T14: 4.2 | U14: 3.9 | V14: 3.6 | W14: 3.3 | X14: 3 | Y14: 2.8
A15: 2月 | B15: 3.2 | C15: 3 | D15: 2.8 | E15: 2.6 | F15: 2.4 | G15: 2.2 | H15: 2.1 | I15: 2.1 | J15: 3 | K15: 4 | L15: 4.8 | M15: 5.4 | N15: 5.8 | O15: 6 | P15: 6.1 | Q15: 6.1 | R15: 5.9 | S15: 5.5 | T15: 5.2 | U15: 4.8 | V15: 4.5 | W15: 4.2 | X15: 3.9 | Y15: 3.6
A16: 3月 | B16: 6.4 | C16: 6.2 | D16: 5.9 | E16: 5.7 | F16: 5.5 | G16: 5.3 | H16: 5.2 | I16: 5.6 | J16: 6.5 | K16: 7.3 | L16: 7.9 | M16: 8.3 | N16: 8.6 | O16: 8.8 | P16: 8.9 | Q16: 8.8 | R16: 8.6 | S16: 8.4 | T16: 8.1 | U16: 7.9 | V16: 7.6 | W16: 7.3 | X16: 7.1 | Y16: 6.8

Sheet 名古屋 (hidden)
A1: 気象データ
A2: =RIGHT(CELL("filename",A2),LEN(CELL("filename",A2))-FIND("]",CELL("filename",A2))) -> 名古屋
A3: 時刻別平均外気湿球温度
A4: 時刻 | B4: 0 | C4: 1 | D4: 2 | E4: 3 | F4: 4 | G4: 5 | H4: 6 | I4: 7 | J4: 8 | K4: 9 | L4: 10 | M4: 11 | N4: 12 | O4: 13 | P4: 14 | Q4: 15 | R4: 16 | S4: 17 | T4: 18 | U4: 19 | V4: 20 | W4: 21 | X4: 22 | Y4: 23
A5: 4月 | B5: 9.4 | C5: 9.1 | D5: 8.9 | E5: 8.7 | F5: 8.6 | G5: 8.4 | H5: 8.4 | I5: 8.9 | J5: 9.5 | K5: 10.1 | L5: 10.7 | M5: 11.1 | N5: 11.4 | O5: 11.6 | P5: 11.7 | Q5: 11.6 | R5: 11.4 | S5: 11.1 | T5: 10.8 | U5: 10.6 | V5: 10.4 | W5: 10.1 | X5: 10 | Y5: 9.7
A6: 5月 | B6: 14.1 | C6: 14 | D6: 13.8 | E6: 13.7 | F6: 13.5 | G6: 13.3 | H6: 13.6 | I6: 14 | J6: 14.5 | K6: 15 | L6: 15.3 | M6: 15.6 | N6: 15.9 | O6: 16 | P6: 16 | Q6: 15.9 | R6: 15.7 | S6: 15.5 | T6: 15.3 | U6: 15 | V6: 14.9 | W6: 14.8 | X6: 14.6 | Y6: 14.4
A7: 6月 | B7: 18.4 | C7: 18.3 | D7: 18.2 | E7: 18.1 | F7: 18 | G7: 17.9 | H7: 18.1 | I7: 18.4 | J7: 18.8 | K7: 19.1 | L7: 19.3 | M7: 19.6 | N7: 19.8 | O7: 19.9 | P7: 19.9 | Q7: 19.9 | R7: 19.7 | S7: 19.5 | T7: 19.3 | U7: 19.1 | V7: 19 | W7: 18.9 | X7: 18.8 | Y7: 18.7
A8: 7月 | B8: 22.4 | C8: 22.3 | D8: 22.2 | E8: 22.1 | F8: 22.1 | G8: 22 | H8: 22.1 | I8: 22.4 | J8: 22.7 | K8: 23 | L8: 23.3 | M8: 23.4 | N8: 23.6 | O8: 23.6 | P8: 23.7 | Q8: 23.6 | R8: 23.5 | S8: 23.4 | T8: 23.1 | U8: 23 | V8: 22.9 | W8: 22.8 | X8: 22.7 | Y8: 22.6
A9: 8月 | B9: 23.2 | C9: 23.1 | D9: 23 | E9: 22.9 | F9: 22.8 | G9: 22.7 | H9: 22.8 | I9: 23.1 | J9: 23.4 | K9: 23.7 | L9: 23.9 | M9: 24 | N9: 24.2 | O9: 24.2 | P9: 24.2 | Q9: 24.1 | R9: 24.1 | S9: 23.9 | T9: 23.7 | U9: 23.6 | V9: 23.5 | W9: 23.4 | X9: 23.3 | Y9: 23.3
A10: 9月 | B10: 20.1 | C10: 20 | D10: 19.8 | E10: 19.7 | F10: 19.6 | G10: 19.5 | H10: 19.4 | I10: 19.7 | J10: 20 | K10: 20.4 | L10: 20.7 | M10: 20.8 | N10: 21 | O10: 21.1 | P10: 21.1 | Q10: 21 | R10: 20.9 | S10: 20.7 | T10: 20.5 | U10: 20.5 | V10: 20.4 | W10: 20.3 | X10: 20.2 | Y10: 20
A11: 10月 | B11: 14.5 | C11: 14.4 | D11: 14.2 | E11: 14 | F11: 13.9 | G11: 13.7 | H11: 13.6 | I11: 13.8 | J11: 14.3 | K11: 14.8 | L11: 15.3 | M11: 15.6 | N11: 15.9 | O11: 15.9 | P11: 15.9 | Q11: 15.8 | R11: 15.7 | S11: 15.4 | T11: 15.2 | U11: 15.1 | V11: 14.9 | W11: 14.8 | X11: 14.6 | Y11: 14.5
A12: 11月 | B12: 8.8 | C12: 8.6 | D12: 8.4 | E12: 8.3 | F12: 8.1 | G12: 7.9 | H12: 7.7 | I12: 7.8 | J12: 8.4 | K12: 9.1 | L12: 9.7 | M12: 10.2 | N12: 10.6 | O12: 10.7 | P12: 10.8 | Q12: 10.7 | R12: 10.4 | S12: 10.1 | T12: 9.9 | U12: 9.6 | V12: 9.4 | W12: 9.3 | X12: 9.1 | Y12: 8.9
A13: 12月 | B13: 3.9 | C13: 3.7 | D13: 3.5 | E13: 3.4 | F13: 3.2 | G13: 3.1 | H13: 2.9 | I13: 2.8 | J13: 3.3 | K13: 4.1 | L13: 4.8 | M13: 5.4 | N13: 5.7 | O13: 6 | P13: 6 | Q13: 5.9 | R13: 5.6 | S13: 5.2 | T13: 5 | U13: 4.8 | V13: 4.6 | W13: 4.3 | X13: 4.1 | Y13: 3.9
A14: 1月 | B14: 1.5 | C14: 1.3 | D14: 1.1 | E14: 0.9 | F14: 0.7 | G14: 0.6 | H14: 0.4 | I14: 0.3 | J14: 0.8 | K14: 1.6 | L14: 2.4 | M14: 3 | N14: 3.5 | O14: 3.7 | P14: 3.8 | Q14: 3.7 | R14: 3.4 | S14: 3 | T14: 2.7 | U14: 2.5 | V14: 2.3 | W14: 2.1 | X14: 1.9 | Y14: 1.7
A15: 2月 | B15: 1.8 | C15: 1.6 | D15: 1.4 | E15: 1.2 | F15: 1 | G15: 0.8 | H15: 0.7 | I15: 0.6 | J15: 1.3 | K15: 2.1 | L15: 2.9 | M15: 3.6 | N15: 4 | O15: 4.3 | P15: 4.5 | Q15: 4.4 | R15: 4.1 | S15: 3.7 | T15: 3.3 | U15: 3.1 | V15: 2.8 | W15: 2.6 | X15: 2.4 | Y15: 2.2
A16: 3月 | B16: 4.8 | C16: 4.6 | D16: 4.3 | E16: 4.1 | F16: 3.9 | G16: 3.7 | H16: 3.5 | I16: 3.8 | J16: 4.5 | K16: 5.2 | L16: 5.9 | M16: 6.5 | N16: 6.9 | O16: 7.2 | P16: 7.4 | Q16: 7.3 | R16: 7.1 | S16: 6.7 | T16: 6.3 | U16: 6 | V16: 5.8 | W16: 5.6 | X16: 5.3 | Y16: 5.1

Sheet 津 (hidden)
A1: 気象データ
A2: =RIGHT(CELL("filename",A2),LEN(CELL("filename",A2))-FIND("]",CELL("filename",A2))) -> 津
A3: 時刻別平均外気湿球温度
A4: 時刻 | B4: 0 | C4: 1 | D4: 2 | E4: 3 | F4: 4 | G4: 5 | H4: 6 | I4: 7 | J4: 8 | K4: 9 | L4: 10 | M4: 11 | N4: 12 | O4: 13 | P4: 14 | Q4: 15 | R4: 16 | S4: 17 | T4: 18 | U4: 19 | V4: 20 | W4: 21 | X4: 22 | Y4: 23
A5: 4月 | B5: 9.5 | C5: 9.4 | D5: 9.2 | E5: 9 | F5: 8.9 | G5: 8.8 | H5: 8.8 | I5: 9.3 | J5: 9.9 | K5: 10.3 | L5: 10.6 | M5: 11 | N5: 11.2 | O5: 11.5 | P5: 11.7 | Q5: 11.8 | R5: 11.7 | S5: 11.5 | T5: 11.2 | U5: 10.9 | V5: 10.7 | W5: 10.5 | X5: 10.2 | Y5: 9.9
A6: 5月 | B6: 14.5 | C6: 14.3 | D6: 14.2 | E6: 14 | F6: 13.9 | G6: 13.8 | H6: 13.9 | I6: 14.4 | J6: 14.8 | K6: 15.2 | L6: 15.5 | M6: 15.8 | N6: 16 | O6: 16.1 | P6: 16.3 | Q6: 16.3 | R6: 16.3 | S6: 16.1 | T6: 15.8 | U6: 15.6 | V6: 15.4 | W6: 15.2 | X6: 15 | Y6: 14.8
A7: 6月 | B7: 18.6 | C7: 18.5 | D7: 18.4 | E7: 18.3 | F7: 18.2 | G7: 18.1 | H7: 18.3 | I7: 18.6 | J7: 18.9 | K7: 19.2 | L7: 19.5 | M7: 19.7 | N7: 19.8 | O7: 20 | P7: 20.1 | Q7: 20.2 | R7: 20.2 | S7: 20.1 | T7: 19.9 | U7: 19.6 | V7: 19.4 | W7: 19.3 | X7: 19.1 | Y7: 19
A8: 7月 | B8: 22.7 | C8: 22.6 | D8: 22.5 | E8: 22.4 | F8: 22.3 | G8: 22.3 | H8: 22.4 | I8: 22.6 | J8: 22.9 | K8: 23.2 | L8: 23.4 | M8: 23.6 | N8: 23.7 | O8: 23.9 | P8: 23.8 | Q8: 24 | R8: 23.9 | S8: 23.8 | T8: 23.7 | U8: 23.4 | V8: 23.3 | W8: 23.1 | X8: 23 | Y8: 22.9
A9: 8月 | B9: 23.5 | C9: 23.4 | D9: 23.3 | E9: 23.2 | F9: 23.1 | G9: 23 | H9: 23.1 | I9: 23.3 | J9: 23.7 | K9: 24 | L9: 24.2 | M9: 24.4 | N9: 24.5 | O9: 24.6 | P9: 24.7 | Q9: 24.7 | R9: 24.6 | S9: 24.6 | T9: 24.3 | U9: 24.1 | V9: 23.9 | W9: 23.8 | X9: 23.7 | Y9: 23.5
A10: 9月 | B10: 20.2 | C10: 20.1 | D10: 20 | E10: 19.9 | F10: 19.8 | G10: 19.7 | H10: 19.7 | I10: 19.9 | J10: 20.3 | K10: 20.6 | L10: 20.9 | M10: 21.1 | N10: 21.2 | O10: 21.2 | P10: 21.3 | Q10: 21.3 | R10: 21.3 | S10: 21.2 | T10: 21 | U10: 20.8 | V10: 20.6 | W10: 20.5 | X10: 20.3 | Y10: 20.2
A11: 10月 | B11: 14.7 | C11: 14.6 | D11: 14.4 | E11: 14.3 | F11: 14.2 | G11: 14.1 | H11: 14.1 | I11: 14.2 | J11: 14.8 | K11: 15.2 | L11: 15.5 | M11: 15.8 | N11: 15.9 | O11: 16 | P11: 16.1 | Q11: 16.1 | R11: 16 | S11: 15.8 | T11: 15.6 | U11: 15.4 | V11: 15.2 | W11: 15 | X11: 14.8 | Y11: 14.6
A12: 11月 | B12: 9.2 | C12: 9 | D12: 8.9 | E12: 8.8 | F12: 8.7 | G12: 8.5 | H12: 8.4 | I12: 8.5 | J12: 9.1 | K12: 9.8 | L12: 10.2 | M12: 10.6 | N12: 10.8 | O12: 11 | P12: 11 | Q12: 11 | R12: 10.8 | S12: 10.5 | T12: 10.3 | U12: 10.1 | V12: 9.8 | W12: 9.6 | X12: 9.4 | Y12: 9.2
A13: 12月 | B13: 4.4 | C13: 4.2 | D13: 4.1 | E13: 4 | F13: 3.9 | G13: 3.8 | H13: 3.7 | I13: 3.7 | J13: 4.2 | K13: 5 | L13: 5.6 | M13: 6 | N13: 6.2 | O13: 6.3 | P13: 6.4 | Q13: 6.3 | R13: 6 | S13: 5.7 | T13: 5.5 | U13: 5.2 | V13: 4.9 | W13: 4.7 | X13: 4.5 | Y13: 4.3
A14: 1月 | B14: 2.1 | C14: 1.9 | D14: 1.8 | E14: 1.7 | F14: 1.6 | G14: 1.5 | H14: 1.4 | I14: 1.4 | J14: 1.8 | K14: 2.5 | L14: 3.2 | M14: 3.6 | N14: 3.9 | O14: 4 | P14: 4.1 | Q14: 4 | R14: 3.9 | S14: 3.5 | T14: 3.3 | U14: 3 | V14: 2.8 | W14: 2.5 | X14: 2.4 | Y14: 2.2
A15: 2月 | B15: 2.2 | C15: 2.1 | D15: 2 | E15: 1.8 | F15: 1.7 | G15: 1.6 | H15: 1.6 | I15: 1.6 | J15: 2.1 | K15: 2.9 | L15: 3.5 | M15: 3.9 | N15: 4.2 | O15: 4.3 | P15: 4.4 | Q15: 4.5 | R15: 4.3 | S15: 4 | T15: 3.7 | U15: 3.4 | V15: 3.2 | W15: 3 | X15: 2.7 | Y15: 2.5
A16: 3月 | B16: 5 | C16: 4.8 | D16: 4.6 | E16: 4.5 | F16: 4.3 | G16: 4.2 | H16: 4.1 | I16: 4.3 | J16: 5 | K16: 5.6 | L16: 6.1 | M16: 6.4 | N16: 6.7 | O16: 6.9 | P16: 7.1 | Q16: 7.2 | R16: 7.1 | S16: 6.9 | T16: 6.6 | U16: 6.3 | V16: 6 | W16: 5.8 | X16: 5.5 | Y16: 5.3

Sheet 彦根 (hidden)
A1: 気象データ
A2: =RIGHT(CELL("filename",A2),LEN(CELL("filename",A2))-FIND("]",CELL("filename",A2))) -> 彦根
A3: 時刻別平均外気湿球温度
A4: 時刻 | B4: 0 | C4: 1 | D4: 2 | E4: 3 | F4: 4 | G4: 5 | H4: 6 | I4: 7 | J4: 8 | K4: 9 | L4: 10 | M4: 11 | N4: 12 | O4: 13 | P4: 14 | Q4: 15 | R4: 16 | S4: 17 | T4: 18 | U4: 19 | V4: 20 | W4: 21 | X4: 22 | Y4: 23
A5: 4月 | B5: 8.7 | C5: 8.5 | D5: 8.3 | E5: 8.1 | F5: 7.9 | G5: 7.8 | H5: 7.8 | I5: 8.4 | J5: 9.1 | K5: 9.5 | L5: 9.9 | M5: 10.2 | N5: 10.5 | O5: 10.8 | P5: 10.9 | Q5: 10.9 | R5: 10.8 | S5: 10.6 | T5: 10.3 | U5: 10 | V5: 9.8 | W5: 9.6 | X5: 9.4 | Y5: 9.1
A6: 5月 | B6: 13.5 | C6: 13.4 | D6: 13.2 | E6: 13 | F6: 12.8 | G6: 12.7 | H6: 13 | I6: 13.6 | J6: 14.1 | K6: 14.5 | L6: 14.8 | M6: 15.1 | N6: 15.3 | O6: 15.5 | P6: 15.6 | Q6: 15.5 | R6: 15.4 | S6: 15.2 | T6: 14.9 | U6: 14.6 | V6: 14.4 | W6: 14.3 | X6: 14 | Y6: 13.8
A7: 6月 | B7: 18 | C7: 17.9 | D7: 17.7 | E7: 17.6 | F7: 17.5 | G7: 17.4 | H7: 17.7 | I7: 18.1 | J7: 18.5 | K7: 18.8 | L7: 19 | M7: 19.3 | N7: 19.5 | O7: 19.7 | P7: 19.7 | Q7: 19.7 | R7: 19.6 | S7: 19.5 | T7: 19.2 | U7: 19 | V7: 18.8 | W7: 18.6 | X7: 18.5 | Y7: 18.3
A8: 7月 | B8: 22.2 | C8: 22.1 | D8: 22 | E8: 21.9 | F8: 21.8 | G8: 21.7 | H8: 21.9 | I8: 22.3 | J8: 22.7 | K8: 23 | L8: 23.2 | M8: 23.4 | N8: 23.6 | O8: 23.8 | P8: 23.9 | Q8: 23.8 | R8: 23.7 | S8: 23.5 | T8: 23.3 | U8: 23.1 | V8: 22.9 | W8: 22.8 | X8: 22.6 | Y8: 22.5
A9: 8月 | B9: 23 | C9: 22.9 | D9: 22.8 | E9: 22.7 | F9: 22.5 | G9: 22.5 | H9: 22.5 | I9: 22.9 | J9: 23.4 | K9: 23.8 | L9: 24 | M9: 24.2 | N9: 24.4 | O9: 24.5 | P9: 24.6 | Q9: 24.5 | R9: 24.4 | S9: 24.2 | T9: 24 | U9: 23.8 | V9: 23.6 | W9: 23.4 | X9: 23.3 | Y9: 23.1
A10: 9月 | B10: 19.8 | C10: 19.6 | D10: 19.5 | E10: 19.4 | F10: 19.3 | G10: 19.1 | H10: 19.1 | I10: 19.5 | J10: 20 | K10: 20.4 | L10: 20.6 | M10: 20.8 | N10: 21 | O10: 21 | P10: 21.1 | Q10: 21.1 | R10: 21 | S10: 20.8 | T10: 20.5 | U10: 20.3 | V10: 20.2 | W10: 20.1 | X10: 19.9 | Y10: 19.7
A11: 10月 | B11: 14.2 | C11: 14.1 | D11: 13.9 | E11: 13.8 | F11: 13.6 | G11: 13.5 | H11: 13.4 | I11: 13.7 | J11: 14.4 | K11: 15 | L11: 15.4 | M11: 15.6 | N11: 15.8 | O11: 15.9 | P11: 15.9 | Q11: 15.9 | R11: 15.8 | S11: 15.6 | T11: 15.4 | U11: 15.2 | V11: 14.9 | W11: 14.6 | X11: 14.4 | Y11: 14.2
A12: 11月 | B12: 8.7 | C12: 8.5 | D12: 8.4 | E12: 8.2 | F12: 8 | G12: 7.9 | H12: 7.8 | I12: 7.9 | J12: 8.5 | K12: 9.4 | L12: 9.9 | M12: 10.3 | N12: 10.6 | O12: 10.7 | P12: 10.8 | Q12: 10.8 | R12: 10.6 | S12: 10.4 | T12: 10.1 | U12: 9.8 | V12: 9.5 | W12: 9.3 | X12: 9 | Y12: 8.8
A13: 12月 | B13: 4.1 | C13: 3.9 | D13: 3.7 | E13: 3.7 | F13: 3.5 | G13: 3.4 | H13: 3.4 | I13: 3.3 | J13: 3.6 | K13: 4.3 | L13: 4.9 | M13: 5.4 | N13: 5.6 | O13: 5.8 | P13: 5.9 | Q13: 5.9 | R13: 5.7 | S13: 5.5 | T13: 5.2 | U13: 4.9 | V13: 4.7 | W13: 4.4 | X13: 4.2 | Y13: 4
A14: 1月 | B14: 1.7 | C14: 1.5 | D14: 1.4 | E14: 1.3 | F14: 1.1 | G14: 1 | H14: 1 | I14: 0.9 | J14: 1.1 | K14: 1.8 | L14: 2.4 | M14: 2.8 | N14: 3.1 | O14: 3.3 | P14: 3.5 | Q14: 3.5 | R14: 3.3 | S14: 3.1 | T14: 2.9 | U14: 2.7 | V14: 2.5 | W14: 2.2 | X14: 2 | Y14: 1.8
A15: 2月 | B15: 1.9 | C15: 1.7 | D15: 1.5 | E15: 1.4 | F15: 1.3 | G15: 1.2 | H15: 1.1 | I15: 1.1 | J15: 1.5 | K15: 2.2 | L15: 2.7 | M15: 3.2 | N15: 3.5 | O15: 3.7 | P15: 3.8 | Q15: 3.8 | R15: 3.7 | S15: 3.5 | T15: 3.2 | U15: 3.1 | V15: 2.8 | W15: 2.6 | X15: 2.4 | Y15: 2.2
A16: 3月 | B16: 4.4 | C16: 4.2 | D16: 4 | E16: 3.8 | F16: 3.7 | G16: 3.5 | H16: 3.4 | I16: 3.6 | J16: 4.4 | K16: 5 | L16: 5.4 | M16: 5.8 | N16: 6.1 | O16: 6.3 | P16: 6.5 | Q16: 6.6 | R16: 6.5 | S16: 6.3 | T16: 5.9 | U16: 5.7 | V16: 5.5 | W16: 5.2 | X16: 5 | Y16: 4.8

Sheet 京都 (hidden)
A1: 気象データ
A2: =RIGHT(CELL("filename",A2),LEN(CELL("filename",A2))-FIND("]",CELL("filename",A2))) -> 京都
A3: 時刻別平均外気湿球温度
A4: 時刻 | B4: 0 | C4: 1 | D4: 2 | E4: 3 | F4: 4 | G4: 5 | H4: 6 | I4: 7 | J4: 8 | K4: 9 | L4: 10 | M4: 11 | N4: 12 | O4: 13 | P4: 14 | Q4: 15 | R4: 16 | S4: 17 | T4: 18 | U4: 19 | V4: 20 | W4: 21 | X4: 22 | Y4: 23
A5: 4月 | B5: 8.9 | C5: 8.7 | D5: 8.5 | E5: 8.4 | F5: 8.2 | G5: 8.1 | H5: 8.1 | I5: 8.5 | J5: 9.2 | K5: 9.9 | L5: 10.5 | M5: 11 | N5: 11.2 | O5: 11.4 | P5: 11.5 | Q5: 11.4 | R5: 11.3 | S5: 11 | T5: 10.7 | U5: 10.4 | V5: 10.1 | W5: 9.8 | X5: 9.6 | Y5: 9.3
A6: 5月 | B6: 13.5 | C6: 13.3 | D6: 13.2 | E6: 13.1 | F6: 12.9 | G6: 12.8 | H6: 13 | I6: 13.6 | J6: 14.2 | K6: 14.7 | L6: 15.1 | M6: 15.5 | N6: 15.7 | O6: 15.8 | P6: 15.8 | Q6: 15.8 | R6: 15.7 | S6: 15.5 | T6: 15.1 | U6: 14.8 | V6: 14.5 | W6: 14.3 | X6: 14.1 | Y6: 13.8
A7: 6月 | B7: 17.9 | C7: 17.7 | D7: 17.6 | E7: 17.5 | F7: 17.4 | G7: 17.3 | H7: 17.5 | I7: 17.9 | J7: 18.3 | K7: 18.8 | L7: 19.1 | M7: 19.4 | N7: 19.6 | O7: 19.7 | P7: 19.7 | Q7: 19.7 | R7: 19.6 | S7: 19.5 | T7: 19.2 | U7: 19 | V7: 18.8 | W7: 18.6 | X7: 18.4 | Y7: 18.3
A8: 7月 | B8: 22.2 | C8: 22.1 | D8: 22 | E8: 21.9 | F8: 21.8 | G8: 21.7 | H8: 21.8 | I8: 22.1 | J8: 22.5 | K8: 22.8 | L8: 23.1 | M8: 23.2 | N8: 23.4 | O8: 23.5 | P8: 23.5 | Q8: 23.4 | R8: 23.4 | S8: 23.3 | T8: 23.1 | U8: 23 | V8: 22.8 | W8: 22.7 | X8: 22.5 | Y8: 22.4
A9: 8月 | B9: 22.8 | C9: 22.7 | D9: 22.6 | E9: 22.5 | F9: 22.4 | G9: 22.3 | H9: 22.3 | I9: 22.7 | J9: 23.1 | K9: 23.4 | L9: 23.7 | M9: 23.8 | N9: 24 | O9: 23.9 | P9: 23.9 | Q9: 23.9 | R9: 23.8 | S9: 23.8 | T9: 23.6 | U9: 23.4 | V9: 23.3 | W9: 23.1 | X9: 23 | Y9: 22.9
A10: 9月 | B10: 19.5 | C10: 19.4 | D10: 19.3 | E10: 19.2 | F10: 19.1 | G10: 19 | H10: 19 | I10: 19.2 | J10: 19.7 | K10: 20.1 | L10: 20.4 | M10: 20.6 | N10: 20.7 | O10: 20.7 | P10: 20.6 | Q10: 20.7 | R10: 20.5 | S10: 20.4 | T10: 20.2 | U10: 20 | V10: 19.9 | W10: 19.7 | X10: 19.6 | Y10: 19.5
A11: 10月 | B11: 14.1 | C11: 14 | D11: 13.8 | E11: 13.7 | F11: 13.5 | G11: 13.5 | H11: 13.4 | I11: 13.5 | J11: 14.1 | K11: 14.7 | L11: 15.3 | M11: 15.6 | N11: 15.8 | O11: 15.8 | P11: 15.8 | Q11: 15.7 | R11: 15.6 | S11: 15.3 | T11: 15.1 | U11: 14.9 | V11: 14.6 | W11: 14.4 | X11: 14.2 | Y11: 14.1
A12: 11月 | B12: 8.8 | C12: 8.6 | D12: 8.4 | E12: 8.3 | F12: 8.1 | G12: 8 | H12: 7.9 | I12: 7.9 | J12: 8.4 | K12: 9.2 | L12: 9.9 | M12: 10.4 | N12: 10.8 | O12: 10.9 | P12: 10.9 | Q12: 10.9 | R12: 10.6 | S12: 10.4 | T12: 10.1 | U12: 9.8 | V12: 9.5 | W12: 9.3 | X12: 9.1 | Y12: 8.9
A13: 12月 | B13: 4 | C13: 3.9 | D13: 3.7 | E13: 3.6 | F13: 3.4 | G13: 3.3 | H13: 3.2 | I13: 3.1 | J13: 3.5 | K13: 4.2 | L13: 4.9 | M13: 5.5 | N13: 5.9 | O13: 6.2 | P13: 6.2 | Q13: 6.2 | R13: 5.9 | S13: 5.6 | T13: 5.3 | U13: 5 | V13: 4.7 | W13: 4.5 | X13: 4.3 | Y13: 4.1
A14: 1月 | B14: 1.8 | C14: 1.6 | D14: 1.5 | E14: 1.4 | F14: 1.2 | G14: 1.1 | H14: 1 | I14: 0.9 | J14: 1.2 | K14: 1.9 | L14: 2.6 | M14: 3.2 | N14: 3.7 | O14: 3.9 | P14: 4 | Q14: 4 | R14: 3.7 | S14: 3.4 | T14: 3.1 | U14: 2.9 | V14: 2.6 | W14: 2.4 | X14: 2.2 | Y14: 2
A15: 2月 | B15: 2.1 | C15: 1.9 | D15: 1.7 | E15: 1.6 | F15: 1.5 | G15: 1.4 | H15: 1.3 | I15: 1.2 | J15: 1.7 | K15: 2.4 | L15: 3.2 | M15: 3.7 | N15: 4.2 | O15: 4.4 | P15: 4.5 | Q15: 4.5 | R15: 4.3 | S15: 4 | T15: 3.6 | U15: 3.3 | V15: 3 | W15: 2.8 | X15: 2.6 | Y15: 2.4
A16: 3月 | B16: 4.7 | C16: 4.5 | D16: 4.3 | E16: 4.1 | F16: 3.9 | G16: 3.8 | H16: 3.7 | I16: 3.9 | J16: 4.5 | K16: 5.2 | L16: 5.9 | M16: 6.5 | N16: 7 | O16: 7.2 | P16: 7.3 | Q16: 7.3 | R16: 7.1 | S16: 6.7 | T16: 6.3 | U16: 6 | V16: 5.7 | W16: 5.4 | X16: 5.2 | Y16: 4.9

Sheet 大阪 (hidden)
A1: 気象データ
A2: =RIGHT(CELL("filename",A2),LEN(CELL("filename",A2))-FIND("]",CELL("filename",A2))) -> 大阪
A3: 時刻別平均外気湿球温度
A4: 時刻 | B4: 0 | C4: 1 | D4: 2 | E4: 3 | F4: 4 | G4: 5 | H4: 6 | I4: 7 | J4: 8 | K4: 9 | L4: 10 | M4: 11 | N4: 12 | O4: 13 | P4: 14 | Q4: 15 | R4: 16 | S4: 17 | T4: 18 | U4: 19 | V4: 20 | W4: 21 | X4: 22 | Y4: 23
A5: 4月 | B5: 10.1 | C5: 9.9 | D5: 9.7 | E5: 9.5 | F5: 9.4 | G5: 9.2 | H5: 9.2 | I5: 9.5 | J5: 10 | K5: 10.6 | L5: 11.1 | M5: 11.4 | N5: 11.6 | O5: 11.8 | P5: 11.8 | Q5: 11.8 | R5: 11.6 | S5: 11.4 | T5: 11.2 | U5: 11 | V5: 10.9 | W5: 10.7 | X5: 10.6 | Y5: 10.4
A6: 5月 | B6: 14.7 | C6: 14.5 | D6: 14.4 | E6: 14.2 | F6: 14.1 | G6: 14 | H6: 14.1 | I6: 14.5 | J6: 14.9 | K6: 15.3 | L6: 15.6 | M6: 15.8 | N6: 16 | O6: 16.1 | P6: 16.1 | Q6: 16.1 | R6: 15.9 | S6: 15.8 | T6: 15.6 | U6: 15.4 | V6: 15.4 | W6: 15.2 | X6: 15.1 | Y6: 14.9
A7: 6月 | B7: 18.9 | C7: 18.8 | D7: 18.6 | E7: 18.5 | F7: 18.4 | G7: 18.3 | H7: 18.5 | I7: 18.7 | J7: 19 | K7: 19.3 | L7: 19.6 | M7: 19.8 | N7: 19.9 | O7: 20 | P7: 20 | Q7: 20 | R7: 19.9 | S7: 19.7 | T7: 19.6 | U7: 19.5 | V7: 19.4 | W7: 19.4 | X7: 19.2 | Y7: 19.1
A8: 7月 | B8: 22.9 | C8: 22.8 | D8: 22.7 | E8: 22.7 | F8: 22.6 | G8: 22.5 | H8: 22.6 | I8: 22.8 | J8: 23.1 | K8: 23.3 | L8: 23.5 | M8: 23.6 | N8: 23.7 | O8: 23.7 | P8: 23.7 | Q8: 23.6 | R8: 23.6 | S8: 23.5 | T8: 23.4 | U8: 23.4 | V8: 23.3 | W8: 23.2 | X8: 23.2 | Y8: 23.1
A9: 8月 | B9: 23.6 | C9: 23.5 | D9: 23.4 | E9: 23.3 | F9: 23.2 | G9: 23.2 | H9: 23.2 | I9: 23.4 | J9: 23.7 | K9: 23.9 | L9: 24.1 | M9: 24.2 | N9: 24.3 | O9: 24.4 | P9: 24.3 | Q9: 24.2 | R9: 24 | S9: 24 | T9: 24 | U9: 23.9 | V9: 23.9 | W9: 23.8 | X9: 23.7 | Y9: 23.6
A10: 9月 | B10: 20.2 | C10: 20.1 | D10: 20 | E10: 19.9 | F10: 19.9 | G10: 19.8 | H10: 19.8 | I10: 20 | J10: 20.3 | K10: 20.6 | L10: 20.8 | M10: 20.9 | N10: 21.1 | O10: 21.1 | P10: 21.1 | Q10: 21 | R10: 21 | S10: 20.8 | T10: 20.6 | U10: 20.5 | V10: 20.4 | W10: 20.3 | X10: 20.2 | Y10: 20.1
A11: 10月 | B11: 14.9 | C11: 14.8 | D11: 14.7 | E11: 14.6 | F11: 14.5 | G11: 14.4 | H11: 14.3 | I11: 14.5 | J11: 14.9 | K11: 15.4 | L11: 15.7 | M11: 16 | N11: 16.1 | O11: 16.2 | P11: 16.2 | Q11: 16.1 | R11: 15.9 | S11: 15.7 | T11: 15.6 | U11: 15.4 | V11: 15.3 | W11: 15.2 | X11: 15 | Y11: 14.9
A12: 11月 | B12: 9.8 | C12: 9.6 | D12: 9.5 | E12: 9.3 | F12: 9.2 | G12: 9.1 | H12: 9 | I12: 9 | J12: 9.5 | K12: 10 | L12: 10.6 | M12: 10.9 | N12: 11.2 | O12: 11.3 | P12: 11.4 | Q12: 11.3 | R12: 11.1 | S12: 10.8 | T12: 10.7 | U12: 10.5 | V12: 10.3 | W12: 10.1 | X12: 10 | Y12: 9.8
A13: 12月 | B13: 5.1 | C13: 4.9 | D13: 4.8 | E13: 4.6 | F13: 4.5 | G13: 4.4 | H13: 4.3 | I13: 4.3 | J13: 4.5 | K13: 5.2 | L13: 5.8 | M13: 6.2 | N13: 6.5 | O13: 6.6 | P13: 6.6 | Q13: 6.6 | R13: 6.4 | S13: 6.1 | T13: 6 | U13: 5.8 | V13: 5.6 | W13: 5.4 | X13: 5.2 | Y13: 5
A14: 1月 | B14: 2.7 | C14: 2.5 | D14: 2.4 | E14: 2.3 | F14: 2.2 | G14: 2.1 | H14: 2 | I14: 1.9 | J14: 2.2 | K14: 2.8 | L14: 3.4 | M14: 3.9 | N14: 4.1 | O14: 4.3 | P14: 4.4 | Q14: 4.4 | R14: 4.2 | S14: 3.9 | T14: 3.7 | U14: 3.5 | V14: 3.4 | W14: 3.2 | X14: 3 | Y14: 2.8
A15: 2月 | B15: 2.9 | C15: 2.8 | D15: 2.6 | E15: 2.5 | F15: 2.4 | G15: 2.3 | H15: 2.2 | I15: 2.2 | J15: 2.6 | K15: 3.2 | L15: 3.8 | M15: 4.3 | N15: 4.6 | O15: 4.8 | P15: 4.9 | Q15: 4.9 | R15: 4.8 | S15: 4.4 | T15: 4.2 | U15: 4 | V15: 3.8 | W15: 3.6 | X15: 3.4 | Y15: 3.2
A16: 3月 | B16: 5.6 | C16: 5.5 | D16: 5.3 | E16: 5.1 | F16: 5 | G16: 4.8 | H16: 4.7 | I16: 4.8 | J16: 5.4 | K16: 5.9 | L16: 6.5 | M16: 7 | N16: 7.3 | O16: 7.5 | P16: 7.6 | Q16: 7.6 | R16: 7.5 | S16: 7.2 | T16: 6.9 | U16: 6.7 | V16: 6.5 | W16: 6.3 | X16: 6.1 | Y16: 5.9

Sheet 神戸 (hidden)
A1: 気象データ
A2: =RIGHT(CELL("filename",A2),LEN(CELL("filename",A2))-FIND("]",CELL("filename",A2))) -> 神戸
A3: 時刻別平均外気湿球温度
A4: 時刻 | B4: 0 | C4: 1 | D4: 2 | E4: 3 | F4: 4 | G4: 5 | H4: 6 | I4: 7 | J4: 8 | K4: 9 | L4: 10 | M4: 11 | N4: 12 | O4: 13 | P4: 14 | Q4: 15 | R4: 16 | S4: 17 | T4: 18 | U4: 19 | V4: 20 | W4: 21 | X4: 22 | Y4: 23
A5: 4月 | B5: 10.2 | C5: 10 | D5: 9.9 | E5: 9.7 | F5: 9.5 | G5: 9.4 | H5: 9.4 | I5: 9.8 | J5: 10.3 | K5: 10.7 | L5: 11.1 | M5: 11.4 | N5: 11.6 | O5: 11.8 | P5: 11.8 | Q5: 11.8 | R5: 11.7 | S5: 11.6 | T5: 11.4 | U5: 11.1 | V5: 10.9 | W5: 10.8 | X5: 10.7 | Y5: 10.5
A6: 5月 | B6: 14.8 | C6: 14.6 | D6: 14.5 | E6: 14.4 | F6: 14.3 | G6: 14.1 | H6: 14.3 | I6: 14.8 | J6: 15.1 | K6: 15.4 | L6: 15.7 | M6: 16 | N6: 16.1 | O6: 16.2 | P6: 16.3 | Q6: 16.2 | R6: 16.1 | S6: 16 | T6: 15.9 | U6: 15.7 | V6: 15.5 | W6: 15.3 | X6: 15.2 | Y6: 15
A7: 6月 | B7: 19 | C7: 18.9 | D7: 18.8 | E7: 18.7 | F7: 18.6 | G7: 18.5 | H7: 18.7 | I7: 19 | J7: 19.3 | K7: 19.5 | L7: 19.8 | M7: 19.9 | N7: 20 | O7: 20.1 | P7: 20.1 | Q7: 20.1 | R7: 20 | S7: 19.9 | T7: 19.8 | U7: 19.7 | V7: 19.6 | W7: 19.5 | X7: 19.4 | Y7: 19.3
A8: 7月 | B8: 23.2 | C8: 23.1 | D8: 23 | E8: 22.9 | F8: 22.9 | G8: 22.8 | H8: 22.9 | I8: 23.1 | J8: 23.4 | K8: 23.6 | L8: 23.7 | M8: 23.8 | N8: 23.9 | O8: 24 | P8: 24.1 | Q8: 24 | R8: 24 | S8: 23.8 | T8: 23.8 | U8: 23.6 | V8: 23.5 | W8: 23.5 | X8: 23.4 | Y8: 23.3
A9: 8月 | B9: 23.9 | C9: 23.8 | D9: 23.7 | E9: 23.6 | F9: 23.6 | G9: 23.5 | H9: 23.5 | I9: 23.7 | J9: 24 | K9: 24.2 | L9: 24.4 | M9: 24.5 | N9: 24.6 | O9: 24.6 | P9: 24.7 | Q9: 24.7 | R9: 24.6 | S9: 24.5 | T9: 24.4 | U9: 24.3 | V9: 24.2 | W9: 24.1 | X9: 24.1 | Y9: 24
A10: 9月 | B10: 20.4 | C10: 20.3 | D10: 20.3 | E10: 20.2 | F10: 20.1 | G10: 20 | H10: 20 | I10: 20.3 | J10: 20.6 | K10: 20.9 | L10: 21.1 | M10: 21.3 | N10: 21.4 | O10: 21.4 | P10: 21.4 | Q10: 21.4 | R10: 21.3 | S10: 21.2 | T10: 21 | U10: 20.8 | V10: 20.6 | W10: 20.5 | X10: 20.4 | Y10: 20.3
A11: 10月 | B11: 15 | C11: 14.9 | D11: 14.8 | E11: 14.7 | F11: 14.6 | G11: 14.5 | H11: 14.5 | I11: 14.7 | J11: 15.2 | K11: 15.6 | L11: 15.9 | M11: 16.2 | N11: 16.3 | O11: 16.4 | P11: 16.4 | Q11: 16.3 | R11: 16.2 | S11: 16 | T11: 15.7 | U11: 15.5 | V11: 15.3 | W11: 15.2 | X11: 15 | Y11: 14.9
A12: 11月 | B12: 9.8 | C12: 9.7 | D12: 9.6 | E12: 9.5 | F12: 9.4 | G12: 9.3 | H12: 9.2 | I12: 9.3 | J12: 9.9 | K12: 10.4 | L12: 10.8 | M12: 11.1 | N12: 11.4 | O12: 11.5 | P12: 11.5 | Q12: 11.4 | R12: 11.2 | S12: 10.9 | T12: 10.6 | U12: 10.4 | V12: 10.2 | W12: 10.1 | X12: 10 | Y12: 9.8
A13: 12月 | B13: 5 | C13: 4.9 | D13: 4.8 | E13: 4.7 | F13: 4.6 | G13: 4.5 | H13: 4.5 | I13: 4.4 | J13: 4.8 | K13: 5.4 | L13: 5.9 | M13: 6.3 | N13: 6.5 | O13: 6.6 | P13: 6.7 | Q13: 6.6 | R13: 6.4 | S13: 6.1 | T13: 5.7 | U13: 5.5 | V13: 5.3 | W13: 5.2 | X13: 5 | Y13: 4.9
A14: 1月 | B14: 2.6 | C14: 2.4 | D14: 2.4 | E14: 2.2 | F14: 2.1 | G14: 2.1 | H14: 2 | I14: 2 | J14: 2.3 | K14: 3 | L14: 3.5 | M14: 3.9 | N14: 4.1 | O14: 4.3 | P14: 4.4 | Q14: 4.4 | R14: 4.2 | S14: 3.9 | T14: 3.6 | U14: 3.3 | V14: 3.1 | W14: 3 | X14: 2.8 | Y14: 2.7
A15: 2月 | B15: 2.9 | C15: 2.8 | D15: 2.6 | E15: 2.5 | F15: 2.4 | G15: 2.4 | H15: 2.3 | I15: 2.3 | J15: 2.8 | K15: 3.4 | L15: 3.9 | M15: 4.3 | N15: 4.5 | O15: 4.8 | P15: 4.9 | Q15: 4.9 | R15: 4.8 | S15: 4.5 | T15: 4.2 | U15: 3.8 | V15: 3.6 | W15: 3.5 | X15: 3.3 | Y15: 3.2
A16: 3月 | B16: 5.7 | C16: 5.6 | D16: 5.4 | E16: 5.3 | F16: 5.1 | G16: 5 | H16: 4.9 | I16: 5.1 | J16: 5.7 | K16: 6.2 | L16: 6.6 | M16: 7 | N16: 7.3 | O16: 7.5 | P16: 7.6 | Q16: 7.6 | R16: 7.5 | S16: 7.3 | T16: 7 | U16: 6.7 | V16: 6.5 | W16: 6.3 | X16: 6.1 | Y16: 5.9

Sheet 奈良 (hidden)
A1: 気象データ
A2: =RIGHT(CELL("filename",A2),LEN(CELL("filename",A2))-FIND("]",CELL("filename",A2))) -> 奈良
A3: 時刻別平均外気湿球温度
A4: 時刻 | B4: 0 | C4: 1 | D4: 2 | E4: 3 | F4: 4 | G4: 5 | H4: 6 | I4: 7 | J4: 8 | K4: 9 | L4: 10 | M4: 11 | N4: 12 | O4: 13 | P4: 14 | Q4: 15 | R4: 16 | S4: 17 | T4: 18 | U4: 19 | V4: 20 | W4: 21 | X4: 22 | Y4: 23
A5: 4月 | B5: 8.5 | C5: 8.3 | D5: 8.1 | E5: 7.9 | F5: 7.7 | G5: 7.6 | H5: 7.6 | I5: 8.5 | J5: 9.4 | K5: 10.2 | L5: 10.8 | M5: 11.3 | N5: 11.5 | O5: 11.7 | P5: 11.7 | Q5: 11.7 | R5: 11.4 | S5: 11 | T5: 10.6 | U5: 10.2 | V5: 9.8 | W5: 9.5 | X5: 9.2 | Y5: 9
A6: 5月 | B6: 13.4 | C6: 13.2 | D6: 13 | E6: 12.8 | F6: 12.7 | G6: 12.6 | H6: 13 | I6: 13.8 | J6: 14.5 | K6: 15.1 | L6: 15.5 | M6: 15.9 | N6: 16 | O6: 16.1 | P6: 16.2 | Q6: 16.1 | R6: 15.8 | S6: 15.5 | T6: 15.2 | U6: 14.9 | V6: 14.5 | W6: 14.2 | X6: 13.9 | Y6: 13.7
A7: 6月 | B7: 17.9 | C7: 17.7 | D7: 17.6 | E7: 17.5 | F7: 17.4 | G7: 17.3 | H7: 17.6 | I7: 18.2 | J7: 18.8 | K7: 19.2 | L7: 19.6 | M7: 19.8 | N7: 19.9 | O7: 20 | P7: 20 | Q7: 20 | R7: 19.8 | S7: 19.6 | T7: 19.3 | U7: 19.1 | V7: 18.8 | W7: 18.6 | X7: 18.3 | Y7: 18.2
A8: 7月 | B8: 22 | C8: 21.9 | D8: 21.8 | E8: 21.7 | F8: 21.6 | G8: 21.5 | H8: 21.8 | I8: 22.3 | J8: 22.7 | K8: 23.2 | L8: 23.5 | M8: 23.7 | N8: 23.8 | O8: 23.9 | P8: 23.8 | Q8: 23.7 | R8: 23.6 | S8: 23.4 | T8: 23.2 | U8: 22.9 | V8: 22.7 | W8: 22.5 | X8: 22.4 | Y8: 22.2
A9: 8月 | B9: 22.6 | C9: 22.5 | D9: 22.4 | E9: 22.3 | F9: 22.2 | G9: 22.1 | H9: 22.2 | I9: 22.8 | J9: 23.3 | K9: 23.8 | L9: 24.1 | M9: 24.3 | N9: 24.3 | O9: 24.3 | P9: 24.2 | Q9: 24.3 | R9: 24 | S9: 23.8 | T9: 23.6 | U9: 23.3 | V9: 23.1 | W9: 23 | X9: 22.8 | Y9: 22.7
A10: 9月 | B10: 19.3 | C10: 19.2 | D10: 19.1 | E10: 19 | F10: 18.9 | G10: 18.8 | H10: 18.8 | I10: 19.3 | J10: 20 | K10: 20.5 | L10: 20.9 | M10: 21.1 | N10: 21.2 | O10: 21.2 | P10: 21.2 | Q10: 21 | R10: 20.8 | S10: 20.7 | T10: 20.3 | U10: 20 | V10: 19.8 | W10: 19.6 | X10: 19.5 | Y10: 19.3
A11: 10月 | B11: 13.8 | C11: 13.6 | D11: 13.5 | E11: 13.4 | F11: 13.3 | G11: 13.1 | H11: 13 | I11: 13.4 | J11: 14.3 | K11: 15 | L11: 15.6 | M11: 16 | N11: 16.2 | O11: 16.3 | P11: 16.2 | Q11: 16 | R11: 15.8 | S11: 15.4 | T11: 15 | U11: 14.7 | V11: 14.4 | W11: 14.1 | X11: 13.9 | Y11: 13.7
A12: 11月 | B12: 8.3 | C12: 8.2 | D12: 8 | E12: 7.8 | F12: 7.6 | G12: 7.5 | H12: 7.4 | I12: 7.4 | J12: 8.4 | K12: 9.4 | L12: 10.1 | M12: 10.7 | N12: 11 | O12: 11.1 | P12: 11.1 | Q12: 11 | R12: 10.7 | S12: 10.2 | T12: 9.8 | U12: 9.4 | V12: 9.1 | W12: 8.9 | X12: 8.6 | Y12: 8.4
A13: 12月 | B13: 3.4 | C13: 3.3 | D13: 3.1 | E13: 3 | F13: 2.9 | G13: 2.8 | H13: 2.7 | I13: 2.6 | J13: 3.2 | K13: 4.2 | L13: 5.1 | M13: 5.7 | N13: 6.1 | O13: 6.2 | P13: 6.2 | Q13: 6.1 | R13: 5.8 | S13: 5.3 | T13: 4.9 | U13: 4.5 | V13: 4.1 | W13: 3.9 | X13: 3.6 | Y13: 3.4
A14: 1月 | B14: 1.2 | C14: 1 | D14: 0.9 | E14: 0.8 | F14: 0.6 | G14: 0.5 | H14: 0.5 | I14: 0.4 | J14: 0.8 | K14: 1.9 | L14: 2.7 | M14: 3.3 | N14: 3.7 | O14: 3.9 | P14: 4 | Q14: 3.9 | R14: 3.6 | S14: 3.2 | T14: 2.7 | U14: 2.3 | V14: 2 | W14: 1.7 | X14: 1.5 | Y14: 1.3
A15: 2月 | B15: 1.3 | C15: 1.2 | D15: 1 | E15: 0.9 | F15: 0.8 | G15: 0.7 | H15: 0.6 | I15: 0.6 | J15: 1.4 | K15: 2.4 | L15: 3.2 | M15: 3.8 | N15: 4.2 | O15: 4.4 | P15: 4.5 | Q15: 4.5 | R15: 4.3 | S15: 3.8 | T15: 3.3 | U15: 2.9 | V15: 2.5 | W15: 2.2 | X15: 1.9 | Y15: 1.7
A16: 3月 | B16: 4.1 | C16: 3.9 | D16: 3.7 | E16: 3.6 | F16: 3.4 | G16: 3.3 | H16: 3.1 | I16: 3.5 | J16: 4.5 | K16: 5.4 | L16: 6.2 | M16: 6.8 | N16: 7.2 | O16: 7.4 | P16: 7.4 | Q16: 7.4 | R16: 7.1 | S16: 6.8 | T16: 6.3 | U16: 5.8 | V16: 5.4 | W16: 5 | X16: 4.7 | Y16: 4.4

Sheet 和歌山 (hidden)
A1: 気象データ
A2: =RIGHT(CELL("filename",A2),LEN(CELL("filename",A2))-FIND("]",CELL("filename",A2))) -> 和歌山
A3: 時刻別平均外気湿球温度
A4: 時刻 | B4: 0 | C4: 1 | D4: 2 | E4: 3 | F4: 4 | G4: 5 | H4: 6 | I4: 7 | J4: 8 | K4: 9 | L4: 10 | M4: 11 | N4: 12 | O4: 13 | P4: 14 | Q4: 15 | R4: 16 | S4: 17 | T4: 18 | U4: 19 | V4: 20 | W4: 21 | X4: 22 | Y4: 23
A5: 4月 | B5: 10.2 | C5: 10 | D5: 9.8 | E5: 9.6 | F5: 9.3 | G5: 9.1 | H5: 9 | I5: 9.3 | J5: 10 | K5: 10.7 | L5: 11.3 | M5: 11.7 | N5: 11.9 | O5: 11.9 | P5: 12.1 | Q5: 12.1 | R5: 12 | S5: 11.9 | T5: 11.7 | U5: 11.6 | V5: 11.4 | W5: 11.3 | X5: 11 | Y5: 10.7
A6: 5月 | B6: 14.9 | C6: 14.6 | D6: 14.4 | E6: 14.2 | F6: 14 | G6: 13.8 | H6: 13.8 | I6: 14.2 | J6: 14.9 | K6: 15.4 | L6: 15.9 | M6: 16.1 | N6: 16.2 | O6: 16.3 | P6: 16.4 | Q6: 16.4 | R6: 16.3 | S6: 16.3 | T6: 16.2 | U6: 16 | V6: 15.8 | W6: 15.7 | X6: 15.5 | Y6: 15.3
A7: 6月 | B7: 19.2 | C7: 19 | D7: 18.8 | E7: 18.7 | F7: 18.5 | G7: 18.4 | H7: 18.4 | I7: 18.7 | J7: 19.1 | K7: 19.4 | L7: 19.7 | M7: 20 | N7: 20 | O7: 20.1 | P7: 20.1 | Q7: 20.1 | R7: 20.1 | S7: 20.1 | T7: 20 | U7: 19.9 | V7: 19.8 | W7: 19.7 | X7: 19.6 | Y7: 19.5
A8: 7月 | B8: 23 | C8: 23 | D8: 22.8 | E8: 22.7 | F8: 22.6 | G8: 22.4 | H8: 22.5 | I8: 22.7 | J8: 23.1 | K8: 23.4 | L8: 23.7 | M8: 23.8 | N8: 23.9 | O8: 23.9 | P8: 24 | Q8: 23.9 | R8: 23.9 | S8: 23.8 | T8: 23.7 | U8: 23.6 | V8: 23.5 | W8: 23.4 | X8: 23.3 | Y8: 23.2
A9: 8月 | B9: 23.7 | C9: 23.6 | D9: 23.4 | E9: 23.3 | F9: 23.1 | G9: 23 | H9: 22.9 | I9: 23.1 | J9: 23.5 | K9: 24 | L9: 24.3 | M9: 24.5 | N9: 24.6 | O9: 24.6 | P9: 24.6 | Q9: 24.5 | R9: 24.5 | S9: 24.4 | T9: 24.4 | U9: 24.3 | V9: 24.1 | W9: 24 | X9: 23.9 | Y9: 23.8
A10: 9月 | B10: 20.4 | C10: 20.2 | D10: 20.1 | E10: 20 | F10: 19.8 | G10: 19.7 | H10: 19.6 | I10: 19.7 | J10: 20.1 | K10: 20.6 | L10: 20.9 | M10: 21.2 | N10: 21.3 | O10: 21.3 | P10: 21.3 | Q10: 21.2 | R10: 21.2 | S10: 21.1 | T10: 21.1 | U10: 21 | V10: 20.9 | W10: 20.8 | X10: 20.5 | Y10: 20.4
A11: 10月 | B11: 15 | C11: 14.8 | D11: 14.6 | E11: 14.5 | F11: 14.3 | G11: 14.2 | H11: 14.1 | I11: 14.1 | J11: 14.7 | K11: 15.3 | L11: 15.8 | M11: 16.1 | N11: 16.3 | O11: 16.4 | P11: 16.4 | Q11: 16.4 | R11: 16.2 | S11: 16.1 | T11: 16 | U11: 15.9 | V11: 15.7 | W11: 15.4 | X11: 15.2 | Y11: 15
A12: 11月 | B12: 9.8 | C12: 9.6 | D12: 9.4 | E12: 9.3 | F12: 9.1 | G12: 9 | H12: 8.9 | I12: 8.8 | J12: 9.3 | K12: 10 | L12: 10.7 | M12: 11.2 | N12: 11.5 | O12: 11.6 | P12: 11.7 | Q12: 11.6 | R12: 11.5 | S12: 11.2 | T12: 11.1 | U12: 10.9 | V12: 10.6 | W12: 10.3 | X12: 10.1 | Y12: 9.9
A13: 12月 | B13: 5 | C13: 4.8 | D13: 4.6 | E13: 4.5 | F13: 4.4 | G13: 4.3 | H13: 4.2 | I13: 4.2 | J13: 4.4 | K13: 5.1 | L13: 5.8 | M13: 6.4 | N13: 6.7 | O13: 6.8 | P13: 6.9 | Q13: 6.8 | R13: 6.6 | S13: 6.4 | T13: 6.2 | U13: 6 | V13: 5.7 | W13: 5.4 | X13: 5.2 | Y13: 5
A14: 1月 | B14: 2.6 | C14: 2.5 | D14: 2.3 | E14: 2.2 | F14: 2.1 | G14: 2 | H14: 1.9 | I14: 1.9 | J14: 2.1 | K14: 2.7 | L14: 3.4 | M14: 4 | N14: 4.3 | O14: 4.4 | P14: 4.5 | Q14: 4.5 | R14: 4.4 | S14: 4.2 | T14: 4 | U14: 3.8 | V14: 3.6 | W14: 3.3 | X14: 3 | Y14: 2.8
A15: 2月 | B15: 3 | C15: 2.8 | D15: 2.6 | E15: 2.5 | F15: 2.3 | G15: 2.2 | H15: 2.1 | I15: 2.1 | J15: 2.5 | K15: 3.2 | L15: 4 | M15: 4.4 | N15: 4.8 | O15: 5 | P15: 5.1 | Q15: 5.1 | R15: 5 | S15: 4.8 | T15: 4.5 | U15: 4.3 | V15: 4.1 | W15: 3.8 | X15: 3.5 | Y15: 3.3
A16: 3月 | B16: 5.8 | C16: 5.6 | D16: 5.4 | E16: 5.2 | F16: 5 | G16: 4.9 | H16: 4.7 | I16: 4.8 | J16: 5.4 | K16: 6.2 | L16: 6.8 | M16: 7.3 | N16: 7.6 | O16: 7.8 | P16: 7.9 | Q16: 7.9 | R16: 7.8 | S16: 7.6 | T16: 7.4 | U16: 7.2 | V16: 7 | W16: 6.7 | X16: 6.4 | Y16: 6.1

Sheet 鳥取 (hidden)
A1: 気象データ
A2: =RIGHT(CELL("filename",A2),LEN(CELL("filename",A2))-FIND("]",CELL("filename",A2))) -> 鳥取
A3: 時刻別平均外気湿球温度
A4: 時刻 | B4: 0 | C4: 1 | D4: 2 | E4: 3 | F4: 4 | G4: 5 | H4: 6 | I4: 7 | J4: 8 | K4: 9 | L4: 10 | M4: 11 | N4: 12 | O4: 13 | P4: 14 | Q4: 15 | R4: 16 | S4: 17 | T4: 18 | U4: 19 | V4: 20 | W4: 21 | X4: 22 | Y4: 23
A5: 4月 | B5: 8.5 | C5: 8.2 | D5: 8 | E5: 7.8 | F5: 7.6 | G5: 7.5 | H5: 7.5 | I5: 8.1 | J5: 9.2 | K5: 10.1 | L5: 10.6 | M5: 11 | N5: 11.2 | O5: 11.3 | P5: 11.3 | Q5: 11.2 | R5: 11.1 | S5: 10.9 | T5: 10.6 | U5: 10.3 | V5: 10 | W5: 9.6 | X5: 9.2 | Y5: 8.9
A6: 5月 | B6: 13.2 | C6: 13 | D6: 12.8 | E6: 12.6 | F6: 12.4 | G6: 12.3 | H6: 12.5 | I6: 13.2 | J6: 14.1 | K6: 14.8 | L6: 15.1 | M6: 15.3 | N6: 15.5 | O6: 15.5 | P6: 15.6 | Q6: 15.5 | R6: 15.4 | S6: 15.2 | T6: 14.9 | U6: 14.8 | V6: 14.5 | W6: 14.2 | X6: 13.8 | Y6: 13.6
A7: 6月 | B7: 17.8 | C7: 17.6 | D7: 17.5 | E7: 17.3 | F7: 17.2 | G7: 17.1 | H7: 17.2 | I7: 17.8 | J7: 18.4 | K7: 18.9 | L7: 19.2 | M7: 19.5 | N7: 19.6 | O7: 19.6 | P7: 19.7 | Q7: 19.6 | R7: 19.4 | S7: 19.3 | T7: 19.1 | U7: 19 | V7: 18.8 | W7: 18.6 | X7: 18.4 | Y7: 18.2
A8: 7月 | B8: 22.1 | C8: 21.9 | D8: 21.8 | E8: 21.7 | F8: 21.6 | G8: 21.5 | H8: 21.6 | I8: 22 | J8: 22.5 | K8: 23 | L8: 23.2 | M8: 23.4 | N8: 23.6 | O8: 23.5 | P8: 23.6 | Q8: 23.6 | R8: 23.5 | S8: 23.4 | T8: 23.2 | U8: 23 | V8: 22.9 | W8: 22.7 | X8: 22.5 | Y8: 22.3
A9: 8月 | B9: 22.9 | C9: 22.7 | D9: 22.5 | E9: 22.4 | F9: 22.2 | G9: 22.1 | H9: 22.1 | I9: 22.5 | J9: 23.1 | K9: 23.6 | L9: 23.9 | M9: 24.1 | N9: 24.3 | O9: 24.3 | P9: 24.3 | Q9: 24.3 | R9: 24.2 | S9: 24 | T9: 24 | U9: 23.8 | V9: 23.7 | W9: 23.4 | X9: 23.2 | Y9: 23
A10: 9月 | B10: 19.3 | C10: 19.1 | D10: 19 | E10: 18.8 | F10: 18.7 | G10: 18.6 | H10: 18.5 | I10: 18.8 | J10: 19.5 | K10: 20.1 | L10: 20.5 | M10: 20.8 | N10: 21 | O10: 21 | P10: 21 | Q10: 20.9 | R10: 20.8 | S10: 20.6 | T10: 20.5 | U10: 20.3 | V10: 20.1 | W10: 19.8 | X10: 19.6 | Y10: 19.3
A11: 10月 | B11: 13.7 | C11: 13.5 | D11: 13.4 | E11: 13.2 | F11: 13.1 | G11: 13 | H11: 12.8 | I11: 13 | J11: 13.8 | K11: 14.7 | L11: 15.4 | M11: 15.7 | N11: 15.8 | O11: 16 | P11: 16 | Q11: 15.9 | R11: 15.7 | S11: 15.5 | T11: 15.4 | U11: 15 | V11: 14.6 | W11: 14.3 | X11: 14 | Y11: 13.8
A12: 11月 | B12: 8.7 | C12: 8.5 | D12: 8.4 | E12: 8.3 | F12: 8.2 | G12: 8.1 | H12: 8 | I12: 8 | J12: 8.7 | K12: 9.6 | L12: 10.4 | M12: 10.8 | N12: 10.9 | O12: 11 | P12: 11 | Q12: 10.9 | R12: 10.8 | S12: 10.5 | T12: 10.2 | U12: 9.8 | V12: 9.5 | W12: 9.2 | X12: 8.9 | Y12: 8.7
A13: 12月 | B13: 4.2 | C13: 4 | D13: 4 | E13: 3.9 | F13: 3.8 | G13: 3.7 | H13: 3.7 | I13: 3.6 | J13: 3.9 | K13: 4.5 | L13: 5.3 | M13: 5.8 | N13: 6 | O13: 6.1 | P13: 6.1 | Q13: 6.1 | R13: 5.9 | S13: 5.6 | T13: 5.3 | U13: 5 | V13: 4.7 | W13: 4.5 | X13: 4.3 | Y13: 4.1
A14: 1月 | B14: 1.8 | C14: 1.7 | D14: 1.6 | E14: 1.6 | F14: 1.5 | G14: 1.5 | H14: 1.4 | I14: 1.4 | J14: 1.6 | K14: 2.2 | L14: 2.9 | M14: 3.4 | N14: 3.7 | O14: 3.8 | P14: 3.9 | Q14: 3.8 | R14: 3.7 | S14: 3.4 | T14: 3.1 | U14: 2.7 | V14: 2.5 | W14: 2.3 | X14: 2.1 | Y14: 1.9
A15: 2月 | B15: 1.9 | C15: 1.8 | D15: 1.7 | E15: 1.6 | F15: 1.5 | G15: 1.5 | H15: 1.4 | I15: 1.4 | J15: 1.8 | K15: 2.5 | L15: 3.3 | M15: 3.8 | N15: 4.1 | O15: 4.3 | P15: 4.4 | Q15: 4.4 | R15: 4.2 | S15: 4 | T15: 3.6 | U15: 3.2 | V15: 2.9 | W15: 2.6 | X15: 2.4 | Y15: 2.2
A16: 3月 | B16: 4.3 | C16: 4.1 | D16: 4 | E16: 3.8 | F16: 3.7 | G16: 3.6 | H16: 3.5 | I16: 3.7 | J16: 4.5 | K16: 5.5 | L16: 6.2 | M16: 6.7 | N16: 6.9 | O16: 7.1 | P16: 7.2 | Q16: 7.1 | R16: 7 | S16: 6.7 | T16: 6.4 | U16: 6.1 | V16: 5.6 | W16: 5.2 | X16: 4.9 | Y16: 4.6

Sheet 松江 (hidden)
A1: 気象データ
A2: =RIGHT(CELL("filename",A2),LEN(CELL("filename",A2))-FIND("]",CELL("filename",A2))) -> 松江
A3: 時刻別平均外気湿球温度
A4: 時刻 | B4: 0 | C4: 1 | D4: 2 | E4: 3 | F4: 4 | G4: 5 | H4: 6 | I4: 7 | J4: 8 | K4: 9 | L4: 10 | M4: 11 | N4: 12 | O4: 13 | P4: 14 | Q4: 15 | R4: 16 | S4: 17 | T4: 18 | U4: 19 | V4: 20 | W4: 21 | X4: 22 | Y4: 23
A5: 4月 | B5: 9 | C5: 8.8 | D5: 8.6 | E5: 8.5 | F5: 8.3 | G5: 8.2 | H5: 8.2 | I5: 8.9 | J5: 9.8 | K5: 10.5 | L5: 11 | M5: 11.4 | N5: 11.5 | O5: 11.7 | P5: 11.6 | Q5: 11.4 | R5: 11.2 | S5: 10.8 | T5: 10.6 | U5: 10.3 | V5: 10.1 | W5: 9.9 | X5: 9.6 | Y5: 9.4
A6: 5月 | B6: 13.8 | C6: 13.6 | D6: 13.4 | E6: 13.3 | F6: 13.2 | G6: 13.1 | H6: 13.3 | I6: 14.1 | J6: 14.7 | K6: 15.2 | L6: 15.6 | M6: 15.8 | N6: 15.9 | O6: 15.9 | P6: 15.9 | Q6: 15.7 | R6: 15.5 | S6: 15.2 | T6: 15 | U6: 14.7 | V6: 14.6 | W6: 14.4 | X6: 14.2 | Y6: 14
A7: 6月 | B7: 18.2 | C7: 18.1 | D7: 17.9 | E7: 17.8 | F7: 17.7 | G7: 17.6 | H7: 17.9 | I7: 18.4 | J7: 18.8 | K7: 19.2 | L7: 19.5 | M7: 19.7 | N7: 19.9 | O7: 20 | P7: 19.9 | Q7: 19.8 | R7: 19.6 | S7: 19.3 | T7: 19.1 | U7: 18.9 | V7: 18.8 | W7: 18.7 | X7: 18.6 | Y7: 18.5
A8: 7月 | B8: 22.4 | C8: 22.3 | D8: 22.2 | E8: 22.2 | F8: 22 | G8: 22 | H8: 22.1 | I8: 22.5 | J8: 22.9 | K8: 23.3 | L8: 23.5 | M8: 23.7 | N8: 23.8 | O8: 23.9 | P8: 23.8 | Q8: 23.8 | R8: 23.6 | S8: 23.4 | T8: 23.2 | U8: 23 | V8: 22.8 | W8: 22.8 | X8: 22.7 | Y8: 22.6
A9: 8月 | B9: 23.3 | C9: 23.2 | D9: 23.1 | E9: 23 | F9: 22.9 | G9: 22.8 | H9: 22.9 | I9: 23.3 | J9: 23.8 | K9: 24.1 | L9: 24.3 | M9: 24.5 | N9: 24.6 | O9: 24.6 | P9: 24.6 | Q9: 24.6 | R9: 24.4 | S9: 24.2 | T9: 24 | U9: 23.8 | V9: 23.7 | W9: 23.6 | X9: 23.5 | Y9: 23.4
A10: 9月 | B10: 19.7 | C10: 19.6 | D10: 19.5 | E10: 19.3 | F10: 19.2 | G10: 19.1 | H10: 19.1 | I10: 19.5 | J10: 20.1 | K10: 20.5 | L10: 20.8 | M10: 20.9 | N10: 21 | O10: 21 | P10: 21 | Q10: 20.8 | R10: 20.7 | S10: 20.5 | T10: 20.3 | U10: 20.2 | V10: 20.1 | W10: 20 | X10: 19.9 | Y10: 19.7
A11: 10月 | B11: 14.2 | C11: 14 | D11: 13.8 | E11: 13.7 | F11: 13.6 | G11: 13.4 | H11: 13.3 | I11: 13.6 | J11: 14.4 | K11: 15.2 | L11: 15.7 | M11: 15.9 | N11: 16 | O11: 15.9 | P11: 15.9 | Q11: 15.8 | R11: 15.6 | S11: 15.3 | T11: 15.1 | U11: 14.9 | V11: 14.7 | W11: 14.5 | X11: 14.3 | Y11: 14.2
A12: 11月 | B12: 9 | C12: 8.9 | D12: 8.7 | E12: 8.6 | F12: 8.5 | G12: 8.4 | H12: 8.3 | I12: 8.3 | J12: 9 | K12: 9.8 | L12: 10.5 | M12: 10.9 | N12: 11.1 | O12: 11.1 | P12: 11.1 | Q12: 10.9 | R12: 10.7 | S12: 10.4 | T12: 10.2 | U12: 9.9 | V12: 9.6 | W12: 9.4 | X12: 9.2 | Y12: 9
A13: 12月 | B13: 4.5 | C13: 4.4 | D13: 4.3 | E13: 4.2 | F13: 4.1 | G13: 4.1 | H13: 3.9 | I13: 3.9 | J13: 4.2 | K13: 4.9 | L13: 5.5 | M13: 6 | N13: 6.3 | O13: 6.4 | P13: 6.3 | Q13: 6.2 | R13: 5.9 | S13: 5.6 | T13: 5.4 | U13: 5.2 | V13: 5 | W13: 4.8 | X13: 4.6 | Y13: 4.5
A14: 1月 | B14: 2.2 | C14: 2.2 | D14: 2.1 | E14: 2 | F14: 1.9 | G14: 1.9 | H14: 1.8 | I14: 1.8 | J14: 1.9 | K14: 2.6 | L14: 3.3 | M14: 3.7 | N14: 3.9 | O14: 4.1 | P14: 4 | Q14: 3.9 | R14: 3.7 | S14: 3.4 | T14: 3.2 | U14: 3 | V14: 2.8 | W14: 2.6 | X14: 2.5 | Y14: 2.3
A15: 2月 | B15: 2.4 | C15: 2.2 | D15: 2.1 | E15: 2 | F15: 1.9 | G15: 1.8 | H15: 1.8 | I15: 1.7 | J15: 2.2 | K15: 3 | L15: 3.7 | M15: 4.2 | N15: 4.5 | O15: 4.6 | P15: 4.6 | Q15: 4.5 | R15: 4.3 | S15: 4 | T15: 3.7 | U15: 3.5 | V15: 3.2 | W15: 3 | X15: 2.8 | Y15: 2.7
A16: 3月 | B16: 4.8 | C16: 4.6 | D16: 4.5 | E16: 4.3 | F16: 4.2 | G16: 4.1 | H16: 4 | I16: 4.2 | J16: 5.1 | K16: 6 | L16: 6.6 | M16: 7 | N16: 7.3 | O16: 7.4 | P16: 7.4 | Q16: 7.2 | R16: 7 | S16: 6.7 | T16: 6.4 | U16: 6.1 | V16: 5.9 | W16: 5.6 | X16: 5.3 | Y16: 5.1

Sheet 岡山 (hidden)
A1: 気象データ
A2: =RIGHT(CELL("filename",A2),LEN(CELL("filename",A2))-FIND("]",CELL("filename",A2))) -> 岡山
A3: 時刻別平均外気湿球温度
A4: 時刻 | B4: 0 | C4: 1 | D4: 2 | E4: 3 | F4: 4 | G4: 5 | H4: 6 | I4: 7 | J4: 8 | K4: 9 | L4: 10 | M4: 11 | N4: 12 | O4: 13 | P4: 14 | Q4: 15 | R4: 16 | S4: 17 | T4: 18 | U4: 19 | V4: 20 | W4: 21 | X4: 22 | Y4: 23
A5: 4月 | B5: 9.5 | C5: 9.2 | D5: 9 | E5: 8.7 | F5: 8.5 | G5: 8.3 | H5: 8.2 | I5: 8.5 | J5: 9.2 | K5: 10.2 | L5: 10.8 | M5: 11.2 | N5: 11.5 | O5: 11.7 | P5: 11.8 | Q5: 11.8 | R5: 11.7 | S5: 11.5 | T5: 11.2 | U5: 10.9 | V5: 10.7 | W5: 10.4 | X5: 10.1 | Y5: 9.9
A6: 5月 | B6: 14.3 | C6: 14.1 | D6: 13.9 | E6: 13.7 | F6: 13.5 | G6: 13.4 | H6: 13.4 | I6: 13.8 | J6: 14.5 | K6: 15.1 | L6: 15.6 | M6: 15.8 | N6: 16 | O6: 16.2 | P6: 16.2 | Q6: 16.2 | R6: 16.1 | S6: 15.8 | T6: 15.6 | U6: 15.4 | V6: 15.2 | W6: 15 | X6: 14.8 | Y6: 14.6
A7: 6月 | B7: 18.7 | C7: 18.6 | D7: 18.4 | E7: 18.3 | F7: 18.2 | G7: 18.1 | H7: 18.1 | I7: 18.5 | J7: 18.9 | K7: 19.3 | L7: 19.6 | M7: 19.8 | N7: 20 | O7: 20 | P7: 20.1 | Q7: 20 | R7: 19.9 | S7: 19.8 | T7: 19.7 | U7: 19.6 | V7: 19.4 | W7: 19.3 | X7: 19.2 | Y7: 19
A8: 7月 | B8: 22.9 | C8: 22.8 | D8: 22.7 | E8: 22.6 | F8: 22.5 | G8: 22.4 | H8: 22.5 | I8: 22.7 | J8: 23.1 | K8: 23.4 | L8: 23.6 | M8: 23.8 | N8: 23.9 | O8: 24 | P8: 24 | Q8: 24 | R8: 23.9 | S8: 23.8 | T8: 23.7 | U8: 23.5 | V8: 23.4 | W8: 23.3 | X8: 23.2 | Y8: 23.1
A9: 8月 | B9: 23.6 | C9: 23.5 | D9: 23.4 | E9: 23.3 | F9: 23.2 | G9: 23.1 | H9: 23.1 | I9: 23.3 | J9: 23.7 | K9: 24 | L9: 24.2 | M9: 24.4 | N9: 24.5 | O9: 24.5 | P9: 24.5 | Q9: 24.4 | R9: 24.3 | S9: 24.2 | T9: 24.1 | U9: 24.1 | V9: 24 | W9: 23.9 | X9: 23.8 | Y9: 23.7
A10: 9月 | B10: 20 | C10: 19.9 | D10: 19.8 | E10: 19.7 | F10: 19.5 | G10: 19.4 | H10: 19.3 | I10: 19.4 | J10: 19.9 | K10: 20.4 | L10: 20.7 | M10: 20.9 | N10: 20.9 | O10: 21 | P10: 21 | Q10: 21 | R10: 21 | S10: 20.9 | T10: 20.8 | U10: 20.6 | V10: 20.5 | W10: 20.3 | X10: 20.2 | Y10: 20
A11: 10月 | B11: 14.5 | C11: 14.3 | D11: 14.1 | E11: 13.9 | F11: 13.7 | G11: 13.6 | H11: 13.4 | I11: 13.4 | J11: 14 | K11: 14.8 | L11: 15.4 | M11: 15.7 | N11: 15.9 | O11: 15.8 | P11: 15.9 | Q11: 16 | R11: 15.9 | S11: 15.8 | T11: 15.6 | U11: 15.4 | V11: 15.2 | W11: 14.9 | X11: 14.7 | Y11: 14.5
A12: 11月 | B12: 8.9 | C12: 8.7 | D12: 8.5 | E12: 8.3 | F12: 8.1 | G12: 8 | H12: 7.8 | I12: 7.7 | J12: 8.2 | K12: 9.1 | L12: 10 | M12: 10.6 | N12: 10.9 | O12: 10.9 | P12: 11 | Q12: 11 | R12: 10.9 | S12: 10.7 | T12: 10.4 | U12: 10.1 | V12: 9.8 | W12: 9.5 | X12: 9.3 | Y12: 9
A13: 12月 | B13: 4 | C13: 3.8 | D13: 3.6 | E13: 3.4 | F13: 3.2 | G13: 3 | H13: 2.9 | I13: 2.8 | J13: 3 | K13: 4 | L13: 5 | M13: 5.7 | N13: 6.1 | O13: 6.2 | P13: 6.2 | Q13: 6.3 | R13: 6.1 | S13: 5.8 | T13: 5.5 | U13: 5.2 | V13: 4.9 | W13: 4.6 | X13: 4.3 | Y13: 4.1
A14: 1月 | B14: 1.7 | C14: 1.5 | D14: 1.3 | E14: 1.1 | F14: 0.9 | G14: 0.8 | H14: 0.7 | I14: 0.6 | J14: 0.8 | K14: 1.8 | L14: 2.8 | M14: 3.6 | N14: 4 | O14: 4.1 | P14: 4.2 | Q14: 4.2 | R14: 4.1 | S14: 3.8 | T14: 3.4 | U14: 3.1 | V14: 2.8 | W14: 2.5 | X14: 2.2 | Y14: 1.9
A15: 2月 | B15: 2.2 | C15: 1.9 | D15: 1.7 | E15: 1.5 | F15: 1.3 | G15: 1.2 | H15: 1 | I15: 1 | J15: 1.4 | K15: 2.4 | L15: 3.4 | M15: 4.1 | N15: 4.5 | O15: 4.7 | P15: 4.8 | Q15: 4.9 | R15: 4.8 | S15: 4.5 | T15: 4.1 | U15: 3.8 | V15: 3.5 | W15: 3.2 | X15: 2.8 | Y15: 2.5
A16: 3月 | B16: 5 | C16: 4.8 | D16: 4.5 | E16: 4.3 | F16: 4.1 | G16: 3.9 | H16: 3.7 | I16: 3.8 | J16: 4.4 | K16: 5.4 | L16: 6.3 | M16: 6.9 | N16: 7.2 | O16: 7.4 | P16: 7.6 | Q16: 7.6 | R16: 7.5 | S16: 7.2 | T16: 6.9 | U16: 6.5 | V16: 6.2 | W16: 5.9 | X16: 5.7 | Y16: 5.4

Sheet 広島 (hidden)
A1: 気象データ
A2: =RIGHT(CELL("filename",A2),LEN(CELL("filename",A2))-FIND("]",CELL("filename",A2))) -> 広島
A3: 時刻別平均外気湿球温度
A4: 時刻 | B4: 0 | C4: 1 | D4: 2 | E4: 3 | F4: 4 | G4: 5 | H4: 6 | I4: 7 | J4: 8 | K4: 9 | L4: 10 | M4: 11 | N4: 12 | O4: 13 | P4: 14 | Q4: 15 | R4: 16 | S4: 17 | T4: 18 | U4: 19 | V4: 20 | W4: 21 | X4: 22 | Y4: 23
A5: 4月 | B5: 9.8 | C5: 9.5 | D5: 9.3 | E5: 9 | F5: 8.8 | G5: 8.6 | H5: 8.4 | I5: 8.6 | J5: 9.2 | K5: 10 | L5: 10.8 | M5: 11.2 | N5: 11.6 | O5: 11.8 | P5: 12 | Q5: 12 | R5: 11.9 | S5: 11.7 | T5: 11.4 | U5: 11.2 | V5: 11 | W5: 10.8 | X5: 10.6 | Y5: 10.3
A6: 5月 | B6: 14.5 | C6: 14.2 | D6: 14 | E6: 13.7 | F6: 13.5 | G6: 13.4 | H6: 13.3 | I6: 13.6 | J6: 14.2 | K6: 14.9 | L6: 15.3 | M6: 15.7 | N6: 15.9 | O6: 16.1 | P6: 16.2 | Q6: 16.1 | R6: 16.1 | S6: 15.9 | T6: 15.7 | U6: 15.4 | V6: 15.3 | W6: 15.2 | X6: 15 | Y6: 14.8
A7: 6月 | B7: 18.8 | C7: 18.6 | D7: 18.5 | E7: 18.3 | F7: 18.2 | G7: 18.1 | H7: 18 | I7: 18.3 | J7: 18.7 | K7: 19.1 | L7: 19.4 | M7: 19.7 | N7: 19.9 | O7: 20 | P7: 20.1 | Q7: 20.1 | R7: 20 | S7: 19.8 | T7: 19.7 | U7: 19.6 | V7: 19.5 | W7: 19.4 | X7: 19.3 | Y7: 19.2
A8: 7月 | B8: 22.9 | C8: 22.8 | D8: 22.7 | E8: 22.6 | F8: 22.5 | G8: 22.4 | H8: 22.4 | I8: 22.6 | J8: 22.9 | K8: 23.1 | L8: 23.3 | M8: 23.5 | N8: 23.7 | O8: 23.8 | P8: 23.9 | Q8: 23.9 | R8: 23.8 | S8: 23.7 | T8: 23.6 | U8: 23.4 | V8: 23.3 | W8: 23.3 | X8: 23.2 | Y8: 23.1
A9: 8月 | B9: 23.7 | C9: 23.5 | D9: 23.4 | E9: 23.3 | F9: 23.2 | G9: 23 | H9: 23 | I9: 23.1 | J9: 23.4 | K9: 23.7 | L9: 24 | M9: 24.1 | N9: 24.2 | O9: 24.4 | P9: 24.4 | Q9: 24.4 | R9: 24.2 | S9: 24.3 | T9: 24.1 | U9: 24.1 | V9: 24 | W9: 23.9 | X9: 23.8 | Y9: 23.7
A10: 9月 | B10: 20 | C10: 19.8 | D10: 19.7 | E10: 19.6 | F10: 19.4 | G10: 19.3 | H10: 19.1 | I10: 19.2 | J10: 19.5 | K10: 20 | L10: 20.4 | M10: 20.7 | N10: 20.8 | O10: 20.9 | P10: 20.9 | Q10: 20.9 | R10: 20.9 | S10: 20.9 | T10: 20.7 | U10: 20.6 | V10: 20.5 | W10: 20.4 | X10: 20.2 | Y10: 20
A11: 10月 | B11: 14.4 | C11: 14.2 | D11: 14 | E11: 13.8 | F11: 13.6 | G11: 13.5 | H11: 13.3 | I11: 13.3 | J11: 13.7 | K11: 14.3 | L11: 15.1 | M11: 15.5 | N11: 15.8 | O11: 15.9 | P11: 16 | Q11: 15.9 | R11: 15.9 | S11: 15.8 | T11: 15.6 | U11: 15.4 | V11: 15.2 | W11: 14.9 | X11: 14.7 | Y11: 14.5
A12: 11月 | B12: 9.2 | C12: 8.9 | D12: 8.7 | E12: 8.5 | F12: 8.4 | G12: 8.2 | H12: 8.1 | I12: 8 | J12: 8.3 | K12: 8.9 | L12: 9.8 | M12: 10.4 | N12: 10.8 | O12: 11 | P12: 11.1 | Q12: 11.1 | R12: 11 | S12: 10.8 | T12: 10.6 | U12: 10.3 | V12: 10 | W12: 9.7 | X12: 9.5 | Y12: 9.2
A13: 12月 | B13: 4.4 | C13: 4.2 | D13: 4 | E13: 3.8 | F13: 3.7 | G13: 3.5 | H13: 3.4 | I13: 3.4 | J13: 3.5 | K13: 4 | L13: 4.8 | M13: 5.6 | N13: 6.1 | O13: 6.3 | P13: 6.5 | Q13: 6.4 | R13: 6.2 | S13: 6 | T13: 5.7 | U13: 5.5 | V13: 5.2 | W13: 5 | X13: 4.7 | Y13: 4.5
A14: 1月 | B14: 2.2 | C14: 2 | D14: 1.8 | E14: 1.7 | F14: 1.5 | G14: 1.4 | H14: 1.3 | I14: 1.3 | J14: 1.4 | K14: 2 | L14: 2.7 | M14: 3.5 | N14: 4.1 | O14: 4.3 | P14: 4.4 | Q14: 4.4 | R14: 4.2 | S14: 3.9 | T14: 3.7 | U14: 3.4 | V14: 3.2 | W14: 2.9 | X14: 2.7 | Y14: 2.4
A15: 2月 | B15: 2.7 | C15: 2.5 | D15: 2.3 | E15: 2.2 | F15: 2 | G15: 1.8 | H15: 1.7 | I15: 1.7 | J15: 1.9 | K15: 2.6 | L15: 3.4 | M15: 4.2 | N15: 4.6 | O15: 4.9 | P15: 5.1 | Q15: 5.1 | R15: 5 | S15: 4.7 | T15: 4.4 | U15: 4.2 | V15: 3.9 | W15: 3.7 | X15: 3.4 | Y15: 3.1
A16: 3月 | B16: 5.6 | C16: 5.3 | D16: 5 | E16: 4.8 | F16: 4.6 | G16: 4.4 | H16: 4.2 | I16: 4.2 | J16: 4.6 | K16: 5.4 | L16: 6.3 | M16: 7 | N16: 7.4 | O16: 7.7 | P16: 7.8 | Q16: 7.9 | R16: 7.8 | S16: 7.5 | T16: 7.2 | U16: 7 | V16: 6.8 | W16: 6.5 | X16: 6.2 | Y16: 5.9

Sheet 山口 (hidden)
A1: 気象データ
A2: =RIGHT(CELL("filename",A2),LEN(CELL("filename",A2))-FIND("]",CELL("filename",A2))) -> 山口
A3: 時刻別平均外気湿球温度
A4: 時刻 | B4: 0 | C4: 1 | D4: 2 | E4: 3 | F4: 4 | G4: 5 | H4: 6 | I4: 7 | J4: 8 | K4: 9 | L4: 10 | M4: 11 | N4: 12 | O4: 13 | P4: 14 | Q4: 15 | R4: 16 | S4: 17 | T4: 18 | U4: 19 | V4: 20 | W4: 21 | X4: 22 | Y4: 23
A5: 4月 | B5: 9.4 | C5: 9.2 | D5: 8.9 | E5: 8.7 | F5: 8.5 | G5: 8.3 | H5: 8.2 | I5: 8.6 | J5: 9.5 | K5: 10.6 | L5: 11.4 | M5: 11.9 | N5: 12.2 | O5: 12.4 | P5: 12.4 | Q5: 12.3 | R5: 12.1 | S5: 11.8 | T5: 11.4 | U5: 11 | V5: 10.8 | W5: 10.5 | X5: 10.2 | Y5: 9.9
A6: 5月 | B6: 14 | C6: 13.8 | D6: 13.6 | E6: 13.4 | F6: 13.2 | G6: 13 | H6: 13.1 | I6: 13.6 | J6: 14.4 | K6: 15.3 | L6: 15.8 | M6: 16.1 | N6: 16.4 | O6: 16.5 | P6: 16.4 | Q6: 16.3 | R6: 16.1 | S6: 15.8 | T6: 15.5 | U6: 15.2 | V6: 15 | W6: 14.7 | X6: 14.5 | Y6: 14.3
A7: 6月 | B7: 18.5 | C7: 18.4 | D7: 18.2 | E7: 18.1 | F7: 18 | G7: 17.9 | H7: 18 | I7: 18.3 | J7: 18.9 | K7: 19.4 | L7: 19.7 | M7: 20 | N7: 20.3 | O7: 20.4 | P7: 20.4 | Q7: 20.4 | R7: 20.2 | S7: 20 | T7: 19.8 | U7: 19.5 | V7: 19.3 | W7: 19.1 | X7: 19 | Y7: 18.8
A8: 7月 | B8: 22.6 | C8: 22.5 | D8: 22.4 | E8: 22.3 | F8: 22.2 | G8: 22.1 | H8: 22.1 | I8: 22.4 | J8: 22.9 | K8: 23.3 | L8: 23.6 | M8: 23.8 | N8: 23.9 | O8: 24.1 | P8: 24.1 | Q8: 24.1 | R8: 24 | S8: 23.8 | T8: 23.6 | U8: 23.4 | V8: 23.2 | W8: 23 | X8: 22.9 | Y8: 22.8
A9: 8月 | B9: 23.3 | C9: 23.2 | D9: 23.1 | E9: 23 | F9: 22.9 | G9: 22.8 | H9: 22.7 | I9: 23 | J9: 23.5 | K9: 23.9 | L9: 24.2 | M9: 24.4 | N9: 24.6 | O9: 24.7 | P9: 24.7 | Q9: 24.6 | R9: 24.4 | S9: 24.3 | T9: 24.1 | U9: 23.9 | V9: 23.8 | W9: 23.6 | X9: 23.5 | Y9: 23.4
A10: 9月 | B10: 19.8 | C10: 19.6 | D10: 19.5 | E10: 19.3 | F10: 19.2 | G10: 19.1 | H10: 18.9 | I10: 19.2 | J10: 19.7 | K10: 20.3 | L10: 20.7 | M10: 20.9 | N10: 21 | O10: 21.2 | P10: 21.3 | Q10: 21.3 | R10: 21.2 | S10: 21 | T10: 20.7 | U10: 20.5 | V10: 20.3 | W10: 20.2 | X10: 20 | Y10: 19.8
A11: 10月 | B11: 14.1 | C11: 13.8 | D11: 13.6 | E11: 13.4 | F11: 13.2 | G11: 13 | H11: 12.9 | I11: 12.9 | J11: 13.7 | K11: 14.6 | L11: 15.4 | M11: 15.9 | N11: 16.1 | O11: 16.2 | P11: 16.3 | Q11: 16.2 | R11: 16.1 | S11: 15.8 | T11: 15.5 | U11: 15.3 | V11: 15 | W11: 14.7 | X11: 14.4 | Y11: 14.1
A12: 11月 | B12: 8.7 | C12: 8.4 | D12: 8.2 | E12: 8 | F12: 7.9 | G12: 7.7 | H12: 7.6 | I12: 7.5 | J12: 8.1 | K12: 9.1 | L12: 10.3 | M12: 11.1 | N12: 11.4 | O12: 11.5 | P12: 11.5 | Q12: 11.5 | R12: 11.3 | S12: 11 | T12: 10.6 | U12: 10.2 | V12: 9.8 | W12: 9.4 | X12: 9.1 | Y12: 8.8
A13: 12月 | B13: 3.9 | C13: 3.6 | D13: 3.5 | E13: 3.2 | F13: 3.1 | G13: 2.9 | H13: 2.8 | I13: 2.7 | J13: 2.9 | K13: 3.8 | L13: 4.9 | M13: 5.9 | N13: 6.5 | O13: 6.7 | P13: 6.7 | Q13: 6.6 | R13: 6.4 | S13: 6 | T13: 5.6 | U13: 5.2 | V13: 4.8 | W13: 4.5 | X13: 4.2 | Y13: 4
A14: 1月 | B14: 1.7 | C14: 1.5 | D14: 1.3 | E14: 1.2 | F14: 1.1 | G14: 1 | H14: 0.9 | I14: 0.9 | J14: 1 | K14: 1.8 | L14: 2.9 | M14: 3.9 | N14: 4.4 | O14: 4.5 | P14: 4.7 | Q14: 4.6 | R14: 4.4 | S14: 4 | T14: 3.6 | U14: 3.2 | V14: 2.8 | W14: 2.5 | X14: 2.2 | Y14: 1.9
A15: 2月 | B15: 2.4 | C15: 2.2 | D15: 2 | E15: 1.8 | F15: 1.6 | G15: 1.5 | H15: 1.4 | I15: 1.3 | J15: 1.7 | K15: 2.6 | L15: 3.7 | M15: 4.6 | N15: 5.1 | O15: 5.3 | P15: 5.4 | Q15: 5.4 | R15: 5.2 | S15: 4.9 | T15: 4.5 | U15: 4.1 | V15: 3.7 | W15: 3.4 | X15: 3.1 | Y15: 2.8
A16: 3月 | B16: 5.3 | C16: 5 | D16: 4.8 | E16: 4.5 | F16: 4.3 | G16: 4.2 | H16: 4 | I16: 4 | J16: 4.8 | K16: 5.9 | L16: 7 | M16: 7.7 | N16: 8 | O16: 8.2 | P16: 8.2 | Q16: 8.2 | R16: 8 | S16: 7.7 | T16: 7.3 | U16: 6.9 | V16: 6.6 | W16: 6.3 | X16: 5.9 | Y16: 5.7

Sheet 徳島 (hidden)
A1: 気象データ
A2: =RIGHT(CELL("filename",A2),LEN(CELL("filename",A2))-FIND("]",CELL("filename",A2))) -> 徳島
A3: 時刻別平均外気湿球温度
A4: 時刻 | B4: 0 | C4: 1 | D4: 2 | E4: 3 | F4: 4 | G4: 5 | H4: 6 | I4: 7 | J4: 8 | K4: 9 | L4: 10 | M4: 11 | N4: 12 | O4: 13 | P4: 14 | Q4: 15 | R4: 16 | S4: 17 | T4: 18 | U4: 19 | V4: 20 | W4: 21 | X4: 22 | Y4: 23
A5: 4月 | B5: 10.3 | C5: 10.1 | D5: 9.8 | E5: 9.6 | F5: 9.4 | G5: 9.2 | H5: 9.1 | I5: 9.5 | J5: 10.1 | K5: 10.8 | L5: 11.3 | M5: 11.7 | N5: 12 | O5: 12.2 | P5: 12.3 | Q5: 12.3 | R5: 12.2 | S5: 12.1 | T5: 11.9 | U5: 11.7 | V5: 11.5 | W5: 11.3 | X5: 11 | Y5: 10.7
A6: 5月 | B6: 15 | C6: 14.8 | D6: 14.5 | E6: 14.3 | F6: 14.1 | G6: 14 | H6: 14 | I6: 14.5 | J6: 15 | K6: 15.6 | L6: 16 | M6: 16.3 | N6: 16.5 | O6: 16.6 | P6: 16.6 | Q6: 16.5 | R6: 16.5 | S6: 16.3 | T6: 16.2 | U6: 16 | V6: 15.9 | W6: 15.8 | X6: 15.6 | Y6: 15.4
A7: 6月 | B7: 19.2 | C7: 19 | D7: 18.9 | E7: 18.7 | F7: 18.6 | G7: 18.5 | H7: 18.6 | I7: 18.9 | J7: 19.3 | K7: 19.7 | L7: 19.9 | M7: 20.1 | N7: 20.3 | O7: 20.3 | P7: 20.3 | Q7: 20.3 | R7: 20.2 | S7: 20.2 | T7: 20.1 | U7: 19.9 | V7: 19.8 | W7: 19.8 | X7: 19.7 | Y7: 19.5
A8: 7月 | B8: 23.2 | C8: 23.1 | D8: 22.9 | E8: 22.8 | F8: 22.7 | G8: 22.5 | H8: 22.6 | I8: 22.8 | J8: 23.1 | K8: 23.6 | L8: 23.9 | M8: 24.1 | N8: 24.2 | O8: 24.3 | P8: 24.2 | Q8: 24.2 | R8: 24.1 | S8: 24 | T8: 23.9 | U8: 23.7 | V8: 23.7 | W8: 23.6 | X8: 23.5 | Y8: 23.4
A9: 8月 | B9: 23.8 | C9: 23.7 | D9: 23.6 | E9: 23.4 | F9: 23.3 | G9: 23.1 | H9: 23.1 | I9: 23.4 | J9: 23.7 | K9: 24.2 | L9: 24.6 | M9: 24.8 | N9: 24.9 | O9: 25 | P9: 24.9 | Q9: 24.8 | R9: 24.6 | S9: 24.6 | T9: 24.4 | U9: 24.3 | V9: 24.2 | W9: 24.2 | X9: 24.1 | Y9: 23.9
A10: 9月 | B10: 20.6 | C10: 20.5 | D10: 20.4 | E10: 20.3 | F10: 20.1 | G10: 20 | H10: 20 | I10: 20.1 | J10: 20.5 | K10: 20.9 | L10: 21.3 | M10: 21.5 | N10: 21.6 | O10: 21.6 | P10: 21.6 | Q10: 21.5 | R10: 21.4 | S10: 21.2 | T10: 21.1 | U10: 21.1 | V10: 21 | W10: 20.9 | X10: 20.7 | Y10: 20.6
A11: 10月 | B11: 15.3 | C11: 15.1 | D11: 15 | E11: 14.8 | F11: 14.7 | G11: 14.6 | H11: 14.5 | I11: 14.6 | J11: 15.1 | K11: 15.6 | L11: 16.1 | M11: 16.4 | N11: 16.6 | O11: 16.7 | P11: 16.7 | Q11: 16.6 | R11: 16.4 | S11: 16.2 | T11: 16.1 | U11: 16 | V11: 15.8 | W11: 15.6 | X11: 15.4 | Y11: 15.2
A12: 11月 | B12: 9.9 | C12: 9.8 | D12: 9.6 | E12: 9.4 | F12: 9.3 | G12: 9.2 | H12: 9.1 | I12: 9.1 | J12: 9.5 | K12: 10.2 | L12: 10.8 | M12: 11.3 | N12: 11.6 | O12: 11.8 | P12: 11.8 | Q12: 11.7 | R12: 11.5 | S12: 11.3 | T12: 11.1 | U12: 10.9 | V12: 10.7 | W12: 10.4 | X12: 10.2 | Y12: 10
A13: 12月 | B13: 5 | C13: 4.8 | D13: 4.7 | E13: 4.6 | F13: 4.5 | G13: 4.4 | H13: 4.3 | I13: 4.3 | J13: 4.5 | K13: 5.2 | L13: 5.9 | M13: 6.4 | N13: 6.7 | O13: 6.9 | P13: 6.9 | Q13: 6.8 | R13: 6.6 | S13: 6.4 | T13: 6.1 | U13: 5.9 | V13: 5.6 | W13: 5.3 | X13: 5.2 | Y13: 4.9
A14: 1月 | B14: 2.6 | C14: 2.4 | D14: 2.3 | E14: 2.2 | F14: 2.1 | G14: 2.1 | H14: 2 | I14: 1.9 | J14: 2.2 | K14: 2.8 | L14: 3.5 | M14: 4 | N14: 4.4 | O14: 4.6 | P14: 4.7 | Q14: 4.7 | R14: 4.5 | S14: 4.2 | T14: 3.9 | U14: 3.7 | V14: 3.5 | W14: 3.2 | X14: 3 | Y14: 2.8
A15: 2月 | B15: 3 | C15: 2.8 | D15: 2.7 | E15: 2.5 | F15: 2.4 | G15: 2.3 | H15: 2.2 | I15: 2.2 | J15: 2.6 | K15: 3.4 | L15: 4 | M15: 4.5 | N15: 4.9 | O15: 5.1 | P15: 5.3 | Q15: 5.3 | R15: 5.1 | S15: 4.8 | T15: 4.5 | U15: 4.3 | V15: 4.1 | W15: 3.8 | X15: 3.5 | Y15: 3.3
A16: 3月 | B16: 5.9 | C16: 5.7 | D16: 5.5 | E16: 5.3 | F16: 5.1 | G16: 5 | H16: 4.9 | I16: 5 | J16: 5.6 | K16: 6.3 | L16: 6.9 | M16: 7.4 | N16: 7.7 | O16: 7.9 | P16: 8 | Q16: 8.1 | R16: 7.9 | S16: 7.7 | T16: 7.5 | U16: 7.3 | V16: 7 | W16: 6.8 | X16: 6.5 | Y16: 6.2

Sheet 高松 (hidden)
A1: 気象データ
A2: =RIGHT(CELL("filename",A2),LEN(CELL("filename",A2))-FIND("]",CELL("filename",A2))) -> 高松
A3: 時刻別平均外気湿球温度
A4: 時刻 | B4: 0 | C4: 1 | D4: 2 | E4: 3 | F4: 4 | G4: 5 | H4: 6 | I4: 7 | J4: 8 | K4: 9 | L4: 10 | M4: 11 | N4: 12 | O4: 13 | P4: 14 | Q4: 15 | R4: 16 | S4: 17 | T4: 18 | U4: 19 | V4: 20 | W4: 21 | X4: 22 | Y4: 23
A5: 4月 | B5: 9.8 | C5: 9.5 | D5: 9.3 | E5: 9.1 | F5: 8.9 | G5: 8.7 | H5: 8.7 | I5: 9.2 | J5: 10.1 | K5: 10.7 | L5: 11.1 | M5: 11.4 | N5: 11.6 | O5: 11.6 | P5: 11.8 | Q5: 11.8 | R5: 11.8 | S5: 11.6 | T5: 11.3 | U5: 11.1 | V5: 10.8 | W5: 10.6 | X5: 10.4 | Y5: 10.1
A6: 5月 | B6: 14.5 | C6: 14.3 | D6: 14.1 | E6: 14 | F6: 13.8 | G6: 13.6 | H6: 13.8 | I6: 14.4 | J6: 15 | K6: 15.5 | L6: 15.8 | M6: 16 | N6: 16 | O6: 16.1 | P6: 16.1 | Q6: 16.1 | R6: 16.1 | S6: 15.9 | T6: 15.7 | U6: 15.5 | V6: 15.3 | W6: 15.2 | X6: 15 | Y6: 14.8
A7: 6月 | B7: 19 | C7: 18.8 | D7: 18.7 | E7: 18.6 | F7: 18.5 | G7: 18.4 | H7: 18.5 | I7: 18.9 | J7: 19.2 | K7: 19.5 | L7: 19.8 | M7: 19.9 | N7: 20.1 | O7: 20.1 | P7: 20.1 | Q7: 20 | R7: 20 | S7: 20 | T7: 19.9 | U7: 19.7 | V7: 19.6 | W7: 19.5 | X7: 19.4 | Y7: 19.3
A8: 7月 | B8: 23.1 | C8: 22.9 | D8: 22.8 | E8: 22.8 | F8: 22.7 | G8: 22.6 | H8: 22.7 | I8: 23 | J8: 23.3 | K8: 23.6 | L8: 23.8 | M8: 23.9 | N8: 24 | O8: 24 | P8: 24 | Q8: 24 | R8: 24 | S8: 23.9 | T8: 23.7 | U8: 23.6 | V8: 23.5 | W8: 23.4 | X8: 23.4 | Y8: 23.3
A9: 8月 | B9: 23.8 | C9: 23.7 | D9: 23.6 | E9: 23.4 | F9: 23.4 | G9: 23.2 | H9: 23.2 | I9: 23.6 | J9: 24 | K9: 24.3 | L9: 24.5 | M9: 24.7 | N9: 24.7 | O9: 24.7 | P9: 24.5 | Q9: 24.4 | R9: 24.4 | S9: 24.3 | T9: 24.2 | U9: 24.2 | V9: 24.1 | W9: 24.1 | X9: 24 | Y9: 23.9
A10: 9月 | B10: 20.5 | C10: 20.3 | D10: 20.2 | E10: 20.1 | F10: 20 | G10: 19.9 | H10: 19.9 | I10: 20.2 | J10: 20.7 | K10: 21.1 | L10: 21.3 | M10: 21.4 | N10: 21.4 | O10: 21.4 | P10: 21.4 | Q10: 21.3 | R10: 21.2 | S10: 21.1 | T10: 21 | U10: 20.9 | V10: 20.9 | W10: 20.8 | X10: 20.6 | Y10: 20.5
A11: 10月 | B11: 14.9 | C11: 14.8 | D11: 14.6 | E11: 14.5 | F11: 14.4 | G11: 14.3 | H11: 14.2 | I11: 14.4 | J11: 15.1 | K11: 15.9 | L11: 16.2 | M11: 16.4 | N11: 16.5 | O11: 16.5 | P11: 16.4 | Q11: 16.3 | R11: 16.1 | S11: 16 | T11: 15.8 | U11: 15.7 | V11: 15.6 | W11: 15.3 | X11: 15.1 | Y11: 14.9
A12: 11月 | B12: 9.5 | C12: 9.3 | D12: 9.1 | E12: 8.9 | F12: 8.8 | G12: 8.7 | H12: 8.6 | I12: 8.6 | J12: 9.3 | K12: 10.3 | L12: 11.1 | M12: 11.4 | N12: 11.6 | O12: 11.6 | P12: 11.6 | Q12: 11.5 | R12: 11.3 | S12: 11 | T12: 10.8 | U12: 10.5 | V12: 10.3 | W12: 10 | X12: 9.8 | Y12: 9.5
A13: 12月 | B13: 4.6 | C13: 4.4 | D13: 4.3 | E13: 4.2 | F13: 4.1 | G13: 3.9 | H13: 3.8 | I13: 3.8 | J13: 4.2 | K13: 5.2 | L13: 6.1 | M13: 6.5 | N13: 6.7 | O13: 6.8 | P13: 6.8 | Q13: 6.7 | R13: 6.4 | S13: 6.1 | T13: 5.8 | U13: 5.5 | V13: 5.3 | W13: 5.1 | X13: 4.8 | Y13: 4.6
A14: 1月 | B14: 2.3 | C14: 2.1 | D14: 2 | E14: 1.9 | F14: 1.8 | G14: 1.7 | H14: 1.6 | I14: 1.6 | J14: 1.9 | K14: 2.8 | L14: 3.6 | M14: 4.1 | N14: 4.3 | O14: 4.5 | P14: 4.5 | Q14: 4.4 | R14: 4.3 | S14: 4 | T14: 3.7 | U14: 3.4 | V14: 3.1 | W14: 2.9 | X14: 2.7 | Y14: 2.5
A15: 2月 | B15: 2.6 | C15: 2.4 | D15: 2.3 | E15: 2.1 | F15: 2 | G15: 1.9 | H15: 1.8 | I15: 1.7 | J15: 2.3 | K15: 3.3 | L15: 4 | M15: 4.5 | N15: 4.8 | O15: 4.9 | P15: 5 | Q15: 5 | R15: 4.9 | S15: 4.6 | T15: 4.2 | U15: 3.9 | V15: 3.7 | W15: 3.4 | X15: 3.2 | Y15: 2.9
A16: 3月 | B16: 5.4 | C16: 5.2 | D16: 5 | E16: 4.8 | F16: 4.6 | G16: 4.5 | H16: 4.4 | I16: 4.5 | J16: 5.4 | K16: 6.2 | L16: 6.8 | M16: 7.1 | N16: 7.4 | O16: 7.6 | P16: 7.7 | Q16: 7.7 | R16: 7.6 | S16: 7.4 | T16: 7 | U16: 6.7 | V16: 6.5 | W16: 6.2 | X16: 5.9 | Y16: 5.7

Sheet 松山 (hidden)
A1: 気象データ
A2: =RIGHT(CELL("filename",A2),LEN(CELL("filename",A2))-FIND("]",CELL("filename",A2))) -> 松山
A3: 時刻別平均外気湿球温度
A4: 時刻 | B4: 0 | C4: 1 | D4: 2 | E4: 3 | F4: 4 | G4: 5 | H4: 6 | I4: 7 | J4: 8 | K4: 9 | L4: 10 | M4: 11 | N4: 12 | O4: 13 | P4: 14 | Q4: 15 | R4: 16 | S4: 17 | T4: 18 | U4: 19 | V4: 20 | W4: 21 | X4: 22 | Y4: 23
A5: 4月 | B5: 9.9 | C5: 9.6 | D5: 9.5 | E5: 9.3 | F5: 9.1 | G5: 9 | H5: 9 | I5: 9.4 | J5: 10.3 | K5: 11 | L5: 11.5 | M5: 11.8 | N5: 12 | O5: 12.1 | P5: 12.1 | Q5: 12.1 | R5: 12 | S5: 11.8 | T5: 11.5 | U5: 11.3 | V5: 11.1 | W5: 10.8 | X5: 10.5 | Y5: 10.3
A6: 5月 | B6: 14.1 | C6: 13.9 | D6: 13.8 | E6: 13.7 | F6: 13.5 | G6: 13.4 | H6: 13.5 | I6: 14.1 | J6: 14.9 | K6: 15.4 | L6: 15.8 | M6: 16.1 | N6: 16.2 | O6: 16.2 | P6: 16.2 | Q6: 16.2 | R6: 15.9 | S6: 15.8 | T6: 15.6 | U6: 15.4 | V6: 15.3 | W6: 15 | X6: 14.7 | Y6: 14.4
A7: 6月 | B7: 18.6 | C7: 18.4 | D7: 18.3 | E7: 18.2 | F7: 18.1 | G7: 18 | H7: 18.1 | I7: 18.6 | J7: 19.1 | K7: 19.5 | L7: 19.8 | M7: 20 | N7: 20.1 | O7: 20.2 | P7: 20.2 | Q7: 20.1 | R7: 20 | S7: 19.9 | T7: 19.7 | U7: 19.6 | V7: 19.5 | W7: 19.3 | X7: 19.1 | Y7: 18.9
A8: 7月 | B8: 22.6 | C8: 22.5 | D8: 22.3 | E8: 22.2 | F8: 22.1 | G8: 22 | H8: 22.1 | I8: 22.4 | J8: 22.9 | K8: 23.2 | L8: 23.5 | M8: 23.6 | N8: 23.7 | O8: 23.8 | P8: 23.8 | Q8: 23.7 | R8: 23.6 | S8: 23.5 | T8: 23.4 | U8: 23.2 | V8: 23.2 | W8: 23.1 | X8: 23 | Y8: 22.8
A9: 8月 | B9: 23.2 | C9: 23 | D9: 22.9 | E9: 22.7 | F9: 22.6 | G9: 22.5 | H9: 22.5 | I9: 22.8 | J9: 23.4 | K9: 23.9 | L9: 24.2 | M9: 24.3 | N9: 24.5 | O9: 24.5 | P9: 24.5 | Q9: 24.4 | R9: 24.3 | S9: 24.1 | T9: 24 | U9: 23.9 | V9: 23.8 | W9: 23.7 | X9: 23.5 | Y9: 23.3
A10: 9月 | B10: 20 | C10: 19.9 | D10: 19.8 | E10: 19.7 | F10: 19.6 | G10: 19.5 | H10: 19.4 | I10: 19.7 | J10: 20.3 | K10: 20.8 | L10: 21.1 | M10: 21.3 | N10: 21.5 | O10: 21.6 | P10: 21.5 | Q10: 21.5 | R10: 21.3 | S10: 21.2 | T10: 21 | U10: 20.9 | V10: 20.7 | W10: 20.4 | X10: 20.2 | Y10: 20
A11: 10月 | B11: 14.7 | C11: 14.5 | D11: 14.4 | E11: 14.3 | F11: 14.2 | G11: 14.1 | H11: 14 | I11: 14.2 | J11: 14.9 | K11: 15.7 | L11: 16.1 | M11: 16.4 | N11: 16.5 | O11: 16.7 | P11: 16.7 | Q11: 16.6 | R11: 16.4 | S11: 16.2 | T11: 16 | U11: 15.7 | V11: 15.3 | W11: 15 | X11: 14.8 | Y11: 14.6
A12: 11月 | B12: 9.6 | C12: 9.4 | D12: 9.3 | E12: 9.2 | F12: 9.1 | G12: 9.1 | H12: 9 | I12: 9 | J12: 9.6 | K12: 10.5 | L12: 11.2 | M12: 11.5 | N12: 11.7 | O12: 11.8 | P12: 11.9 | Q12: 11.8 | R12: 11.6 | S12: 11.4 | T12: 11 | U12: 10.7 | V12: 10.3 | W12: 10 | X12: 9.8 | Y12: 9.6
A13: 12月 | B13: 4.9 | C13: 4.8 | D13: 4.7 | E13: 4.5 | F13: 4.5 | G13: 4.4 | H13: 4.3 | I13: 4.2 | J13: 4.5 | K13: 5.4 | L13: 6.2 | M13: 6.5 | N13: 6.8 | O13: 6.9 | P13: 7 | Q13: 6.9 | R13: 6.7 | S13: 6.5 | T13: 6.1 | U13: 5.8 | V13: 5.5 | W13: 5.2 | X13: 5 | Y13: 4.9
A14: 1月 | B14: 2.6 | C14: 2.5 | D14: 2.3 | E14: 2.3 | F14: 2.2 | G14: 2.1 | H14: 2 | I14: 2 | J14: 2.2 | K14: 3 | L14: 3.9 | M14: 4.3 | N14: 4.6 | O14: 4.8 | P14: 4.9 | Q14: 4.8 | R14: 4.7 | S14: 4.4 | T14: 4.1 | U14: 3.7 | V14: 3.4 | W14: 3.1 | X14: 2.9 | Y14: 2.7
A15: 2月 | B15: 3.1 | C15: 2.9 | D15: 2.8 | E15: 2.7 | F15: 2.6 | G15: 2.5 | H15: 2.4 | I15: 2.3 | J15: 2.8 | K15: 3.7 | L15: 4.5 | M15: 4.9 | N15: 5.2 | O15: 5.4 | P15: 5.5 | Q15: 5.5 | R15: 5.4 | S15: 5.1 | T15: 4.9 | U15: 4.5 | V15: 4.1 | W15: 3.8 | X15: 3.6 | Y15: 3.4
A16: 3月 | B16: 5.8 | C16: 5.6 | D16: 5.5 | E16: 5.3 | F16: 5.2 | G16: 5.1 | H16: 5 | I16: 5.1 | J16: 5.8 | K16: 6.7 | L16: 7.3 | M16: 7.7 | N16: 8 | O16: 8.1 | P16: 8.2 | Q16: 8.1 | R16: 8 | S16: 7.8 | T16: 7.5 | U16: 7.3 | V16: 6.9 | W16: 6.6 | X16: 6.3 | Y16: 6

Sheet 高知 (hidden)
A1: 気象データ
A2: =RIGHT(CELL("filename",A2),LEN(CELL("filename",A2))-FIND("]",CELL("filename",A2))) -> 高知
A3: 時刻別平均外気湿球温度
A4: 時刻 | B4: 0 | C4: 1 | D4: 2 | E4: 3 | F4: 4 | G4: 5 | H4: 6 | I4: 7 | J4: 8 | K4: 9 | L4: 10 | M4: 11 | N4: 12 | O4: 13 | P4: 14 | Q4: 15 | R4: 16 | S4: 17 | T4: 18 | U4: 19 | V4: 20 | W4: 21 | X4: 22 | Y4: 23
A5: 4月 | B5: 11 | C5: 10.7 | D5: 10.5 | E5: 10.2 | F5: 10 | G5: 9.8 | H5: 9.7 | I5: 10.1 | J5: 10.9 | K5: 11.6 | L5: 12.2 | M5: 12.7 | N5: 13 | O5: 13.2 | P5: 13.4 | Q5: 13.4 | R5: 13.4 | S5: 13.2 | T5: 13 | U5: 12.7 | V5: 12.4 | W5: 12.1 | X5: 11.8 | Y5: 11.5
A6: 5月 | B6: 15.6 | C6: 15.4 | D6: 15.1 | E6: 14.8 | F6: 14.6 | G6: 14.4 | H6: 14.4 | I6: 14.9 | J6: 15.6 | K6: 16.2 | L6: 16.6 | M6: 16.9 | N6: 17.2 | O6: 17.3 | P6: 17.5 | Q6: 17.5 | R6: 17.5 | S6: 17.5 | T6: 17.3 | U6: 17.1 | V6: 16.9 | W6: 16.7 | X6: 16.4 | Y6: 16.1
A7: 6月 | B7: 19.7 | C7: 19.5 | D7: 19.3 | E7: 19.1 | F7: 19 | G7: 18.8 | H7: 18.9 | I7: 19.3 | J7: 19.7 | K7: 20.2 | L7: 20.5 | M7: 20.7 | N7: 20.8 | O7: 20.9 | P7: 21 | Q7: 21.1 | R7: 21 | S7: 20.9 | T7: 20.9 | U7: 20.8 | V7: 20.7 | W7: 20.5 | X7: 20.4 | Y7: 20.2
A8: 7月 | B8: 23.6 | C8: 23.4 | D8: 23.3 | E8: 23.1 | F8: 22.9 | G8: 22.8 | H8: 22.8 | I8: 23.1 | J8: 23.6 | K8: 23.9 | L8: 24.2 | M8: 24.3 | N8: 24.4 | O8: 24.5 | P8: 24.6 | Q8: 24.6 | R8: 24.6 | S8: 24.5 | T8: 24.4 | U8: 24.3 | V8: 24.3 | W8: 24.2 | X8: 24.1 | Y8: 23.9
A9: 8月 | B9: 24.2 | C9: 24 | D9: 23.8 | E9: 23.6 | F9: 23.4 | G9: 23.3 | H9: 23.2 | I9: 23.5 | J9: 23.9 | K9: 24.3 | L9: 24.6 | M9: 24.7 | N9: 24.9 | O9: 25 | P9: 25.1 | Q9: 25.1 | R9: 25 | S9: 25 | T9: 24.9 | U9: 24.8 | V9: 24.8 | W9: 24.7 | X9: 24.5 | Y9: 24.3
A10: 9月 | B10: 21 | C10: 20.8 | D10: 20.6 | E10: 20.5 | F10: 20.3 | G10: 20.2 | H10: 20.1 | I10: 20.3 | J10: 20.8 | K10: 21.3 | L10: 21.6 | M10: 21.8 | N10: 22 | O10: 22.1 | P10: 22.2 | Q10: 22.2 | R10: 22.1 | S10: 22 | T10: 21.9 | U10: 21.8 | V10: 21.6 | W10: 21.4 | X10: 21.2 | Y10: 21
A11: 10月 | B11: 15.5 | C11: 15.3 | D11: 15.1 | E11: 14.9 | F11: 14.8 | G11: 14.6 | H11: 14.4 | I11: 14.6 | J11: 15.3 | K11: 16 | L11: 16.5 | M11: 16.8 | N11: 17 | O11: 17.2 | P11: 17.2 | Q11: 17.2 | R11: 17.1 | S11: 16.9 | T11: 16.7 | U11: 16.5 | V11: 16.3 | W11: 16 | X11: 15.8 | Y11: 15.6
A12: 11月 | B12: 10.1 | C12: 9.9 | D12: 9.7 | E12: 9.5 | F12: 9.3 | G12: 9.2 | H12: 9 | I12: 9 | J12: 9.7 | K12: 10.6 | L12: 11.4 | M12: 12 | N12: 12.3 | O12: 12.4 | P12: 12.5 | Q12: 12.5 | R12: 12.3 | S12: 12 | T12: 11.6 | U12: 11.3 | V12: 11 | W12: 10.7 | X12: 10.5 | Y12: 10.2
A13: 12月 | B13: 4.9 | C13: 4.6 | D13: 4.4 | E13: 4.2 | F13: 4 | G13: 3.9 | H13: 3.7 | I13: 3.6 | J13: 4.1 | K13: 5.2 | L13: 6.3 | M13: 7 | N13: 7.4 | O13: 7.6 | P13: 7.7 | Q13: 7.6 | R13: 7.4 | S13: 7 | T13: 6.5 | U13: 6.2 | V13: 5.8 | W13: 5.5 | X13: 5.2 | Y13: 4.9
A14: 1月 | B14: 2.6 | C14: 2.4 | D14: 2.1 | E14: 1.9 | F14: 1.8 | G14: 1.6 | H14: 1.5 | I14: 1.4 | J14: 1.8 | K14: 2.9 | L14: 4 | M14: 4.8 | N14: 5.2 | O14: 5.6 | P14: 5.8 | Q14: 5.7 | R14: 5.5 | S14: 5.1 | T14: 4.6 | U14: 4.1 | V14: 3.8 | W14: 3.5 | X14: 3.2 | Y14: 2.9
A15: 2月 | B15: 3.6 | C15: 3.4 | D15: 3.2 | E15: 3 | F15: 2.8 | G15: 2.6 | H15: 2.5 | I15: 2.4 | J15: 3 | K15: 4.1 | L15: 5 | M15: 5.6 | N15: 6.1 | O15: 6.5 | P15: 6.7 | Q15: 6.7 | R15: 6.5 | S15: 6.2 | T15: 5.7 | U15: 5.3 | V15: 5 | W15: 4.6 | X15: 4.3 | Y15: 4
A16: 3月 | B16: 6.8 | C16: 6.5 | D16: 6.3 | E16: 6.1 | F16: 5.8 | G16: 5.7 | H16: 5.5 | I16: 5.6 | J16: 6.4 | K16: 7.2 | L16: 7.9 | M16: 8.5 | N16: 8.9 | O16: 9.2 | P16: 9.3 | Q16: 9.4 | R16: 9.3 | S16: 9.1 | T16: 8.8 | U16: 8.4 | V16: 8.1 | W16: 7.8 | X16: 7.5 | Y16: 7.1

Sheet 福岡 (hidden)
A1: 気象データ
A2: =RIGHT(CELL("filename",A2),LEN(CELL("filename",A2))-FIND("]",CELL("filename",A2))) -> 福岡
A3: 時刻別平均外気湿球温度
A4: 時刻 | B4: 0 | C4: 1 | D4: 2 | E4: 3 | F4: 4 | G4: 5 | H4: 6 | I4: 7 | J4: 8 | K4: 9 | L4: 10 | M4: 11 | N4: 12 | O4: 13 | P4: 14 | Q4: 15 | R4: 16 | S4: 17 | T4: 18 | U4: 19 | V4: 20 | W4: 21 | X4: 22 | Y4: 23
A5: 4月 | B5: 10.9 | C5: 10.7 | D5: 10.5 | E5: 10.4 | F5: 10.2 | G5: 10.1 | H5: 10 | I5: 10.3 | J5: 10.9 | K5: 11.5 | L5: 12 | M5: 12.4 | N5: 12.6 | O5: 12.8 | P5: 12.9 | Q5: 12.8 | R5: 12.6 | S5: 12.4 | T5: 12.1 | U5: 11.9 | V5: 11.8 | W5: 11.6 | X5: 11.4 | Y5: 11.2
A6: 5月 | B6: 15.2 | C6: 15 | D6: 14.8 | E6: 14.7 | F6: 14.5 | G6: 14.4 | H6: 14.5 | I6: 14.8 | J6: 15.4 | K6: 15.9 | L6: 16.2 | M6: 16.5 | N6: 16.8 | O6: 16.9 | P6: 17 | Q6: 16.9 | R6: 16.7 | S6: 16.6 | T6: 16.3 | U6: 16.1 | V6: 15.9 | W6: 15.8 | X6: 15.6 | Y6: 15.4
A7: 6月 | B7: 19.4 | C7: 19.3 | D7: 19.2 | E7: 19.1 | F7: 19 | G7: 18.9 | H7: 18.9 | I7: 19.2 | J7: 19.6 | K7: 19.9 | L7: 20.2 | M7: 20.5 | N7: 20.7 | O7: 20.8 | P7: 20.8 | Q7: 20.8 | R7: 20.6 | S7: 20.5 | T7: 20.3 | U7: 20.1 | V7: 20 | W7: 19.9 | X7: 19.8 | Y7: 19.7
A8: 7月 | B8: 23.3 | C8: 23.2 | D8: 23.1 | E8: 23 | F8: 22.9 | G8: 22.9 | H8: 22.9 | I8: 23.1 | J8: 23.4 | K8: 23.6 | L8: 23.9 | M8: 24.1 | N8: 24.3 | O8: 24.4 | P8: 24.5 | Q8: 24.4 | R8: 24.3 | S8: 24.2 | T8: 24 | U8: 23.9 | V8: 23.7 | W8: 23.6 | X8: 23.5 | Y8: 23.5
A9: 8月 | B9: 23.9 | C9: 23.8 | D9: 23.7 | E9: 23.6 | F9: 23.5 | G9: 23.4 | H9: 23.4 | I9: 23.6 | J9: 23.9 | K9: 24.2 | L9: 24.4 | M9: 24.7 | N9: 24.9 | O9: 25 | P9: 25.1 | Q9: 25.1 | R9: 25 | S9: 24.8 | T9: 24.7 | U9: 24.5 | V9: 24.4 | W9: 24.3 | X9: 24.2 | Y9: 24
A10: 9月 | B10: 20.7 | C10: 20.5 | D10: 20.4 | E10: 20.3 | F10: 20.2 | G10: 20.1 | H10: 20 | I10: 20.2 | J10: 20.6 | K10: 21 | L10: 21.3 | M10: 21.5 | N10: 21.8 | O10: 21.9 | P10: 22 | Q10: 21.9 | R10: 21.8 | S10: 21.6 | T10: 21.4 | U10: 21.2 | V10: 21.1 | W10: 21 | X10: 20.8 | Y10: 20.7
A11: 10月 | B11: 15.3 | C11: 15.2 | D11: 15 | E11: 14.9 | F11: 14.8 | G11: 14.7 | H11: 14.6 | I11: 14.6 | J11: 15.2 | K11: 15.7 | L11: 16.1 | M11: 16.4 | N11: 16.7 | O11: 16.9 | P11: 16.9 | Q11: 16.9 | R11: 16.7 | S11: 16.5 | T11: 16.2 | U11: 16.1 | V11: 15.9 | W11: 15.7 | X11: 15.5 | Y11: 15.3
A12: 11月 | B12: 10.3 | C12: 10.1 | D12: 10 | E12: 9.9 | F12: 9.8 | G12: 9.7 | H12: 9.6 | I12: 9.6 | J12: 9.9 | K12: 10.6 | L12: 11.2 | M12: 11.6 | N12: 11.8 | O12: 11.9 | P12: 12 | Q12: 11.9 | R12: 11.7 | S12: 11.5 | T12: 11.3 | U12: 11.1 | V12: 10.9 | W12: 10.7 | X12: 10.5 | Y12: 10.3
A13: 12月 | B13: 5.5 | C13: 5.4 | D13: 5.3 | E13: 5.1 | F13: 5 | G13: 4.9 | H13: 4.9 | I13: 4.9 | J13: 5 | K13: 5.5 | L13: 6.1 | M13: 6.6 | N13: 6.8 | O13: 7 | P13: 7 | Q13: 7 | R13: 6.8 | S13: 6.6 | T13: 6.4 | U13: 6.2 | V13: 6.1 | W13: 5.9 | X13: 5.7 | Y13: 5.5
A14: 1月 | B14: 3.5 | C14: 3.4 | D14: 3.3 | E14: 3.2 | F14: 3.1 | G14: 3.1 | H14: 3 | I14: 3 | J14: 3.1 | K14: 3.5 | L14: 4.1 | M14: 4.6 | N14: 4.9 | O14: 5 | P14: 5.1 | Q14: 5.1 | R14: 5 | S14: 4.7 | T14: 4.5 | U14: 4.4 | V14: 4.2 | W14: 4 | X14: 3.9 | Y14: 3.7
A15: 2月 | B15: 4.3 | C15: 4.1 | D15: 4 | E15: 3.9 | F15: 3.8 | G15: 3.7 | H15: 3.6 | I15: 3.6 | J15: 3.8 | K15: 4.3 | L15: 4.9 | M15: 5.4 | N15: 5.7 | O15: 5.9 | P15: 6.1 | Q15: 6 | R15: 5.9 | S15: 5.6 | T15: 5.4 | U15: 5.2 | V15: 5 | W15: 4.8 | X15: 4.7 | Y15: 4.5
A16: 3月 | B16: 7 | C16: 6.8 | D16: 6.6 | E16: 6.4 | F16: 6.3 | G16: 6.2 | H16: 6.1 | I16: 6.2 | J16: 6.6 | K16: 7.3 | L16: 7.9 | M16: 8.3 | N16: 8.6 | O16: 8.8 | P16: 8.9 | Q16: 8.9 | R16: 8.7 | S16: 8.5 | T16: 8.2 | U16: 8 | V16: 7.8 | W16: 7.6 | X16: 7.4 | Y16: 7.2

Sheet 佐賀 (hidden)
A1: 気象データ
A2: =RIGHT(CELL("filename",A2),LEN(CELL("filename",A2))-FIND("]",CELL("filename",A2))) -> 佐賀
A3: 時刻別平均外気湿球温度
A4: 時刻 | B4: 0 | C4: 1 | D4: 2 | E4: 3 | F4: 4 | G4: 5 | H4: 6 | I4: 7 | J4: 8 | K4: 9 | L4: 10 | M4: 11 | N4: 12 | O4: 13 | P4: 14 | Q4: 15 | R4: 16 | S4: 17 | T4: 18 | U4: 19 | V4: 20 | W4: 21 | X4: 22 | Y4: 23
A5: 4月 | B5: 10.5 | C5: 10.3 | D5: 10 | E5: 9.9 | F5: 9.7 | G5: 9.5 | H5: 9.5 | I5: 9.8 | J5: 10.6 | K5: 11.4 | L5: 12 | M5: 12.4 | N5: 12.7 | O5: 12.9 | P5: 13 | Q5: 13 | R5: 12.8 | S5: 12.7 | T5: 12.4 | U5: 12.1 | V5: 11.8 | W5: 11.5 | X5: 11.3 | Y5: 11
A6: 5月 | B6: 15 | C6: 14.8 | D6: 14.6 | E6: 14.4 | F6: 14.2 | G6: 14.1 | H6: 14.1 | I6: 14.6 | J6: 15.4 | K6: 15.9 | L6: 16.3 | M6: 16.6 | N6: 16.8 | O6: 17 | P6: 17 | Q6: 17 | R6: 16.9 | S6: 16.7 | T6: 16.5 | U6: 16.3 | V6: 16 | W6: 15.8 | X6: 15.5 | Y6: 15.3
A7: 6月 | B7: 19.4 | C7: 19.3 | D7: 19.2 | E7: 19 | F7: 18.9 | G7: 18.8 | H7: 18.9 | I7: 19.2 | J7: 19.6 | K7: 20 | L7: 20.3 | M7: 20.5 | N7: 20.6 | O7: 20.7 | P7: 20.8 | Q7: 20.7 | R7: 20.7 | S7: 20.7 | T7: 20.6 | U7: 20.4 | V7: 20.2 | W7: 20.1 | X7: 19.9 | Y7: 19.8
A8: 7月 | B8: 23.4 | C8: 23.3 | D8: 23.2 | E8: 23.1 | F8: 23 | G8: 22.9 | H8: 22.9 | I8: 23.2 | J8: 23.5 | K8: 23.8 | L8: 24.1 | M8: 24.2 | N8: 24.4 | O8: 24.4 | P8: 24.5 | Q8: 24.4 | R8: 24.4 | S8: 24.4 | T8: 24.3 | U8: 24.1 | V8: 23.9 | W8: 23.8 | X8: 23.7 | Y8: 23.6
A9: 8月 | B9: 23.8 | C9: 23.7 | D9: 23.5 | E9: 23.4 | F9: 23.3 | G9: 23.2 | H9: 23.2 | I9: 23.5 | J9: 23.9 | K9: 24.3 | L9: 24.6 | M9: 24.7 | N9: 24.8 | O9: 24.9 | P9: 24.9 | Q9: 24.8 | R9: 24.8 | S9: 24.8 | T9: 24.6 | U9: 24.4 | V9: 24.3 | W9: 24.2 | X9: 24 | Y9: 23.9
A10: 9月 | B10: 20.3 | C10: 20.1 | D10: 20 | E10: 19.9 | F10: 19.7 | G10: 19.6 | H10: 19.6 | I10: 19.8 | J10: 20.4 | K10: 20.9 | L10: 21.3 | M10: 21.5 | N10: 21.6 | O10: 21.7 | P10: 21.7 | Q10: 21.7 | R10: 21.6 | S10: 21.5 | T10: 21.2 | U10: 21 | V10: 20.8 | W10: 20.6 | X10: 20.5 | Y10: 20.3
A11: 10月 | B11: 14.8 | C11: 14.6 | D11: 14.4 | E11: 14.2 | F11: 14.1 | G11: 14 | H11: 13.9 | I11: 13.9 | J11: 14.6 | K11: 15.5 | L11: 16.1 | M11: 16.4 | N11: 16.5 | O11: 16.6 | P11: 16.6 | Q11: 16.6 | R11: 16.4 | S11: 16.3 | T11: 16.1 | U11: 15.8 | V11: 15.5 | W11: 15.3 | X11: 15.1 | Y11: 14.8
A12: 11月 | B12: 9.7 | C12: 9.5 | D12: 9.3 | E12: 9.1 | F12: 9 | G12: 8.9 | H12: 8.8 | I12: 8.7 | J12: 9.2 | K12: 10.1 | L12: 10.9 | M12: 11.4 | N12: 11.7 | O12: 11.9 | P12: 11.9 | Q12: 11.9 | R12: 11.7 | S12: 11.5 | T12: 11.2 | U12: 10.9 | V12: 10.6 | W12: 10.3 | X12: 10 | Y12: 9.7
A13: 12月 | B13: 4.8 | C13: 4.6 | D13: 4.4 | E13: 4.2 | F13: 4.1 | G13: 4 | H13: 3.9 | I13: 3.8 | J13: 4 | K13: 4.8 | L13: 5.6 | M13: 6.3 | N13: 6.7 | O13: 6.9 | P13: 7 | Q13: 7 | R13: 6.8 | S13: 6.5 | T13: 6.3 | U13: 6 | V13: 5.6 | W13: 5.3 | X13: 5.1 | Y13: 4.8
A14: 1月 | B14: 2.7 | C14: 2.5 | D14: 2.4 | E14: 2.3 | F14: 2.2 | G14: 2.1 | H14: 2 | I14: 1.9 | J14: 2.1 | K14: 2.8 | L14: 3.6 | M14: 4.3 | N14: 4.8 | O14: 5.1 | P14: 5.2 | Q14: 5.2 | R14: 5.1 | S14: 4.8 | T14: 4.4 | U14: 4.1 | V14: 3.8 | W14: 3.5 | X14: 3.2 | Y14: 3
A15: 2月 | B15: 3.6 | C15: 3.4 | D15: 3.2 | E15: 3.1 | F15: 2.9 | G15: 2.8 | H15: 2.8 | I15: 2.7 | J15: 3 | K15: 3.8 | L15: 4.6 | M15: 5.3 | N15: 5.7 | O15: 6 | P15: 6.1 | Q15: 6.2 | R15: 6.1 | S15: 5.8 | T15: 5.4 | U15: 5.1 | V15: 4.8 | W15: 4.5 | X15: 4.2 | Y15: 4
A16: 3月 | B16: 6.5 | C16: 6.3 | D16: 6.1 | E16: 5.9 | F16: 5.7 | G16: 5.5 | H16: 5.4 | I16: 5.5 | J16: 6.1 | K16: 7 | L16: 7.7 | M16: 8.2 | N16: 8.6 | O16: 8.8 | P16: 9 | Q16: 9 | R16: 8.9 | S16: 8.6 | T16: 8.3 | U16: 8 | V16: 7.8 | W16: 7.4 | X16: 7.2 | Y16: 6.9

Sheet 長崎 (hidden)
A1: 気象データ
A2: =RIGHT(CELL("filename",A2),LEN(CELL("filename",A2))-FIND("]",CELL("filename",A2))) -> 長崎
A3: 時刻別平均外気湿球温度
A4: 時刻 | B4: 0 | C4: 1 | D4: 2 | E4: 3 | F4: 4 | G4: 5 | H4: 6 | I4: 7 | J4: 8 | K4: 9 | L4: 10 | M4: 11 | N4: 12 | O4: 13 | P4: 14 | Q4: 15 | R4: 16 | S4: 17 | T4: 18 | U4: 19 | V4: 20 | W4: 21 | X4: 22 | Y4: 23
A5: 4月 | B5: 11.4 | C5: 11.3 | D5: 11.1 | E5: 11 | F5: 10.9 | G5: 10.8 | H5: 10.7 | I5: 11 | J5: 11.5 | K5: 12.1 | L5: 12.4 | M5: 12.7 | N5: 13 | O5: 13.2 | P5: 13.3 | Q5: 13.2 | R5: 13.1 | S5: 13 | T5: 12.7 | U5: 12.4 | V5: 12.3 | W5: 12.1 | X5: 11.9 | Y5: 11.7
A6: 5月 | B6: 15.7 | C6: 15.5 | D6: 15.4 | E6: 15.3 | F6: 15.2 | G6: 15.1 | H6: 15.1 | I6: 15.4 | J6: 16 | K6: 16.4 | L6: 16.7 | M6: 16.9 | N6: 17.1 | O6: 17.3 | P6: 17.4 | Q6: 17.3 | R6: 17.2 | S6: 17 | T6: 16.8 | U6: 16.6 | V6: 16.4 | W6: 16.3 | X6: 16.1 | Y6: 15.9
A7: 6月 | B7: 19.9 | C7: 19.8 | D7: 19.7 | E7: 19.6 | F7: 19.5 | G7: 19.5 | H7: 19.5 | I7: 19.7 | J7: 20.1 | K7: 20.3 | L7: 20.5 | M7: 20.8 | N7: 20.9 | O7: 21 | P7: 21.1 | Q7: 21 | R7: 21 | S7: 20.9 | T7: 20.8 | U7: 20.6 | V7: 20.5 | W7: 20.4 | X7: 20.3 | Y7: 20.2
A8: 7月 | B8: 23.8 | C8: 23.7 | D8: 23.7 | E8: 23.6 | F8: 23.6 | G8: 23.5 | H8: 23.5 | I8: 23.7 | J8: 23.9 | K8: 24.2 | L8: 24.3 | M8: 24.4 | N8: 24.6 | O8: 24.7 | P8: 24.7 | Q8: 24.8 | R8: 24.7 | S8: 24.6 | T8: 24.4 | U8: 24.3 | V8: 24.1 | W8: 24.1 | X8: 24 | Y8: 23.9
A9: 8月 | B9: 24.3 | C9: 24.2 | D9: 24.2 | E9: 24.1 | F9: 24 | G9: 24 | H9: 24 | I9: 24.2 | J9: 24.4 | K9: 24.6 | L9: 24.8 | M9: 25 | N9: 25.1 | O9: 25.2 | P9: 25.3 | Q9: 25.3 | R9: 25.2 | S9: 25.1 | T9: 24.9 | U9: 24.7 | V9: 24.7 | W9: 24.5 | X9: 24.5 | Y9: 24.4
A10: 9月 | B10: 21 | C10: 20.9 | D10: 20.8 | E10: 20.7 | F10: 20.6 | G10: 20.5 | H10: 20.4 | I10: 20.6 | J10: 20.9 | K10: 21.3 | L10: 21.5 | M10: 21.7 | N10: 21.8 | O10: 22 | P10: 22 | Q10: 22.1 | R10: 22 | S10: 21.9 | T10: 21.7 | U10: 21.5 | V10: 21.3 | W10: 21.2 | X10: 21.1 | Y10: 21
A11: 10月 | B11: 15.7 | C11: 15.5 | D11: 15.4 | E11: 15.3 | F11: 15.2 | G11: 15.1 | H11: 15 | I11: 15.1 | J11: 15.5 | K11: 16.1 | L11: 16.5 | M11: 16.7 | N11: 16.8 | O11: 17 | P11: 17.1 | Q11: 17.1 | R11: 17 | S11: 16.8 | T11: 16.6 | U11: 16.4 | V11: 16.2 | W11: 16 | X11: 15.8 | Y11: 15.7
A12: 11月 | B12: 10.8 | C12: 10.7 | D12: 10.6 | E12: 10.5 | F12: 10.5 | G12: 10.4 | H12: 10.4 | I12: 10.3 | J12: 10.7 | K12: 11.3 | L12: 11.8 | M12: 12.1 | N12: 12.3 | O12: 12.4 | P12: 12.4 | Q12: 12.4 | R12: 12.3 | S12: 12.1 | T12: 11.7 | U12: 11.5 | V12: 11.3 | W12: 11.1 | X12: 10.9 | Y12: 10.8
A13: 12月 | B13: 6.1 | C13: 6 | D13: 5.9 | E13: 5.8 | F13: 5.7 | G13: 5.7 | H13: 5.6 | I13: 5.6 | J13: 5.7 | K13: 6.2 | L13: 6.9 | M13: 7.2 | N13: 7.4 | O13: 7.6 | P13: 7.6 | Q13: 7.6 | R13: 7.5 | S13: 7.2 | T13: 6.9 | U13: 6.7 | V13: 6.4 | W13: 6.3 | X13: 6.1 | Y13: 6
A14: 1月 | B14: 3.9 | C14: 3.8 | D14: 3.8 | E14: 3.8 | F14: 3.7 | G14: 3.6 | H14: 3.6 | I14: 3.6 | J14: 3.7 | K14: 4.1 | L14: 4.8 | M14: 5.2 | N14: 5.4 | O14: 5.6 | P14: 5.7 | Q14: 5.7 | R14: 5.5 | S14: 5.3 | T14: 5 | U14: 4.7 | V14: 4.5 | W14: 4.4 | X14: 4.2 | Y14: 4.1
A15: 2月 | B15: 4.7 | C15: 4.6 | D15: 4.5 | E15: 4.4 | F15: 4.3 | G15: 4.3 | H15: 4.2 | I15: 4.2 | J15: 4.4 | K15: 5 | L15: 5.6 | M15: 5.9 | N15: 6.2 | O15: 6.4 | P15: 6.5 | Q15: 6.6 | R15: 6.5 | S15: 6.3 | T15: 5.9 | U15: 5.7 | V15: 5.5 | W15: 5.3 | X15: 5.1 | Y15: 4.9
A16: 3月 | B16: 7.4 | C16: 7.3 | D16: 7.2 | E16: 7.1 | F16: 7 | G16: 6.9 | H16: 6.8 | I16: 6.8 | J16: 7.3 | K16: 7.9 | L16: 8.4 | M16: 8.8 | N16: 9 | O16: 9.2 | P16: 9.3 | Q16: 9.3 | R16: 9.2 | S16: 9 | T16: 8.7 | U16: 8.5 | V16: 8.2 | W16: 8.1 | X16: 7.9 | Y16: 7.7

Sheet 熊本 (hidden)
A1: 気象データ
A2: =RIGHT(CELL("filename",A2),LEN(CELL("filename",A2))-FIND("]",CELL("filename",A2))) -> 熊本
A3: 時刻別平均外気湿球温度
A4: 時刻 | B4: 0 | C4: 1 | D4: 2 | E4: 3 | F4: 4 | G4: 5 | H4: 6 | I4: 7 | J4: 8 | K4: 9 | L4: 10 | M4: 11 | N4: 12 | O4: 13 | P4: 14 | Q4: 15 | R4: 16 | S4: 17 | T4: 18 | U4: 19 | V4: 20 | W4: 21 | X4: 22 | Y4: 23
A5: 4月 | B5: 11.2 | C5: 10.9 | D5: 10.7 | E5: 10.4 | F5: 10.2 | G5: 10 | H5: 9.8 | I5: 10.2 | J5: 11 | K5: 11.8 | L5: 12.4 | M5: 12.8 | N5: 13.2 | O5: 13.3 | P5: 13.4 | Q5: 13.4 | R5: 13.3 | S5: 13.1 | T5: 12.8 | U5: 12.5 | V5: 12.3 | W5: 12.1 | X5: 11.9 | Y5: 11.6
A6: 5月 | B6: 15.7 | C6: 15.5 | D6: 15.3 | E6: 15.1 | F6: 14.8 | G6: 14.7 | H6: 14.6 | I6: 15.1 | J6: 15.8 | K6: 16.3 | L6: 16.7 | M6: 17 | N6: 17.2 | O6: 17.4 | P6: 17.4 | Q6: 17.4 | R6: 17.3 | S6: 17.1 | T6: 17 | U6: 16.7 | V6: 16.5 | W6: 16.3 | X6: 16.1 | Y6: 15.9
A7: 6月 | B7: 19.9 | C7: 19.8 | D7: 19.7 | E7: 19.5 | F7: 19.4 | G7: 19.3 | H7: 19.3 | I7: 19.6 | J7: 20 | K7: 20.3 | L7: 20.6 | M7: 20.8 | N7: 21 | O7: 21.1 | P7: 21.2 | Q7: 21 | R7: 21 | S7: 20.9 | T7: 20.8 | U7: 20.6 | V7: 20.5 | W7: 20.4 | X7: 20.3 | Y7: 20.2
A8: 7月 | B8: 23.6 | C8: 23.5 | D8: 23.4 | E8: 23.3 | F8: 23.2 | G8: 23.1 | H8: 23.1 | I8: 23.3 | J8: 23.7 | K8: 24 | L8: 24.2 | M8: 24.4 | N8: 24.6 | O8: 24.6 | P8: 24.6 | Q8: 24.6 | R8: 24.5 | S8: 24.4 | T8: 24.4 | U8: 24.2 | V8: 24.1 | W8: 24 | X8: 23.8 | Y8: 23.8
A9: 8月 | B9: 24 | C9: 23.8 | D9: 23.7 | E9: 23.5 | F9: 23.4 | G9: 23.3 | H9: 23.3 | I9: 23.5 | J9: 23.9 | K9: 24.3 | L9: 24.5 | M9: 24.7 | N9: 24.8 | O9: 24.9 | P9: 24.9 | Q9: 24.9 | R9: 24.8 | S9: 24.6 | T9: 24.6 | U9: 24.4 | V9: 24.3 | W9: 24.2 | X9: 24.1 | Y9: 24
A10: 9月 | B10: 20.7 | C10: 20.6 | D10: 20.4 | E10: 20.3 | F10: 20.1 | G10: 20 | H10: 19.9 | I10: 20.1 | J10: 20.6 | K10: 21.1 | L10: 21.5 | M10: 21.7 | N10: 21.8 | O10: 22 | P10: 22 | Q10: 22 | R10: 21.9 | S10: 21.8 | T10: 21.5 | U10: 21.3 | V10: 21.1 | W10: 21 | X10: 20.8 | Y10: 20.7
A11: 10月 | B11: 15.2 | C11: 15 | D11: 14.8 | E11: 14.6 | F11: 14.4 | G11: 14.3 | H11: 14.1 | I11: 14.2 | J11: 14.9 | K11: 15.8 | L11: 16.3 | M11: 16.7 | N11: 16.9 | O11: 17.1 | P11: 17.2 | Q11: 17.2 | R11: 17 | S11: 16.8 | T11: 16.4 | U11: 16.1 | V11: 15.9 | W11: 15.6 | X11: 15.4 | Y11: 15.2
A12: 11月 | B12: 10 | C12: 9.7 | D12: 9.5 | E12: 9.3 | F12: 9.1 | G12: 8.9 | H12: 8.8 | I12: 8.7 | J12: 9.3 | K12: 10.3 | L12: 11.2 | M12: 11.8 | N12: 12.1 | O12: 12.3 | P12: 12.5 | Q12: 12.4 | R12: 12.3 | S12: 12 | T12: 11.6 | U12: 11.3 | V12: 10.9 | W12: 10.7 | X12: 10.4 | Y12: 10.1
A13: 12月 | B13: 4.8 | C13: 4.6 | D13: 4.4 | E13: 4.1 | F13: 3.9 | G13: 3.7 | H13: 3.6 | I13: 3.5 | J13: 3.8 | K13: 4.7 | L13: 5.8 | M13: 6.6 | N13: 7 | O13: 7.3 | P13: 7.4 | Q13: 7.4 | R13: 7.3 | S13: 6.9 | T13: 6.5 | U13: 6.1 | V13: 5.8 | W13: 5.5 | X13: 5.2 | Y13: 4.9
A14: 1月 | B14: 2.9 | C14: 2.6 | D14: 2.4 | E14: 2.2 | F14: 2 | G14: 1.9 | H14: 1.7 | I14: 1.6 | J14: 1.8 | K14: 2.8 | L14: 3.8 | M14: 4.6 | N14: 5 | O14: 5.3 | P14: 5.5 | Q14: 5.6 | R14: 5.5 | S14: 5.2 | T14: 4.7 | U14: 4.4 | V14: 4 | W14: 3.7 | X14: 3.5 | Y14: 3.2
A15: 2月 | B15: 4 | C15: 3.7 | D15: 3.5 | E15: 3.2 | F15: 3 | G15: 2.9 | H15: 2.7 | I15: 2.6 | J15: 3.1 | K15: 4 | L15: 5 | M15: 5.6 | N15: 6.1 | O15: 6.4 | P15: 6.7 | Q15: 6.7 | R15: 6.6 | S15: 6.3 | T15: 5.9 | U15: 5.5 | V15: 5.2 | W15: 4.9 | X15: 4.6 | Y15: 4.3
A16: 3月 | B16: 7 | C16: 6.8 | D16: 6.5 | E16: 6.2 | F16: 6 | G16: 5.8 | H16: 5.6 | I16: 5.6 | J16: 6.4 | K16: 7.4 | L16: 8.2 | M16: 8.7 | N16: 9.1 | O16: 9.4 | P16: 9.5 | Q16: 9.5 | R16: 9.3 | S16: 9.1 | T16: 8.8 | U16: 8.4 | V16: 8.1 | W16: 7.9 | X16: 7.6 | Y16: 7.3

Sheet 大分 (hidden)
A1: 気象データ
A2: =RIGHT(CELL("filename",A2),LEN(CELL("filename",A2))-FIND("]",CELL("filename",A2))) -> 大分
A3: 時刻別平均外気湿球温度
A4: 時刻 | B4: 0 | C4: 1 | D4: 2 | E4: 3 | F4: 4 | G4: 5 | H4: 6 | I4: 7 | J4: 8 | K4: 9 | L4: 10 | M4: 11 | N4: 12 | O4: 13 | P4: 14 | Q4: 15 | R4: 16 | S4: 17 | T4: 18 | U4: 19 | V4: 20 | W4: 21 | X4: 22 | Y4: 23
A5: 4月 | B5: 10.4 | C5: 10.1 | D5: 9.8 | E5: 9.6 | F5: 9.4 | G5: 9.2 | H5: 9.1 | I5: 9.5 | J5: 10.3 | K5: 11.1 | L5: 11.6 | M5: 12 | N5: 12.3 | O5: 12.5 | P5: 12.6 | Q5: 12.5 | R5: 12.4 | S5: 12.2 | T5: 11.9 | U5: 11.7 | V5: 11.5 | W5: 11.3 | X5: 11.1 | Y5: 10.8
A6: 5月 | B6: 14.8 | C6: 14.6 | D6: 14.4 | E6: 14.2 | F6: 13.9 | G6: 13.7 | H6: 13.8 | I6: 14.2 | J6: 15 | K6: 15.6 | L6: 16 | M6: 16.3 | N6: 16.5 | O6: 16.5 | P6: 16.6 | Q6: 16.6 | R6: 16.5 | S6: 16.3 | T6: 16.1 | U6: 15.8 | V6: 15.7 | W6: 15.5 | X6: 15.3 | Y6: 15.1
A7: 6月 | B7: 19.1 | C7: 19 | D7: 18.8 | E7: 18.7 | F7: 18.5 | G7: 18.4 | H7: 18.4 | I7: 18.8 | J7: 19.2 | K7: 19.6 | L7: 19.9 | M7: 20.1 | N7: 20.3 | O7: 20.4 | P7: 20.4 | Q7: 20.4 | R7: 20.3 | S7: 20.1 | T7: 20 | U7: 19.8 | V7: 19.7 | W7: 19.6 | X7: 19.6 | Y7: 19.4
A8: 7月 | B8: 23 | C8: 22.9 | D8: 22.8 | E8: 22.7 | F8: 22.5 | G8: 22.4 | H8: 22.4 | I8: 22.7 | J8: 23.1 | K8: 23.5 | L8: 23.7 | M8: 24 | N8: 24.1 | O8: 24.2 | P8: 24.2 | Q8: 24.2 | R8: 24.1 | S8: 23.9 | T8: 23.8 | U8: 23.6 | V8: 23.5 | W8: 23.4 | X8: 23.3 | Y8: 23.3
A9: 8月 | B9: 23.7 | C9: 23.5 | D9: 23.3 | E9: 23.2 | F9: 23.1 | G9: 22.9 | H9: 22.9 | I9: 23.1 | J9: 23.6 | K9: 24.2 | L9: 24.5 | M9: 24.6 | N9: 24.8 | O9: 24.8 | P9: 24.9 | Q9: 24.7 | R9: 24.7 | S9: 24.5 | T9: 24.4 | U9: 24.2 | V9: 24.1 | W9: 24.1 | X9: 23.9 | Y9: 23.8
A10: 9月 | B10: 20.4 | C10: 20.2 | D10: 20.1 | E10: 20 | F10: 19.9 | G10: 19.8 | H10: 19.7 | I10: 19.9 | J10: 20.3 | K10: 20.9 | L10: 21.2 | M10: 21.5 | N10: 21.6 | O10: 21.7 | P10: 21.6 | Q10: 21.6 | R10: 21.5 | S10: 21.3 | T10: 21.2 | U10: 21.1 | V10: 21 | W10: 20.9 | X10: 20.7 | Y10: 20.5
A11: 10月 | B11: 15.1 | C11: 14.9 | D11: 14.7 | E11: 14.6 | F11: 14.4 | G11: 14.3 | H11: 14.2 | I11: 14.3 | J11: 14.9 | K11: 15.7 | L11: 16.3 | M11: 16.6 | N11: 16.8 | O11: 16.9 | P11: 16.9 | Q11: 16.9 | R11: 16.7 | S11: 16.5 | T11: 16.4 | U11: 16.3 | V11: 16 | W11: 15.7 | X11: 15.4 | Y11: 15.1
A12: 11月 | B12: 9.9 | C12: 9.7 | D12: 9.5 | E12: 9.3 | F12: 9.2 | G12: 9.1 | H12: 9 | I12: 9 | J12: 9.5 | K12: 10.4 | L12: 11.3 | M12: 11.8 | N12: 12 | O12: 12.2 | P12: 12.3 | Q12: 12.3 | R12: 12.1 | S12: 11.8 | T12: 11.5 | U12: 11.3 | V12: 11 | W12: 10.6 | X12: 10.3 | Y12: 10
A13: 12月 | B13: 4.9 | C13: 4.7 | D13: 4.5 | E13: 4.4 | F13: 4.2 | G13: 4.1 | H13: 4 | I13: 4 | J13: 4.2 | K13: 5.1 | L13: 6.1 | M13: 6.7 | N13: 7.1 | O13: 7.3 | P13: 7.4 | Q13: 7.4 | R13: 7.2 | S13: 6.8 | T13: 6.5 | U13: 6.2 | V13: 5.8 | W13: 5.5 | X13: 5.2 | Y13: 4.9
A14: 1月 | B14: 2.8 | C14: 2.6 | D14: 2.4 | E14: 2.3 | F14: 2.2 | G14: 2.1 | H14: 2 | I14: 2 | J14: 2.2 | K14: 3 | L14: 4 | M14: 4.7 | N14: 5 | O14: 5.2 | P14: 5.4 | Q14: 5.4 | R14: 5.2 | S14: 4.9 | T14: 4.5 | U14: 4.3 | V14: 3.9 | W14: 3.6 | X14: 3.3 | Y14: 3
A15: 2月 | B15: 3.5 | C15: 3.3 | D15: 3.2 | E15: 3 | F15: 2.9 | G15: 2.7 | H15: 2.7 | I15: 2.6 | J15: 3 | K15: 3.8 | L15: 4.7 | M15: 5.3 | N15: 5.6 | O15: 5.9 | P15: 6.1 | Q15: 6.1 | R15: 5.9 | S15: 5.7 | T15: 5.3 | U15: 5.1 | V15: 4.8 | W15: 4.5 | X15: 4.2 | Y15: 3.9
A16: 3月 | B16: 6.4 | C16: 6.2 | D16: 5.9 | E16: 5.7 | F16: 5.5 | G16: 5.3 | H16: 5.2 | I16: 5.2 | J16: 5.9 | K16: 6.8 | L16: 7.5 | M16: 8 | N16: 8.3 | O16: 8.5 | P16: 8.7 | Q16: 8.6 | R16: 8.5 | S16: 8.3 | T16: 8 | U16: 7.7 | V16: 7.5 | W16: 7.3 | X16: 7 | Y16: 6.7

Sheet 宮崎 (hidden)
A1: 気象データ
A2: =RIGHT(CELL("filename",A2),LEN(CELL("filename",A2))-FIND("]",CELL("filename",A2))) -> 宮崎
A3: 時刻別平均外気湿球温度
A4: 時刻 | B4: 0 | C4: 1 | D4: 2 | E4: 3 | F4: 4 | G4: 5 | H4: 6 | I4: 7 | J4: 8 | K4: 9 | L4: 10 | M4: 11 | N4: 12 | O4: 13 | P4: 14 | Q4: 15 | R4: 16 | S4: 17 | T4: 18 | U4: 19 | V4: 20 | W4: 21 | X4: 22 | Y4: 23
A5: 4月 | B5: 12.4 | C5: 12.1 | D5: 11.9 | E5: 11.6 | F5: 11.4 | G5: 11.2 | H5: 11.1 | I5: 11.4 | J5: 12.2 | K5: 13 | L5: 13.5 | M5: 13.9 | N5: 14.2 | O5: 14.3 | P5: 14.4 | Q5: 14.5 | R5: 14.4 | S5: 14.3 | T5: 14 | U5: 13.8 | V5: 13.6 | W5: 13.4 | X5: 13.1 | Y5: 12.8
A6: 5月 | B6: 16.6 | C6: 16.3 | D6: 16.1 | E6: 15.9 | F6: 15.7 | G6: 15.6 | H6: 15.5 | I6: 16 | J6: 16.7 | K6: 17.3 | L6: 17.6 | M6: 17.9 | N6: 18.1 | O6: 18.1 | P6: 18.2 | Q6: 18.2 | R6: 18.2 | S6: 18 | T6: 17.8 | U6: 17.7 | V6: 17.5 | W6: 17.4 | X6: 17.2 | Y6: 16.9
A7: 6月 | B7: 20.4 | C7: 20.2 | D7: 20.1 | E7: 20 | F7: 19.8 | G7: 19.7 | H7: 19.7 | I7: 20.1 | J7: 20.5 | K7: 21 | L7: 21.2 | M7: 21.4 | N7: 21.5 | O7: 21.5 | P7: 21.5 | Q7: 21.5 | R7: 21.5 | S7: 21.5 | T7: 21.4 | U7: 21.2 | V7: 21.1 | W7: 21 | X7: 20.9 | Y7: 20.7
A8: 7月 | B8: 23.8 | C8: 23.7 | D8: 23.6 | E8: 23.5 | F8: 23.3 | G8: 23.2 | H8: 23.3 | I8: 23.5 | J8: 23.9 | K8: 24.3 | L8: 24.5 | M8: 24.7 | N8: 24.9 | O8: 24.9 | P8: 24.9 | Q8: 25 | R8: 24.8 | S8: 24.7 | T8: 24.7 | U8: 24.5 | V8: 24.3 | W8: 24.3 | X8: 24.1 | Y8: 24
A9: 8月 | B9: 24.5 | C9: 24.3 | D9: 24.2 | E9: 24.1 | F9: 23.9 | G9: 23.8 | H9: 23.7 | I9: 24 | J9: 24.5 | K9: 24.9 | L9: 25.1 | M9: 25.2 | N9: 25.3 | O9: 25.4 | P9: 25.5 | Q9: 25.4 | R9: 25.4 | S9: 25.3 | T9: 25.2 | U9: 25 | V9: 25 | W9: 24.9 | X9: 24.7 | Y9: 24.6
A10: 9月 | B10: 21.8 | C10: 21.6 | D10: 21.5 | E10: 21.3 | F10: 21.2 | G10: 21 | H10: 20.9 | I10: 21.1 | J10: 21.6 | K10: 22.1 | L10: 22.4 | M10: 22.6 | N10: 22.7 | O10: 22.8 | P10: 22.9 | Q10: 22.9 | R10: 22.8 | S10: 22.7 | T10: 22.5 | U10: 22.4 | V10: 22.3 | W10: 22.2 | X10: 22 | Y10: 21.8
A11: 10月 | B11: 16.6 | C11: 16.4 | D11: 16.2 | E11: 16 | F11: 15.8 | G11: 15.7 | H11: 15.5 | I11: 15.6 | J11: 16.3 | K11: 17.1 | L11: 17.6 | M11: 17.9 | N11: 18.1 | O11: 18.2 | P11: 18.3 | Q11: 18.3 | R11: 18.2 | S11: 18 | T11: 17.8 | U11: 17.6 | V11: 17.4 | W11: 17.1 | X11: 16.9 | Y11: 16.6
A12: 11月 | B12: 11.3 | C12: 11.1 | D12: 10.9 | E12: 10.7 | F12: 10.5 | G12: 10.4 | H12: 10.2 | I12: 10.2 | J12: 10.7 | K12: 11.8 | L12: 12.7 | M12: 13.2 | N12: 13.6 | O12: 13.7 | P12: 13.8 | Q12: 13.8 | R12: 13.7 | S12: 13.4 | T12: 13.1 | U12: 12.8 | V12: 12.4 | W12: 12.1 | X12: 11.7 | Y12: 11.5
A13: 12月 | B13: 6 | C13: 5.8 | D13: 5.6 | E13: 5.4 | F13: 5.2 | G13: 5.1 | H13: 4.9 | I13: 4.8 | J13: 5.2 | K13: 6.2 | L13: 7.4 | M13: 8.1 | N13: 8.5 | O13: 8.8 | P13: 9 | Q13: 9 | R13: 8.8 | S13: 8.4 | T13: 7.9 | U13: 7.5 | V13: 7.1 | W13: 6.7 | X13: 6.4 | Y13: 6.1
A14: 1月 | B14: 4 | C14: 3.8 | D14: 3.5 | E14: 3.4 | F14: 3.2 | G14: 3.1 | H14: 3 | I14: 2.9 | J14: 3.2 | K14: 4.2 | L14: 5.3 | M14: 6.1 | N14: 6.6 | O14: 6.9 | P14: 7.1 | Q14: 7.1 | R14: 7 | S14: 6.7 | T14: 6.2 | U14: 5.7 | V14: 5.2 | W14: 4.9 | X14: 4.6 | Y14: 4.3
A15: 2月 | B15: 5.3 | C15: 5.1 | D15: 4.9 | E15: 4.7 | F15: 4.5 | G15: 4.4 | H15: 4.2 | I15: 4.1 | J15: 4.5 | K15: 5.6 | L15: 6.5 | M15: 7.2 | N15: 7.6 | O15: 7.9 | P15: 8.1 | Q15: 8.2 | R15: 8.1 | S15: 7.9 | T15: 7.5 | U15: 7.1 | V15: 6.7 | W15: 6.3 | X15: 6 | Y15: 5.7
A16: 3月 | B16: 8.3 | C16: 8 | D16: 7.8 | E16: 7.6 | F16: 7.4 | G16: 7.2 | H16: 7.1 | I16: 7.1 | J16: 7.8 | K16: 8.7 | L16: 9.4 | M16: 9.9 | N16: 10.3 | O16: 10.5 | P16: 10.7 | Q16: 10.8 | R16: 10.7 | S16: 10.5 | T16: 10.2 | U16: 9.9 | V16: 9.6 | W16: 9.3 | X16: 8.9 | Y16: 8.6

Sheet 鹿児島 (hidden)
A1: 気象データ
A2: =RIGHT(CELL("filename",A2),LEN(CELL("filename",A2))-FIND("]",CELL("filename",A2))) -> 鹿児島
A3: 時刻別平均外気湿球温度
A4: 時刻 | B4: 0 | C4: 1 | D4: 2 | E4: 3 | F4: 4 | G4: 5 | H4: 6 | I4: 7 | J4: 8 | K4: 9 | L4: 10 | M4: 11 | N4: 12 | O4: 13 | P4: 14 | Q4: 15 | R4: 16 | S4: 17 | T4: 18 | U4: 19 | V4: 20 | W4: 21 | X4: 22 | Y4: 23
A5: 4月 | B5: 12.8 | C5: 12.5 | D5: 12.4 | E5: 12.2 | F5: 12 | G5: 11.9 | H5: 11.8 | I5: 12.1 | J5: 12.8 | K5: 13.4 | L5: 13.8 | M5: 14 | N5: 14.3 | O5: 14.4 | P5: 14.6 | Q5: 14.6 | R5: 14.5 | S5: 14.3 | T5: 14.1 | U5: 13.8 | V5: 13.6 | W5: 13.5 | X5: 13.3 | Y5: 13.1
A6: 5月 | B6: 16.9 | C6: 16.7 | D6: 16.6 | E6: 16.4 | F6: 16.3 | G6: 16.2 | H6: 16.1 | I6: 16.5 | J6: 17.1 | K6: 17.5 | L6: 17.7 | M6: 17.9 | N6: 18.1 | O6: 18.2 | P6: 18.3 | Q6: 18.3 | R6: 18.3 | S6: 18.1 | T6: 17.9 | U6: 17.6 | V6: 17.4 | W6: 17.3 | X6: 17.2 | Y6: 17.1
A7: 6月 | B7: 20.8 | C7: 20.7 | D7: 20.6 | E7: 20.5 | F7: 20.4 | G7: 20.4 | H7: 20.4 | I7: 20.6 | J7: 20.9 | K7: 21.2 | L7: 21.4 | M7: 21.5 | N7: 21.6 | O7: 21.7 | P7: 21.8 | Q7: 21.8 | R7: 21.8 | S7: 21.7 | T7: 21.5 | U7: 21.4 | V7: 21.2 | W7: 21.2 | X7: 21.1 | Y7: 21.1
A8: 7月 | B8: 24.3 | C8: 24.2 | D8: 24.2 | E8: 24.1 | F8: 24 | G8: 23.9 | H8: 23.9 | I8: 24.2 | J8: 24.4 | K8: 24.6 | L8: 24.8 | M8: 25 | N8: 25.1 | O8: 25.2 | P8: 25.2 | Q8: 25.2 | R8: 25.1 | S8: 25 | T8: 24.8 | U8: 24.7 | V8: 24.6 | W8: 24.5 | X8: 24.4 | Y8: 24.4
A9: 8月 | B9: 24.7 | C9: 24.7 | D9: 24.6 | E9: 24.5 | F9: 24.4 | G9: 24.3 | H9: 24.3 | I9: 24.5 | J9: 24.8 | K9: 25 | L9: 25.2 | M9: 25.3 | N9: 25.4 | O9: 25.5 | P9: 25.5 | Q9: 25.5 | R9: 25.5 | S9: 25.4 | T9: 25.2 | U9: 25.1 | V9: 25 | W9: 24.9 | X9: 24.8 | Y9: 24.8
A10: 9月 | B10: 22.1 | C10: 22 | D10: 21.8 | E10: 21.7 | F10: 21.6 | G10: 21.6 | H10: 21.5 | I10: 21.6 | J10: 22.1 | K10: 22.4 | L10: 22.7 | M10: 22.8 | N10: 22.9 | O10: 23 | P10: 23.1 | Q10: 23 | R10: 23 | S10: 22.9 | T10: 22.7 | U10: 22.5 | V10: 22.4 | W10: 22.3 | X10: 22.2 | Y10: 22.1
A11: 10月 | B11: 17.1 | C11: 16.9 | D11: 16.7 | E11: 16.6 | F11: 16.5 | G11: 16.4 | H11: 16.3 | I11: 16.4 | J11: 17 | K11: 17.6 | L11: 17.9 | M11: 18.2 | N11: 18.4 | O11: 18.4 | P11: 18.5 | Q11: 18.4 | R11: 18.3 | S11: 18.2 | T11: 18 | U11: 17.8 | V11: 17.6 | W11: 17.4 | X11: 17.2 | Y11: 17.1
A12: 11月 | B12: 12.2 | C12: 12 | D12: 11.8 | E12: 11.7 | F12: 11.6 | G12: 11.5 | H12: 11.4 | I12: 11.4 | J12: 11.9 | K12: 12.9 | L12: 13.4 | M12: 13.7 | N12: 13.9 | O12: 14 | P12: 14 | Q12: 14 | R12: 13.8 | S12: 13.6 | T12: 13.4 | U12: 13.1 | V12: 12.9 | W12: 12.6 | X12: 12.4 | Y12: 12.2
A13: 12月 | B13: 7.2 | C13: 6.9 | D13: 6.8 | E13: 6.7 | F13: 6.6 | G13: 6.5 | H13: 6.4 | I13: 6.3 | J13: 6.6 | K13: 7.5 | L13: 8.4 | M13: 8.8 | N13: 9.1 | O13: 9.3 | P13: 9.4 | Q13: 9.3 | R13: 9.1 | S13: 8.7 | T13: 8.4 | U13: 8.2 | V13: 7.9 | W13: 7.6 | X13: 7.4 | Y13: 7.1
A14: 1月 | B14: 5 | C14: 4.9 | D14: 4.7 | E14: 4.6 | F14: 4.5 | G14: 4.4 | H14: 4.4 | I14: 4.4 | J14: 4.5 | K14: 5.4 | L14: 6.3 | M14: 6.8 | N14: 7.1 | O14: 7.4 | P14: 7.5 | Q14: 7.5 | R14: 7.3 | S14: 7 | T14: 6.7 | U14: 6.3 | V14: 6 | W14: 5.8 | X14: 5.5 | Y14: 5.3
A15: 2月 | B15: 6.2 | C15: 6 | D15: 5.8 | E15: 5.7 | F15: 5.5 | G15: 5.4 | H15: 5.4 | I15: 5.4 | J15: 5.7 | K15: 6.6 | L15: 7.3 | M15: 7.8 | N15: 8.1 | O15: 8.3 | P15: 8.5 | Q15: 8.5 | R15: 8.4 | S15: 8.1 | T15: 7.7 | U15: 7.4 | V15: 7.2 | W15: 6.9 | X15: 6.7 | Y15: 6.5
A16: 3月 | B16: 8.9 | C16: 8.7 | D16: 8.5 | E16: 8.3 | F16: 8.2 | G16: 8.1 | H16: 8 | I16: 8 | J16: 8.6 | K16: 9.4 | L16: 9.9 | M16: 10.3 | N16: 10.6 | O16: 10.8 | P16: 11 | Q16: 11 | R16: 10.9 | S16: 10.6 | T16: 10.3 | U16: 10 | V16: 9.8 | W16: 9.6 | X16: 9.4 | Y16: 9.2

Sheet 那覇 (hidden)
A1: 気象データ
A2: =RIGHT(CELL("filename",A2),LEN(CELL("filename",A2))-FIND("]",CELL("filename",A2))) -> 那覇
A3: 時刻別平均外気湿球温度
A4: 時刻 | B4: 0 | C4: 1 | D4: 2 | E4: 3 | F4: 4 | G4: 5 | H4: 6 | I4: 7 | J4: 8 | K4: 9 | L4: 10 | M4: 11 | N4: 12 | O4: 13 | P4: 14 | Q4: 15 | R4: 16 | S4: 17 | T4: 18 | U4: 19 | V4: 20 | W4: 21 | X4: 22 | Y4: 23
A5: 4月 | B5: 18 | C5: 18 | D5: 17.9 | E5: 17.9 | F5: 17.9 | G5: 17.8 | H5: 17.8 | I5: 18 | J5: 18.3 | K5: 18.5 | L5: 18.7 | M5: 18.8 | N5: 18.9 | O5: 19 | P5: 18.9 | Q5: 18.9 | R5: 18.8 | S5: 18.6 | T5: 18.5 | U5: 18.3 | V5: 18.2 | W5: 18.2 | X5: 18.2 | Y5: 18.2
A6: 5月 | B6: 21.2 | C6: 21.1 | D6: 21.1 | E6: 21.1 | F6: 21.1 | G6: 21 | H6: 21 | I6: 21.3 | J6: 21.5 | K6: 21.7 | L6: 21.8 | M6: 21.9 | N6: 22 | O6: 22 | P6: 22 | Q6: 21.9 | R6: 21.8 | S6: 21.6 | T6: 21.5 | U6: 21.4 | V6: 21.3 | W6: 21.3 | X6: 21.3 | Y6: 21.3
A7: 6月 | B7: 24.5 | C7: 24.5 | D7: 24.4 | E7: 24.4 | F7: 24.4 | G7: 24.4 | H7: 24.4 | I7: 24.6 | J7: 24.8 | K7: 24.9 | L7: 25.1 | M7: 25.1 | N7: 25.2 | O7: 25.2 | P7: 25.2 | Q7: 25.2 | R7: 25 | S7: 24.9 | T7: 24.8 | U7: 24.7 | V7: 24.6 | W7: 24.7 | X7: 24.6 | Y7: 24.6
A8: 7月 | B8: 25.6 | C8: 25.6 | D8: 25.6 | E8: 25.5 | F8: 25.5 | G8: 25.5 | H8: 25.4 | I8: 25.6 | J8: 25.8 | K8: 25.9 | L8: 26 | M8: 26.1 | N8: 26.1 | O8: 26.2 | P8: 26.1 | Q8: 26.1 | R8: 26 | S8: 25.9 | T8: 25.8 | U8: 25.7 | V8: 25.7 | W8: 25.7 | X8: 25.7 | Y8: 25.7
A9: 8月 | B9: 25.6 | C9: 25.5 | D9: 25.5 | E9: 25.4 | F9: 25.4 | G9: 25.3 | H9: 25.3 | I9: 25.5 | J9: 25.7 | K9: 25.8 | L9: 25.9 | M9: 26 | N9: 26 | O9: 26.1 | P9: 26 | Q9: 26 | R9: 25.9 | S9: 25.8 | T9: 25.7 | U9: 25.6 | V9: 25.6 | W9: 25.6 | X9: 25.6 | Y9: 25.6
A10: 9月 | B10: 24.3 | C10: 24.2 | D10: 24.2 | E10: 24.1 | F10: 24.1 | G10: 24.1 | H10: 24 | I10: 24.2 | J10: 24.4 | K10: 24.6 | L10: 24.7 | M10: 24.7 | N10: 24.8 | O10: 24.8 | P10: 24.8 | Q10: 24.7 | R10: 24.6 | S10: 24.5 | T10: 24.4 | U10: 24.3 | V10: 24.3 | W10: 24.3 | X10: 24.3 | Y10: 24.2
A11: 10月 | B11: 21.5 | C11: 21.4 | D11: 21.4 | E11: 21.3 | F11: 21.3 | G11: 21.3 | H11: 21.2 | I11: 21.3 | J11: 21.6 | K11: 21.8 | L11: 21.9 | M11: 22.1 | N11: 22.1 | O11: 22.1 | P11: 22.1 | Q11: 22 | R11: 21.9 | S11: 21.8 | T11: 21.7 | U11: 21.6 | V11: 21.6 | W11: 21.6 | X11: 21.5 | Y11: 21.5
A12: 11月 | B12: 18.4 | C12: 18.3 | D12: 18.3 | E12: 18.2 | F12: 18.2 | G12: 18.1 | H12: 18.1 | I12: 18.2 | J12: 18.4 | K12: 18.7 | L12: 18.9 | M12: 19 | N12: 19.1 | O12: 19.1 | P12: 19.1 | Q12: 19 | R12: 18.9 | S12: 18.7 | T12: 18.6 | U12: 18.5 | V12: 18.5 | W12: 18.4 | X12: 18.4 | Y12: 18.3
A13: 12月 | B13: 14.9 | C13: 14.8 | D13: 14.8 | E13: 14.7 | F13: 14.7 | G13: 14.7 | H13: 14.6 | I13: 14.6 | J13: 14.8 | K13: 15.2 | L13: 15.4 | M13: 15.6 | N13: 15.6 | O13: 15.7 | P13: 15.7 | Q13: 15.6 | R13: 15.5 | S13: 15.3 | T13: 15.2 | U13: 15.1 | V13: 15 | W13: 14.9 | X13: 14.9 | Y13: 14.8
A14: 1月 | B14: 13.2 | C14: 13.2 | D14: 13.2 | E14: 13.1 | F14: 13.1 | G14: 13 | H14: 13 | I14: 13 | J14: 13.2 | K14: 13.6 | L14: 13.8 | M14: 14 | N14: 14.1 | O14: 14.1 | P14: 14.1 | Q14: 14.1 | R14: 14 | S14: 13.8 | T14: 13.7 | U14: 13.6 | V14: 13.5 | W14: 13.4 | X14: 13.4 | Y14: 13.3
A15: 2月 | B15: 13.8 | C15: 13.8 | D15: 13.8 | E15: 13.7 | F15: 13.7 | G15: 13.6 | H15: 13.6 | I15: 13.6 | J15: 13.8 | K15: 14.2 | L15: 14.5 | M15: 14.6 | N15: 14.7 | O15: 14.8 | P15: 14.8 | Q15: 14.8 | R15: 14.7 | S15: 14.5 | T15: 14.3 | U15: 14.2 | V15: 14.2 | W15: 14.1 | X15: 14 | Y15: 14
A16: 3月 | B16: 15.4 | C16: 15.3 | D16: 15.3 | E16: 15.3 | F16: 15.2 | G16: 15.1 | H16: 15.1 | I16: 15.2 | J16: 15.5 | K16: 15.8 | L16: 16 | M16: 16.2 | N16: 16.3 | O16: 16.3 | P16: 16.3 | Q16: 16.3 | R16: 16.2 | S16: 16 | T16: 15.9 | U16: 15.7 | V16: 15.6 | W16: 15.6 | X16: 15.5 | Y16: 15.5
